Workbook

Sheet om lv
B3: =+tekst!A2 -> Lyddempervalg 5.0
B4: © | C4: Trox Auranor 2020

Sheet skjermbilde
C1: =tekst!A2 -> Lyddempervalg 5.0 | K1: =+tekst!A69 -> Kopiér bilde (side)
D2: 1 | G2: 63 | H2: 125 | I2: 250 | J2: 500 Hz | K2: 1000 | L2: 2000 | M2: 4000 | N2: 8000 | S2: Please use printer symbol
B3: =+IF(knapper!B1=2,tekst!A9,IF(knapper!B1=1,tekst!A6)) -> Bredde [mm] | D3: 800 | O3: TRUE
B4: =+IF(knapper!B1=1,tekst!A7,IF(knapper!B1=2,tekst!A10)) -> Høyde [mm] | D4: r | E4: 2 | F4: =+tekst!A18 -> Lydkrav etter demper | G4: =ROUND($O4*0.8+35,0) -> 75 | H4: =ROUND($O4*0.864+22.1,0) -> 65 | I4: =ROUND($O4*0.936+11.9,0) -> 59 | J4: =ROUND($O4*0.9738+4.62335,0) -> 53 | K4: =ROUND($O4,0) -> 50 | L4: =ROUND($O4-3,0) -> 47 | M4: =ROUND($O4*1.0197-5.97,0) -> 45 | N4: =ROUND($O4*1.0369-8.44,0) -> 43 | O4: 50
B5: =+tekst!A11 -> Luftmengde
B6: =IF($E$15="u/i",tekst!A40,tekst!A8) -> Lengde [mm] | E6: FALSE | F6: =+tekst!A21 -> Tilleggsdempning:
B7: =+tekst!A12 -> Maksimalt trykktap | F7: =+tekst!A20 -> Toleranse:
E9: =tekst!A22 -> = må fylles ut
E10: =tekst!A16 -> = valgfri utfylling | N10: 1 | O10: FALSE
B13: =CONCATENATE(tekst!$A$15,'beregninger og logiske tester'!$BH$11) -> Dempere funnet:0 | C13: =IF(knapper!$B$1=1,tekst!$A37,"") -> Bredde | D13: =IF(knapper!$B$1=1,tekst!$A36,"") -> Høyde | E13: =tekst!$A28 -> Lengde | F13: =+tekst!A25 -> Trykktap | J13: =+tekst!A26 -> Lyddempning [dB] | O13: =+tekst!A27 -> Lp
C14: =IF(knapper!$B$1=1,"[mm]","") -> [mm] | D14: =IF(knapper!$B$1=1,"[mm]","") -> [mm] | E14: =IF(knapper!$B$1=1,"[mm]","") -> [mm] | F14: [Pa] | G14: 63 | H14: 125 | I14: 250 | J14: 500 | K14: 1k | L14: 2k | M14: 4k | N14: 8k | O14: [dB(A)]
B15: =tekst!A57 -> Dempningskrav: | E15: =+IF(AND('beregninger og logiske tester'!$B$7="r",$N$10=2),"U/I","") ->  | G15: =+IF(ROUND(('beregninger og logiske tester'!Y11+$G$7),0)>0,ROUND(('beregninger og logiske tester'!Y11+$G$7),0),0) -> 0 | H15: =+IF(ROUND(('beregninger og logiske tester'!Z11+$G$7),0)>0,ROUND(('beregninger og logiske tester'!Z11+$G$7),0),0) -> 0 | I15: =+IF(ROUND(('beregninger og logiske tester'!AA11+$G$7),0)>0,ROUND(('beregninger og logiske tester'!AA11+$G$7),0),0) -> 0 | J15: =+IF(ROUND(('beregninger og logiske tester'!AB11+$G$7),0)>0,ROUND(('beregninger og logiske tester'!AB11+$G$7),0),0) -> 0 | K15: =+IF(ROUND(('beregninger og logiske tester'!AC11+$G$7),0)>0,ROUND(('beregninger og logiske tester'!AC11+$G$7),0),0) -> 0 | L15: =+IF(ROUND(('beregninger og logiske tester'!AD11+$G$7),0)>0,ROUND(('beregninger og logiske tester'!AD11+$G$7),0),0) -> 0 | M15: =+IF(ROUND(('beregninger og logiske tester'!AE11+$G$7),0)>0,ROUND(('beregninger og logiske tester'!AE11+$G$7),0),0) -> 0 | N15: =+IF(ROUND(('beregninger og logiske tester'!AF11+$G$7),0)>0,ROUND(('beregninger og logiske tester'!AF11+$G$7),0),0) -> 0
A16: =+'beregninger og logiske tester'!CX17 ->  | B16: =+'beregninger og logiske tester'!CY17 ->  | C16: =IF(VLOOKUP($A16,'beregninger og logiske tester'!$A$16:$CS$261,21,TRUE)="r",VLOOKUP($A16,'beregninger og logiske tester'!$A$16:$CS$261,14,TRUE),"") ->  | D16: =IF(VLOOKUP($A16,'beregninger og logiske tester'!$A$16:$CS$261,21,TRUE)="r",VLOOKUP($A16,'beregninger og logiske tester'!$A$16:$CS$261,15,TRUE),"") ->  | E16: =VLOOKUP($A16,'beregninger og logiske tester'!$A$16:$CS$261,17,TRUE) ->  | F16: =VLOOKUP($A16,'beregninger og logiske tester'!$A$16:$CS$261,24,TRUE) ->  | G16: =ROUND(VLOOKUP($A16,'beregninger og logiske tester'!$A$16:$CS$261,25,TRUE),0) ->  | H16: =ROUND(VLOOKUP($A16,'beregninger og logiske tester'!$A$16:$CS$261,26,TRUE),0) ->  | I16: =ROUND(VLOOKUP($A16,'beregninger og logiske tester'!$A$16:$CS$261,27,TRUE),0) ->  | J16: =ROUND(VLOOKUP($A16,'beregninger og logiske tester'!$A$16:$CS$261,28,TRUE),0) ->  | K16: =ROUND(VLOOKUP($A16,'beregninger og logiske tester'!$A$16:$CS$261,29,TRUE),0) ->  | L16: =ROUND(VLOOKUP($A16,'beregninger og logiske tester'!$A$16:$CS$261,30,TRUE),0) ->  | M16: =ROUND(VLOOKUP($A16,'beregninger og logiske tester'!$A$16:$CS$261,31,TRUE),0) ->  | N16: =ROUND(VLOOKUP($A16,'beregninger og logiske tester'!$A$16:$CS$261,32,TRUE),0) ->  | O16: =IF(VLOOKUP($A16,'beregninger og logiske tester'!$A$16:$CS$261,43,TRUE)<20,"<20",VLOOKUP($A16,'beregninger og logiske tester'!$A$16:$CS$261,43,TRUE)) -> 
A17: =+'beregninger og logiske tester'!CX18 ->  | B17: =+'beregninger og logiske tester'!CY18 ->  | C17: =IF(VLOOKUP($A17,'beregninger og logiske tester'!$A$16:$CS$261,21,TRUE)="r",VLOOKUP($A17,'beregninger og logiske tester'!$A$16:$CS$261,14,TRUE),"") ->  | D17: =IF(VLOOKUP($A17,'beregninger og logiske tester'!$A$16:$CS$261,21,TRUE)="r",VLOOKUP($A17,'beregninger og logiske tester'!$A$16:$CS$261,15,TRUE),"") ->  | E17: =VLOOKUP($A17,'beregninger og logiske tester'!$A$16:$CS$261,17,TRUE) ->  | F17: =VLOOKUP($A17,'beregninger og logiske tester'!$A$16:$CS$261,24,TRUE) ->  | G17: =ROUND(VLOOKUP($A17,'beregninger og logiske tester'!$A$16:$CS$261,25,TRUE),0) ->  | H17: =ROUND(VLOOKUP($A17,'beregninger og logiske tester'!$A$16:$CS$261,26,TRUE),0) ->  | I17: =ROUND(VLOOKUP($A17,'beregninger og logiske tester'!$A$16:$CS$261,27,TRUE),0) ->  | J17: =ROUND(VLOOKUP($A17,'beregninger og logiske tester'!$A$16:$CS$261,28,TRUE),0) ->  | K17: =ROUND(VLOOKUP($A17,'beregninger og logiske tester'!$A$16:$CS$261,29,TRUE),0) ->  | L17: =ROUND(VLOOKUP($A17,'beregninger og logiske tester'!$A$16:$CS$261,30,TRUE),0) ->  | M17: =ROUND(VLOOKUP($A17,'beregninger og logiske tester'!$A$16:$CS$261,31,TRUE),0) ->  | N17: =ROUND(VLOOKUP($A17,'beregninger og logiske tester'!$A$16:$CS$261,32,TRUE),0) ->  | O17: =IF(VLOOKUP($A17,'beregninger og logiske tester'!$A$16:$CS$261,43,TRUE)<20,"<20",VLOOKUP($A17,'beregninger og logiske tester'!$A$16:$CS$261,43,TRUE)) -> 
A18: =+'beregninger og logiske tester'!CX19 ->  | B18: =+'beregninger og logiske tester'!CY19 ->  | C18: =IF(VLOOKUP($A18,'beregninger og logiske tester'!$A$16:$CS$261,21,TRUE)="r",VLOOKUP($A18,'beregninger og logiske tester'!$A$16:$CS$261,14,TRUE),"") ->  | D18: =IF(VLOOKUP($A18,'beregninger og logiske tester'!$A$16:$CS$261,21,TRUE)="r",VLOOKUP($A18,'beregninger og logiske tester'!$A$16:$CS$261,15,TRUE),"") ->  | E18: =VLOOKUP($A18,'beregninger og logiske tester'!$A$16:$CS$261,17,TRUE) ->  | F18: =VLOOKUP($A18,'beregninger og logiske tester'!$A$16:$CS$261,24,TRUE) ->  | G18: =ROUND(VLOOKUP($A18,'beregninger og logiske tester'!$A$16:$CS$261,25,TRUE),0) ->  | H18: =ROUND(VLOOKUP($A18,'beregninger og logiske tester'!$A$16:$CS$261,26,TRUE),0) ->  | I18: =ROUND(VLOOKUP($A18,'beregninger og logiske tester'!$A$16:$CS$261,27,TRUE),0) ->  | J18: =ROUND(VLOOKUP($A18,'beregninger og logiske tester'!$A$16:$CS$261,28,TRUE),0) ->  | K18: =ROUND(VLOOKUP($A18,'beregninger og logiske tester'!$A$16:$CS$261,29,TRUE),0) ->  | L18: =ROUND(VLOOKUP($A18,'beregninger og logiske tester'!$A$16:$CS$261,30,TRUE),0) ->  | M18: =ROUND(VLOOKUP($A18,'beregninger og logiske tester'!$A$16:$CS$261,31,TRUE),0) ->  | N18: =ROUND(VLOOKUP($A18,'beregninger og logiske tester'!$A$16:$CS$261,32,TRUE),0) ->  | O18: =IF(VLOOKUP($A18,'beregninger og logiske tester'!$A$16:$CS$261,43,TRUE)<20,"<20",VLOOKUP($A18,'beregninger og logiske tester'!$A$16:$CS$261,43,TRUE)) -> 
A19: =+'beregninger og logiske tester'!CX20 ->  | B19: =+'beregninger og logiske tester'!CY20 ->  | C19: =IF(VLOOKUP($A19,'beregninger og logiske tester'!$A$16:$CS$261,21,TRUE)="r",VLOOKUP($A19,'beregninger og logiske tester'!$A$16:$CS$261,14,TRUE),"") ->  | D19: =IF(VLOOKUP($A19,'beregninger og logiske tester'!$A$16:$CS$261,21,TRUE)="r",VLOOKUP($A19,'beregninger og logiske tester'!$A$16:$CS$261,15,TRUE),"") ->  | E19: =VLOOKUP($A19,'beregninger og logiske tester'!$A$16:$CS$261,17,TRUE) ->  | F19: =VLOOKUP($A19,'beregninger og logiske tester'!$A$16:$CS$261,24,TRUE) ->  | G19: =ROUND(VLOOKUP($A19,'beregninger og logiske tester'!$A$16:$CS$261,25,TRUE),0) ->  | H19: =ROUND(VLOOKUP($A19,'beregninger og logiske tester'!$A$16:$CS$261,26,TRUE),0) ->  | I19: =ROUND(VLOOKUP($A19,'beregninger og logiske tester'!$A$16:$CS$261,27,TRUE),0) ->  | J19: =ROUND(VLOOKUP($A19,'beregninger og logiske tester'!$A$16:$CS$261,28,TRUE),0) ->  | K19: =ROUND(VLOOKUP($A19,'beregninger og logiske tester'!$A$16:$CS$261,29,TRUE),0) ->  | L19: =ROUND(VLOOKUP($A19,'beregninger og logiske tester'!$A$16:$CS$261,30,TRUE),0) ->  | M19: =ROUND(VLOOKUP($A19,'beregninger og logiske tester'!$A$16:$CS$261,31,TRUE),0) ->  | N19: =ROUND(VLOOKUP($A19,'beregninger og logiske tester'!$A$16:$CS$261,32,TRUE),0) ->  | O19: =IF(VLOOKUP($A19,'beregninger og logiske tester'!$A$16:$CS$261,43,TRUE)<20,"<20",VLOOKUP($A19,'beregninger og logiske tester'!$A$16:$CS$261,43,TRUE)) -> 
A20: =+'beregninger og logiske tester'!CX21 ->  | B20: =+'beregninger og logiske tester'!CY21 ->  | C20: =IF(VLOOKUP($A20,'beregninger og logiske tester'!$A$16:$CS$261,21,TRUE)="r",VLOOKUP($A20,'beregninger og logiske tester'!$A$16:$CS$261,14,TRUE),"") ->  | D20: =IF(VLOOKUP($A20,'beregninger og logiske tester'!$A$16:$CS$261,21,TRUE)="r",VLOOKUP($A20,'beregninger og logiske tester'!$A$16:$CS$261,15,TRUE),"") ->  | E20: =VLOOKUP($A20,'beregninger og logiske tester'!$A$16:$CS$261,17,TRUE) ->  | F20: =VLOOKUP($A20,'beregninger og logiske tester'!$A$16:$CS$261,24,TRUE) ->  | G20: =ROUND(VLOOKUP($A20,'beregninger og logiske tester'!$A$16:$CS$261,25,TRUE),0) ->  | H20: =ROUND(VLOOKUP($A20,'beregninger og logiske tester'!$A$16:$CS$261,26,TRUE),0) ->  | I20: =ROUND(VLOOKUP($A20,'beregninger og logiske tester'!$A$16:$CS$261,27,TRUE),0) ->  | J20: =ROUND(VLOOKUP($A20,'beregninger og logiske tester'!$A$16:$CS$261,28,TRUE),0) ->  | K20: =ROUND(VLOOKUP($A20,'beregninger og logiske tester'!$A$16:$CS$261,29,TRUE),0) ->  | L20: =ROUND(VLOOKUP($A20,'beregninger og logiske tester'!$A$16:$CS$261,30,TRUE),0) ->  | M20: =ROUND(VLOOKUP($A20,'beregninger og logiske tester'!$A$16:$CS$261,31,TRUE),0) ->  | N20: =ROUND(VLOOKUP($A20,'beregninger og logiske tester'!$A$16:$CS$261,32,TRUE),0) ->  | O20: =IF(VLOOKUP($A20,'beregninger og logiske tester'!$A$16:$CS$261,43,TRUE)<20,"<20",VLOOKUP($A20,'beregninger og logiske tester'!$A$16:$CS$261,43,TRUE)) -> 
A21: =+'beregninger og logiske tester'!CX22 ->  | B21: =+'beregninger og logiske tester'!CY22 ->  | C21: =IF(VLOOKUP($A21,'beregninger og logiske tester'!$A$16:$CS$261,21,TRUE)="r",VLOOKUP($A21,'beregninger og logiske tester'!$A$16:$CS$261,14,TRUE),"") ->  | D21: =IF(VLOOKUP($A21,'beregninger og logiske tester'!$A$16:$CS$261,21,TRUE)="r",VLOOKUP($A21,'beregninger og logiske tester'!$A$16:$CS$261,15,TRUE),"") ->  | E21: =VLOOKUP($A21,'beregninger og logiske tester'!$A$16:$CS$261,17,TRUE) ->  | F21: =VLOOKUP($A21,'beregninger og logiske tester'!$A$16:$CS$261,24,TRUE) ->  | G21: =ROUND(VLOOKUP($A21,'beregninger og logiske tester'!$A$16:$CS$261,25,TRUE),0) ->  | H21: =ROUND(VLOOKUP($A21,'beregninger og logiske tester'!$A$16:$CS$261,26,TRUE),0) ->  | I21: =ROUND(VLOOKUP($A21,'beregninger og logiske tester'!$A$16:$CS$261,27,TRUE),0) ->  | J21: =ROUND(VLOOKUP($A21,'beregninger og logiske tester'!$A$16:$CS$261,28,TRUE),0) ->  | K21: =ROUND(VLOOKUP($A21,'beregninger og logiske tester'!$A$16:$CS$261,29,TRUE),0) ->  | L21: =ROUND(VLOOKUP($A21,'beregninger og logiske tester'!$A$16:$CS$261,30,TRUE),0) ->  | M21: =ROUND(VLOOKUP($A21,'beregninger og logiske tester'!$A$16:$CS$261,31,TRUE),0) ->  | N21: =ROUND(VLOOKUP($A21,'beregninger og logiske tester'!$A$16:$CS$261,32,TRUE),0) ->  | O21: =IF(VLOOKUP($A21,'beregninger og logiske tester'!$A$16:$CS$261,43,TRUE)<20,"<20",VLOOKUP($A21,'beregninger og logiske tester'!$A$16:$CS$261,43,TRUE)) -> 
A22: =+'beregninger og logiske tester'!CX23 ->  | B22: =+'beregninger og logiske tester'!CY23 ->  | C22: =IF(VLOOKUP($A22,'beregninger og logiske tester'!$A$16:$CS$261,21,TRUE)="r",VLOOKUP($A22,'beregninger og logiske tester'!$A$16:$CS$261,14,TRUE),"") ->  | D22: =IF(VLOOKUP($A22,'beregninger og logiske tester'!$A$16:$CS$261,21,TRUE)="r",VLOOKUP($A22,'beregninger og logiske tester'!$A$16:$CS$261,15,TRUE),"") ->  | E22: =VLOOKUP($A22,'beregninger og logiske tester'!$A$16:$CS$261,17,TRUE) ->  | F22: =VLOOKUP($A22,'beregninger og logiske tester'!$A$16:$CS$261,24,TRUE) ->  | G22: =ROUND(VLOOKUP($A22,'beregninger og logiske tester'!$A$16:$CS$261,25,TRUE),0) ->  | H22: =ROUND(VLOOKUP($A22,'beregninger og logiske tester'!$A$16:$CS$261,26,TRUE),0) ->  | I22: =ROUND(VLOOKUP($A22,'beregninger og logiske tester'!$A$16:$CS$261,27,TRUE),0) ->  | J22: =ROUND(VLOOKUP($A22,'beregninger og logiske tester'!$A$16:$CS$261,28,TRUE),0) ->  | K22: =ROUND(VLOOKUP($A22,'beregninger og logiske tester'!$A$16:$CS$261,29,TRUE),0) ->  | L22: =ROUND(VLOOKUP($A22,'beregninger og logiske tester'!$A$16:$CS$261,30,TRUE),0) ->  | M22: =ROUND(VLOOKUP($A22,'beregninger og logiske tester'!$A$16:$CS$261,31,TRUE),0) ->  | N22: =ROUND(VLOOKUP($A22,'beregninger og logiske tester'!$A$16:$CS$261,32,TRUE),0) ->  | O22: =IF(VLOOKUP($A22,'beregninger og logiske tester'!$A$16:$CS$261,43,TRUE)<20,"<20",VLOOKUP($A22,'beregninger og logiske tester'!$A$16:$CS$261,43,TRUE)) -> 
A23: =+'beregninger og logiske tester'!CX24 ->  | B23: =+'beregninger og logiske tester'!CY24 ->  | C23: =IF(VLOOKUP($A23,'beregninger og logiske tester'!$A$16:$CS$261,21,TRUE)="r",VLOOKUP($A23,'beregninger og logiske tester'!$A$16:$CS$261,14,TRUE),"") ->  | D23: =IF(VLOOKUP($A23,'beregninger og logiske tester'!$A$16:$CS$261,21,TRUE)="r",VLOOKUP($A23,'beregninger og logiske tester'!$A$16:$CS$261,15,TRUE),"") ->  | E23: =VLOOKUP($A23,'beregninger og logiske tester'!$A$16:$CS$261,17,TRUE) ->  | F23: =VLOOKUP($A23,'beregninger og logiske tester'!$A$16:$CS$261,24,TRUE) ->  | G23: =ROUND(VLOOKUP($A23,'beregninger og logiske tester'!$A$16:$CS$261,25,TRUE),0) ->  | H23: =ROUND(VLOOKUP($A23,'beregninger og logiske tester'!$A$16:$CS$261,26,TRUE),0) ->  | I23: =ROUND(VLOOKUP($A23,'beregninger og logiske tester'!$A$16:$CS$261,27,TRUE),0) ->  | J23: =ROUND(VLOOKUP($A23,'beregninger og logiske tester'!$A$16:$CS$261,28,TRUE),0) ->  | K23: =ROUND(VLOOKUP($A23,'beregninger og logiske tester'!$A$16:$CS$261,29,TRUE),0) ->  | L23: =ROUND(VLOOKUP($A23,'beregninger og logiske tester'!$A$16:$CS$261,30,TRUE),0) ->  | M23: =ROUND(VLOOKUP($A23,'beregninger og logiske tester'!$A$16:$CS$261,31,TRUE),0) ->  | N23: =ROUND(VLOOKUP($A23,'beregninger og logiske tester'!$A$16:$CS$261,32,TRUE),0) ->  | O23: =IF(VLOOKUP($A23,'beregninger og logiske tester'!$A$16:$CS$261,43,TRUE)<20,"<20",VLOOKUP($A23,'beregninger og logiske tester'!$A$16:$CS$261,43,TRUE)) -> 
A24: =+'beregninger og logiske tester'!CX25 ->  | B24: =+'beregninger og logiske tester'!CY25 ->  | C24: =IF(VLOOKUP($A24,'beregninger og logiske tester'!$A$16:$CS$261,21,TRUE)="r",VLOOKUP($A24,'beregninger og logiske tester'!$A$16:$CS$261,14,TRUE),"") ->  | D24: =IF(VLOOKUP($A24,'beregninger og logiske tester'!$A$16:$CS$261,21,TRUE)="r",VLOOKUP($A24,'beregninger og logiske tester'!$A$16:$CS$261,15,TRUE),"") ->  | E24: =VLOOKUP($A24,'beregninger og logiske tester'!$A$16:$CS$261,17,TRUE) ->  | F24: =VLOOKUP($A24,'beregninger og logiske tester'!$A$16:$CS$261,24,TRUE) ->  | G24: =ROUND(VLOOKUP($A24,'beregninger og logiske tester'!$A$16:$CS$261,25,TRUE),0) ->  | H24: =ROUND(VLOOKUP($A24,'beregninger og logiske tester'!$A$16:$CS$261,26,TRUE),0) ->  | I24: =ROUND(VLOOKUP($A24,'beregninger og logiske tester'!$A$16:$CS$261,27,TRUE),0) ->  | J24: =ROUND(VLOOKUP($A24,'beregninger og logiske tester'!$A$16:$CS$261,28,TRUE),0) ->  | K24: =ROUND(VLOOKUP($A24,'beregninger og logiske tester'!$A$16:$CS$261,29,TRUE),0) ->  | L24: =ROUND(VLOOKUP($A24,'beregninger og logiske tester'!$A$16:$CS$261,30,TRUE),0) ->  | M24: =ROUND(VLOOKUP($A24,'beregninger og logiske tester'!$A$16:$CS$261,31,TRUE),0) ->  | N24: =ROUND(VLOOKUP($A24,'beregninger og logiske tester'!$A$16:$CS$261,32,TRUE),0) ->  | O24: =IF(VLOOKUP($A24,'beregninger og logiske tester'!$A$16:$CS$261,43,TRUE)<20,"<20",VLOOKUP($A24,'beregninger og logiske tester'!$A$16:$CS$261,43,TRUE)) -> 
A25: =+'beregninger og logiske tester'!CX26 ->  | B25: =+'beregninger og logiske tester'!CY26 ->  | C25: =IF(VLOOKUP($A25,'beregninger og logiske tester'!$A$16:$CS$261,21,TRUE)="r",VLOOKUP($A25,'beregninger og logiske tester'!$A$16:$CS$261,14,TRUE),"") ->  | D25: =IF(VLOOKUP($A25,'beregninger og logiske tester'!$A$16:$CS$261,21,TRUE)="r",VLOOKUP($A25,'beregninger og logiske tester'!$A$16:$CS$261,15,TRUE),"") ->  | E25: =VLOOKUP($A25,'beregninger og logiske tester'!$A$16:$CS$261,17,TRUE) ->  | F25: =VLOOKUP($A25,'beregninger og logiske tester'!$A$16:$CS$261,24,TRUE) ->  | G25: =ROUND(VLOOKUP($A25,'beregninger og logiske tester'!$A$16:$CS$261,25,TRUE),0) ->  | H25: =ROUND(VLOOKUP($A25,'beregninger og logiske tester'!$A$16:$CS$261,26,TRUE),0) ->  | I25: =ROUND(VLOOKUP($A25,'beregninger og logiske tester'!$A$16:$CS$261,27,TRUE),0) ->  | J25: =ROUND(VLOOKUP($A25,'beregninger og logiske tester'!$A$16:$CS$261,28,TRUE),0) ->  | K25: =ROUND(VLOOKUP($A25,'beregninger og logiske tester'!$A$16:$CS$261,29,TRUE),0) ->  | L25: =ROUND(VLOOKUP($A25,'beregninger og logiske tester'!$A$16:$CS$261,30,TRUE),0) ->  | M25: =ROUND(VLOOKUP($A25,'beregninger og logiske tester'!$A$16:$CS$261,31,TRUE),0) ->  | N25: =ROUND(VLOOKUP($A25,'beregninger og logiske tester'!$A$16:$CS$261,32,TRUE),0) ->  | O25: =IF(VLOOKUP($A25,'beregninger og logiske tester'!$A$16:$CS$261,43,TRUE)<20,"<20",VLOOKUP($A25,'beregninger og logiske tester'!$A$16:$CS$261,43,TRUE)) -> 
B27: =+tekst!A17 -> Valgt lyddemper:
B28: =VLOOKUP($A$28,'beregninger og logiske tester'!$A$16:$CQ$261,2,TRUE) ->  | C28: =IF(VLOOKUP($A$28,'beregninger og logiske tester'!$A$16:$CS$261,21,TRUE)="r",VLOOKUP($A$28,'beregninger og logiske tester'!$A$16:$CS$261,14,TRUE),"") ->  | D28: =IF(VLOOKUP($A$28,'beregninger og logiske tester'!$A$16:$CS$261,21,TRUE)="r",VLOOKUP($A$28,'beregninger og logiske tester'!$A$16:$CS$261,15,TRUE),"") ->  | E28: =VLOOKUP($A$28,'beregninger og logiske tester'!$A$16:$CQ$261,17,TRUE) ->  | F28: =VLOOKUP($A$28,'beregninger og logiske tester'!$A$16:$CS$261,24,TRUE) ->  | G28: =ROUND(VLOOKUP($A28,'beregninger og logiske tester'!$A$16:$CS$261,25,TRUE),0) ->  | H28: =ROUND(VLOOKUP($A28,'beregninger og logiske tester'!$A$16:$CS$261,26,TRUE),0) ->  | I28: =ROUND(VLOOKUP($A28,'beregninger og logiske tester'!$A$16:$CS$261,27,TRUE),0) ->  | J28: =ROUND(VLOOKUP($A28,'beregninger og logiske tester'!$A$16:$CS$261,28,TRUE),0) ->  | K28: =ROUND(VLOOKUP($A28,'beregninger og logiske tester'!$A$16:$CS$261,29,TRUE),0) ->  | L28: =ROUND(VLOOKUP($A28,'beregninger og logiske tester'!$A$16:$CS$261,30,TRUE),0) ->  | M28: =ROUND(VLOOKUP($A28,'beregninger og logiske tester'!$A$16:$CS$261,31,TRUE),0) ->  | N28: =ROUND(VLOOKUP($A28,'beregninger og logiske tester'!$A$16:$CS$261,32,TRUE),0) ->  | O28: =IF(VLOOKUP($A$28,'beregninger og logiske tester'!$A$16:$CS$261,43,TRUE)<20,"<20",VLOOKUP($A$28,'beregninger og logiske tester'!$A$16:$CS$261,43,TRUE)) -> 
G33: 0 | J33: 5 | K33: 7 | L33: 19 | M33: 29 | N33: 27
B34: 20
B35: 21

Sheet utskrvalgtd
P1: 16 | Q1: 2
F3: =+tekst!A2 -> Lyddempervalg 5.0
B5: =tekst!A33 -> Dato: | C5: =+NOW() -> 2020-12-19T18:50:58.150
B6: =+tekst!A48 -> Prosjekt: | O6: 0
B7: Kunde:
B8: =tekst!A49 -> System:
B11: =+tekst!A61 -> Krav:
B12: =+tekst!A3 -> Anslutningsform | D12: =+IF(knapper!B1=1,tekst!A5,tekst!A4) -> Rektangulær
B13: =+tekst!A9 -> Anslutningsdiameter | D13: =+IF(knapper!B1=2,skjermbilde!D3,"") ->  | E13: =IF(knapper!B1=2,"mm","") -> 
B14: =+tekst!A6 -> Bredde [mm] | D14: =IF(knapper!B1=1,skjermbilde!C3,"") -> 0 | E14: =IF(knapper!B1=1,"mm","") -> mm
B15: =+tekst!A7 -> Høyde [mm] | D15: =IF(knapper!B1=1,skjermbilde!C4,"") -> 0 | E15: =IF(knapper!B1=1,"mm","") -> mm
B16: =+tekst!A8 -> Lengde [mm] | D16: =+IF(knapper!B1=1,skjermbilde!C6,skjermbilde!D6) -> 0 | E16: mm
B17: =+tekst!A12 -> Maksimalt trykktap | D17: =+IF(knapper!B1=1,skjermbilde!C7,skjermbilde!D7) -> 0 | E17: Pa
B18: =+tekst!A11 -> Luftmengde | D18: =+IF(knapper!B1=1,skjermbilde!C5,skjermbilde!D5) -> 0 | E18: =+IF(knapper!B7=1,"m³/h","l/s") -> m³/h | G18: =+tekst!A75 -> Legg til liste | K18: =+tekst!A78 -> Vis liste
B20: =+tekst!A24 -> Lyddemperkode | C20: =+IF(skjermbilde!C13<>0,skjermbilde!C13,"") -> Bredde | D20: =+IF(skjermbilde!D13<>0,skjermbilde!D13,"") -> Høyde | E20: =+IF(skjermbilde!E13<>0,skjermbilde!E13,"") -> Lengde | F20: =+IF(skjermbilde!F13<>0,skjermbilde!F13,"") -> Trykktap | J20: =+IF(skjermbilde!J13<>0,skjermbilde!J13,"") -> Lyddempning [dB]
B21: =+IF(skjermbilde!B14<>0,skjermbilde!B14,"") ->  | C21: =+IF(skjermbilde!C14<>0,skjermbilde!C14,"") -> [mm] | D21: =+IF(skjermbilde!D14<>0,skjermbilde!D14,"") -> [mm] | E21: =+IF(skjermbilde!E14<>0,skjermbilde!E14,"") -> [mm] | F21: =+IF(skjermbilde!F14<>0,skjermbilde!F14,"") -> [Pa] | G21: =+IF(skjermbilde!G14<>0,skjermbilde!G14,"") -> 63 | H21: =+IF(skjermbilde!H14<>0,skjermbilde!H14,"") -> 125 | I21: =+IF(skjermbilde!I14<>0,skjermbilde!I14,"") -> 250 | J21: =+IF(skjermbilde!J14<>0,skjermbilde!J14,"") -> 500 | K21: =+IF(skjermbilde!K14<>0,skjermbilde!K14,"") -> 1k | L21: =+IF(skjermbilde!L14<>0,skjermbilde!L14,"") -> 2k | M21: =+IF(skjermbilde!M14<>0,skjermbilde!M14,"") -> 4k | N21: =+IF(skjermbilde!N14<>0,skjermbilde!N14,"") -> 8k
B22: =+IF(AND(skjermbilde!B28<>0,skjermbilde!D2=2),CONCATENATE("2 x ",skjermbilde!B28),IF(skjermbilde!B28<>0,skjermbilde!B28,"")) ->  | C22: =+IF(skjermbilde!C28<>0,skjermbilde!C28,"") ->  | D22: =+IF(skjermbilde!D28<>0,skjermbilde!D28,"") ->  | E22: =+IF(skjermbilde!E28<>0,skjermbilde!E28,"") ->  | F22: =+IF(skjermbilde!F28<>0,skjermbilde!F28,"") ->  | G22: =+IF(skjermbilde!G28<>0,skjermbilde!G28,"") ->  | H22: =+IF(skjermbilde!H28<>0,skjermbilde!H28,"") ->  | I22: =+IF(skjermbilde!I28<>0,skjermbilde!I28,"") ->  | J22: =+IF(skjermbilde!J28<>0,skjermbilde!J28,"") ->  | K22: =+IF(skjermbilde!K28<>0,skjermbilde!K28,"") ->  | L22: =+IF(skjermbilde!L28<>0,skjermbilde!L28,"") ->  | M22: =+IF(skjermbilde!M28<>0,skjermbilde!M28,"") ->  | N22: =+IF(skjermbilde!N28<>0,skjermbilde!N28,"") -> 
B23: =IF(skjermbilde!$N$10=1,CONCATENATE(MID(B22,1,3),"S"),CONCATENATE(MID(B22,1,3),"V")) ->  | F23: =tekst!$A$57 -> Dempningskrav: | G23: =skjermbilde!G15 -> 0 | H23: =skjermbilde!H15 -> 0 | I23: =skjermbilde!I15 -> 0 | J23: =skjermbilde!J15 -> 0 | K23: =skjermbilde!K15 -> 0 | L23: =skjermbilde!L15 -> 0 | M23: =skjermbilde!M15 -> 0 | N23: =skjermbilde!N15 -> 0
F24: =IF(skjermbilde!$E$4=1,"",tekst!$A$60) -> Viftestøy: | G24: =IF(skjermbilde!$E$4=1,"",skjermbilde!G3) -> 0 | H24: =IF(skjermbilde!$E$4=1,"",skjermbilde!H3) -> 0 | I24: =IF(skjermbilde!$E$4=1,"",skjermbilde!I3) -> 0 | J24: =IF(skjermbilde!$E$4=1,"",skjermbilde!J3) -> 0 | K24: =IF(skjermbilde!$E$4=1,"",skjermbilde!K3) -> 0 | L24: =IF(skjermbilde!$E$4=1,"",skjermbilde!L3) -> 0 | M24: =IF(skjermbilde!$E$4=1,"",skjermbilde!M3) -> 0 | N24: =IF(skjermbilde!$E$4=1,"",skjermbilde!N3) -> 0
F25: =IF(skjermbilde!$E$4=1,"",skjermbilde!$O$4) -> 50 | G25: =IF(skjermbilde!$E$4=1,"",skjermbilde!G4) -> 75 | H25: =IF(skjermbilde!$E$4=1,"",skjermbilde!H4) -> 65 | I25: =IF(skjermbilde!$E$4=1,"",skjermbilde!I4) -> 59 | J25: =IF(skjermbilde!$E$4=1,"",skjermbilde!J4) -> 53 | K25: =IF(skjermbilde!$E$4=1,"",skjermbilde!K4) -> 50 | L25: =IF(skjermbilde!$E$4=1,"",skjermbilde!L4) -> 47 | M25: =IF(skjermbilde!$E$4=1,"",skjermbilde!M4) -> 45 | N25: =IF(skjermbilde!$E$4=1,"",skjermbilde!N4) -> 43
F26: =IF(OR(skjermbilde!$O$10=FALSE,skjermbilde!$E$4=1),"",tekst!$A$62) ->  | G26: =IF(NOT(ISNUMBER(G24-G22)),"",IF(skjermbilde!$O$10=FALSE,"",IF((G24-G22)<20,"<20",IF(skjermbilde!$E$4=1,"""",G24-G22)))) ->  | H26: =IF(NOT(ISNUMBER(H24-H22)),"",IF(skjermbilde!$O$10=FALSE,"",IF((H24-H22)<20,"<20",IF(skjermbilde!$E$4=1,"""",H24-H22)))) ->  | I26: =IF(NOT(ISNUMBER(I24-I22)),"",IF(skjermbilde!$O$10=FALSE,"",IF((I24-I22)<20,"<20",IF(skjermbilde!$E$4=1,"""",I24-I22)))) ->  | J26: =IF(NOT(ISNUMBER(J24-J22)),"",IF(skjermbilde!$O$10=FALSE,"",IF((J24-J22)<20,"<20",IF(skjermbilde!$E$4=1,"""",J24-J22)))) ->  | K26: =IF(NOT(ISNUMBER(K24-K22)),"",IF(skjermbilde!$O$10=FALSE,"",IF((K24-K22)<20,"<20",IF(skjermbilde!$E$4=1,"""",K24-K22)))) ->  | L26: =IF(NOT(ISNUMBER(L24-L22)),"",IF(skjermbilde!$O$10=FALSE,"",IF((L24-L22)<20,"<20",IF(skjermbilde!$E$4=1,"""",L24-L22)))) ->  | M26: =IF(NOT(ISNUMBER(M24-M22)),"",IF(skjermbilde!$O$10=FALSE,"",IF((M24-M22)<20,"<20",IF(skjermbilde!$E$4=1,"""",M24-M22)))) ->  | N26: =IF(NOT(ISNUMBER(N24-N22)),"",IF(skjermbilde!$O$10=FALSE,"",IF((N24-N22)<20,"<20",IF(skjermbilde!$E$4=1,"""",N24-N22)))) -> 
J28: =+tekst!A69 -> Kopiér bilde (side)
J29: =+tekst!A67 -> Kopiér bilde
B34: =CONCATENATE(B40," B=",C40," H=",D40," L=",E40," ",F40,"Pa") -> 
B35: =CONCATENATE(B42," 63-8k: ",C42,", ",D42,", ",E42,", ",F42,", ",G42,", ",H42,", ",I42,", ",J42) -> 
B38: =+B20 -> Lyddemperkode | C38: Bredde | D38: Høyde | E38: Lengde | F38: Trykktap
C39: [mm] | D39: [mm] | E39: [mm] | F39: [Pa]
B40: =+B22 ->  | C40: =+C22 ->  | D40: =+D22 ->  | E40: =+E22 ->  | F40: =ROUND(F22,0) -> 
C41: =+G21 -> 63 | D41: 125 | E41: 250 | F41: 500 | G41: 1k | H41: 2k | I41: 4k | J41: 8k
B42: =+tekst!A26 -> Lyddempning [dB]

Sheet TegnVinklVert
B2: Måltegning LKK-V:
B3: Dimensjon: | F3: =SUM(H14) -> 0 | G3: =SUM(C16) -> 0 | H3: =K20 ->  | I3: =K22 -> 
B4: Kunde: | F4: =utskrvalgtd!C7 -> 0
B5: Kode: | F5: =utskrvalgtd!B22 -> 
B6: Dato: | F6: =utskrvalgtd!C5 -> 2020-12-19T18:50:58.150
B7: Prosjekt: | F7: =utskrvalgtd!C6 -> 0
B8: Merking: | F8: =utskrvalgtd!C8 -> 0
B9: Ordrenummer:
B11: VERTIKALT MONTERT
G14: BREDDE | H14: =utskrvalgtd!D14 -> 0 | I14: mm
B16: HØYDE | C16: =utskrvalgtd!D15 -> 0 | D16: mm
J20: U | K20: =LEFT(utskrvalgtd!E22,FIND("/",utskrvalgtd!E22)-1) ->  | L20: mm
J22: I | K22: =RIGHT(utskrvalgtd!E22,FIND("/",utskrvalgtd!E22)-1) ->  | L22: mm
L30: BREDDE | M30: =H14 -> 0 | N30: mm
L40: HØYDE | M40: =C16 -> 0 | N40: mm
C47: Godkjent av kunde
C48: dato | E48: signatur

Sheet TegnVinklHori
B2: Måltegning LKK-V:
B3: Dimensjon: | F3: =SUM(C35) -> 0 | G3: =SUM(M27) -> 0 | H3: =I37 ->  | I3: =G38 -> 
B4: Kunde: | F4: =TegnVinklVert!F4 -> 0
B5: Kode: | F5: =utskrvalgtd!B22 -> 
B6: Dato: | F6: =utskrvalgtd!C5 -> 2020-12-19T18:50:58.150
B7: Prosjekt: | F7: =utskrvalgtd!C6 -> 0
B8: Merking: | F8: =utskrvalgtd!C8 -> 0
B9: Ordrenummer:
B11: HORISONTALT MONTERT
B17: HØYDE | C17: =utskrvalgtd!D15 -> 0 | D17: mm
L27: HØYDE | M27: =C17 -> 0 | N27: mm
B35: BREDDE | C35: =utskrvalgtd!D14 -> 0 | D35: mm
G37: I | H37: U | I37: =LEFT(utskrvalgtd!E22,FIND("/",utskrvalgtd!E22)-1) ->  | J37: mm
G38: =RIGHT(utskrvalgtd!E22,FIND("/",utskrvalgtd!E22)-1) ->  | H38: mm | L38: BREDDE | M38: =C35 -> 0 | N38: mm
C44: Godkjent av kunde
C45: dato | E45: signatur

Sheet utskrskjerm

Sheet kopierFraUtsVT
B7: =utskrvalgtd!B8 -> System: | C7: =utskrvalgtd!C8 -> 0
B8: =utskrvalgtd!B18 -> Luftmengde | C8: =utskrvalgtd!D18 -> 0 | E8: =utskrvalgtd!E18 -> m³/h
B11: =utskrvalgtd!B20 -> Lyddemperkode | C11: =utskrvalgtd!C20 -> Bredde | D11: =utskrvalgtd!D20 -> Høyde | E11: =utskrvalgtd!E20 -> Lengde | F11: =utskrvalgtd!F20 -> Trykktap | J11: =utskrvalgtd!J20 -> Lyddempning [dB]
B12: =utskrvalgtd!B21 ->  | C12: =utskrvalgtd!C21 -> [mm] | D12: =utskrvalgtd!D21 -> [mm] | E12: =utskrvalgtd!E21 -> [mm] | F12: =utskrvalgtd!F21 -> [Pa] | G12: =utskrvalgtd!G21 -> 63 | H12: =utskrvalgtd!H21 -> 125 | I12: =utskrvalgtd!I21 -> 250 | J12: =utskrvalgtd!J21 -> 500 | K12: =utskrvalgtd!K21 -> 1k | L12: =utskrvalgtd!L21 -> 2k | M12: =utskrvalgtd!M21 -> 4k | N12: =utskrvalgtd!N21 -> 8k
B13: =utskrvalgtd!B22 ->  | C13: =utskrvalgtd!C22 ->  | D13: =utskrvalgtd!D22 ->  | E13: =utskrvalgtd!E22 ->  | F13: =utskrvalgtd!F22 ->  | G13: =utskrvalgtd!G22 ->  | H13: =utskrvalgtd!H22 ->  | I13: =utskrvalgtd!I22 ->  | J13: =utskrvalgtd!J22 ->  | K13: =utskrvalgtd!K22 ->  | L13: =utskrvalgtd!L22 ->  | M13: =utskrvalgtd!M22 ->  | N13: =utskrvalgtd!N22 -> 
F14: =utskrvalgtd!F23 -> Dempningskrav: | G14: =skjermbilde!G15 -> 0 | H14: =skjermbilde!H15 -> 0 | I14: =skjermbilde!I15 -> 0 | J14: =skjermbilde!J15 -> 0 | K14: =skjermbilde!K15 -> 0 | L14: =skjermbilde!L15 -> 0 | M14: =skjermbilde!M15 -> 0 | N14: =skjermbilde!N15 -> 0
F15: =utskrvalgtd!F24 -> Viftestøy: | G15: =IF(skjermbilde!$E$4=1,"",skjermbilde!G3) -> 0 | H15: =IF(skjermbilde!$E$4=1,"",skjermbilde!H3) -> 0 | I15: =IF(skjermbilde!$E$4=1,"",skjermbilde!I3) -> 0 | J15: =IF(skjermbilde!$E$4=1,"",skjermbilde!J3) -> 0 | K15: =IF(skjermbilde!$E$4=1,"",skjermbilde!K3) -> 0 | L15: =IF(skjermbilde!$E$4=1,"",skjermbilde!L3) -> 0 | M15: =IF(skjermbilde!$E$4=1,"",skjermbilde!M3) -> 0 | N15: =IF(skjermbilde!$E$4=1,"",skjermbilde!N3) -> 0
F16: =IF(skjermbilde!$E$4=1,"",skjermbilde!$O$4) -> 50 | G16: =utskrvalgtd!G25 -> 75 | H16: =utskrvalgtd!H25 -> 65 | I16: =utskrvalgtd!I25 -> 59 | J16: =utskrvalgtd!J25 -> 53 | K16: =utskrvalgtd!K25 -> 50 | L16: =utskrvalgtd!L25 -> 47 | M16: =utskrvalgtd!M25 -> 45 | N16: =utskrvalgtd!N25 -> 43

Sheet skjult liste
A1: 43347.42853 | B1: 43347.42855 | C1: Rektangulær | D1: LKK-V-105D | E1: 1000 | F1: 1000 | G1: 300/400 | I1: 10000 | J1: m³/h | K1: 33.47576745 | L1: 8 | M1: 13 | N1: 26 | O1: 44 | P1: 49 | Q1: 49 | R1: 35 | S1: 35
A2: 43347.42855 | B2: 43347.42859 | C2: Rektangulær | D2: LKK-V-105D | E2: 1000 | F2: 1000 | G2: 300/400 | I2: 10000 | J2: m³/h | K2: 33.47576745 | L2: 8 | M2: 13 | N2: 26 | O2: 44 | P2: 49 | Q2: 49 | R2: 35 | S2: 35
A3: 43347.42859
A4: 43347.42862

Sheet beregninger og logiske tester (hidden)
A1: Verdier fra bruker
A2: maks p: | B2: =+IF(knapper!$B$1=1,skjermbilde!$C$7,IF(knapper!$B$1=2,skjermbilde!$D$7,"")) -> 0 | D2: U: | E2: =+UI!J14 -> 300
A3: maks H: | B3: =+skjermbilde!$C$4 -> 0 | D3: I: | E3: =+UI!J15 -> 400
A4: maks L: | B4: =+IF(knapper!$B$1=1,skjermbilde!$C$6,IF(knapper!$B$1=2,skjermbilde!$D$6,"")) -> 0
A5: q: | B5: =+IF(knapper!$B$1=1,skjermbilde!$C$5,IF(knapper!$B$1=2,skjermbilde!$D$5,"")) -> 0
A6: l/s: | B6: =+IF(knapper!B7=2,B5,B5/3.6) -> 0
A7: Ansl: | B7: =+IF(knapper!$B$1=1,"r","s") -> r
A8: Toleranse: | B8: =+skjermbilde!$G$7 -> 0
B10: Datagrunnlag | S10: Verdier fra bruker | X10: Beregninger | AR10: Logiske tester | BI10: Utvelgelse av dempere | DI10: tillegg på dp | DK10: Søkefunksjon
P11: Endres med språk | X11: Dempingskrav: | Y11: =+IF(skjermbilde!$E$4=2,skjermbilde!G3-skjermbilde!G4-$B$8-0.1,skjermbilde!G5-$B$8-0.1) -> -75.1 | Z11: =+IF(skjermbilde!$E$4=2,skjermbilde!H3-skjermbilde!H4-$B$8-0.1,skjermbilde!H5-$B$8-0.1) -> -65.1 | AA11: =+IF(skjermbilde!$E$4=2,skjermbilde!I3-skjermbilde!I4-$B$8-0.1,skjermbilde!I5-$B$8-0.1) -> -59.1 | AB11: =+IF(skjermbilde!$E$4=2,skjermbilde!J3-skjermbilde!J4-$B$8-0.1,skjermbilde!J5-$B$8-0.1) -> -53.1 | AC11: =+IF(skjermbilde!$E$4=2,skjermbilde!K3-skjermbilde!K4-$B$8-0.1,skjermbilde!K5-$B$8-0.1) -> -50.1 | AD11: =+IF(skjermbilde!$E$4=2,skjermbilde!L3-skjermbilde!L4-$B$8-0.1,skjermbilde!L5-$B$8-0.1) -> -47.1 | AE11: =+IF(skjermbilde!$E$4=2,skjermbilde!M3-skjermbilde!M4-$B$8-0.1,skjermbilde!M5-$B$8-0.1) -> -45.1 | AF11: =+IF(skjermbilde!$E$4=2,skjermbilde!N3-skjermbilde!N4-$B$8-0.1,skjermbilde!N5-$B$8-0.1) -> -43.1 | AH11: Beregning av A-verdi i 10 m² Sabinerom | BG11: Antall lyddempere funnet: | BH11: =COUNTIF(BH17:BH261,"=1") -> 0 | CB11: Sorterer med trykktap i første kolonne | DI11: for at ikke to
K12: Data lenket med 'datagrunnlag' | AH12: A-korr.: | AI12: -26.2 | AJ12: -16.1 | AK12: -8.6 | AL12: -3.2 | AM12: 0 | AN12: 1.2 | AO12: 1 | AP12: -1.1 | CD12: Dempning | CS12: Sorterer etter trykktap | DI12: skal være like
B13: =+datagrunnlag!H2 -> kode | C13: =+datagrunnlag!I2 -> lyddempning | K13: =+datagrunnlag!A2 -> type | L13: =+datagrunnlag!B2 -> anslutning | M13: =+datagrunnlag!C2 -> dim | N13: =+datagrunnlag!D2 -> bredde | O13: =+datagrunnlag!E2 -> høyde | Q13: =+datagrunnlag!G2 -> lengde | R13: =+datagrunnlag!Q2 -> Trykktapskoeffisient | S13: q | T13: maks p | U13: Ansl. | V13: maks | W13: maks | X13: p | Y13: Dempning | AI13: Lp i rom | AR13: maks | AS13: lydkrav | BA13: Ansl. | BB13: Utv. | BC13: Vinkel | BD13: Ansl. | BE13: bredde | BF13: høyde | BG13: lengde | BH13: alle krav | BM13: Finner lyddempere | CS13: Finner lyddempere
A14: Demper nr. | C14: =+datagrunnlag!I3 -> 63 | D14: =+datagrunnlag!J3 -> 125 | E14: =+datagrunnlag!K3 -> 250 | F14: =+datagrunnlag!L3 -> 500 | G14: =+datagrunnlag!M3 -> 1k | H14: =+datagrunnlag!N3 -> 2k | I14: =+datagrunnlag!O3 -> 4k | J14: =+datagrunnlag!P3 -> 8k | M14: LKK-nettobredde | R14: =+datagrunnlag!Q3 -> k | S14: l/s | T14: Pa | U14: form | V14: høyde | W14: lengde | X14: Pa | Y14: 63 | Z14: 125 | AA14: 250 | AB14: 500 | AC14: 1k | AD14: 2k | AE14: 4k | AF14: 8k | AI14: 63 | AJ14: 125 | AK14: 250 | AL14: 500 | AM14: 1k | AN14: 2k | AO14: 4k | AP14: 8k | AQ14: LpA10m²S | AR14: trykktap | AS14: 63 | AT14: 125 | AU14: 250 | AV14: 500 | AW14: 1k | AX14: 2k | AY14: 4k | AZ14: 8k | BA14: form | BB14: form | BD14: dim | BH14: tilfredsst. | BM14: kode | CB14: Trykktap | CD14: kode | CQ14: LpA | CS14: trykktap | CX14: nr | CY14: kode | CZ14: 63 | DA14: 125 | DB14: 250 | DC14: 500 | DD14: 1k | DE14: 2k | DF14: 4k | DG14: 8k | DK14: søketekst: | DL14: =IF(ISTEXT(skjermbilde!U5),skjermbilde!U5,"") -> 
A15: kolonne nr. | B15: 2 | C15: 3 | D15: 4 | E15: 5 | F15: 6 | G15: 7 | H15: 8 | I15: 9 | J15: 10 | K15: 11 | L15: 12 | M15: 13 | N15: 14 | O15: 15 | P15: 16 | Q15: 17 | R15: 18 | S15: 19 | T15: 20 | U15: 21 | V15: 22 | W15: 23 | X15: 24 | Y15: 25 | Z15: 26 | AA15: 27 | AB15: 28 | AC15: 29 | AD15: 30 | AE15: 31 | AF15: 32 | AG15: 33 | AH15: 34 | AI15: 35 | AJ15: 36 | AK15: 37 | AL15: 38 | AM15: 39 | AN15: 40 | AO15: 41 | AP15: 42 | AQ15: 43 | AR15: 44 | AS15: 45 | AT15: 46 | AU15: 47 | AV15: 48 | AW15: 49 | AX15: 50 | AY15: 51 | AZ15: 52 | BA15: 53 | BB15: 54 | BC15: 54 | BD15: 55 | BE15: 56 | BF15: 57 | BG15: 58 | BH15: 59 | BL15: 63 | BM15: 64 | CB15: 79 | CC15: 63 | CD15: 80 | CQ15: 93 | CS15: 94 | CX15: 99 | CY15: 99 | DJ15: rangering | DK15: gyldig=tall | DM15: Finner liste over søkeresultat
A16: 1 | BL16: 1 | CR16: 1 | CX16: 1 | DI16: 0
A17: 2 | B17: =datagrunnlag!H17 -> 0 | C17: =datagrunnlag!I17 -> 0 | D17: =datagrunnlag!J17 -> 0 | E17: =datagrunnlag!K17 -> 0 | F17: =datagrunnlag!L17 -> 0 | G17: =datagrunnlag!M17 -> 0 | H17: =datagrunnlag!N17 -> 0 | I17: =datagrunnlag!O17 -> 0 | J17: =datagrunnlag!P17 -> 0 | K17: =+datagrunnlag!A17 -> LSR | L17: =+datagrunnlag!B17 -> 0 | M17: =+datagrunnlag!C17 -> 0 | P17: =++IF(datagrunnlag!F17="s","c",datagrunnlag!F17) -> 0 | Q17: =+datagrunnlag!G17 -> 0 | R17: =+datagrunnlag!Q17 -> 0 | S17: =+$B$6 -> 0 | T17: =+IF($B$2=0,201,$B$2) -> 201 | U17: =+$B$7 -> r | V17: =+$B$3 -> 0 | W17: =+$B$4 -> 0 | X17: =IF(skjermbilde!$D$2=1,S17^2*R17,2*S17^2*R17) -> 0 | Y17: =IF(C17="","",IF(skjermbilde!$D$2=1,C17,IF(AND(skjermbilde!$D$2=2,2*C17>60),60,IF(skjermbilde!$D$2=2,2*C17)))) -> 0 | Z17: =IF(skjermbilde!$D$2=1,D17,IF(AND(skjermbilde!$D$2=2,2*D17>60),60,IF(skjermbilde!$D$2=2,2*D17))) -> 0 | AA17: =IF(skjermbilde!$D$2=1,E17,IF(AND(skjermbilde!$D$2=2,2*E17>60),60,IF(skjermbilde!$D$2=2,2*E17))) -> 0 | AB17: =IF(skjermbilde!$D$2=1,F17,IF(AND(skjermbilde!$D$2=2,2*F17>60),60,IF(skjermbilde!$D$2=2,2*F17))) -> 0 | AC17: =IF(skjermbilde!$D$2=1,G17,IF(AND(skjermbilde!$D$2=2,2*G17>60),60,IF(skjermbilde!$D$2=2,2*G17))) -> 0 | AD17: =IF(skjermbilde!$D$2=1,H17,IF(AND(skjermbilde!$D$2=2,2*H17>60),60,IF(skjermbilde!$D$2=2,2*H17))) -> 0 | AE17: =IF(skjermbilde!$D$2=1,I17,IF(AND(skjermbilde!$D$2=2,2*I17>60),60,IF(skjermbilde!$D$2=2,2*I17))) -> 0 | AF17: =IF(J17="","",IF(skjermbilde!$D$2=1,J17,IF(AND(skjermbilde!$D$2=2,2*J17>60),60,IF(skjermbilde!$D$2=2,2*J17)))) -> 0 | AH17: =+IF($BH17=1,X17,"") ->  | AI17: =+IF(ISNUMBER(skjermbilde!G$3-Y17-skjermbilde!G$6-4),skjermbilde!G$3-Y17-skjermbilde!G$6-4,0) -> -4 | AJ17: =+IF(ISNUMBER(skjermbilde!H$3-Z17-skjermbilde!H$6-4),skjermbilde!H$3-Z17-skjermbilde!H$6-4,0) -> -4 | AK17: =+IF(ISNUMBER(skjermbilde!I$3-AA17-skjermbilde!I$6-4),skjermbilde!I$3-AA17-skjermbilde!I$6-4,0) -> -4 | AL17: =+IF(ISNUMBER(skjermbilde!J$3-AB17-skjermbilde!J$6-4),skjermbilde!J$3-AB17-skjermbilde!J$6-4,0) -> -4 | AM17: =+IF(ISNUMBER(skjermbilde!K$3-AC17-skjermbilde!K$6-4),skjermbilde!K$3-AC17-skjermbilde!K$6-4,0) -> -4 | AN17: =+IF(ISNUMBER(skjermbilde!L$3-AD17-skjermbilde!L$6-4),skjermbilde!L$3-AD17-skjermbilde!L$6-4,0) -> -4 | AO17: =+IF(ISNUMBER(skjermbilde!M$3-AE17-skjermbilde!M$6-4),skjermbilde!M$3-AE17-skjermbilde!M$6-4,0) -> -4 | AP17: =+IF(ISNUMBER(skjermbilde!N$3-AF17-skjermbilde!N$6-4),skjermbilde!N$3-AF17-skjermbilde!N$6-4,0) -> -4 | AQ17: =IF(skjermbilde!$O$10=TRUE,10*LOG10(10^(0.1*(AI17+AI$12))+10^(0.1*(AJ17+AJ$12))+10^(0.1*(AK17+AK$12))+10^(0.1*(AL17+AL$12))+10^(0.1*(AM17+AM$12))+10^(0.1*(AN17+AN$12))+10^(0.1*(AO17+AO$12))+10^(0.1*(AP17+AP$12))),"") ->  | AR17: =+IF(AND(X17-1<T17,X17<201),1,0) -> 1 | AS17: =+IF(Y17>Y$11,1,0) -> 1 | AT17: =+IF(Z17>Z$11,1,0) -> 1 | AU17: =+IF(AA17>AA$11,1,0) -> 1 | AV17: =+IF(AB17>AB$11,1,0) -> 1 | AW17: =+IF(AC17>AC$11,1,0) -> 1 | AX17: =+IF(AD17>AD$11,1,0) -> 1 | AY17: =+IF(AE17>AE$11,1,0) -> 1 | AZ17: =+IF(AF17>AF$11,1,0) -> 1 | BA17: =+IF(U17=L17,1,0) -> 0 | BB17: =IF(skjermbilde!$D$4="",1,IF(P17=skjermbilde!$D$4,1,0)) -> 0 | BC17: =+IF(skjermbilde!$N$10=1,1,0) -> 1 | BD17: =+IF(U17="r",1,IF(M17=skjermbilde!$D$3,1,0)) -> 1 | BE17: =+IF(U17="s",1,IF(N17=skjermbilde!$C$3,1,0)) -> 1 | BF17: =+IF(U17="s",1,IF(O17=skjermbilde!$C$4,1,0)) -> 1 | BG17: =+IF(OR(W17=Q17,W17=0),1,0) -> 1 | BH17: =+IF(SUM(AR17:BG17)=16,1,0) -> 0 | BL17: =+A17 -> 2 | BM17: =+IF($BH17=1,$B17,"") ->  | CB17: =+IF($BH17=1,$X17+DI17,"") ->  | CC17: =+BL17 -> 2 | CD17: =+IF($BH17=1,$B17,"") ->  | CQ17: =+IF($BH17=1,$AQ17,"") ->  | CR17: =+CR16+1 -> 2 | CS17: =IF(ISERROR(SMALL(CB$17:CB$261,BL16)),"",SMALL(CB$17:CB$261,BL16)) ->  | CX17: =+IF(CS17="","",VLOOKUP($CS17,$CB$17:$CD$261,2,FALSE)) ->  | CY17: =IF(skjermbilde!$D$2=1,VLOOKUP($CS17,$CB$17:$CD$261,3,FALSE),CONCATENATE("2 x ",VLOOKUP($CS17,$CB$17:$CD$261,3,FALSE))) ->  | DI17: =0.00000001+DI16 -> 1e-08 | DJ17: =IF(ISNUMBER(DK17),DK17+DI17,"") -> 1.00000001 | DK17: =SEARCH($DL$14,B17,1) -> 1 | DL17: =IF(ISNUMBER(DK17),B17,"") -> 0 | DM17: =IF(ISERROR(SMALL(DJ$17:DJ$261,BL16)),"",SMALL(DJ$17:DJ$261,BL16)) -> 1.00000001 | DN17: =VLOOKUP(DM17,DJ$17:DM$261,3,FALSE) -> 0 | DO17: =VLOOKUP(DN17,$B$17:$CQ$261,62,FALSE) -> 0
A18: =+A17+1 -> 3 | B18: =datagrunnlag!H18 -> 0 | C18: =datagrunnlag!I18 -> 0 | D18: =datagrunnlag!J18 -> 0 | E18: =datagrunnlag!K18 -> 0 | F18: =datagrunnlag!L18 -> 0 | G18: =datagrunnlag!M18 -> 0 | H18: =datagrunnlag!N18 -> 0 | I18: =datagrunnlag!O18 -> 0 | J18: =datagrunnlag!P18 -> 0 | K18: =+datagrunnlag!A18 -> LSR | L18: =+datagrunnlag!B18 -> 0 | M18: =+datagrunnlag!C18 -> 0 | P18: =++IF(datagrunnlag!F18="s","c",datagrunnlag!F18) -> 0 | Q18: =+datagrunnlag!G18 -> 0 | R18: =+datagrunnlag!Q18 -> 0 | S18: 0 | T18: =+IF($B$2=0,201,$B$2) -> 201 | U18: r | V18: 0 | W18: 0 | X18: =IF(skjermbilde!$D$2=1,S18^2*R18,2*S18^2*R18) -> 0 | Y18: =IF(C18="","",IF(skjermbilde!$D$2=1,C18,IF(AND(skjermbilde!$D$2=2,2*C18>60),60,IF(skjermbilde!$D$2=2,2*C18)))) -> 0 | Z18: =IF(skjermbilde!$D$2=1,D18,IF(AND(skjermbilde!$D$2=2,2*D18>60),60,IF(skjermbilde!$D$2=2,2*D18))) -> 0 | AA18: =IF(skjermbilde!$D$2=1,E18,IF(AND(skjermbilde!$D$2=2,2*E18>60),60,IF(skjermbilde!$D$2=2,2*E18))) -> 0 | AB18: =IF(skjermbilde!$D$2=1,F18,IF(AND(skjermbilde!$D$2=2,2*F18>60),60,IF(skjermbilde!$D$2=2,2*F18))) -> 0 | AC18: =IF(skjermbilde!$D$2=1,G18,IF(AND(skjermbilde!$D$2=2,2*G18>60),60,IF(skjermbilde!$D$2=2,2*G18))) -> 0 | AD18: =IF(skjermbilde!$D$2=1,H18,IF(AND(skjermbilde!$D$2=2,2*H18>60),60,IF(skjermbilde!$D$2=2,2*H18))) -> 0 | AE18: =IF(skjermbilde!$D$2=1,I18,IF(AND(skjermbilde!$D$2=2,2*I18>60),60,IF(skjermbilde!$D$2=2,2*I18))) -> 0 | AF18: =IF(J18="","",IF(skjermbilde!$D$2=1,J18,IF(AND(skjermbilde!$D$2=2,2*J18>60),60,IF(skjermbilde!$D$2=2,2*J18)))) -> 0 | AI18: =+IF(ISNUMBER(skjermbilde!G$3-Y18-skjermbilde!G$6-4),skjermbilde!G$3-Y18-skjermbilde!G$6-4,0) -> -4 | AJ18: =+IF(ISNUMBER(skjermbilde!H$3-Z18-skjermbilde!H$6-4),skjermbilde!H$3-Z18-skjermbilde!H$6-4,0) -> -4 | AK18: =+IF(ISNUMBER(skjermbilde!I$3-AA18-skjermbilde!I$6-4),skjermbilde!I$3-AA18-skjermbilde!I$6-4,0) -> -4 | AL18: =+IF(ISNUMBER(skjermbilde!J$3-AB18-skjermbilde!J$6-4),skjermbilde!J$3-AB18-skjermbilde!J$6-4,0) -> -4 | AM18: =+IF(ISNUMBER(skjermbilde!K$3-AC18-skjermbilde!K$6-4),skjermbilde!K$3-AC18-skjermbilde!K$6-4,0) -> -4 | AN18: =+IF(ISNUMBER(skjermbilde!L$3-AD18-skjermbilde!L$6-4),skjermbilde!L$3-AD18-skjermbilde!L$6-4,0) -> -4 | AO18: =+IF(ISNUMBER(skjermbilde!M$3-AE18-skjermbilde!M$6-4),skjermbilde!M$3-AE18-skjermbilde!M$6-4,0) -> -4 | AP18: =+IF(ISNUMBER(skjermbilde!N$3-AF18-skjermbilde!N$6-4),skjermbilde!N$3-AF18-skjermbilde!N$6-4,0) -> -4 | AQ18: =IF(skjermbilde!$O$10=TRUE,10*LOG10(10^(0.1*(AI18+AI$12))+10^(0.1*(AJ18+AJ$12))+10^(0.1*(AK18+AK$12))+10^(0.1*(AL18+AL$12))+10^(0.1*(AM18+AM$12))+10^(0.1*(AN18+AN$12))+10^(0.1*(AO18+AO$12))+10^(0.1*(AP18+AP$12))),"") ->  | AR18: =+IF(AND(X18-1<T18,X18<201),1,0) -> 1 | AS18: 1 | AT18: 1 | AU18: 1 | AV18: 1 | AW18: 1 | AX18: 1 | AY18: 1 | AZ18: 1 | BA18: 0 | BB18: =IF(skjermbilde!$D$4="",1,IF(P18=skjermbilde!$D$4,1,0)) -> 0 | BC18: =+IF(skjermbilde!$N$10=1,1,0) -> 1 | BD18: =+IF(U18="r",1,IF(M18=skjermbilde!$D$3,1,0)) -> 1 | BE18: =+IF(U18="s",1,IF(N18=skjermbilde!$C$3,1,0)) -> 1 | BF18: =+IF(U18="s",1,IF(O18=skjermbilde!$C$4,1,0)) -> 1 | BG18: =+IF(OR(W18=Q18,W18=0),1,0) -> 1 | BH18: =+IF(SUM(AR18:BG18)=16,1,0) -> 0 | BL18: =+A18 -> 3 | CC18: =+BL18 -> 3 | CQ18: =+IF($BH18=1,$AQ18,"") ->  | CR18: =+CR17+1 -> 3 | CY18: =IF(skjermbilde!$D$2=1,VLOOKUP($CS18,$CB$17:$CD$261,3,FALSE),CONCATENATE("2 x ",VLOOKUP($CS18,$CB$17:$CD$261,3,FALSE))) ->  | DI18: =0.00000001+DI17 -> 2e-08 | DJ18: =IF(ISNUMBER(DK18),DK18+DI18,"") -> 1.00000002 | DK18: 1 | DL18: 0 | DM18: 1.00000001 | DN18: 0 | DO18: 0
A19: 4 | B19: =datagrunnlag!H19 -> 0 | C19: =datagrunnlag!I19 -> 0 | D19: =datagrunnlag!J19 -> 0 | E19: =datagrunnlag!K19 -> 0 | F19: =datagrunnlag!L19 -> 0 | G19: =datagrunnlag!M19 -> 0 | H19: =datagrunnlag!N19 -> 0 | I19: =datagrunnlag!O19 -> 0 | J19: =datagrunnlag!P19 -> 0 | K19: =+datagrunnlag!A19 -> LSR | L19: =+datagrunnlag!B19 -> 0 | M19: =+datagrunnlag!C19 -> 0 | P19: =++IF(datagrunnlag!F19="s","c",datagrunnlag!F19) -> 0 | Q19: =+datagrunnlag!G19 -> 0 | R19: =+datagrunnlag!Q19 -> 0 | S19: 0 | T19: 201 | U19: r | V19: 0 | W19: 0 | X19: =IF(skjermbilde!$D$2=1,S19^2*R19,2*S19^2*R19) -> 0 | Y19: =IF(C19="","",IF(skjermbilde!$D$2=1,C19,IF(AND(skjermbilde!$D$2=2,2*C19>60),60,IF(skjermbilde!$D$2=2,2*C19)))) -> 0 | Z19: =IF(skjermbilde!$D$2=1,D19,IF(AND(skjermbilde!$D$2=2,2*D19>60),60,IF(skjermbilde!$D$2=2,2*D19))) -> 0 | AA19: =IF(skjermbilde!$D$2=1,E19,IF(AND(skjermbilde!$D$2=2,2*E19>60),60,IF(skjermbilde!$D$2=2,2*E19))) -> 0 | AB19: =IF(skjermbilde!$D$2=1,F19,IF(AND(skjermbilde!$D$2=2,2*F19>60),60,IF(skjermbilde!$D$2=2,2*F19))) -> 0 | AC19: =IF(skjermbilde!$D$2=1,G19,IF(AND(skjermbilde!$D$2=2,2*G19>60),60,IF(skjermbilde!$D$2=2,2*G19))) -> 0 | AD19: =IF(skjermbilde!$D$2=1,H19,IF(AND(skjermbilde!$D$2=2,2*H19>60),60,IF(skjermbilde!$D$2=2,2*H19))) -> 0 | AE19: =IF(skjermbilde!$D$2=1,I19,IF(AND(skjermbilde!$D$2=2,2*I19>60),60,IF(skjermbilde!$D$2=2,2*I19))) -> 0 | AF19: =IF(J19="","",IF(skjermbilde!$D$2=1,J19,IF(AND(skjermbilde!$D$2=2,2*J19>60),60,IF(skjermbilde!$D$2=2,2*J19)))) -> 0 | AI19: =+IF(ISNUMBER(skjermbilde!G$3-Y19-skjermbilde!G$6-4),skjermbilde!G$3-Y19-skjermbilde!G$6-4,0) -> -4 | AJ19: =+IF(ISNUMBER(skjermbilde!H$3-Z19-skjermbilde!H$6-4),skjermbilde!H$3-Z19-skjermbilde!H$6-4,0) -> -4 | AK19: =+IF(ISNUMBER(skjermbilde!I$3-AA19-skjermbilde!I$6-4),skjermbilde!I$3-AA19-skjermbilde!I$6-4,0) -> -4 | AL19: =+IF(ISNUMBER(skjermbilde!J$3-AB19-skjermbilde!J$6-4),skjermbilde!J$3-AB19-skjermbilde!J$6-4,0) -> -4 | AM19: =+IF(ISNUMBER(skjermbilde!K$3-AC19-skjermbilde!K$6-4),skjermbilde!K$3-AC19-skjermbilde!K$6-4,0) -> -4 | AN19: =+IF(ISNUMBER(skjermbilde!L$3-AD19-skjermbilde!L$6-4),skjermbilde!L$3-AD19-skjermbilde!L$6-4,0) -> -4 | AO19: =+IF(ISNUMBER(skjermbilde!M$3-AE19-skjermbilde!M$6-4),skjermbilde!M$3-AE19-skjermbilde!M$6-4,0) -> -4 | AP19: =+IF(ISNUMBER(skjermbilde!N$3-AF19-skjermbilde!N$6-4),skjermbilde!N$3-AF19-skjermbilde!N$6-4,0) -> -4 | AQ19: =IF(skjermbilde!$O$10=TRUE,10*LOG10(10^(0.1*(AI19+AI$12))+10^(0.1*(AJ19+AJ$12))+10^(0.1*(AK19+AK$12))+10^(0.1*(AL19+AL$12))+10^(0.1*(AM19+AM$12))+10^(0.1*(AN19+AN$12))+10^(0.1*(AO19+AO$12))+10^(0.1*(AP19+AP$12))),"") ->  | AR19: 1 | AS19: 1 | AT19: 1 | AU19: 1 | AV19: 1 | AW19: 1 | AX19: 1 | AY19: 1 | AZ19: 1 | BA19: 0 | BB19: =IF(skjermbilde!$D$4="",1,IF(P19=skjermbilde!$D$4,1,0)) -> 0 | BC19: =+IF(skjermbilde!$N$10=1,1,0) -> 1 | BD19: =+IF(U19="r",1,IF(M19=skjermbilde!$D$3,1,0)) -> 1 | BE19: =+IF(U19="s",1,IF(N19=skjermbilde!$C$3,1,0)) -> 1 | BF19: =+IF(U19="s",1,IF(O19=skjermbilde!$C$4,1,0)) -> 1 | BG19: 1 | BH19: 0 | BL19: 4 | CC19: 4 | CR19: 4 | CY19: =IF(skjermbilde!$D$2=1,VLOOKUP($CS19,$CB$17:$CD$261,3,FALSE),CONCATENATE("2 x ",VLOOKUP($CS19,$CB$17:$CD$261,3,FALSE))) ->  | DI19: 3e-08 | DJ19: 1.00000003 | DK19: 1 | DL19: 0 | DM19: 1.00000002 | DN19: 0 | DO19: 0
A20: 5 | B20: =datagrunnlag!H20 -> 0 | C20: =datagrunnlag!I20 -> 0 | D20: =datagrunnlag!J20 -> 0 | E20: =datagrunnlag!K20 -> 0 | F20: =datagrunnlag!L20 -> 0 | G20: =datagrunnlag!M20 -> 0 | H20: =datagrunnlag!N20 -> 0 | I20: =datagrunnlag!O20 -> 0 | J20: =datagrunnlag!P20 -> 0 | K20: =+datagrunnlag!A20 -> LSR | L20: =+datagrunnlag!B20 -> 0 | M20: =+datagrunnlag!C20 -> 0 | P20: =++IF(datagrunnlag!F20="s","c",datagrunnlag!F20) -> 0 | Q20: =+datagrunnlag!G20 -> 0 | R20: =+datagrunnlag!Q20 -> 0 | S20: 0 | T20: 201 | U20: r | V20: 0 | W20: 0 | X20: =IF(skjermbilde!$D$2=1,S20^2*R20,2*S20^2*R20) -> 0 | Y20: =IF(C20="","",IF(skjermbilde!$D$2=1,C20,IF(AND(skjermbilde!$D$2=2,2*C20>60),60,IF(skjermbilde!$D$2=2,2*C20)))) -> 0 | Z20: =IF(skjermbilde!$D$2=1,D20,IF(AND(skjermbilde!$D$2=2,2*D20>60),60,IF(skjermbilde!$D$2=2,2*D20))) -> 0 | AA20: =IF(skjermbilde!$D$2=1,E20,IF(AND(skjermbilde!$D$2=2,2*E20>60),60,IF(skjermbilde!$D$2=2,2*E20))) -> 0 | AB20: =IF(skjermbilde!$D$2=1,F20,IF(AND(skjermbilde!$D$2=2,2*F20>60),60,IF(skjermbilde!$D$2=2,2*F20))) -> 0 | AC20: =IF(skjermbilde!$D$2=1,G20,IF(AND(skjermbilde!$D$2=2,2*G20>60),60,IF(skjermbilde!$D$2=2,2*G20))) -> 0 | AD20: =IF(skjermbilde!$D$2=1,H20,IF(AND(skjermbilde!$D$2=2,2*H20>60),60,IF(skjermbilde!$D$2=2,2*H20))) -> 0 | AE20: =IF(skjermbilde!$D$2=1,I20,IF(AND(skjermbilde!$D$2=2,2*I20>60),60,IF(skjermbilde!$D$2=2,2*I20))) -> 0 | AF20: =IF(J20="","",IF(skjermbilde!$D$2=1,J20,IF(AND(skjermbilde!$D$2=2,2*J20>60),60,IF(skjermbilde!$D$2=2,2*J20)))) -> 0 | AI20: =+IF(ISNUMBER(skjermbilde!G$3-Y20-skjermbilde!G$6-4),skjermbilde!G$3-Y20-skjermbilde!G$6-4,0) -> -4 | AJ20: =+IF(ISNUMBER(skjermbilde!H$3-Z20-skjermbilde!H$6-4),skjermbilde!H$3-Z20-skjermbilde!H$6-4,0) -> -4 | AK20: =+IF(ISNUMBER(skjermbilde!I$3-AA20-skjermbilde!I$6-4),skjermbilde!I$3-AA20-skjermbilde!I$6-4,0) -> -4 | AL20: =+IF(ISNUMBER(skjermbilde!J$3-AB20-skjermbilde!J$6-4),skjermbilde!J$3-AB20-skjermbilde!J$6-4,0) -> -4 | AM20: =+IF(ISNUMBER(skjermbilde!K$3-AC20-skjermbilde!K$6-4),skjermbilde!K$3-AC20-skjermbilde!K$6-4,0) -> -4 | AN20: =+IF(ISNUMBER(skjermbilde!L$3-AD20-skjermbilde!L$6-4),skjermbilde!L$3-AD20-skjermbilde!L$6-4,0) -> -4 | AO20: =+IF(ISNUMBER(skjermbilde!M$3-AE20-skjermbilde!M$6-4),skjermbilde!M$3-AE20-skjermbilde!M$6-4,0) -> -4 | AP20: =+IF(ISNUMBER(skjermbilde!N$3-AF20-skjermbilde!N$6-4),skjermbilde!N$3-AF20-skjermbilde!N$6-4,0) -> -4 | AQ20: =IF(skjermbilde!$O$10=TRUE,10*LOG10(10^(0.1*(AI20+AI$12))+10^(0.1*(AJ20+AJ$12))+10^(0.1*(AK20+AK$12))+10^(0.1*(AL20+AL$12))+10^(0.1*(AM20+AM$12))+10^(0.1*(AN20+AN$12))+10^(0.1*(AO20+AO$12))+10^(0.1*(AP20+AP$12))),"") ->  | AR20: 1 | AS20: 1 | AT20: 1 | AU20: 1 | AV20: 1 | AW20: 1 | AX20: 1 | AY20: 1 | AZ20: 1 | BA20: 0 | BB20: =IF(skjermbilde!$D$4="",1,IF(P20=skjermbilde!$D$4,1,0)) -> 0 | BC20: =+IF(skjermbilde!$N$10=1,1,0) -> 1 | BD20: =+IF(U20="r",1,IF(M20=skjermbilde!$D$3,1,0)) -> 1 | BE20: =+IF(U20="s",1,IF(N20=skjermbilde!$C$3,1,0)) -> 1 | BF20: =+IF(U20="s",1,IF(O20=skjermbilde!$C$4,1,0)) -> 1 | BG20: 1 | BH20: 0 | BL20: 5 | CC20: 5 | CR20: 5 | CY20: =IF(skjermbilde!$D$2=1,VLOOKUP($CS20,$CB$17:$CD$261,3,FALSE),CONCATENATE("2 x ",VLOOKUP($CS20,$CB$17:$CD$261,3,FALSE))) ->  | DI20: 4e-08 | DJ20: 1.00000004 | DK20: 1 | DL20: 0 | DM20: 1.00000002 | DN20: 0 | DO20: 0
A21: 6 | B21: =datagrunnlag!H21 -> 0 | C21: =datagrunnlag!I21 -> 0 | D21: =datagrunnlag!J21 -> 0 | E21: =datagrunnlag!K21 -> 0 | F21: =datagrunnlag!L21 -> 0 | G21: =datagrunnlag!M21 -> 0 | H21: =datagrunnlag!N21 -> 0 | I21: =datagrunnlag!O21 -> 0 | J21: =datagrunnlag!P21 -> 0 | K21: =+datagrunnlag!A21 -> LSR | L21: =+datagrunnlag!B21 -> 0 | M21: =+datagrunnlag!C21 -> 0 | P21: =++IF(datagrunnlag!F21="s","c",datagrunnlag!F21) -> 0 | Q21: =+datagrunnlag!G21 -> 0 | R21: =+datagrunnlag!Q21 -> 0 | S21: 0 | T21: 201 | U21: r | V21: 0 | W21: 0 | X21: =IF(skjermbilde!$D$2=1,S21^2*R21,2*S21^2*R21) -> 0 | Y21: =IF(C21="","",IF(skjermbilde!$D$2=1,C21,IF(AND(skjermbilde!$D$2=2,2*C21>60),60,IF(skjermbilde!$D$2=2,2*C21)))) -> 0 | Z21: =IF(skjermbilde!$D$2=1,D21,IF(AND(skjermbilde!$D$2=2,2*D21>60),60,IF(skjermbilde!$D$2=2,2*D21))) -> 0 | AA21: =IF(skjermbilde!$D$2=1,E21,IF(AND(skjermbilde!$D$2=2,2*E21>60),60,IF(skjermbilde!$D$2=2,2*E21))) -> 0 | AB21: =IF(skjermbilde!$D$2=1,F21,IF(AND(skjermbilde!$D$2=2,2*F21>60),60,IF(skjermbilde!$D$2=2,2*F21))) -> 0 | AC21: =IF(skjermbilde!$D$2=1,G21,IF(AND(skjermbilde!$D$2=2,2*G21>60),60,IF(skjermbilde!$D$2=2,2*G21))) -> 0 | AD21: =IF(skjermbilde!$D$2=1,H21,IF(AND(skjermbilde!$D$2=2,2*H21>60),60,IF(skjermbilde!$D$2=2,2*H21))) -> 0 | AE21: =IF(skjermbilde!$D$2=1,I21,IF(AND(skjermbilde!$D$2=2,2*I21>60),60,IF(skjermbilde!$D$2=2,2*I21))) -> 0 | AF21: =IF(J21="","",IF(skjermbilde!$D$2=1,J21,IF(AND(skjermbilde!$D$2=2,2*J21>60),60,IF(skjermbilde!$D$2=2,2*J21)))) -> 0 | AI21: =+IF(ISNUMBER(skjermbilde!G$3-Y21-skjermbilde!G$6-4),skjermbilde!G$3-Y21-skjermbilde!G$6-4,0) -> -4 | AJ21: =+IF(ISNUMBER(skjermbilde!H$3-Z21-skjermbilde!H$6-4),skjermbilde!H$3-Z21-skjermbilde!H$6-4,0) -> -4 | AK21: =+IF(ISNUMBER(skjermbilde!I$3-AA21-skjermbilde!I$6-4),skjermbilde!I$3-AA21-skjermbilde!I$6-4,0) -> -4 | AL21: =+IF(ISNUMBER(skjermbilde!J$3-AB21-skjermbilde!J$6-4),skjermbilde!J$3-AB21-skjermbilde!J$6-4,0) -> -4 | AM21: =+IF(ISNUMBER(skjermbilde!K$3-AC21-skjermbilde!K$6-4),skjermbilde!K$3-AC21-skjermbilde!K$6-4,0) -> -4 | AN21: =+IF(ISNUMBER(skjermbilde!L$3-AD21-skjermbilde!L$6-4),skjermbilde!L$3-AD21-skjermbilde!L$6-4,0) -> -4 | AO21: =+IF(ISNUMBER(skjermbilde!M$3-AE21-skjermbilde!M$6-4),skjermbilde!M$3-AE21-skjermbilde!M$6-4,0) -> -4 | AP21: =+IF(ISNUMBER(skjermbilde!N$3-AF21-skjermbilde!N$6-4),skjermbilde!N$3-AF21-skjermbilde!N$6-4,0) -> -4 | AQ21: =IF(skjermbilde!$O$10=TRUE,10*LOG10(10^(0.1*(AI21+AI$12))+10^(0.1*(AJ21+AJ$12))+10^(0.1*(AK21+AK$12))+10^(0.1*(AL21+AL$12))+10^(0.1*(AM21+AM$12))+10^(0.1*(AN21+AN$12))+10^(0.1*(AO21+AO$12))+10^(0.1*(AP21+AP$12))),"") ->  | AR21: 1 | AS21: 1 | AT21: 1 | AU21: 1 | AV21: 1 | AW21: 1 | AX21: 1 | AY21: 1 | AZ21: 1 | BA21: 0 | BB21: =IF(skjermbilde!$D$4="",1,IF(P21=skjermbilde!$D$4,1,0)) -> 0 | BC21: =+IF(skjermbilde!$N$10=1,1,0) -> 1 | BD21: =+IF(U21="r",1,IF(M21=skjermbilde!$D$3,1,0)) -> 1 | BE21: =+IF(U21="s",1,IF(N21=skjermbilde!$C$3,1,0)) -> 1 | BF21: =+IF(U21="s",1,IF(O21=skjermbilde!$C$4,1,0)) -> 1 | BG21: 1 | BH21: 0 | BL21: 6 | CC21: 6 | CR21: 6 | CY21: =IF(skjermbilde!$D$2=1,VLOOKUP($CS21,$CB$17:$CD$261,3,FALSE),CONCATENATE("2 x ",VLOOKUP($CS21,$CB$17:$CD$261,3,FALSE))) ->  | DI21: 5e-08 | DJ21: 1.00000005 | DK21: 1 | DL21: 0 | DM21: 1.00000003 | DN21: 0 | DO21: 0
A22: 7 | B22: =datagrunnlag!H22 -> 0 | C22: =datagrunnlag!I22 -> 0 | D22: =datagrunnlag!J22 -> 0 | E22: =datagrunnlag!K22 -> 0 | F22: =datagrunnlag!L22 -> 0 | G22: =datagrunnlag!M22 -> 0 | H22: =datagrunnlag!N22 -> 0 | I22: =datagrunnlag!O22 -> 0 | J22: =datagrunnlag!P22 -> 0 | K22: =+datagrunnlag!A22 -> LSR | L22: =+datagrunnlag!B22 -> 0 | M22: =+datagrunnlag!C22 -> 0 | P22: =++IF(datagrunnlag!F22="s","c",datagrunnlag!F22) -> 0 | Q22: =+datagrunnlag!G22 -> 0 | R22: =+datagrunnlag!Q22 -> 0 | S22: 0 | T22: 201 | U22: r | V22: 0 | W22: 0 | X22: =IF(skjermbilde!$D$2=1,S22^2*R22,2*S22^2*R22) -> 0 | Y22: =IF(C22="","",IF(skjermbilde!$D$2=1,C22,IF(AND(skjermbilde!$D$2=2,2*C22>60),60,IF(skjermbilde!$D$2=2,2*C22)))) -> 0 | Z22: =IF(skjermbilde!$D$2=1,D22,IF(AND(skjermbilde!$D$2=2,2*D22>60),60,IF(skjermbilde!$D$2=2,2*D22))) -> 0 | AA22: =IF(skjermbilde!$D$2=1,E22,IF(AND(skjermbilde!$D$2=2,2*E22>60),60,IF(skjermbilde!$D$2=2,2*E22))) -> 0 | AB22: =IF(skjermbilde!$D$2=1,F22,IF(AND(skjermbilde!$D$2=2,2*F22>60),60,IF(skjermbilde!$D$2=2,2*F22))) -> 0 | AC22: =IF(skjermbilde!$D$2=1,G22,IF(AND(skjermbilde!$D$2=2,2*G22>60),60,IF(skjermbilde!$D$2=2,2*G22))) -> 0 | AD22: =IF(skjermbilde!$D$2=1,H22,IF(AND(skjermbilde!$D$2=2,2*H22>60),60,IF(skjermbilde!$D$2=2,2*H22))) -> 0 | AE22: =IF(skjermbilde!$D$2=1,I22,IF(AND(skjermbilde!$D$2=2,2*I22>60),60,IF(skjermbilde!$D$2=2,2*I22))) -> 0 | AF22: =IF(J22="","",IF(skjermbilde!$D$2=1,J22,IF(AND(skjermbilde!$D$2=2,2*J22>60),60,IF(skjermbilde!$D$2=2,2*J22)))) -> 0 | AI22: =+IF(ISNUMBER(skjermbilde!G$3-Y22-skjermbilde!G$6-4),skjermbilde!G$3-Y22-skjermbilde!G$6-4,0) -> -4 | AJ22: =+IF(ISNUMBER(skjermbilde!H$3-Z22-skjermbilde!H$6-4),skjermbilde!H$3-Z22-skjermbilde!H$6-4,0) -> -4 | AK22: =+IF(ISNUMBER(skjermbilde!I$3-AA22-skjermbilde!I$6-4),skjermbilde!I$3-AA22-skjermbilde!I$6-4,0) -> -4 | AL22: =+IF(ISNUMBER(skjermbilde!J$3-AB22-skjermbilde!J$6-4),skjermbilde!J$3-AB22-skjermbilde!J$6-4,0) -> -4 | AM22: =+IF(ISNUMBER(skjermbilde!K$3-AC22-skjermbilde!K$6-4),skjermbilde!K$3-AC22-skjermbilde!K$6-4,0) -> -4 | AN22: =+IF(ISNUMBER(skjermbilde!L$3-AD22-skjermbilde!L$6-4),skjermbilde!L$3-AD22-skjermbilde!L$6-4,0) -> -4 | AO22: =+IF(ISNUMBER(skjermbilde!M$3-AE22-skjermbilde!M$6-4),skjermbilde!M$3-AE22-skjermbilde!M$6-4,0) -> -4 | AP22: =+IF(ISNUMBER(skjermbilde!N$3-AF22-skjermbilde!N$6-4),skjermbilde!N$3-AF22-skjermbilde!N$6-4,0) -> -4 | AQ22: =IF(skjermbilde!$O$10=TRUE,10*LOG10(10^(0.1*(AI22+AI$12))+10^(0.1*(AJ22+AJ$12))+10^(0.1*(AK22+AK$12))+10^(0.1*(AL22+AL$12))+10^(0.1*(AM22+AM$12))+10^(0.1*(AN22+AN$12))+10^(0.1*(AO22+AO$12))+10^(0.1*(AP22+AP$12))),"") ->  | AR22: 1 | AS22: 1 | AT22: 1 | AU22: 1 | AV22: 1 | AW22: 1 | AX22: 1 | AY22: 1 | AZ22: 1 | BA22: 0 | BB22: =IF(skjermbilde!$D$4="",1,IF(P22=skjermbilde!$D$4,1,0)) -> 0 | BC22: =+IF(skjermbilde!$N$10=1,1,0) -> 1 | BD22: =+IF(U22="r",1,IF(M22=skjermbilde!$D$3,1,0)) -> 1 | BE22: =+IF(U22="s",1,IF(N22=skjermbilde!$C$3,1,0)) -> 1 | BF22: =+IF(U22="s",1,IF(O22=skjermbilde!$C$4,1,0)) -> 1 | BG22: 1 | BH22: 0 | BL22: 7 | CC22: 7 | CR22: 7 | CY22: =IF(skjermbilde!$D$2=1,VLOOKUP($CS22,$CB$17:$CD$261,3,FALSE),CONCATENATE("2 x ",VLOOKUP($CS22,$CB$17:$CD$261,3,FALSE))) ->  | DI22: 6e-08 | DJ22: 1.00000006 | DK22: 1 | DL22: 0 | DM22: 1.00000003 | DN22: 0 | DO22: 0
A23: 8 | B23: =datagrunnlag!H23 -> 0 | C23: =datagrunnlag!I23 -> 0 | D23: =datagrunnlag!J23 -> 0 | E23: =datagrunnlag!K23 -> 0 | F23: =datagrunnlag!L23 -> 0 | G23: =datagrunnlag!M23 -> 0 | H23: =datagrunnlag!N23 -> 0 | I23: =datagrunnlag!O23 -> 0 | J23: =datagrunnlag!P23 -> 0 | K23: =+datagrunnlag!A23 -> LSR | L23: =+datagrunnlag!B23 -> 0 | M23: =+datagrunnlag!C23 -> 0 | P23: =++IF(datagrunnlag!F23="s","c",datagrunnlag!F23) -> 0 | Q23: =+datagrunnlag!G23 -> 0 | R23: =+datagrunnlag!Q23 -> 0 | S23: 0 | T23: 201 | U23: r | V23: 0 | W23: 0 | X23: =IF(skjermbilde!$D$2=1,S23^2*R23,2*S23^2*R23) -> 0 | Y23: =IF(C23="","",IF(skjermbilde!$D$2=1,C23,IF(AND(skjermbilde!$D$2=2,2*C23>60),60,IF(skjermbilde!$D$2=2,2*C23)))) -> 0 | Z23: =IF(skjermbilde!$D$2=1,D23,IF(AND(skjermbilde!$D$2=2,2*D23>60),60,IF(skjermbilde!$D$2=2,2*D23))) -> 0 | AA23: =IF(skjermbilde!$D$2=1,E23,IF(AND(skjermbilde!$D$2=2,2*E23>60),60,IF(skjermbilde!$D$2=2,2*E23))) -> 0 | AB23: =IF(skjermbilde!$D$2=1,F23,IF(AND(skjermbilde!$D$2=2,2*F23>60),60,IF(skjermbilde!$D$2=2,2*F23))) -> 0 | AC23: =IF(skjermbilde!$D$2=1,G23,IF(AND(skjermbilde!$D$2=2,2*G23>60),60,IF(skjermbilde!$D$2=2,2*G23))) -> 0 | AD23: =IF(skjermbilde!$D$2=1,H23,IF(AND(skjermbilde!$D$2=2,2*H23>60),60,IF(skjermbilde!$D$2=2,2*H23))) -> 0 | AE23: =IF(skjermbilde!$D$2=1,I23,IF(AND(skjermbilde!$D$2=2,2*I23>60),60,IF(skjermbilde!$D$2=2,2*I23))) -> 0 | AF23: =IF(J23="","",IF(skjermbilde!$D$2=1,J23,IF(AND(skjermbilde!$D$2=2,2*J23>60),60,IF(skjermbilde!$D$2=2,2*J23)))) -> 0 | AI23: =+IF(ISNUMBER(skjermbilde!G$3-Y23-skjermbilde!G$6-4),skjermbilde!G$3-Y23-skjermbilde!G$6-4,0) -> -4 | AJ23: =+IF(ISNUMBER(skjermbilde!H$3-Z23-skjermbilde!H$6-4),skjermbilde!H$3-Z23-skjermbilde!H$6-4,0) -> -4 | AK23: =+IF(ISNUMBER(skjermbilde!I$3-AA23-skjermbilde!I$6-4),skjermbilde!I$3-AA23-skjermbilde!I$6-4,0) -> -4 | AL23: =+IF(ISNUMBER(skjermbilde!J$3-AB23-skjermbilde!J$6-4),skjermbilde!J$3-AB23-skjermbilde!J$6-4,0) -> -4 | AM23: =+IF(ISNUMBER(skjermbilde!K$3-AC23-skjermbilde!K$6-4),skjermbilde!K$3-AC23-skjermbilde!K$6-4,0) -> -4 | AN23: =+IF(ISNUMBER(skjermbilde!L$3-AD23-skjermbilde!L$6-4),skjermbilde!L$3-AD23-skjermbilde!L$6-4,0) -> -4 | AO23: =+IF(ISNUMBER(skjermbilde!M$3-AE23-skjermbilde!M$6-4),skjermbilde!M$3-AE23-skjermbilde!M$6-4,0) -> -4 | AP23: =+IF(ISNUMBER(skjermbilde!N$3-AF23-skjermbilde!N$6-4),skjermbilde!N$3-AF23-skjermbilde!N$6-4,0) -> -4 | AQ23: =IF(skjermbilde!$O$10=TRUE,10*LOG10(10^(0.1*(AI23+AI$12))+10^(0.1*(AJ23+AJ$12))+10^(0.1*(AK23+AK$12))+10^(0.1*(AL23+AL$12))+10^(0.1*(AM23+AM$12))+10^(0.1*(AN23+AN$12))+10^(0.1*(AO23+AO$12))+10^(0.1*(AP23+AP$12))),"") ->  | AR23: 1 | AS23: 1 | AT23: 1 | AU23: 1 | AV23: 1 | AW23: 1 | AX23: 1 | AY23: 1 | AZ23: 1 | BA23: 0 | BB23: =IF(skjermbilde!$D$4="",1,IF(P23=skjermbilde!$D$4,1,0)) -> 0 | BC23: =+IF(skjermbilde!$N$10=1,1,0) -> 1 | BD23: =+IF(U23="r",1,IF(M23=skjermbilde!$D$3,1,0)) -> 1 | BE23: =+IF(U23="s",1,IF(N23=skjermbilde!$C$3,1,0)) -> 1 | BF23: =+IF(U23="s",1,IF(O23=skjermbilde!$C$4,1,0)) -> 1 | BG23: 1 | BH23: 0 | BL23: 8 | CC23: 8 | CR23: 8 | CY23: =IF(skjermbilde!$D$2=1,VLOOKUP($CS23,$CB$17:$CD$261,3,FALSE),CONCATENATE("2 x ",VLOOKUP($CS23,$CB$17:$CD$261,3,FALSE))) ->  | DI23: 7e-08 | DJ23: 1.00000007 | DK23: 1 | DL23: 0 | DM23: 1.00000004 | DN23: 0 | DO23: 0
A24: 9 | B24: =datagrunnlag!H24 -> 0 | C24: =datagrunnlag!I24 -> 0 | D24: =datagrunnlag!J24 -> 0 | E24: =datagrunnlag!K24 -> 0 | F24: =datagrunnlag!L24 -> 0 | G24: =datagrunnlag!M24 -> 0 | H24: =datagrunnlag!N24 -> 0 | I24: =datagrunnlag!O24 -> 0 | J24: =datagrunnlag!P24 -> 0 | K24: =+datagrunnlag!A24 -> LSR | L24: =+datagrunnlag!B24 -> 0 | M24: =+datagrunnlag!C24 -> 0 | P24: =++IF(datagrunnlag!F24="s","c",datagrunnlag!F24) -> 0 | Q24: =+datagrunnlag!G24 -> 0 | R24: =+datagrunnlag!Q24 -> 0 | S24: 0 | T24: 201 | U24: r | V24: 0 | W24: 0 | X24: =IF(skjermbilde!$D$2=1,S24^2*R24,2*S24^2*R24) -> 0 | Y24: =IF(C24="","",IF(skjermbilde!$D$2=1,C24,IF(AND(skjermbilde!$D$2=2,2*C24>60),60,IF(skjermbilde!$D$2=2,2*C24)))) -> 0 | Z24: =IF(skjermbilde!$D$2=1,D24,IF(AND(skjermbilde!$D$2=2,2*D24>60),60,IF(skjermbilde!$D$2=2,2*D24))) -> 0 | AA24: =IF(skjermbilde!$D$2=1,E24,IF(AND(skjermbilde!$D$2=2,2*E24>60),60,IF(skjermbilde!$D$2=2,2*E24))) -> 0 | AB24: =IF(skjermbilde!$D$2=1,F24,IF(AND(skjermbilde!$D$2=2,2*F24>60),60,IF(skjermbilde!$D$2=2,2*F24))) -> 0 | AC24: =IF(skjermbilde!$D$2=1,G24,IF(AND(skjermbilde!$D$2=2,2*G24>60),60,IF(skjermbilde!$D$2=2,2*G24))) -> 0 | AD24: =IF(skjermbilde!$D$2=1,H24,IF(AND(skjermbilde!$D$2=2,2*H24>60),60,IF(skjermbilde!$D$2=2,2*H24))) -> 0 | AE24: =IF(skjermbilde!$D$2=1,I24,IF(AND(skjermbilde!$D$2=2,2*I24>60),60,IF(skjermbilde!$D$2=2,2*I24))) -> 0 | AF24: =IF(J24="","",IF(skjermbilde!$D$2=1,J24,IF(AND(skjermbilde!$D$2=2,2*J24>60),60,IF(skjermbilde!$D$2=2,2*J24)))) -> 0 | AI24: =+IF(ISNUMBER(skjermbilde!G$3-Y24-skjermbilde!G$6-4),skjermbilde!G$3-Y24-skjermbilde!G$6-4,0) -> -4 | AJ24: =+IF(ISNUMBER(skjermbilde!H$3-Z24-skjermbilde!H$6-4),skjermbilde!H$3-Z24-skjermbilde!H$6-4,0) -> -4 | AK24: =+IF(ISNUMBER(skjermbilde!I$3-AA24-skjermbilde!I$6-4),skjermbilde!I$3-AA24-skjermbilde!I$6-4,0) -> -4 | AL24: =+IF(ISNUMBER(skjermbilde!J$3-AB24-skjermbilde!J$6-4),skjermbilde!J$3-AB24-skjermbilde!J$6-4,0) -> -4 | AM24: =+IF(ISNUMBER(skjermbilde!K$3-AC24-skjermbilde!K$6-4),skjermbilde!K$3-AC24-skjermbilde!K$6-4,0) -> -4 | AN24: =+IF(ISNUMBER(skjermbilde!L$3-AD24-skjermbilde!L$6-4),skjermbilde!L$3-AD24-skjermbilde!L$6-4,0) -> -4 | AO24: =+IF(ISNUMBER(skjermbilde!M$3-AE24-skjermbilde!M$6-4),skjermbilde!M$3-AE24-skjermbilde!M$6-4,0) -> -4 | AP24: =+IF(ISNUMBER(skjermbilde!N$3-AF24-skjermbilde!N$6-4),skjermbilde!N$3-AF24-skjermbilde!N$6-4,0) -> -4 | AQ24: =IF(skjermbilde!$O$10=TRUE,10*LOG10(10^(0.1*(AI24+AI$12))+10^(0.1*(AJ24+AJ$12))+10^(0.1*(AK24+AK$12))+10^(0.1*(AL24+AL$12))+10^(0.1*(AM24+AM$12))+10^(0.1*(AN24+AN$12))+10^(0.1*(AO24+AO$12))+10^(0.1*(AP24+AP$12))),"") ->  | AR24: 1 | AS24: 1 | AT24: 1 | AU24: 1 | AV24: 1 | AW24: 1 | AX24: 1 | AY24: 1 | AZ24: 1 | BA24: 0 | BB24: =IF(skjermbilde!$D$4="",1,IF(P24=skjermbilde!$D$4,1,0)) -> 0 | BC24: =+IF(skjermbilde!$N$10=1,1,0) -> 1 | BD24: =+IF(U24="r",1,IF(M24=skjermbilde!$D$3,1,0)) -> 1 | BE24: =+IF(U24="s",1,IF(N24=skjermbilde!$C$3,1,0)) -> 1 | BF24: =+IF(U24="s",1,IF(O24=skjermbilde!$C$4,1,0)) -> 1 | BG24: 1 | BH24: 0 | BL24: 9 | CC24: 9 | CR24: 9 | CY24: =IF(skjermbilde!$D$2=1,VLOOKUP($CS24,$CB$17:$CD$261,3,FALSE),CONCATENATE("2 x ",VLOOKUP($CS24,$CB$17:$CD$261,3,FALSE))) ->  | DI24: 8e-08 | DJ24: 1.00000008 | DK24: 1 | DL24: 0 | DM24: 1.00000004 | DN24: 0 | DO24: 0
A25: 10 | B25: =datagrunnlag!H25 -> 0 | C25: =datagrunnlag!I25 -> 0 | D25: =datagrunnlag!J25 -> 0 | E25: =datagrunnlag!K25 -> 0 | F25: =datagrunnlag!L25 -> 0 | G25: =datagrunnlag!M25 -> 0 | H25: =datagrunnlag!N25 -> 0 | I25: =datagrunnlag!O25 -> 0 | J25: =datagrunnlag!P25 -> 0 | K25: =+datagrunnlag!A25 -> LSR | L25: =+datagrunnlag!B25 -> 0 | M25: =+datagrunnlag!C25 -> 0 | P25: =++IF(datagrunnlag!F25="s","c",datagrunnlag!F25) -> 0 | Q25: =+datagrunnlag!G25 -> 0 | R25: =+datagrunnlag!Q25 -> 0 | S25: 0 | T25: 201 | U25: r | V25: 0 | W25: 0 | X25: =IF(skjermbilde!$D$2=1,S25^2*R25,2*S25^2*R25) -> 0 | Y25: =IF(C25="","",IF(skjermbilde!$D$2=1,C25,IF(AND(skjermbilde!$D$2=2,2*C25>60),60,IF(skjermbilde!$D$2=2,2*C25)))) -> 0 | Z25: =IF(skjermbilde!$D$2=1,D25,IF(AND(skjermbilde!$D$2=2,2*D25>60),60,IF(skjermbilde!$D$2=2,2*D25))) -> 0 | AA25: =IF(skjermbilde!$D$2=1,E25,IF(AND(skjermbilde!$D$2=2,2*E25>60),60,IF(skjermbilde!$D$2=2,2*E25))) -> 0 | AB25: =IF(skjermbilde!$D$2=1,F25,IF(AND(skjermbilde!$D$2=2,2*F25>60),60,IF(skjermbilde!$D$2=2,2*F25))) -> 0 | AC25: =IF(skjermbilde!$D$2=1,G25,IF(AND(skjermbilde!$D$2=2,2*G25>60),60,IF(skjermbilde!$D$2=2,2*G25))) -> 0 | AD25: =IF(skjermbilde!$D$2=1,H25,IF(AND(skjermbilde!$D$2=2,2*H25>60),60,IF(skjermbilde!$D$2=2,2*H25))) -> 0 | AE25: =IF(skjermbilde!$D$2=1,I25,IF(AND(skjermbilde!$D$2=2,2*I25>60),60,IF(skjermbilde!$D$2=2,2*I25))) -> 0 | AF25: =IF(J25="","",IF(skjermbilde!$D$2=1,J25,IF(AND(skjermbilde!$D$2=2,2*J25>60),60,IF(skjermbilde!$D$2=2,2*J25)))) -> 0 | AI25: =+IF(ISNUMBER(skjermbilde!G$3-Y25-skjermbilde!G$6-4),skjermbilde!G$3-Y25-skjermbilde!G$6-4,0) -> -4 | AJ25: =+IF(ISNUMBER(skjermbilde!H$3-Z25-skjermbilde!H$6-4),skjermbilde!H$3-Z25-skjermbilde!H$6-4,0) -> -4 | AK25: =+IF(ISNUMBER(skjermbilde!I$3-AA25-skjermbilde!I$6-4),skjermbilde!I$3-AA25-skjermbilde!I$6-4,0) -> -4 | AL25: =+IF(ISNUMBER(skjermbilde!J$3-AB25-skjermbilde!J$6-4),skjermbilde!J$3-AB25-skjermbilde!J$6-4,0) -> -4 | AM25: =+IF(ISNUMBER(skjermbilde!K$3-AC25-skjermbilde!K$6-4),skjermbilde!K$3-AC25-skjermbilde!K$6-4,0) -> -4 | AN25: =+IF(ISNUMBER(skjermbilde!L$3-AD25-skjermbilde!L$6-4),skjermbilde!L$3-AD25-skjermbilde!L$6-4,0) -> -4 | AO25: =+IF(ISNUMBER(skjermbilde!M$3-AE25-skjermbilde!M$6-4),skjermbilde!M$3-AE25-skjermbilde!M$6-4,0) -> -4 | AP25: =+IF(ISNUMBER(skjermbilde!N$3-AF25-skjermbilde!N$6-4),skjermbilde!N$3-AF25-skjermbilde!N$6-4,0) -> -4 | AQ25: =IF(skjermbilde!$O$10=TRUE,10*LOG10(10^(0.1*(AI25+AI$12))+10^(0.1*(AJ25+AJ$12))+10^(0.1*(AK25+AK$12))+10^(0.1*(AL25+AL$12))+10^(0.1*(AM25+AM$12))+10^(0.1*(AN25+AN$12))+10^(0.1*(AO25+AO$12))+10^(0.1*(AP25+AP$12))),"") ->  | AR25: 1 | AS25: 1 | AT25: 1 | AU25: 1 | AV25: 1 | AW25: 1 | AX25: 1 | AY25: 1 | AZ25: 1 | BA25: 0 | BB25: =IF(skjermbilde!$D$4="",1,IF(P25=skjermbilde!$D$4,1,0)) -> 0 | BC25: =+IF(skjermbilde!$N$10=1,1,0) -> 1 | BD25: =+IF(U25="r",1,IF(M25=skjermbilde!$D$3,1,0)) -> 1 | BE25: =+IF(U25="s",1,IF(N25=skjermbilde!$C$3,1,0)) -> 1 | BF25: =+IF(U25="s",1,IF(O25=skjermbilde!$C$4,1,0)) -> 1 | BG25: 1 | BH25: 0 | BL25: 10 | CC25: 10 | CR25: 10 | CY25: =IF(skjermbilde!$D$2=1,VLOOKUP($CS25,$CB$17:$CD$261,3,FALSE),CONCATENATE("2 x ",VLOOKUP($CS25,$CB$17:$CD$261,3,FALSE))) ->  | DI25: 9e-08 | DJ25: 1.00000009 | DK25: 1 | DL25: 0 | DM25: 1.00000005 | DN25: 0 | DO25: 0
A26: 11 | B26: =datagrunnlag!H26 -> 0 | C26: =datagrunnlag!I26 -> 0 | D26: =datagrunnlag!J26 -> 0 | E26: =datagrunnlag!K26 -> 0 | F26: =datagrunnlag!L26 -> 0 | G26: =datagrunnlag!M26 -> 0 | H26: =datagrunnlag!N26 -> 0 | I26: =datagrunnlag!O26 -> 0 | J26: =datagrunnlag!P26 -> 0 | K26: =+datagrunnlag!A26 -> LSR | L26: =+datagrunnlag!B26 -> 0 | M26: =+datagrunnlag!C26 -> 0 | P26: =++IF(datagrunnlag!F26="s","c",datagrunnlag!F26) -> 0 | Q26: =+datagrunnlag!G26 -> 0 | R26: =+datagrunnlag!Q26 -> 0 | S26: 0 | T26: 201 | U26: r | V26: 0 | W26: 0 | X26: =IF(skjermbilde!$D$2=1,S26^2*R26,2*S26^2*R26) -> 0 | Y26: =IF(C26="","",IF(skjermbilde!$D$2=1,C26,IF(AND(skjermbilde!$D$2=2,2*C26>60),60,IF(skjermbilde!$D$2=2,2*C26)))) -> 0 | Z26: =IF(skjermbilde!$D$2=1,D26,IF(AND(skjermbilde!$D$2=2,2*D26>60),60,IF(skjermbilde!$D$2=2,2*D26))) -> 0 | AA26: =IF(skjermbilde!$D$2=1,E26,IF(AND(skjermbilde!$D$2=2,2*E26>60),60,IF(skjermbilde!$D$2=2,2*E26))) -> 0 | AB26: =IF(skjermbilde!$D$2=1,F26,IF(AND(skjermbilde!$D$2=2,2*F26>60),60,IF(skjermbilde!$D$2=2,2*F26))) -> 0 | AC26: =IF(skjermbilde!$D$2=1,G26,IF(AND(skjermbilde!$D$2=2,2*G26>60),60,IF(skjermbilde!$D$2=2,2*G26))) -> 0 | AD26: =IF(skjermbilde!$D$2=1,H26,IF(AND(skjermbilde!$D$2=2,2*H26>60),60,IF(skjermbilde!$D$2=2,2*H26))) -> 0 | AE26: =IF(skjermbilde!$D$2=1,I26,IF(AND(skjermbilde!$D$2=2,2*I26>60),60,IF(skjermbilde!$D$2=2,2*I26))) -> 0 | AF26: =IF(J26="","",IF(skjermbilde!$D$2=1,J26,IF(AND(skjermbilde!$D$2=2,2*J26>60),60,IF(skjermbilde!$D$2=2,2*J26)))) -> 0 | AI26: =+IF(ISNUMBER(skjermbilde!G$3-Y26-skjermbilde!G$6-4),skjermbilde!G$3-Y26-skjermbilde!G$6-4,0) -> -4 | AJ26: =+IF(ISNUMBER(skjermbilde!H$3-Z26-skjermbilde!H$6-4),skjermbilde!H$3-Z26-skjermbilde!H$6-4,0) -> -4 | AK26: =+IF(ISNUMBER(skjermbilde!I$3-AA26-skjermbilde!I$6-4),skjermbilde!I$3-AA26-skjermbilde!I$6-4,0) -> -4 | AL26: =+IF(ISNUMBER(skjermbilde!J$3-AB26-skjermbilde!J$6-4),skjermbilde!J$3-AB26-skjermbilde!J$6-4,0) -> -4 | AM26: =+IF(ISNUMBER(skjermbilde!K$3-AC26-skjermbilde!K$6-4),skjermbilde!K$3-AC26-skjermbilde!K$6-4,0) -> -4 | AN26: =+IF(ISNUMBER(skjermbilde!L$3-AD26-skjermbilde!L$6-4),skjermbilde!L$3-AD26-skjermbilde!L$6-4,0) -> -4 | AO26: =+IF(ISNUMBER(skjermbilde!M$3-AE26-skjermbilde!M$6-4),skjermbilde!M$3-AE26-skjermbilde!M$6-4,0) -> -4 | AP26: =+IF(ISNUMBER(skjermbilde!N$3-AF26-skjermbilde!N$6-4),skjermbilde!N$3-AF26-skjermbilde!N$6-4,0) -> -4 | AQ26: =IF(skjermbilde!$O$10=TRUE,10*LOG10(10^(0.1*(AI26+AI$12))+10^(0.1*(AJ26+AJ$12))+10^(0.1*(AK26+AK$12))+10^(0.1*(AL26+AL$12))+10^(0.1*(AM26+AM$12))+10^(0.1*(AN26+AN$12))+10^(0.1*(AO26+AO$12))+10^(0.1*(AP26+AP$12))),"") ->  | AR26: 1 | AS26: 1 | AT26: 1 | AU26: 1 | AV26: 1 | AW26: 1 | AX26: 1 | AY26: 1 | AZ26: 1 | BA26: 0 | BB26: =IF(skjermbilde!$D$4="",1,IF(P26=skjermbilde!$D$4,1,0)) -> 0 | BC26: =+IF(skjermbilde!$N$10=1,1,0) -> 1 | BD26: =+IF(U26="r",1,IF(M26=skjermbilde!$D$3,1,0)) -> 1 | BE26: =+IF(U26="s",1,IF(N26=skjermbilde!$C$3,1,0)) -> 1 | BF26: =+IF(U26="s",1,IF(O26=skjermbilde!$C$4,1,0)) -> 1 | BG26: 1 | BH26: 0 | BL26: 11 | CC26: 11 | CR26: 11 | CY26: =IF(skjermbilde!$D$2=1,VLOOKUP($CS26,$CB$17:$CD$261,3,FALSE),CONCATENATE("2 x ",VLOOKUP($CS26,$CB$17:$CD$261,3,FALSE))) ->  | DI26: 1e-07 | DJ26: 1.0000001 | DK26: 1 | DL26: 0 | DM26: 1.00000005 | DN26: 0 | DO26: 0
A27: 12 | B27: =datagrunnlag!H27 -> 0 | C27: =datagrunnlag!I27 -> 0 | D27: =datagrunnlag!J27 -> 0 | E27: =datagrunnlag!K27 -> 0 | F27: =datagrunnlag!L27 -> 0 | G27: =datagrunnlag!M27 -> 0 | H27: =datagrunnlag!N27 -> 0 | I27: =datagrunnlag!O27 -> 0 | J27: =datagrunnlag!P27 -> 0 | K27: =+datagrunnlag!A27 -> LSR | L27: =+datagrunnlag!B27 -> 0 | M27: =+datagrunnlag!C27 -> 0 | P27: =++IF(datagrunnlag!F27="s","c",datagrunnlag!F27) -> 0 | Q27: =+datagrunnlag!G27 -> 0 | R27: =+datagrunnlag!Q27 -> 0 | S27: 0 | T27: 201 | U27: r | V27: 0 | W27: 0 | X27: =IF(skjermbilde!$D$2=1,S27^2*R27,2*S27^2*R27) -> 0 | Y27: =IF(C27="","",IF(skjermbilde!$D$2=1,C27,IF(AND(skjermbilde!$D$2=2,2*C27>60),60,IF(skjermbilde!$D$2=2,2*C27)))) -> 0 | Z27: =IF(skjermbilde!$D$2=1,D27,IF(AND(skjermbilde!$D$2=2,2*D27>60),60,IF(skjermbilde!$D$2=2,2*D27))) -> 0 | AA27: =IF(skjermbilde!$D$2=1,E27,IF(AND(skjermbilde!$D$2=2,2*E27>60),60,IF(skjermbilde!$D$2=2,2*E27))) -> 0 | AB27: =IF(skjermbilde!$D$2=1,F27,IF(AND(skjermbilde!$D$2=2,2*F27>60),60,IF(skjermbilde!$D$2=2,2*F27))) -> 0 | AC27: =IF(skjermbilde!$D$2=1,G27,IF(AND(skjermbilde!$D$2=2,2*G27>60),60,IF(skjermbilde!$D$2=2,2*G27))) -> 0 | AD27: =IF(skjermbilde!$D$2=1,H27,IF(AND(skjermbilde!$D$2=2,2*H27>60),60,IF(skjermbilde!$D$2=2,2*H27))) -> 0 | AE27: =IF(skjermbilde!$D$2=1,I27,IF(AND(skjermbilde!$D$2=2,2*I27>60),60,IF(skjermbilde!$D$2=2,2*I27))) -> 0 | AF27: =IF(J27="","",IF(skjermbilde!$D$2=1,J27,IF(AND(skjermbilde!$D$2=2,2*J27>60),60,IF(skjermbilde!$D$2=2,2*J27)))) -> 0 | AI27: =+IF(ISNUMBER(skjermbilde!G$3-Y27-skjermbilde!G$6-4),skjermbilde!G$3-Y27-skjermbilde!G$6-4,0) -> -4 | AJ27: =+IF(ISNUMBER(skjermbilde!H$3-Z27-skjermbilde!H$6-4),skjermbilde!H$3-Z27-skjermbilde!H$6-4,0) -> -4 | AK27: =+IF(ISNUMBER(skjermbilde!I$3-AA27-skjermbilde!I$6-4),skjermbilde!I$3-AA27-skjermbilde!I$6-4,0) -> -4 | AL27: =+IF(ISNUMBER(skjermbilde!J$3-AB27-skjermbilde!J$6-4),skjermbilde!J$3-AB27-skjermbilde!J$6-4,0) -> -4 | AM27: =+IF(ISNUMBER(skjermbilde!K$3-AC27-skjermbilde!K$6-4),skjermbilde!K$3-AC27-skjermbilde!K$6-4,0) -> -4 | AN27: =+IF(ISNUMBER(skjermbilde!L$3-AD27-skjermbilde!L$6-4),skjermbilde!L$3-AD27-skjermbilde!L$6-4,0) -> -4 | AO27: =+IF(ISNUMBER(skjermbilde!M$3-AE27-skjermbilde!M$6-4),skjermbilde!M$3-AE27-skjermbilde!M$6-4,0) -> -4 | AP27: =+IF(ISNUMBER(skjermbilde!N$3-AF27-skjermbilde!N$6-4),skjermbilde!N$3-AF27-skjermbilde!N$6-4,0) -> -4 | AQ27: =IF(skjermbilde!$O$10=TRUE,10*LOG10(10^(0.1*(AI27+AI$12))+10^(0.1*(AJ27+AJ$12))+10^(0.1*(AK27+AK$12))+10^(0.1*(AL27+AL$12))+10^(0.1*(AM27+AM$12))+10^(0.1*(AN27+AN$12))+10^(0.1*(AO27+AO$12))+10^(0.1*(AP27+AP$12))),"") ->  | AR27: 1 | AS27: 1 | AT27: 1 | AU27: 1 | AV27: 1 | AW27: 1 | AX27: 1 | AY27: 1 | AZ27: 1 | BA27: 0 | BB27: =IF(skjermbilde!$D$4="",1,IF(P27=skjermbilde!$D$4,1,0)) -> 0 | BC27: =+IF(skjermbilde!$N$10=1,1,0) -> 1 | BD27: =+IF(U27="r",1,IF(M27=skjermbilde!$D$3,1,0)) -> 1 | BE27: =+IF(U27="s",1,IF(N27=skjermbilde!$C$3,1,0)) -> 1 | BF27: =+IF(U27="s",1,IF(O27=skjermbilde!$C$4,1,0)) -> 1 | BG27: 1 | BH27: 0 | BL27: 12 | CC27: 12 | CR27: 12 | CY27: =IF(skjermbilde!$D$2=1,VLOOKUP($CS27,$CB$17:$CD$261,3,FALSE),CONCATENATE("2 x ",VLOOKUP($CS27,$CB$17:$CD$261,3,FALSE))) ->  | DI27: 1.1e-07 | DJ27: 1.00000011 | DK27: 1 | DL27: 0 | DM27: 1.00000006 | DN27: 0 | DO27: 0
A28: 13 | B28: =datagrunnlag!H28 -> 0 | C28: =datagrunnlag!I28 -> 0 | D28: =datagrunnlag!J28 -> 0 | E28: =datagrunnlag!K28 -> 0 | F28: =datagrunnlag!L28 -> 0 | G28: =datagrunnlag!M28 -> 0 | H28: =datagrunnlag!N28 -> 0 | I28: =datagrunnlag!O28 -> 0 | J28: =datagrunnlag!P28 -> 0 | K28: =+datagrunnlag!A28 -> LSR | L28: =+datagrunnlag!B28 -> 0 | M28: =+datagrunnlag!C28 -> 0 | P28: =++IF(datagrunnlag!F28="s","c",datagrunnlag!F28) -> 0 | Q28: =+datagrunnlag!G28 -> 0 | R28: =+datagrunnlag!Q28 -> 0 | S28: 0 | T28: 201 | U28: r | V28: 0 | W28: 0 | X28: =IF(skjermbilde!$D$2=1,S28^2*R28,2*S28^2*R28) -> 0 | Y28: =IF(C28="","",IF(skjermbilde!$D$2=1,C28,IF(AND(skjermbilde!$D$2=2,2*C28>60),60,IF(skjermbilde!$D$2=2,2*C28)))) -> 0 | Z28: =IF(skjermbilde!$D$2=1,D28,IF(AND(skjermbilde!$D$2=2,2*D28>60),60,IF(skjermbilde!$D$2=2,2*D28))) -> 0 | AA28: =IF(skjermbilde!$D$2=1,E28,IF(AND(skjermbilde!$D$2=2,2*E28>60),60,IF(skjermbilde!$D$2=2,2*E28))) -> 0 | AB28: =IF(skjermbilde!$D$2=1,F28,IF(AND(skjermbilde!$D$2=2,2*F28>60),60,IF(skjermbilde!$D$2=2,2*F28))) -> 0 | AC28: =IF(skjermbilde!$D$2=1,G28,IF(AND(skjermbilde!$D$2=2,2*G28>60),60,IF(skjermbilde!$D$2=2,2*G28))) -> 0 | AD28: =IF(skjermbilde!$D$2=1,H28,IF(AND(skjermbilde!$D$2=2,2*H28>60),60,IF(skjermbilde!$D$2=2,2*H28))) -> 0 | AE28: =IF(skjermbilde!$D$2=1,I28,IF(AND(skjermbilde!$D$2=2,2*I28>60),60,IF(skjermbilde!$D$2=2,2*I28))) -> 0 | AF28: =IF(J28="","",IF(skjermbilde!$D$2=1,J28,IF(AND(skjermbilde!$D$2=2,2*J28>60),60,IF(skjermbilde!$D$2=2,2*J28)))) -> 0 | AI28: =+IF(ISNUMBER(skjermbilde!G$3-Y28-skjermbilde!G$6-4),skjermbilde!G$3-Y28-skjermbilde!G$6-4,0) -> -4 | AJ28: =+IF(ISNUMBER(skjermbilde!H$3-Z28-skjermbilde!H$6-4),skjermbilde!H$3-Z28-skjermbilde!H$6-4,0) -> -4 | AK28: =+IF(ISNUMBER(skjermbilde!I$3-AA28-skjermbilde!I$6-4),skjermbilde!I$3-AA28-skjermbilde!I$6-4,0) -> -4 | AL28: =+IF(ISNUMBER(skjermbilde!J$3-AB28-skjermbilde!J$6-4),skjermbilde!J$3-AB28-skjermbilde!J$6-4,0) -> -4 | AM28: =+IF(ISNUMBER(skjermbilde!K$3-AC28-skjermbilde!K$6-4),skjermbilde!K$3-AC28-skjermbilde!K$6-4,0) -> -4 | AN28: =+IF(ISNUMBER(skjermbilde!L$3-AD28-skjermbilde!L$6-4),skjermbilde!L$3-AD28-skjermbilde!L$6-4,0) -> -4 | AO28: =+IF(ISNUMBER(skjermbilde!M$3-AE28-skjermbilde!M$6-4),skjermbilde!M$3-AE28-skjermbilde!M$6-4,0) -> -4 | AP28: =+IF(ISNUMBER(skjermbilde!N$3-AF28-skjermbilde!N$6-4),skjermbilde!N$3-AF28-skjermbilde!N$6-4,0) -> -4 | AQ28: =IF(skjermbilde!$O$10=TRUE,10*LOG10(10^(0.1*(AI28+AI$12))+10^(0.1*(AJ28+AJ$12))+10^(0.1*(AK28+AK$12))+10^(0.1*(AL28+AL$12))+10^(0.1*(AM28+AM$12))+10^(0.1*(AN28+AN$12))+10^(0.1*(AO28+AO$12))+10^(0.1*(AP28+AP$12))),"") ->  | AR28: 1 | AS28: 1 | AT28: 1 | AU28: 1 | AV28: 1 | AW28: 1 | AX28: 1 | AY28: 1 | AZ28: 1 | BA28: 0 | BB28: =IF(skjermbilde!$D$4="",1,IF(P28=skjermbilde!$D$4,1,0)) -> 0 | BC28: =+IF(skjermbilde!$N$10=1,1,0) -> 1 | BD28: =+IF(U28="r",1,IF(M28=skjermbilde!$D$3,1,0)) -> 1 | BE28: =+IF(U28="s",1,IF(N28=skjermbilde!$C$3,1,0)) -> 1 | BF28: =+IF(U28="s",1,IF(O28=skjermbilde!$C$4,1,0)) -> 1 | BG28: 1 | BH28: 0 | BL28: 13 | CC28: 13 | CR28: 13 | CY28: =IF(skjermbilde!$D$2=1,VLOOKUP($CS28,$CB$17:$CD$261,3,FALSE),CONCATENATE("2 x ",VLOOKUP($CS28,$CB$17:$CD$261,3,FALSE))) ->  | DI28: 1.2e-07 | DJ28: 1.00000012 | DK28: 1 | DL28: 0 | DM28: 1.00000006 | DN28: 0 | DO28: 0
A29: 14 | B29: =datagrunnlag!H29 -> 0 | C29: =datagrunnlag!I29 -> 0 | D29: =datagrunnlag!J29 -> 0 | E29: =datagrunnlag!K29 -> 0 | F29: =datagrunnlag!L29 -> 0 | G29: =datagrunnlag!M29 -> 0 | H29: =datagrunnlag!N29 -> 0 | I29: =datagrunnlag!O29 -> 0 | J29: =datagrunnlag!P29 -> 0 | K29: =+datagrunnlag!A29 -> LSR | L29: =+datagrunnlag!B29 -> 0 | M29: =+datagrunnlag!C29 -> 0 | P29: =++IF(datagrunnlag!F29="s","c",datagrunnlag!F29) -> 0 | Q29: =+datagrunnlag!G29 -> 0 | R29: =+datagrunnlag!Q29 -> 0 | S29: 0 | T29: 201 | U29: r | V29: 0 | W29: 0 | X29: =IF(skjermbilde!$D$2=1,S29^2*R29,2*S29^2*R29) -> 0 | Y29: =IF(C29="","",IF(skjermbilde!$D$2=1,C29,IF(AND(skjermbilde!$D$2=2,2*C29>60),60,IF(skjermbilde!$D$2=2,2*C29)))) -> 0 | Z29: =IF(skjermbilde!$D$2=1,D29,IF(AND(skjermbilde!$D$2=2,2*D29>60),60,IF(skjermbilde!$D$2=2,2*D29))) -> 0 | AA29: =IF(skjermbilde!$D$2=1,E29,IF(AND(skjermbilde!$D$2=2,2*E29>60),60,IF(skjermbilde!$D$2=2,2*E29))) -> 0 | AB29: =IF(skjermbilde!$D$2=1,F29,IF(AND(skjermbilde!$D$2=2,2*F29>60),60,IF(skjermbilde!$D$2=2,2*F29))) -> 0 | AC29: =IF(skjermbilde!$D$2=1,G29,IF(AND(skjermbilde!$D$2=2,2*G29>60),60,IF(skjermbilde!$D$2=2,2*G29))) -> 0 | AD29: =IF(skjermbilde!$D$2=1,H29,IF(AND(skjermbilde!$D$2=2,2*H29>60),60,IF(skjermbilde!$D$2=2,2*H29))) -> 0 | AE29: =IF(skjermbilde!$D$2=1,I29,IF(AND(skjermbilde!$D$2=2,2*I29>60),60,IF(skjermbilde!$D$2=2,2*I29))) -> 0 | AF29: =IF(J29="","",IF(skjermbilde!$D$2=1,J29,IF(AND(skjermbilde!$D$2=2,2*J29>60),60,IF(skjermbilde!$D$2=2,2*J29)))) -> 0 | AI29: =+IF(ISNUMBER(skjermbilde!G$3-Y29-skjermbilde!G$6-4),skjermbilde!G$3-Y29-skjermbilde!G$6-4,0) -> -4 | AJ29: =+IF(ISNUMBER(skjermbilde!H$3-Z29-skjermbilde!H$6-4),skjermbilde!H$3-Z29-skjermbilde!H$6-4,0) -> -4 | AK29: =+IF(ISNUMBER(skjermbilde!I$3-AA29-skjermbilde!I$6-4),skjermbilde!I$3-AA29-skjermbilde!I$6-4,0) -> -4 | AL29: =+IF(ISNUMBER(skjermbilde!J$3-AB29-skjermbilde!J$6-4),skjermbilde!J$3-AB29-skjermbilde!J$6-4,0) -> -4 | AM29: =+IF(ISNUMBER(skjermbilde!K$3-AC29-skjermbilde!K$6-4),skjermbilde!K$3-AC29-skjermbilde!K$6-4,0) -> -4 | AN29: =+IF(ISNUMBER(skjermbilde!L$3-AD29-skjermbilde!L$6-4),skjermbilde!L$3-AD29-skjermbilde!L$6-4,0) -> -4 | AO29: =+IF(ISNUMBER(skjermbilde!M$3-AE29-skjermbilde!M$6-4),skjermbilde!M$3-AE29-skjermbilde!M$6-4,0) -> -4 | AP29: =+IF(ISNUMBER(skjermbilde!N$3-AF29-skjermbilde!N$6-4),skjermbilde!N$3-AF29-skjermbilde!N$6-4,0) -> -4 | AQ29: =IF(skjermbilde!$O$10=TRUE,10*LOG10(10^(0.1*(AI29+AI$12))+10^(0.1*(AJ29+AJ$12))+10^(0.1*(AK29+AK$12))+10^(0.1*(AL29+AL$12))+10^(0.1*(AM29+AM$12))+10^(0.1*(AN29+AN$12))+10^(0.1*(AO29+AO$12))+10^(0.1*(AP29+AP$12))),"") ->  | AR29: 1 | AS29: 1 | AT29: 1 | AU29: 1 | AV29: 1 | AW29: 1 | AX29: 1 | AY29: 1 | AZ29: 1 | BA29: 0 | BB29: =IF(skjermbilde!$D$4="",1,IF(P29=skjermbilde!$D$4,1,0)) -> 0 | BC29: =+IF(skjermbilde!$N$10=1,1,0) -> 1 | BD29: =+IF(U29="r",1,IF(M29=skjermbilde!$D$3,1,0)) -> 1 | BE29: =+IF(U29="s",1,IF(N29=skjermbilde!$C$3,1,0)) -> 1 | BF29: =+IF(U29="s",1,IF(O29=skjermbilde!$C$4,1,0)) -> 1 | BG29: 1 | BH29: 0 | BL29: 14 | CC29: 14 | CR29: 14 | CY29: =IF(skjermbilde!$D$2=1,VLOOKUP($CS29,$CB$17:$CD$261,3,FALSE),CONCATENATE("2 x ",VLOOKUP($CS29,$CB$17:$CD$261,3,FALSE))) ->  | DI29: 1.3e-07 | DJ29: 1.00000013 | DK29: 1 | DL29: 0 | DM29: 1.00000007 | DN29: 0 | DO29: 0
A30: 15 | B30: =datagrunnlag!H30 -> 0 | C30: =datagrunnlag!I30 -> 0 | D30: =datagrunnlag!J30 -> 0 | E30: =datagrunnlag!K30 -> 0 | F30: =datagrunnlag!L30 -> 0 | G30: =datagrunnlag!M30 -> 0 | H30: =datagrunnlag!N30 -> 0 | I30: =datagrunnlag!O30 -> 0 | J30: =datagrunnlag!P30 -> 0 | K30: =+datagrunnlag!A30 -> LSR | L30: =+datagrunnlag!B30 -> 0 | M30: =+datagrunnlag!C30 -> 0 | P30: =++IF(datagrunnlag!F30="s","c",datagrunnlag!F30) -> 0 | Q30: =+datagrunnlag!G30 -> 0 | R30: =+datagrunnlag!Q30 -> 0 | S30: 0 | T30: 201 | U30: r | V30: 0 | W30: 0 | X30: =IF(skjermbilde!$D$2=1,S30^2*R30,2*S30^2*R30) -> 0 | Y30: =IF(C30="","",IF(skjermbilde!$D$2=1,C30,IF(AND(skjermbilde!$D$2=2,2*C30>60),60,IF(skjermbilde!$D$2=2,2*C30)))) -> 0 | Z30: =IF(skjermbilde!$D$2=1,D30,IF(AND(skjermbilde!$D$2=2,2*D30>60),60,IF(skjermbilde!$D$2=2,2*D30))) -> 0 | AA30: =IF(skjermbilde!$D$2=1,E30,IF(AND(skjermbilde!$D$2=2,2*E30>60),60,IF(skjermbilde!$D$2=2,2*E30))) -> 0 | AB30: =IF(skjermbilde!$D$2=1,F30,IF(AND(skjermbilde!$D$2=2,2*F30>60),60,IF(skjermbilde!$D$2=2,2*F30))) -> 0 | AC30: =IF(skjermbilde!$D$2=1,G30,IF(AND(skjermbilde!$D$2=2,2*G30>60),60,IF(skjermbilde!$D$2=2,2*G30))) -> 0 | AD30: =IF(skjermbilde!$D$2=1,H30,IF(AND(skjermbilde!$D$2=2,2*H30>60),60,IF(skjermbilde!$D$2=2,2*H30))) -> 0 | AE30: =IF(skjermbilde!$D$2=1,I30,IF(AND(skjermbilde!$D$2=2,2*I30>60),60,IF(skjermbilde!$D$2=2,2*I30))) -> 0 | AF30: =IF(J30="","",IF(skjermbilde!$D$2=1,J30,IF(AND(skjermbilde!$D$2=2,2*J30>60),60,IF(skjermbilde!$D$2=2,2*J30)))) -> 0 | AI30: =+IF(ISNUMBER(skjermbilde!G$3-Y30-skjermbilde!G$6-4),skjermbilde!G$3-Y30-skjermbilde!G$6-4,0) -> -4 | AJ30: =+IF(ISNUMBER(skjermbilde!H$3-Z30-skjermbilde!H$6-4),skjermbilde!H$3-Z30-skjermbilde!H$6-4,0) -> -4 | AK30: =+IF(ISNUMBER(skjermbilde!I$3-AA30-skjermbilde!I$6-4),skjermbilde!I$3-AA30-skjermbilde!I$6-4,0) -> -4 | AL30: =+IF(ISNUMBER(skjermbilde!J$3-AB30-skjermbilde!J$6-4),skjermbilde!J$3-AB30-skjermbilde!J$6-4,0) -> -4 | AM30: =+IF(ISNUMBER(skjermbilde!K$3-AC30-skjermbilde!K$6-4),skjermbilde!K$3-AC30-skjermbilde!K$6-4,0) -> -4 | AN30: =+IF(ISNUMBER(skjermbilde!L$3-AD30-skjermbilde!L$6-4),skjermbilde!L$3-AD30-skjermbilde!L$6-4,0) -> -4 | AO30: =+IF(ISNUMBER(skjermbilde!M$3-AE30-skjermbilde!M$6-4),skjermbilde!M$3-AE30-skjermbilde!M$6-4,0) -> -4 | AP30: =+IF(ISNUMBER(skjermbilde!N$3-AF30-skjermbilde!N$6-4),skjermbilde!N$3-AF30-skjermbilde!N$6-4,0) -> -4 | AQ30: =IF(skjermbilde!$O$10=TRUE,10*LOG10(10^(0.1*(AI30+AI$12))+10^(0.1*(AJ30+AJ$12))+10^(0.1*(AK30+AK$12))+10^(0.1*(AL30+AL$12))+10^(0.1*(AM30+AM$12))+10^(0.1*(AN30+AN$12))+10^(0.1*(AO30+AO$12))+10^(0.1*(AP30+AP$12))),"") ->  | AR30: 1 | AS30: 1 | AT30: 1 | AU30: 1 | AV30: 1 | AW30: 1 | AX30: 1 | AY30: 1 | AZ30: 1 | BA30: 0 | BB30: =IF(skjermbilde!$D$4="",1,IF(P30=skjermbilde!$D$4,1,0)) -> 0 | BC30: =+IF(skjermbilde!$N$10=1,1,0) -> 1 | BD30: =+IF(U30="r",1,IF(M30=skjermbilde!$D$3,1,0)) -> 1 | BE30: =+IF(U30="s",1,IF(N30=skjermbilde!$C$3,1,0)) -> 1 | BF30: =+IF(U30="s",1,IF(O30=skjermbilde!$C$4,1,0)) -> 1 | BG30: 1 | BH30: 0 | BL30: 15 | CC30: 15 | CR30: 15 | CY30: =IF(skjermbilde!$D$2=1,VLOOKUP($CS30,$CB$17:$CD$261,3,FALSE),CONCATENATE("2 x ",VLOOKUP($CS30,$CB$17:$CD$261,3,FALSE))) ->  | DI30: 1.4e-07 | DJ30: 1.00000014 | DK30: 1 | DL30: 0 | DM30: 1.00000007 | DN30: 0 | DO30: 0
A31: 16 | B31: =datagrunnlag!H31 -> 0 | C31: =datagrunnlag!I31 -> 0 | D31: =datagrunnlag!J31 -> 0 | E31: =datagrunnlag!K31 -> 0 | F31: =datagrunnlag!L31 -> 0 | G31: =datagrunnlag!M31 -> 0 | H31: =datagrunnlag!N31 -> 0 | I31: =datagrunnlag!O31 -> 0 | J31: =datagrunnlag!P31 -> 0 | K31: =+datagrunnlag!A31 -> LSR | L31: =+datagrunnlag!B31 -> 0 | M31: =+datagrunnlag!C31 -> 0 | P31: =++IF(datagrunnlag!F31="s","c",datagrunnlag!F31) -> 0 | Q31: =+datagrunnlag!G31 -> 0 | R31: =+datagrunnlag!Q31 -> 0 | S31: 0 | T31: 201 | U31: r | V31: 0 | W31: 0 | X31: =IF(skjermbilde!$D$2=1,S31^2*R31,2*S31^2*R31) -> 0 | Y31: =IF(C31="","",IF(skjermbilde!$D$2=1,C31,IF(AND(skjermbilde!$D$2=2,2*C31>60),60,IF(skjermbilde!$D$2=2,2*C31)))) -> 0 | Z31: =IF(skjermbilde!$D$2=1,D31,IF(AND(skjermbilde!$D$2=2,2*D31>60),60,IF(skjermbilde!$D$2=2,2*D31))) -> 0 | AA31: =IF(skjermbilde!$D$2=1,E31,IF(AND(skjermbilde!$D$2=2,2*E31>60),60,IF(skjermbilde!$D$2=2,2*E31))) -> 0 | AB31: =IF(skjermbilde!$D$2=1,F31,IF(AND(skjermbilde!$D$2=2,2*F31>60),60,IF(skjermbilde!$D$2=2,2*F31))) -> 0 | AC31: =IF(skjermbilde!$D$2=1,G31,IF(AND(skjermbilde!$D$2=2,2*G31>60),60,IF(skjermbilde!$D$2=2,2*G31))) -> 0 | AD31: =IF(skjermbilde!$D$2=1,H31,IF(AND(skjermbilde!$D$2=2,2*H31>60),60,IF(skjermbilde!$D$2=2,2*H31))) -> 0 | AE31: =IF(skjermbilde!$D$2=1,I31,IF(AND(skjermbilde!$D$2=2,2*I31>60),60,IF(skjermbilde!$D$2=2,2*I31))) -> 0 | AF31: =IF(J31="","",IF(skjermbilde!$D$2=1,J31,IF(AND(skjermbilde!$D$2=2,2*J31>60),60,IF(skjermbilde!$D$2=2,2*J31)))) -> 0 | AI31: =+IF(ISNUMBER(skjermbilde!G$3-Y31-skjermbilde!G$6-4),skjermbilde!G$3-Y31-skjermbilde!G$6-4,0) -> -4 | AJ31: =+IF(ISNUMBER(skjermbilde!H$3-Z31-skjermbilde!H$6-4),skjermbilde!H$3-Z31-skjermbilde!H$6-4,0) -> -4 | AK31: =+IF(ISNUMBER(skjermbilde!I$3-AA31-skjermbilde!I$6-4),skjermbilde!I$3-AA31-skjermbilde!I$6-4,0) -> -4 | AL31: =+IF(ISNUMBER(skjermbilde!J$3-AB31-skjermbilde!J$6-4),skjermbilde!J$3-AB31-skjermbilde!J$6-4,0) -> -4 | AM31: =+IF(ISNUMBER(skjermbilde!K$3-AC31-skjermbilde!K$6-4),skjermbilde!K$3-AC31-skjermbilde!K$6-4,0) -> -4 | AN31: =+IF(ISNUMBER(skjermbilde!L$3-AD31-skjermbilde!L$6-4),skjermbilde!L$3-AD31-skjermbilde!L$6-4,0) -> -4 | AO31: =+IF(ISNUMBER(skjermbilde!M$3-AE31-skjermbilde!M$6-4),skjermbilde!M$3-AE31-skjermbilde!M$6-4,0) -> -4 | AP31: =+IF(ISNUMBER(skjermbilde!N$3-AF31-skjermbilde!N$6-4),skjermbilde!N$3-AF31-skjermbilde!N$6-4,0) -> -4 | AQ31: =IF(skjermbilde!$O$10=TRUE,10*LOG10(10^(0.1*(AI31+AI$12))+10^(0.1*(AJ31+AJ$12))+10^(0.1*(AK31+AK$12))+10^(0.1*(AL31+AL$12))+10^(0.1*(AM31+AM$12))+10^(0.1*(AN31+AN$12))+10^(0.1*(AO31+AO$12))+10^(0.1*(AP31+AP$12))),"") ->  | AR31: 1 | AS31: 1 | AT31: 1 | AU31: 1 | AV31: 1 | AW31: 1 | AX31: 1 | AY31: 1 | AZ31: 1 | BA31: 0 | BB31: =IF(skjermbilde!$D$4="",1,IF(P31=skjermbilde!$D$4,1,0)) -> 0 | BC31: =+IF(skjermbilde!$N$10=1,1,0) -> 1 | BD31: =+IF(U31="r",1,IF(M31=skjermbilde!$D$3,1,0)) -> 1 | BE31: =+IF(U31="s",1,IF(N31=skjermbilde!$C$3,1,0)) -> 1 | BF31: =+IF(U31="s",1,IF(O31=skjermbilde!$C$4,1,0)) -> 1 | BG31: 1 | BH31: 0 | BL31: 16 | CC31: 16 | CR31: 16 | CY31: =IF(skjermbilde!$D$2=1,VLOOKUP($CS31,$CB$17:$CD$261,3,FALSE),CONCATENATE("2 x ",VLOOKUP($CS31,$CB$17:$CD$261,3,FALSE))) ->  | DI31: 1.5e-07 | DJ31: 1.00000015 | DK31: 1 | DL31: 0 | DM31: 1.00000008 | DN31: 0 | DO31: 0
A32: 17 | B32: =datagrunnlag!H32 -> 0 | C32: =datagrunnlag!I32 -> 0 | D32: =datagrunnlag!J32 -> 0 | E32: =datagrunnlag!K32 -> 0 | F32: =datagrunnlag!L32 -> 0 | G32: =datagrunnlag!M32 -> 0 | H32: =datagrunnlag!N32 -> 0 | I32: =datagrunnlag!O32 -> 0 | J32: =datagrunnlag!P32 -> 0 | K32: =+datagrunnlag!A32 -> LSR | L32: =+datagrunnlag!B32 -> 0 | M32: =+datagrunnlag!C32 -> 0 | P32: =++IF(datagrunnlag!F32="s","c",datagrunnlag!F32) -> 0 | Q32: =+datagrunnlag!G32 -> 0 | R32: =+datagrunnlag!Q32 -> 0 | S32: 0 | T32: 201 | U32: r | V32: 0 | W32: 0 | X32: =IF(skjermbilde!$D$2=1,S32^2*R32,2*S32^2*R32) -> 0 | Y32: =IF(C32="","",IF(skjermbilde!$D$2=1,C32,IF(AND(skjermbilde!$D$2=2,2*C32>60),60,IF(skjermbilde!$D$2=2,2*C32)))) -> 0 | Z32: =IF(skjermbilde!$D$2=1,D32,IF(AND(skjermbilde!$D$2=2,2*D32>60),60,IF(skjermbilde!$D$2=2,2*D32))) -> 0 | AA32: =IF(skjermbilde!$D$2=1,E32,IF(AND(skjermbilde!$D$2=2,2*E32>60),60,IF(skjermbilde!$D$2=2,2*E32))) -> 0 | AB32: =IF(skjermbilde!$D$2=1,F32,IF(AND(skjermbilde!$D$2=2,2*F32>60),60,IF(skjermbilde!$D$2=2,2*F32))) -> 0 | AC32: =IF(skjermbilde!$D$2=1,G32,IF(AND(skjermbilde!$D$2=2,2*G32>60),60,IF(skjermbilde!$D$2=2,2*G32))) -> 0 | AD32: =IF(skjermbilde!$D$2=1,H32,IF(AND(skjermbilde!$D$2=2,2*H32>60),60,IF(skjermbilde!$D$2=2,2*H32))) -> 0 | AE32: =IF(skjermbilde!$D$2=1,I32,IF(AND(skjermbilde!$D$2=2,2*I32>60),60,IF(skjermbilde!$D$2=2,2*I32))) -> 0 | AF32: =IF(J32="","",IF(skjermbilde!$D$2=1,J32,IF(AND(skjermbilde!$D$2=2,2*J32>60),60,IF(skjermbilde!$D$2=2,2*J32)))) -> 0 | AI32: =+IF(ISNUMBER(skjermbilde!G$3-Y32-skjermbilde!G$6-4),skjermbilde!G$3-Y32-skjermbilde!G$6-4,0) -> -4 | AJ32: =+IF(ISNUMBER(skjermbilde!H$3-Z32-skjermbilde!H$6-4),skjermbilde!H$3-Z32-skjermbilde!H$6-4,0) -> -4 | AK32: =+IF(ISNUMBER(skjermbilde!I$3-AA32-skjermbilde!I$6-4),skjermbilde!I$3-AA32-skjermbilde!I$6-4,0) -> -4 | AL32: =+IF(ISNUMBER(skjermbilde!J$3-AB32-skjermbilde!J$6-4),skjermbilde!J$3-AB32-skjermbilde!J$6-4,0) -> -4 | AM32: =+IF(ISNUMBER(skjermbilde!K$3-AC32-skjermbilde!K$6-4),skjermbilde!K$3-AC32-skjermbilde!K$6-4,0) -> -4 | AN32: =+IF(ISNUMBER(skjermbilde!L$3-AD32-skjermbilde!L$6-4),skjermbilde!L$3-AD32-skjermbilde!L$6-4,0) -> -4 | AO32: =+IF(ISNUMBER(skjermbilde!M$3-AE32-skjermbilde!M$6-4),skjermbilde!M$3-AE32-skjermbilde!M$6-4,0) -> -4 | AP32: =+IF(ISNUMBER(skjermbilde!N$3-AF32-skjermbilde!N$6-4),skjermbilde!N$3-AF32-skjermbilde!N$6-4,0) -> -4 | AQ32: =IF(skjermbilde!$O$10=TRUE,10*LOG10(10^(0.1*(AI32+AI$12))+10^(0.1*(AJ32+AJ$12))+10^(0.1*(AK32+AK$12))+10^(0.1*(AL32+AL$12))+10^(0.1*(AM32+AM$12))+10^(0.1*(AN32+AN$12))+10^(0.1*(AO32+AO$12))+10^(0.1*(AP32+AP$12))),"") ->  | AR32: 1 | AS32: 1 | AT32: 1 | AU32: 1 | AV32: 1 | AW32: 1 | AX32: 1 | AY32: 1 | AZ32: 1 | BA32: 0 | BB32: =IF(skjermbilde!$D$4="",1,IF(P32=skjermbilde!$D$4,1,0)) -> 0 | BC32: =+IF(skjermbilde!$N$10=1,1,0) -> 1 | BD32: =+IF(U32="r",1,IF(M32=skjermbilde!$D$3,1,0)) -> 1 | BE32: =+IF(U32="s",1,IF(N32=skjermbilde!$C$3,1,0)) -> 1 | BF32: =+IF(U32="s",1,IF(O32=skjermbilde!$C$4,1,0)) -> 1 | BG32: 1 | BH32: 0 | BL32: 17 | CC32: 17 | CR32: 17 | CY32: =IF(skjermbilde!$D$2=1,VLOOKUP($CS32,$CB$17:$CD$261,3,FALSE),CONCATENATE("2 x ",VLOOKUP($CS32,$CB$17:$CD$261,3,FALSE))) ->  | DI32: 1.6e-07 | DJ32: 1.00000016 | DK32: 1 | DL32: 0 | DM32: 1.00000008 | DN32: 0 | DO32: 0
A33: 18 | B33: =datagrunnlag!H33 -> 0 | C33: =datagrunnlag!I33 -> 0 | D33: =datagrunnlag!J33 -> 0 | E33: =datagrunnlag!K33 -> 0 | F33: =datagrunnlag!L33 -> 0 | G33: =datagrunnlag!M33 -> 0 | H33: =datagrunnlag!N33 -> 0 | I33: =datagrunnlag!O33 -> 0 | J33: =datagrunnlag!P33 -> 0 | K33: =+datagrunnlag!A33 -> LSR | L33: =+datagrunnlag!B33 -> 0 | M33: =+datagrunnlag!C33 -> 0 | P33: =++IF(datagrunnlag!F33="s","c",datagrunnlag!F33) -> 0 | Q33: =+datagrunnlag!G33 -> 0 | R33: =+datagrunnlag!Q33 -> 0 | S33: 0 | T33: 201 | U33: r | V33: 0 | W33: 0 | X33: =IF(skjermbilde!$D$2=1,S33^2*R33,2*S33^2*R33) -> 0 | Y33: =IF(C33="","",IF(skjermbilde!$D$2=1,C33,IF(AND(skjermbilde!$D$2=2,2*C33>60),60,IF(skjermbilde!$D$2=2,2*C33)))) -> 0 | Z33: =IF(skjermbilde!$D$2=1,D33,IF(AND(skjermbilde!$D$2=2,2*D33>60),60,IF(skjermbilde!$D$2=2,2*D33))) -> 0 | AA33: =IF(skjermbilde!$D$2=1,E33,IF(AND(skjermbilde!$D$2=2,2*E33>60),60,IF(skjermbilde!$D$2=2,2*E33))) -> 0 | AB33: =IF(skjermbilde!$D$2=1,F33,IF(AND(skjermbilde!$D$2=2,2*F33>60),60,IF(skjermbilde!$D$2=2,2*F33))) -> 0 | AC33: =IF(skjermbilde!$D$2=1,G33,IF(AND(skjermbilde!$D$2=2,2*G33>60),60,IF(skjermbilde!$D$2=2,2*G33))) -> 0 | AD33: =IF(skjermbilde!$D$2=1,H33,IF(AND(skjermbilde!$D$2=2,2*H33>60),60,IF(skjermbilde!$D$2=2,2*H33))) -> 0 | AE33: =IF(skjermbilde!$D$2=1,I33,IF(AND(skjermbilde!$D$2=2,2*I33>60),60,IF(skjermbilde!$D$2=2,2*I33))) -> 0 | AF33: =IF(J33="","",IF(skjermbilde!$D$2=1,J33,IF(AND(skjermbilde!$D$2=2,2*J33>60),60,IF(skjermbilde!$D$2=2,2*J33)))) -> 0 | AI33: =+IF(ISNUMBER(skjermbilde!G$3-Y33-skjermbilde!G$6-4),skjermbilde!G$3-Y33-skjermbilde!G$6-4,0) -> -4 | AJ33: =+IF(ISNUMBER(skjermbilde!H$3-Z33-skjermbilde!H$6-4),skjermbilde!H$3-Z33-skjermbilde!H$6-4,0) -> -4 | AK33: =+IF(ISNUMBER(skjermbilde!I$3-AA33-skjermbilde!I$6-4),skjermbilde!I$3-AA33-skjermbilde!I$6-4,0) -> -4 | AL33: =+IF(ISNUMBER(skjermbilde!J$3-AB33-skjermbilde!J$6-4),skjermbilde!J$3-AB33-skjermbilde!J$6-4,0) -> -4 | AM33: =+IF(ISNUMBER(skjermbilde!K$3-AC33-skjermbilde!K$6-4),skjermbilde!K$3-AC33-skjermbilde!K$6-4,0) -> -4 | AN33: =+IF(ISNUMBER(skjermbilde!L$3-AD33-skjermbilde!L$6-4),skjermbilde!L$3-AD33-skjermbilde!L$6-4,0) -> -4 | AO33: =+IF(ISNUMBER(skjermbilde!M$3-AE33-skjermbilde!M$6-4),skjermbilde!M$3-AE33-skjermbilde!M$6-4,0) -> -4 | AP33: =+IF(ISNUMBER(skjermbilde!N$3-AF33-skjermbilde!N$6-4),skjermbilde!N$3-AF33-skjermbilde!N$6-4,0) -> -4 | AQ33: =IF(skjermbilde!$O$10=TRUE,10*LOG10(10^(0.1*(AI33+AI$12))+10^(0.1*(AJ33+AJ$12))+10^(0.1*(AK33+AK$12))+10^(0.1*(AL33+AL$12))+10^(0.1*(AM33+AM$12))+10^(0.1*(AN33+AN$12))+10^(0.1*(AO33+AO$12))+10^(0.1*(AP33+AP$12))),"") ->  | AR33: 1 | AS33: 1 | AT33: 1 | AU33: 1 | AV33: 1 | AW33: 1 | AX33: 1 | AY33: 1 | AZ33: 1 | BA33: 0 | BB33: =IF(skjermbilde!$D$4="",1,IF(P33=skjermbilde!$D$4,1,0)) -> 0 | BC33: =+IF(skjermbilde!$N$10=1,1,0) -> 1 | BD33: =+IF(U33="r",1,IF(M33=skjermbilde!$D$3,1,0)) -> 1 | BE33: =+IF(U33="s",1,IF(N33=skjermbilde!$C$3,1,0)) -> 1 | BF33: =+IF(U33="s",1,IF(O33=skjermbilde!$C$4,1,0)) -> 1 | BG33: 1 | BH33: 0 | BL33: 18 | CC33: 18 | CR33: 18 | CY33: =IF(skjermbilde!$D$2=1,VLOOKUP($CS33,$CB$17:$CD$261,3,FALSE),CONCATENATE("2 x ",VLOOKUP($CS33,$CB$17:$CD$261,3,FALSE))) ->  | DI33: 1.7e-07 | DJ33: 1.00000017 | DK33: 1 | DL33: 0 | DM33: 1.00000009 | DN33: 0 | DO33: 0
A34: 19 | B34: =datagrunnlag!H34 -> 0 | C34: =datagrunnlag!I34 -> 0 | D34: =datagrunnlag!J34 -> 0 | E34: =datagrunnlag!K34 -> 0 | F34: =datagrunnlag!L34 -> 0 | G34: =datagrunnlag!M34 -> 0 | H34: =datagrunnlag!N34 -> 0 | I34: =datagrunnlag!O34 -> 0 | J34: =datagrunnlag!P34 -> 0 | K34: =+datagrunnlag!A34 -> LSR | L34: =+datagrunnlag!B34 -> 0 | M34: =+datagrunnlag!C34 -> 0 | P34: =++IF(datagrunnlag!F34="s","c",datagrunnlag!F34) -> 0 | Q34: =+datagrunnlag!G34 -> 0 | R34: =+datagrunnlag!Q34 -> 0 | S34: 0 | T34: 201 | U34: r | V34: 0 | W34: 0 | X34: =IF(skjermbilde!$D$2=1,S34^2*R34,2*S34^2*R34) -> 0 | Y34: =IF(C34="","",IF(skjermbilde!$D$2=1,C34,IF(AND(skjermbilde!$D$2=2,2*C34>60),60,IF(skjermbilde!$D$2=2,2*C34)))) -> 0 | Z34: =IF(skjermbilde!$D$2=1,D34,IF(AND(skjermbilde!$D$2=2,2*D34>60),60,IF(skjermbilde!$D$2=2,2*D34))) -> 0 | AA34: =IF(skjermbilde!$D$2=1,E34,IF(AND(skjermbilde!$D$2=2,2*E34>60),60,IF(skjermbilde!$D$2=2,2*E34))) -> 0 | AB34: =IF(skjermbilde!$D$2=1,F34,IF(AND(skjermbilde!$D$2=2,2*F34>60),60,IF(skjermbilde!$D$2=2,2*F34))) -> 0 | AC34: =IF(skjermbilde!$D$2=1,G34,IF(AND(skjermbilde!$D$2=2,2*G34>60),60,IF(skjermbilde!$D$2=2,2*G34))) -> 0 | AD34: =IF(skjermbilde!$D$2=1,H34,IF(AND(skjermbilde!$D$2=2,2*H34>60),60,IF(skjermbilde!$D$2=2,2*H34))) -> 0 | AE34: =IF(skjermbilde!$D$2=1,I34,IF(AND(skjermbilde!$D$2=2,2*I34>60),60,IF(skjermbilde!$D$2=2,2*I34))) -> 0 | AF34: =IF(J34="","",IF(skjermbilde!$D$2=1,J34,IF(AND(skjermbilde!$D$2=2,2*J34>60),60,IF(skjermbilde!$D$2=2,2*J34)))) -> 0 | AI34: =+IF(ISNUMBER(skjermbilde!G$3-Y34-skjermbilde!G$6-4),skjermbilde!G$3-Y34-skjermbilde!G$6-4,0) -> -4 | AJ34: =+IF(ISNUMBER(skjermbilde!H$3-Z34-skjermbilde!H$6-4),skjermbilde!H$3-Z34-skjermbilde!H$6-4,0) -> -4 | AK34: =+IF(ISNUMBER(skjermbilde!I$3-AA34-skjermbilde!I$6-4),skjermbilde!I$3-AA34-skjermbilde!I$6-4,0) -> -4 | AL34: =+IF(ISNUMBER(skjermbilde!J$3-AB34-skjermbilde!J$6-4),skjermbilde!J$3-AB34-skjermbilde!J$6-4,0) -> -4 | AM34: =+IF(ISNUMBER(skjermbilde!K$3-AC34-skjermbilde!K$6-4),skjermbilde!K$3-AC34-skjermbilde!K$6-4,0) -> -4 | AN34: =+IF(ISNUMBER(skjermbilde!L$3-AD34-skjermbilde!L$6-4),skjermbilde!L$3-AD34-skjermbilde!L$6-4,0) -> -4 | AO34: =+IF(ISNUMBER(skjermbilde!M$3-AE34-skjermbilde!M$6-4),skjermbilde!M$3-AE34-skjermbilde!M$6-4,0) -> -4 | AP34: =+IF(ISNUMBER(skjermbilde!N$3-AF34-skjermbilde!N$6-4),skjermbilde!N$3-AF34-skjermbilde!N$6-4,0) -> -4 | AQ34: =IF(skjermbilde!$O$10=TRUE,10*LOG10(10^(0.1*(AI34+AI$12))+10^(0.1*(AJ34+AJ$12))+10^(0.1*(AK34+AK$12))+10^(0.1*(AL34+AL$12))+10^(0.1*(AM34+AM$12))+10^(0.1*(AN34+AN$12))+10^(0.1*(AO34+AO$12))+10^(0.1*(AP34+AP$12))),"") ->  | AR34: 1 | AS34: 1 | AT34: 1 | AU34: 1 | AV34: 1 | AW34: 1 | AX34: 1 | AY34: 1 | AZ34: 1 | BA34: 0 | BB34: =IF(skjermbilde!$D$4="",1,IF(P34=skjermbilde!$D$4,1,0)) -> 0 | BC34: =+IF(skjermbilde!$N$10=1,1,0) -> 1 | BD34: =+IF(U34="r",1,IF(M34=skjermbilde!$D$3,1,0)) -> 1 | BE34: =+IF(U34="s",1,IF(N34=skjermbilde!$C$3,1,0)) -> 1 | BF34: =+IF(U34="s",1,IF(O34=skjermbilde!$C$4,1,0)) -> 1 | BG34: 1 | BH34: 0 | BL34: 19 | CC34: 19 | CR34: 19 | CY34: =IF(skjermbilde!$D$2=1,VLOOKUP($CS34,$CB$17:$CD$261,3,FALSE),CONCATENATE("2 x ",VLOOKUP($CS34,$CB$17:$CD$261,3,FALSE))) ->  | DI34: 1.8e-07 | DJ34: 1.00000018 | DK34: 1 | DL34: 0 | DM34: 1.00000009 | DN34: 0 | DO34: 0
A35: 20 | B35: =datagrunnlag!H35 -> LEV-100-500 | C35: =datagrunnlag!I35 -> 4.947298235 | D35: =datagrunnlag!J35 -> 13.3335902 | E35: =datagrunnlag!K35 -> 17.34588171 | F35: =datagrunnlag!L35 -> 27.401014 | G35: =datagrunnlag!M35 -> 41.52344029 | H35: =datagrunnlag!N35 -> 42.825649 | I35: =datagrunnlag!O35 -> 33.08395342 | J35: =datagrunnlag!P35 -> 15.83688052 | K35: =+datagrunnlag!A35 -> LEV | L35: =+datagrunnlag!B35 -> s | M35: =+datagrunnlag!C35 -> 100 | P35: =++IF(datagrunnlag!F35="s","c",datagrunnlag!F35) -> c | Q35: =+datagrunnlag!G35 -> 500 | R35: =+datagrunnlag!Q35 -> 0.007260043062 | S35: 0 | T35: 201 | U35: r | V35: 0 | W35: 0 | X35: =IF(skjermbilde!$D$2=1,S35^2*R35,2*S35^2*R35) -> 0 | Y35: =IF(C35="","",IF(skjermbilde!$D$2=1,C35,IF(AND(skjermbilde!$D$2=2,2*C35>60),60,IF(skjermbilde!$D$2=2,2*C35)))) -> 4.947298235 | Z35: =IF(skjermbilde!$D$2=1,D35,IF(AND(skjermbilde!$D$2=2,2*D35>60),60,IF(skjermbilde!$D$2=2,2*D35))) -> 13.3335902 | AA35: =IF(skjermbilde!$D$2=1,E35,IF(AND(skjermbilde!$D$2=2,2*E35>60),60,IF(skjermbilde!$D$2=2,2*E35))) -> 17.34588171 | AB35: =IF(skjermbilde!$D$2=1,F35,IF(AND(skjermbilde!$D$2=2,2*F35>60),60,IF(skjermbilde!$D$2=2,2*F35))) -> 27.401014 | AC35: =IF(skjermbilde!$D$2=1,G35,IF(AND(skjermbilde!$D$2=2,2*G35>60),60,IF(skjermbilde!$D$2=2,2*G35))) -> 41.52344029 | AD35: =IF(skjermbilde!$D$2=1,H35,IF(AND(skjermbilde!$D$2=2,2*H35>60),60,IF(skjermbilde!$D$2=2,2*H35))) -> 42.825649 | AE35: =IF(skjermbilde!$D$2=1,I35,IF(AND(skjermbilde!$D$2=2,2*I35>60),60,IF(skjermbilde!$D$2=2,2*I35))) -> 33.08395342 | AF35: =IF(J35="","",IF(skjermbilde!$D$2=1,J35,IF(AND(skjermbilde!$D$2=2,2*J35>60),60,IF(skjermbilde!$D$2=2,2*J35)))) -> 15.83688052 | AI35: =+IF(ISNUMBER(skjermbilde!G$3-Y35-skjermbilde!G$6-4),skjermbilde!G$3-Y35-skjermbilde!G$6-4,0) -> -8.947298235 | AJ35: =+IF(ISNUMBER(skjermbilde!H$3-Z35-skjermbilde!H$6-4),skjermbilde!H$3-Z35-skjermbilde!H$6-4,0) -> -17.3335902 | AK35: =+IF(ISNUMBER(skjermbilde!I$3-AA35-skjermbilde!I$6-4),skjermbilde!I$3-AA35-skjermbilde!I$6-4,0) -> -21.34588171 | AL35: =+IF(ISNUMBER(skjermbilde!J$3-AB35-skjermbilde!J$6-4),skjermbilde!J$3-AB35-skjermbilde!J$6-4,0) -> -31.401014 | AM35: =+IF(ISNUMBER(skjermbilde!K$3-AC35-skjermbilde!K$6-4),skjermbilde!K$3-AC35-skjermbilde!K$6-4,0) -> -45.52344029 | AN35: =+IF(ISNUMBER(skjermbilde!L$3-AD35-skjermbilde!L$6-4),skjermbilde!L$3-AD35-skjermbilde!L$6-4,0) -> -46.825649 | AO35: =+IF(ISNUMBER(skjermbilde!M$3-AE35-skjermbilde!M$6-4),skjermbilde!M$3-AE35-skjermbilde!M$6-4,0) -> -37.08395342 | AP35: =+IF(ISNUMBER(skjermbilde!N$3-AF35-skjermbilde!N$6-4),skjermbilde!N$3-AF35-skjermbilde!N$6-4,0) -> -19.83688052 | AQ35: =IF(skjermbilde!$O$10=TRUE,10*LOG10(10^(0.1*(AI35+AI$12))+10^(0.1*(AJ35+AJ$12))+10^(0.1*(AK35+AK$12))+10^(0.1*(AL35+AL$12))+10^(0.1*(AM35+AM$12))+10^(0.1*(AN35+AN$12))+10^(0.1*(AO35+AO$12))+10^(0.1*(AP35+AP$12))),"") ->  | AR35: 1 | AS35: 1 | AT35: 1 | AU35: 1 | AV35: 1 | AW35: 1 | AX35: 1 | AY35: 1 | AZ35: 1 | BA35: 0 | BB35: =IF(skjermbilde!$D$4="",1,IF(P35=skjermbilde!$D$4,1,0)) -> 0 | BC35: =+IF(skjermbilde!$N$10=1,1,0) -> 1 | BD35: =+IF(U35="r",1,IF(M35=skjermbilde!$D$3,1,0)) -> 1 | BE35: =+IF(U35="s",1,IF(N35=skjermbilde!$C$3,1,0)) -> 1 | BF35: =+IF(U35="s",1,IF(O35=skjermbilde!$C$4,1,0)) -> 1 | BG35: 1 | BH35: 0 | BL35: 20 | CC35: 20 | CR35: 20 | CY35: =IF(skjermbilde!$D$2=1,VLOOKUP($CS35,$CB$17:$CD$261,3,FALSE),CONCATENATE("2 x ",VLOOKUP($CS35,$CB$17:$CD$261,3,FALSE))) ->  | DI35: 1.9e-07 | DJ35: 1.00000019 | DK35: 1 | DL35: LEV-100-500 | DM35: 1.0000001 | DN35: 0 | DO35: 0
A36: 21 | B36: =datagrunnlag!H36 -> LEV-125-500 | C36: =datagrunnlag!I36 -> 2.378000633 | D36: =datagrunnlag!J36 -> 7.414521909 | E36: =datagrunnlag!K36 -> 10.30408849 | F36: =datagrunnlag!L36 -> 22.12767614 | G36: =datagrunnlag!M36 -> 35.69379803 | H36: =datagrunnlag!N36 -> 33.44822562 | I36: =datagrunnlag!O36 -> 21.54345577 | J36: =datagrunnlag!P36 -> 7.594808054 | K36: =+datagrunnlag!A36 -> LEV | L36: =+datagrunnlag!B36 -> s | M36: =+datagrunnlag!C36 -> 125 | P36: =++IF(datagrunnlag!F36="s","c",datagrunnlag!F36) -> c | Q36: =+datagrunnlag!G36 -> 500 | R36: =+datagrunnlag!Q36 -> 0.002281934256 | S36: 0 | T36: 201 | U36: r | V36: 0 | W36: 0 | X36: =IF(skjermbilde!$D$2=1,S36^2*R36,2*S36^2*R36) -> 0 | Y36: =IF(C36="","",IF(skjermbilde!$D$2=1,C36,IF(AND(skjermbilde!$D$2=2,2*C36>60),60,IF(skjermbilde!$D$2=2,2*C36)))) -> 2.378000633 | Z36: =IF(skjermbilde!$D$2=1,D36,IF(AND(skjermbilde!$D$2=2,2*D36>60),60,IF(skjermbilde!$D$2=2,2*D36))) -> 7.414521909 | AA36: =IF(skjermbilde!$D$2=1,E36,IF(AND(skjermbilde!$D$2=2,2*E36>60),60,IF(skjermbilde!$D$2=2,2*E36))) -> 10.30408849 | AB36: =IF(skjermbilde!$D$2=1,F36,IF(AND(skjermbilde!$D$2=2,2*F36>60),60,IF(skjermbilde!$D$2=2,2*F36))) -> 22.12767614 | AC36: =IF(skjermbilde!$D$2=1,G36,IF(AND(skjermbilde!$D$2=2,2*G36>60),60,IF(skjermbilde!$D$2=2,2*G36))) -> 35.69379803 | AD36: =IF(skjermbilde!$D$2=1,H36,IF(AND(skjermbilde!$D$2=2,2*H36>60),60,IF(skjermbilde!$D$2=2,2*H36))) -> 33.44822562 | AE36: =IF(skjermbilde!$D$2=1,I36,IF(AND(skjermbilde!$D$2=2,2*I36>60),60,IF(skjermbilde!$D$2=2,2*I36))) -> 21.54345577 | AF36: =IF(J36="","",IF(skjermbilde!$D$2=1,J36,IF(AND(skjermbilde!$D$2=2,2*J36>60),60,IF(skjermbilde!$D$2=2,2*J36)))) -> 7.594808054 | AI36: =+IF(ISNUMBER(skjermbilde!G$3-Y36-skjermbilde!G$6-4),skjermbilde!G$3-Y36-skjermbilde!G$6-4,0) -> -6.378000633 | AJ36: =+IF(ISNUMBER(skjermbilde!H$3-Z36-skjermbilde!H$6-4),skjermbilde!H$3-Z36-skjermbilde!H$6-4,0) -> -11.41452191 | AK36: =+IF(ISNUMBER(skjermbilde!I$3-AA36-skjermbilde!I$6-4),skjermbilde!I$3-AA36-skjermbilde!I$6-4,0) -> -14.30408849 | AL36: =+IF(ISNUMBER(skjermbilde!J$3-AB36-skjermbilde!J$6-4),skjermbilde!J$3-AB36-skjermbilde!J$6-4,0) -> -26.12767614 | AM36: =+IF(ISNUMBER(skjermbilde!K$3-AC36-skjermbilde!K$6-4),skjermbilde!K$3-AC36-skjermbilde!K$6-4,0) -> -39.69379803 | AN36: =+IF(ISNUMBER(skjermbilde!L$3-AD36-skjermbilde!L$6-4),skjermbilde!L$3-AD36-skjermbilde!L$6-4,0) -> -37.44822562 | AO36: =+IF(ISNUMBER(skjermbilde!M$3-AE36-skjermbilde!M$6-4),skjermbilde!M$3-AE36-skjermbilde!M$6-4,0) -> -25.54345577 | AP36: =+IF(ISNUMBER(skjermbilde!N$3-AF36-skjermbilde!N$6-4),skjermbilde!N$3-AF36-skjermbilde!N$6-4,0) -> -11.59480805 | AQ36: =IF(skjermbilde!$O$10=TRUE,10*LOG10(10^(0.1*(AI36+AI$12))+10^(0.1*(AJ36+AJ$12))+10^(0.1*(AK36+AK$12))+10^(0.1*(AL36+AL$12))+10^(0.1*(AM36+AM$12))+10^(0.1*(AN36+AN$12))+10^(0.1*(AO36+AO$12))+10^(0.1*(AP36+AP$12))),"") ->  | AR36: 1 | AS36: 1 | AT36: 1 | AU36: 1 | AV36: 1 | AW36: 1 | AX36: 1 | AY36: 1 | AZ36: 1 | BA36: 0 | BB36: =IF(skjermbilde!$D$4="",1,IF(P36=skjermbilde!$D$4,1,0)) -> 0 | BC36: =+IF(skjermbilde!$N$10=1,1,0) -> 1 | BD36: =+IF(U36="r",1,IF(M36=skjermbilde!$D$3,1,0)) -> 1 | BE36: =+IF(U36="s",1,IF(N36=skjermbilde!$C$3,1,0)) -> 1 | BF36: =+IF(U36="s",1,IF(O36=skjermbilde!$C$4,1,0)) -> 1 | BG36: 1 | BH36: 0 | BL36: 21 | CC36: 21 | CR36: 21 | CY36: =IF(skjermbilde!$D$2=1,VLOOKUP($CS36,$CB$17:$CD$261,3,FALSE),CONCATENATE("2 x ",VLOOKUP($CS36,$CB$17:$CD$261,3,FALSE))) ->  | DI36: 2e-07 | DJ36: 1.0000002 | DK36: 1 | DL36: LEV-125-500 | DM36: 1.0000001 | DN36: 0 | DO36: 0
A37: 22 | B37: =datagrunnlag!H37 -> LEV-160-500 | C37: =datagrunnlag!I37 -> 0.9350282567 | D37: =datagrunnlag!J37 -> 5.45397079 | E37: =datagrunnlag!K37 -> 8.586342351 | F37: =datagrunnlag!L37 -> 18.59915032 | G37: =datagrunnlag!M37 -> 29.89876535 | H37: =datagrunnlag!N37 -> 25.51681371 | I37: =datagrunnlag!O37 -> 13.79467553 | J37: =datagrunnlag!P37 -> 5.639034858 | K37: =+datagrunnlag!A37 -> LEV | L37: =+datagrunnlag!B37 -> s | M37: =+datagrunnlag!C37 -> 160 | P37: =++IF(datagrunnlag!F37="s","c",datagrunnlag!F37) -> c | Q37: =+datagrunnlag!G37 -> 500 | R37: =+datagrunnlag!Q37 -> 0.0007753062196 | S37: 0 | T37: 201 | U37: r | V37: 0 | W37: 0 | X37: =IF(skjermbilde!$D$2=1,S37^2*R37,2*S37^2*R37) -> 0 | Y37: =IF(C37="","",IF(skjermbilde!$D$2=1,C37,IF(AND(skjermbilde!$D$2=2,2*C37>60),60,IF(skjermbilde!$D$2=2,2*C37)))) -> 0.9350282567 | Z37: =IF(skjermbilde!$D$2=1,D37,IF(AND(skjermbilde!$D$2=2,2*D37>60),60,IF(skjermbilde!$D$2=2,2*D37))) -> 5.45397079 | AA37: =IF(skjermbilde!$D$2=1,E37,IF(AND(skjermbilde!$D$2=2,2*E37>60),60,IF(skjermbilde!$D$2=2,2*E37))) -> 8.586342351 | AB37: =IF(skjermbilde!$D$2=1,F37,IF(AND(skjermbilde!$D$2=2,2*F37>60),60,IF(skjermbilde!$D$2=2,2*F37))) -> 18.59915032 | AC37: =IF(skjermbilde!$D$2=1,G37,IF(AND(skjermbilde!$D$2=2,2*G37>60),60,IF(skjermbilde!$D$2=2,2*G37))) -> 29.89876535 | AD37: =IF(skjermbilde!$D$2=1,H37,IF(AND(skjermbilde!$D$2=2,2*H37>60),60,IF(skjermbilde!$D$2=2,2*H37))) -> 25.51681371 | AE37: =IF(skjermbilde!$D$2=1,I37,IF(AND(skjermbilde!$D$2=2,2*I37>60),60,IF(skjermbilde!$D$2=2,2*I37))) -> 13.79467553 | AF37: =IF(J37="","",IF(skjermbilde!$D$2=1,J37,IF(AND(skjermbilde!$D$2=2,2*J37>60),60,IF(skjermbilde!$D$2=2,2*J37)))) -> 5.639034858 | AI37: =+IF(ISNUMBER(skjermbilde!G$3-Y37-skjermbilde!G$6-4),skjermbilde!G$3-Y37-skjermbilde!G$6-4,0) -> -4.935028257 | AJ37: =+IF(ISNUMBER(skjermbilde!H$3-Z37-skjermbilde!H$6-4),skjermbilde!H$3-Z37-skjermbilde!H$6-4,0) -> -9.45397079 | AK37: =+IF(ISNUMBER(skjermbilde!I$3-AA37-skjermbilde!I$6-4),skjermbilde!I$3-AA37-skjermbilde!I$6-4,0) -> -12.58634235 | AL37: =+IF(ISNUMBER(skjermbilde!J$3-AB37-skjermbilde!J$6-4),skjermbilde!J$3-AB37-skjermbilde!J$6-4,0) -> -22.59915032 | AM37: =+IF(ISNUMBER(skjermbilde!K$3-AC37-skjermbilde!K$6-4),skjermbilde!K$3-AC37-skjermbilde!K$6-4,0) -> -33.89876535 | AN37: =+IF(ISNUMBER(skjermbilde!L$3-AD37-skjermbilde!L$6-4),skjermbilde!L$3-AD37-skjermbilde!L$6-4,0) -> -29.51681371 | AO37: =+IF(ISNUMBER(skjermbilde!M$3-AE37-skjermbilde!M$6-4),skjermbilde!M$3-AE37-skjermbilde!M$6-4,0) -> -17.79467553 | AP37: =+IF(ISNUMBER(skjermbilde!N$3-AF37-skjermbilde!N$6-4),skjermbilde!N$3-AF37-skjermbilde!N$6-4,0) -> -9.639034858 | AQ37: =IF(skjermbilde!$O$10=TRUE,10*LOG10(10^(0.1*(AI37+AI$12))+10^(0.1*(AJ37+AJ$12))+10^(0.1*(AK37+AK$12))+10^(0.1*(AL37+AL$12))+10^(0.1*(AM37+AM$12))+10^(0.1*(AN37+AN$12))+10^(0.1*(AO37+AO$12))+10^(0.1*(AP37+AP$12))),"") ->  | AR37: 1 | AS37: 1 | AT37: 1 | AU37: 1 | AV37: 1 | AW37: 1 | AX37: 1 | AY37: 1 | AZ37: 1 | BA37: 0 | BB37: =IF(skjermbilde!$D$4="",1,IF(P37=skjermbilde!$D$4,1,0)) -> 0 | BC37: =+IF(skjermbilde!$N$10=1,1,0) -> 1 | BD37: =+IF(U37="r",1,IF(M37=skjermbilde!$D$3,1,0)) -> 1 | BE37: =+IF(U37="s",1,IF(N37=skjermbilde!$C$3,1,0)) -> 1 | BF37: =+IF(U37="s",1,IF(O37=skjermbilde!$C$4,1,0)) -> 1 | BG37: 1 | BH37: 0 | BL37: 22 | CC37: 22 | CR37: 22 | CY37: =IF(skjermbilde!$D$2=1,VLOOKUP($CS37,$CB$17:$CD$261,3,FALSE),CONCATENATE("2 x ",VLOOKUP($CS37,$CB$17:$CD$261,3,FALSE))) ->  | DI37: 2.1e-07 | DJ37: 1.00000021 | DK37: 1 | DL37: LEV-160-500 | DM37: 1.00000011 | DN37: 0 | DO37: 0
A38: 23 | B38: =datagrunnlag!H38 -> LEV-200-500 | C38: =datagrunnlag!I38 -> 1 | D38: =datagrunnlag!J38 -> 4.258583666 | E38: =datagrunnlag!K38 -> 6.741751004 | F38: =datagrunnlag!L38 -> 14.90533186 | G38: =datagrunnlag!M38 -> 22.83473889 | H38: =datagrunnlag!N38 -> 17.20924721 | I38: =datagrunnlag!O38 -> 8.64792851 | J38: =datagrunnlag!P38 -> 4.40761585 | K38: =+datagrunnlag!A38 -> LEV | L38: =+datagrunnlag!B38 -> s | M38: =+datagrunnlag!C38 -> 200 | P38: =++IF(datagrunnlag!F38="s","c",datagrunnlag!F38) -> c | Q38: =+datagrunnlag!G38 -> 500 | R38: =+datagrunnlag!Q38 -> 0.0002260405644 | S38: 0 | T38: 201 | U38: r | V38: 0 | W38: 0 | X38: =IF(skjermbilde!$D$2=1,S38^2*R38,2*S38^2*R38) -> 0 | Y38: =IF(C38="","",IF(skjermbilde!$D$2=1,C38,IF(AND(skjermbilde!$D$2=2,2*C38>60),60,IF(skjermbilde!$D$2=2,2*C38)))) -> 1 | Z38: =IF(skjermbilde!$D$2=1,D38,IF(AND(skjermbilde!$D$2=2,2*D38>60),60,IF(skjermbilde!$D$2=2,2*D38))) -> 4.258583666 | AA38: =IF(skjermbilde!$D$2=1,E38,IF(AND(skjermbilde!$D$2=2,2*E38>60),60,IF(skjermbilde!$D$2=2,2*E38))) -> 6.741751004 | AB38: =IF(skjermbilde!$D$2=1,F38,IF(AND(skjermbilde!$D$2=2,2*F38>60),60,IF(skjermbilde!$D$2=2,2*F38))) -> 14.90533186 | AC38: =IF(skjermbilde!$D$2=1,G38,IF(AND(skjermbilde!$D$2=2,2*G38>60),60,IF(skjermbilde!$D$2=2,2*G38))) -> 22.83473889 | AD38: =IF(skjermbilde!$D$2=1,H38,IF(AND(skjermbilde!$D$2=2,2*H38>60),60,IF(skjermbilde!$D$2=2,2*H38))) -> 17.20924721 | AE38: =IF(skjermbilde!$D$2=1,I38,IF(AND(skjermbilde!$D$2=2,2*I38>60),60,IF(skjermbilde!$D$2=2,2*I38))) -> 8.64792851 | AF38: =IF(J38="","",IF(skjermbilde!$D$2=1,J38,IF(AND(skjermbilde!$D$2=2,2*J38>60),60,IF(skjermbilde!$D$2=2,2*J38)))) -> 4.40761585 | AI38: =+IF(ISNUMBER(skjermbilde!G$3-Y38-skjermbilde!G$6-4),skjermbilde!G$3-Y38-skjermbilde!G$6-4,0) -> -5 | AJ38: =+IF(ISNUMBER(skjermbilde!H$3-Z38-skjermbilde!H$6-4),skjermbilde!H$3-Z38-skjermbilde!H$6-4,0) -> -8.258583666 | AK38: =+IF(ISNUMBER(skjermbilde!I$3-AA38-skjermbilde!I$6-4),skjermbilde!I$3-AA38-skjermbilde!I$6-4,0) -> -10.741751 | AL38: =+IF(ISNUMBER(skjermbilde!J$3-AB38-skjermbilde!J$6-4),skjermbilde!J$3-AB38-skjermbilde!J$6-4,0) -> -18.90533186 | AM38: =+IF(ISNUMBER(skjermbilde!K$3-AC38-skjermbilde!K$6-4),skjermbilde!K$3-AC38-skjermbilde!K$6-4,0) -> -26.83473889 | AN38: =+IF(ISNUMBER(skjermbilde!L$3-AD38-skjermbilde!L$6-4),skjermbilde!L$3-AD38-skjermbilde!L$6-4,0) -> -21.20924721 | AO38: =+IF(ISNUMBER(skjermbilde!M$3-AE38-skjermbilde!M$6-4),skjermbilde!M$3-AE38-skjermbilde!M$6-4,0) -> -12.64792851 | AP38: =+IF(ISNUMBER(skjermbilde!N$3-AF38-skjermbilde!N$6-4),skjermbilde!N$3-AF38-skjermbilde!N$6-4,0) -> -8.40761585 | AQ38: =IF(skjermbilde!$O$10=TRUE,10*LOG10(10^(0.1*(AI38+AI$12))+10^(0.1*(AJ38+AJ$12))+10^(0.1*(AK38+AK$12))+10^(0.1*(AL38+AL$12))+10^(0.1*(AM38+AM$12))+10^(0.1*(AN38+AN$12))+10^(0.1*(AO38+AO$12))+10^(0.1*(AP38+AP$12))),"") ->  | AR38: 1 | AS38: 1 | AT38: 1 | AU38: 1 | AV38: 1 | AW38: 1 | AX38: 1 | AY38: 1 | AZ38: 1 | BA38: 0 | BB38: =IF(skjermbilde!$D$4="",1,IF(P38=skjermbilde!$D$4,1,0)) -> 0 | BC38: =+IF(skjermbilde!$N$10=1,1,0) -> 1 | BD38: =+IF(U38="r",1,IF(M38=skjermbilde!$D$3,1,0)) -> 1 | BE38: =+IF(U38="s",1,IF(N38=skjermbilde!$C$3,1,0)) -> 1 | BF38: =+IF(U38="s",1,IF(O38=skjermbilde!$C$4,1,0)) -> 1 | BG38: 1 | BH38: 0 | BL38: 23 | CC38: 23 | CR38: 23 | CY38: =IF(skjermbilde!$D$2=1,VLOOKUP($CS38,$CB$17:$CD$261,3,FALSE),CONCATENATE("2 x ",VLOOKUP($CS38,$CB$17:$CD$261,3,FALSE))) ->  | DI38: 2.2e-07 | DJ38: 1.00000022 | DK38: 1 | DL38: LEV-200-500 | DM38: 1.00000011 | DN38: 0 | DO38: 0
A39: 24 | B39: =datagrunnlag!H39 -> LEV-250-500 | C39: =datagrunnlag!I39 -> 0.596930429 | D39: =datagrunnlag!J39 -> 3.202356606 | E39: =datagrunnlag!K39 -> 6.147250058 | F39: =datagrunnlag!L39 -> 13.23760523 | G39: =datagrunnlag!M39 -> 18.52066769 | H39: =datagrunnlag!N39 -> 11.75057819 | I39: =datagrunnlag!O39 -> 5.937728094 | J39: =datagrunnlag!P39 -> 2.915065075 | K39: =+datagrunnlag!A39 -> LEV | L39: =+datagrunnlag!B39 -> s | M39: =+datagrunnlag!C39 -> 250 | P39: =++IF(datagrunnlag!F39="s","c",datagrunnlag!F39) -> c | Q39: =+datagrunnlag!G39 -> 500 | R39: =+datagrunnlag!Q39 -> 0.0001032096695 | S39: 0 | T39: 201 | U39: r | V39: 0 | W39: 0 | X39: =IF(skjermbilde!$D$2=1,S39^2*R39,2*S39^2*R39) -> 0 | Y39: =IF(C39="","",IF(skjermbilde!$D$2=1,C39,IF(AND(skjermbilde!$D$2=2,2*C39>60),60,IF(skjermbilde!$D$2=2,2*C39)))) -> 0.596930429 | Z39: =IF(skjermbilde!$D$2=1,D39,IF(AND(skjermbilde!$D$2=2,2*D39>60),60,IF(skjermbilde!$D$2=2,2*D39))) -> 3.202356606 | AA39: =IF(skjermbilde!$D$2=1,E39,IF(AND(skjermbilde!$D$2=2,2*E39>60),60,IF(skjermbilde!$D$2=2,2*E39))) -> 6.147250058 | AB39: =IF(skjermbilde!$D$2=1,F39,IF(AND(skjermbilde!$D$2=2,2*F39>60),60,IF(skjermbilde!$D$2=2,2*F39))) -> 13.23760523 | AC39: =IF(skjermbilde!$D$2=1,G39,IF(AND(skjermbilde!$D$2=2,2*G39>60),60,IF(skjermbilde!$D$2=2,2*G39))) -> 18.52066769 | AD39: =IF(skjermbilde!$D$2=1,H39,IF(AND(skjermbilde!$D$2=2,2*H39>60),60,IF(skjermbilde!$D$2=2,2*H39))) -> 11.75057819 | AE39: =IF(skjermbilde!$D$2=1,I39,IF(AND(skjermbilde!$D$2=2,2*I39>60),60,IF(skjermbilde!$D$2=2,2*I39))) -> 5.937728094 | AF39: =IF(J39="","",IF(skjermbilde!$D$2=1,J39,IF(AND(skjermbilde!$D$2=2,2*J39>60),60,IF(skjermbilde!$D$2=2,2*J39)))) -> 2.915065075 | AI39: =+IF(ISNUMBER(skjermbilde!G$3-Y39-skjermbilde!G$6-4),skjermbilde!G$3-Y39-skjermbilde!G$6-4,0) -> -4.596930429 | AJ39: =+IF(ISNUMBER(skjermbilde!H$3-Z39-skjermbilde!H$6-4),skjermbilde!H$3-Z39-skjermbilde!H$6-4,0) -> -7.202356606 | AK39: =+IF(ISNUMBER(skjermbilde!I$3-AA39-skjermbilde!I$6-4),skjermbilde!I$3-AA39-skjermbilde!I$6-4,0) -> -10.14725006 | AL39: =+IF(ISNUMBER(skjermbilde!J$3-AB39-skjermbilde!J$6-4),skjermbilde!J$3-AB39-skjermbilde!J$6-4,0) -> -17.23760523 | AM39: =+IF(ISNUMBER(skjermbilde!K$3-AC39-skjermbilde!K$6-4),skjermbilde!K$3-AC39-skjermbilde!K$6-4,0) -> -22.52066769 | AN39: =+IF(ISNUMBER(skjermbilde!L$3-AD39-skjermbilde!L$6-4),skjermbilde!L$3-AD39-skjermbilde!L$6-4,0) -> -15.75057819 | AO39: =+IF(ISNUMBER(skjermbilde!M$3-AE39-skjermbilde!M$6-4),skjermbilde!M$3-AE39-skjermbilde!M$6-4,0) -> -9.937728094 | AP39: =+IF(ISNUMBER(skjermbilde!N$3-AF39-skjermbilde!N$6-4),skjermbilde!N$3-AF39-skjermbilde!N$6-4,0) -> -6.915065075 | AQ39: =IF(skjermbilde!$O$10=TRUE,10*LOG10(10^(0.1*(AI39+AI$12))+10^(0.1*(AJ39+AJ$12))+10^(0.1*(AK39+AK$12))+10^(0.1*(AL39+AL$12))+10^(0.1*(AM39+AM$12))+10^(0.1*(AN39+AN$12))+10^(0.1*(AO39+AO$12))+10^(0.1*(AP39+AP$12))),"") ->  | AR39: 1 | AS39: 1 | AT39: 1 | AU39: 1 | AV39: 1 | AW39: 1 | AX39: 1 | AY39: 1 | AZ39: 1 | BA39: 0 | BB39: =IF(skjermbilde!$D$4="",1,IF(P39=skjermbilde!$D$4,1,0)) -> 0 | BC39: =+IF(skjermbilde!$N$10=1,1,0) -> 1 | BD39: =+IF(U39="r",1,IF(M39=skjermbilde!$D$3,1,0)) -> 1 | BE39: =+IF(U39="s",1,IF(N39=skjermbilde!$C$3,1,0)) -> 1 | BF39: =+IF(U39="s",1,IF(O39=skjermbilde!$C$4,1,0)) -> 1 | BG39: 1 | BH39: 0 | BL39: 24 | CC39: 24 | CR39: 24 | CY39: =IF(skjermbilde!$D$2=1,VLOOKUP($CS39,$CB$17:$CD$261,3,FALSE),CONCATENATE("2 x ",VLOOKUP($CS39,$CB$17:$CD$261,3,FALSE))) ->  | DI39: 2.3e-07 | DJ39: 1.00000023 | DK39: 1 | DL39: LEV-250-500 | DM39: 1.00000012 | DN39: 0 | DO39: 0
A40: 25 | B40: =datagrunnlag!H40 -> LEV-315-500 | C40: =datagrunnlag!I40 -> 1.569502486 | D40: =datagrunnlag!J40 -> 1.522420495 | E40: =datagrunnlag!K40 -> 5.105692555 | F40: =datagrunnlag!L40 -> 11.02820867 | G40: =datagrunnlag!M40 -> 13.11095437 | H40: =datagrunnlag!N40 -> 6.620395894 | I40: =datagrunnlag!O40 -> 3.966073425 | J40: =datagrunnlag!P40 -> 3.790625997 | K40: =+datagrunnlag!A40 -> LEV | L40: =+datagrunnlag!B40 -> s | M40: =+datagrunnlag!C40 -> 315 | P40: =++IF(datagrunnlag!F40="s","c",datagrunnlag!F40) -> c | Q40: =+datagrunnlag!G40 -> 500 | R40: =+datagrunnlag!Q40 -> 2.830275464e-05 | S40: 0 | T40: 201 | U40: r | V40: 0 | W40: 0 | X40: =IF(skjermbilde!$D$2=1,S40^2*R40,2*S40^2*R40) -> 0 | Y40: =IF(C40="","",IF(skjermbilde!$D$2=1,C40,IF(AND(skjermbilde!$D$2=2,2*C40>60),60,IF(skjermbilde!$D$2=2,2*C40)))) -> 1.569502486 | Z40: =IF(skjermbilde!$D$2=1,D40,IF(AND(skjermbilde!$D$2=2,2*D40>60),60,IF(skjermbilde!$D$2=2,2*D40))) -> 1.522420495 | AA40: =IF(skjermbilde!$D$2=1,E40,IF(AND(skjermbilde!$D$2=2,2*E40>60),60,IF(skjermbilde!$D$2=2,2*E40))) -> 5.105692555 | AB40: =IF(skjermbilde!$D$2=1,F40,IF(AND(skjermbilde!$D$2=2,2*F40>60),60,IF(skjermbilde!$D$2=2,2*F40))) -> 11.02820867 | AC40: =IF(skjermbilde!$D$2=1,G40,IF(AND(skjermbilde!$D$2=2,2*G40>60),60,IF(skjermbilde!$D$2=2,2*G40))) -> 13.11095437 | AD40: =IF(skjermbilde!$D$2=1,H40,IF(AND(skjermbilde!$D$2=2,2*H40>60),60,IF(skjermbilde!$D$2=2,2*H40))) -> 6.620395894 | AE40: =IF(skjermbilde!$D$2=1,I40,IF(AND(skjermbilde!$D$2=2,2*I40>60),60,IF(skjermbilde!$D$2=2,2*I40))) -> 3.966073425 | AF40: =IF(J40="","",IF(skjermbilde!$D$2=1,J40,IF(AND(skjermbilde!$D$2=2,2*J40>60),60,IF(skjermbilde!$D$2=2,2*J40)))) -> 3.790625997 | AI40: =+IF(ISNUMBER(skjermbilde!G$3-Y40-skjermbilde!G$6-4),skjermbilde!G$3-Y40-skjermbilde!G$6-4,0) -> -5.569502486 | AJ40: =+IF(ISNUMBER(skjermbilde!H$3-Z40-skjermbilde!H$6-4),skjermbilde!H$3-Z40-skjermbilde!H$6-4,0) -> -5.522420495 | AK40: =+IF(ISNUMBER(skjermbilde!I$3-AA40-skjermbilde!I$6-4),skjermbilde!I$3-AA40-skjermbilde!I$6-4,0) -> -9.105692555 | AL40: =+IF(ISNUMBER(skjermbilde!J$3-AB40-skjermbilde!J$6-4),skjermbilde!J$3-AB40-skjermbilde!J$6-4,0) -> -15.02820867 | AM40: =+IF(ISNUMBER(skjermbilde!K$3-AC40-skjermbilde!K$6-4),skjermbilde!K$3-AC40-skjermbilde!K$6-4,0) -> -17.11095437 | AN40: =+IF(ISNUMBER(skjermbilde!L$3-AD40-skjermbilde!L$6-4),skjermbilde!L$3-AD40-skjermbilde!L$6-4,0) -> -10.62039589 | AO40: =+IF(ISNUMBER(skjermbilde!M$3-AE40-skjermbilde!M$6-4),skjermbilde!M$3-AE40-skjermbilde!M$6-4,0) -> -7.966073425 | AP40: =+IF(ISNUMBER(skjermbilde!N$3-AF40-skjermbilde!N$6-4),skjermbilde!N$3-AF40-skjermbilde!N$6-4,0) -> -7.790625997 | AQ40: =IF(skjermbilde!$O$10=TRUE,10*LOG10(10^(0.1*(AI40+AI$12))+10^(0.1*(AJ40+AJ$12))+10^(0.1*(AK40+AK$12))+10^(0.1*(AL40+AL$12))+10^(0.1*(AM40+AM$12))+10^(0.1*(AN40+AN$12))+10^(0.1*(AO40+AO$12))+10^(0.1*(AP40+AP$12))),"") ->  | AR40: =+IF(AND(X40-1<T40,X40<201),1,0) -> 1 | AS40: =+IF(Y40>Y$11,1,0) -> 1 | AT40: =+IF(Z40>Z$11,1,0) -> 1 | AU40: =+IF(AA40>AA$11,1,0) -> 1 | AV40: =+IF(AB40>AB$11,1,0) -> 1 | AW40: =+IF(AC40>AC$11,1,0) -> 1 | AX40: =+IF(AD40>AD$11,1,0) -> 1 | AY40: =+IF(AE40>AE$11,1,0) -> 1 | AZ40: =+IF(AF40>AF$11,1,0) -> 1 | BA40: =+IF(U40=L40,1,0) -> 0 | BB40: =IF(skjermbilde!$D$4="",1,IF(P40=skjermbilde!$D$4,1,0)) -> 0 | BC40: =+IF(skjermbilde!$N$10=1,1,0) -> 1 | BD40: =+IF(U40="r",1,IF(M40=skjermbilde!$D$3,1,0)) -> 1 | BE40: =+IF(U40="s",1,IF(N40=skjermbilde!$C$3,1,0)) -> 1 | BF40: =+IF(U40="s",1,IF(O40=skjermbilde!$C$4,1,0)) -> 1 | BG40: =+IF(OR(W40=Q40,W40=0),1,0) -> 1 | BH40: =+IF(SUM(AR40:BG40)=16,1,0) -> 0 | BL40: =+A40 -> 25 | CB40: =+IF($BH40=1,$X40+DI40,"") ->  | CC40: =+BL40 -> 25 | CR40: 25 | CY40: =IF(skjermbilde!$D$2=1,VLOOKUP($CS40,$CB$17:$CD$261,3,FALSE),CONCATENATE("2 x ",VLOOKUP($CS40,$CB$17:$CD$261,3,FALSE))) ->  | DI40: 2.4e-07 | DJ40: =IF(ISNUMBER(DK40),DK40+DI40,"") -> 1.00000024 | DK40: =SEARCH($DL$14,B40,1) -> 1 | DL40: =IF(ISNUMBER(DK40),B40,"") -> LEV-315-500 | DM40: 1.00000012 | DN40: 0 | DO40: 0
A41: 26 | B41: =datagrunnlag!H41 -> LEV-400-500 | C41: =datagrunnlag!I41 -> 1 | D41: =datagrunnlag!J41 -> 0.8834093731 | E41: =datagrunnlag!K41 -> 4.254656042 | F41: =datagrunnlag!L41 -> 9.728208668 | G41: =datagrunnlag!M41 -> 8.623449888 | H41: =datagrunnlag!N41 -> 4.402981073 | I41: =datagrunnlag!O41 -> 2.259558321 | J41: =datagrunnlag!P41 -> 2.632304787 | K41: =+datagrunnlag!A41 -> LEV | L41: =+datagrunnlag!B41 -> s | M41: =+datagrunnlag!C41 -> 400 | P41: =++IF(datagrunnlag!F41="s","c",datagrunnlag!F41) -> c | Q41: =+datagrunnlag!G41 -> 500 | R41: =+datagrunnlag!Q41 -> 8e-06 | S41: 0 | T41: 201 | U41: r | V41: 0 | W41: 0 | X41: =IF(skjermbilde!$D$2=1,S41^2*R41,2*S41^2*R41) -> 0 | Y41: =IF(C41="","",IF(skjermbilde!$D$2=1,C41,IF(AND(skjermbilde!$D$2=2,2*C41>60),60,IF(skjermbilde!$D$2=2,2*C41)))) -> 1 | Z41: =IF(skjermbilde!$D$2=1,D41,IF(AND(skjermbilde!$D$2=2,2*D41>60),60,IF(skjermbilde!$D$2=2,2*D41))) -> 0.8834093731 | AA41: =IF(skjermbilde!$D$2=1,E41,IF(AND(skjermbilde!$D$2=2,2*E41>60),60,IF(skjermbilde!$D$2=2,2*E41))) -> 4.254656042 | AB41: =IF(skjermbilde!$D$2=1,F41,IF(AND(skjermbilde!$D$2=2,2*F41>60),60,IF(skjermbilde!$D$2=2,2*F41))) -> 9.728208668 | AC41: =IF(skjermbilde!$D$2=1,G41,IF(AND(skjermbilde!$D$2=2,2*G41>60),60,IF(skjermbilde!$D$2=2,2*G41))) -> 8.623449888 | AD41: =IF(skjermbilde!$D$2=1,H41,IF(AND(skjermbilde!$D$2=2,2*H41>60),60,IF(skjermbilde!$D$2=2,2*H41))) -> 4.402981073 | AE41: =IF(skjermbilde!$D$2=1,I41,IF(AND(skjermbilde!$D$2=2,2*I41>60),60,IF(skjermbilde!$D$2=2,2*I41))) -> 2.259558321 | AF41: =IF(J41="","",IF(skjermbilde!$D$2=1,J41,IF(AND(skjermbilde!$D$2=2,2*J41>60),60,IF(skjermbilde!$D$2=2,2*J41)))) -> 2.632304787 | AI41: =+IF(ISNUMBER(skjermbilde!G$3-Y41-skjermbilde!G$6-4),skjermbilde!G$3-Y41-skjermbilde!G$6-4,0) -> -5 | AJ41: =+IF(ISNUMBER(skjermbilde!H$3-Z41-skjermbilde!H$6-4),skjermbilde!H$3-Z41-skjermbilde!H$6-4,0) -> -4.883409373 | AK41: =+IF(ISNUMBER(skjermbilde!I$3-AA41-skjermbilde!I$6-4),skjermbilde!I$3-AA41-skjermbilde!I$6-4,0) -> -8.254656042 | AL41: =+IF(ISNUMBER(skjermbilde!J$3-AB41-skjermbilde!J$6-4),skjermbilde!J$3-AB41-skjermbilde!J$6-4,0) -> -13.72820867 | AM41: =+IF(ISNUMBER(skjermbilde!K$3-AC41-skjermbilde!K$6-4),skjermbilde!K$3-AC41-skjermbilde!K$6-4,0) -> -12.62344989 | AN41: =+IF(ISNUMBER(skjermbilde!L$3-AD41-skjermbilde!L$6-4),skjermbilde!L$3-AD41-skjermbilde!L$6-4,0) -> -8.402981073 | AO41: =+IF(ISNUMBER(skjermbilde!M$3-AE41-skjermbilde!M$6-4),skjermbilde!M$3-AE41-skjermbilde!M$6-4,0) -> -6.259558321 | AP41: =+IF(ISNUMBER(skjermbilde!N$3-AF41-skjermbilde!N$6-4),skjermbilde!N$3-AF41-skjermbilde!N$6-4,0) -> -6.632304787 | AQ41: =IF(skjermbilde!$O$10=TRUE,10*LOG10(10^(0.1*(AI41+AI$12))+10^(0.1*(AJ41+AJ$12))+10^(0.1*(AK41+AK$12))+10^(0.1*(AL41+AL$12))+10^(0.1*(AM41+AM$12))+10^(0.1*(AN41+AN$12))+10^(0.1*(AO41+AO$12))+10^(0.1*(AP41+AP$12))),"") ->  | AR41: 1 | AS41: 1 | AT41: 1 | AU41: 1 | AV41: 1 | AW41: 1 | AX41: 1 | AY41: 1 | AZ41: 1 | BA41: 0 | BB41: =IF(skjermbilde!$D$4="",1,IF(P41=skjermbilde!$D$4,1,0)) -> 0 | BC41: =+IF(skjermbilde!$N$10=1,1,0) -> 1 | BD41: =+IF(U41="r",1,IF(M41=skjermbilde!$D$3,1,0)) -> 1 | BE41: =+IF(U41="s",1,IF(N41=skjermbilde!$C$3,1,0)) -> 1 | BF41: =+IF(U41="s",1,IF(O41=skjermbilde!$C$4,1,0)) -> 1 | BG41: 1 | BH41: 0 | BL41: 26 | CC41: 26 | CR41: 26 | CY41: =IF(skjermbilde!$D$2=1,VLOOKUP($CS41,$CB$17:$CD$261,3,FALSE),CONCATENATE("2 x ",VLOOKUP($CS41,$CB$17:$CD$261,3,FALSE))) ->  | DI41: 2.5e-07 | DJ41: 1.00000025 | DK41: 1 | DL41: LEV-400-500 | DM41: 1.00000013 | DN41: 0 | DO41: 0
A42: 27 | B42: =datagrunnlag!H42 -> LEV-100-1000 | C42: =datagrunnlag!I42 -> 6.173567023 | D42: =datagrunnlag!J42 -> 16.32061871 | E42: =datagrunnlag!K42 -> 27.43260853 | F42: =datagrunnlag!L42 -> 43.345376 | G42: =datagrunnlag!M42 -> 50 | H42: =datagrunnlag!N42 -> 50 | I42: =datagrunnlag!O42 -> 40.48023066 | J42: =datagrunnlag!P42 -> 25.78983616 | K42: =+datagrunnlag!A42 -> LEV | L42: =+datagrunnlag!B42 -> s | M42: =+datagrunnlag!C42 -> 100 | P42: =++IF(datagrunnlag!F42="s","c",datagrunnlag!F42) -> c | Q42: =+datagrunnlag!G42 -> 1000 | R42: =+datagrunnlag!Q42 -> 0.009047422622 | S42: 0 | T42: 201 | U42: r | V42: 0 | W42: 0 | X42: =IF(skjermbilde!$D$2=1,S42^2*R42,2*S42^2*R42) -> 0 | Y42: =IF(C42="","",IF(skjermbilde!$D$2=1,C42,IF(AND(skjermbilde!$D$2=2,2*C42>60),60,IF(skjermbilde!$D$2=2,2*C42)))) -> 6.173567023 | Z42: =IF(skjermbilde!$D$2=1,D42,IF(AND(skjermbilde!$D$2=2,2*D42>60),60,IF(skjermbilde!$D$2=2,2*D42))) -> 16.32061871 | AA42: =IF(skjermbilde!$D$2=1,E42,IF(AND(skjermbilde!$D$2=2,2*E42>60),60,IF(skjermbilde!$D$2=2,2*E42))) -> 27.43260853 | AB42: =IF(skjermbilde!$D$2=1,F42,IF(AND(skjermbilde!$D$2=2,2*F42>60),60,IF(skjermbilde!$D$2=2,2*F42))) -> 43.345376 | AC42: =IF(skjermbilde!$D$2=1,G42,IF(AND(skjermbilde!$D$2=2,2*G42>60),60,IF(skjermbilde!$D$2=2,2*G42))) -> 50 | AD42: =IF(skjermbilde!$D$2=1,H42,IF(AND(skjermbilde!$D$2=2,2*H42>60),60,IF(skjermbilde!$D$2=2,2*H42))) -> 50 | AE42: =IF(skjermbilde!$D$2=1,I42,IF(AND(skjermbilde!$D$2=2,2*I42>60),60,IF(skjermbilde!$D$2=2,2*I42))) -> 40.48023066 | AF42: =IF(J42="","",IF(skjermbilde!$D$2=1,J42,IF(AND(skjermbilde!$D$2=2,2*J42>60),60,IF(skjermbilde!$D$2=2,2*J42)))) -> 25.78983616 | AI42: =+IF(ISNUMBER(skjermbilde!G$3-Y42-skjermbilde!G$6-4),skjermbilde!G$3-Y42-skjermbilde!G$6-4,0) -> -10.17356702 | AJ42: =+IF(ISNUMBER(skjermbilde!H$3-Z42-skjermbilde!H$6-4),skjermbilde!H$3-Z42-skjermbilde!H$6-4,0) -> -20.32061871 | AK42: =+IF(ISNUMBER(skjermbilde!I$3-AA42-skjermbilde!I$6-4),skjermbilde!I$3-AA42-skjermbilde!I$6-4,0) -> -31.43260853 | AL42: =+IF(ISNUMBER(skjermbilde!J$3-AB42-skjermbilde!J$6-4),skjermbilde!J$3-AB42-skjermbilde!J$6-4,0) -> -47.345376 | AM42: =+IF(ISNUMBER(skjermbilde!K$3-AC42-skjermbilde!K$6-4),skjermbilde!K$3-AC42-skjermbilde!K$6-4,0) -> -54 | AN42: =+IF(ISNUMBER(skjermbilde!L$3-AD42-skjermbilde!L$6-4),skjermbilde!L$3-AD42-skjermbilde!L$6-4,0) -> -54 | AO42: =+IF(ISNUMBER(skjermbilde!M$3-AE42-skjermbilde!M$6-4),skjermbilde!M$3-AE42-skjermbilde!M$6-4,0) -> -44.48023066 | AP42: =+IF(ISNUMBER(skjermbilde!N$3-AF42-skjermbilde!N$6-4),skjermbilde!N$3-AF42-skjermbilde!N$6-4,0) -> -29.78983616 | AQ42: =IF(skjermbilde!$O$10=TRUE,10*LOG10(10^(0.1*(AI42+AI$12))+10^(0.1*(AJ42+AJ$12))+10^(0.1*(AK42+AK$12))+10^(0.1*(AL42+AL$12))+10^(0.1*(AM42+AM$12))+10^(0.1*(AN42+AN$12))+10^(0.1*(AO42+AO$12))+10^(0.1*(AP42+AP$12))),"") ->  | AR42: 1 | AS42: 1 | AT42: 1 | AU42: 1 | AV42: 1 | AW42: 1 | AX42: 1 | AY42: 1 | AZ42: 1 | BA42: 0 | BB42: =IF(skjermbilde!$D$4="",1,IF(P42=skjermbilde!$D$4,1,0)) -> 0 | BC42: =+IF(skjermbilde!$N$10=1,1,0) -> 1 | BD42: =+IF(U42="r",1,IF(M42=skjermbilde!$D$3,1,0)) -> 1 | BE42: =+IF(U42="s",1,IF(N42=skjermbilde!$C$3,1,0)) -> 1 | BF42: =+IF(U42="s",1,IF(O42=skjermbilde!$C$4,1,0)) -> 1 | BG42: 1 | BH42: 0 | BL42: 27 | CC42: 27 | CR42: 27 | CY42: =IF(skjermbilde!$D$2=1,VLOOKUP($CS42,$CB$17:$CD$261,3,FALSE),CONCATENATE("2 x ",VLOOKUP($CS42,$CB$17:$CD$261,3,FALSE))) ->  | DI42: 2.6e-07 | DJ42: 1.00000026 | DK42: 1 | DL42: LEV-100-1000 | DM42: 1.00000013 | DN42: 0 | DO42: 0
A43: 28 | B43: =datagrunnlag!H43 -> LEV-125-1000 | C43: =datagrunnlag!I43 -> 1 | D43: =datagrunnlag!J43 -> 11.01047318 | E43: =datagrunnlag!K43 -> 19.48521158 | F43: =datagrunnlag!L43 -> 37.71525256 | G43: =datagrunnlag!M43 -> 50 | H43: =datagrunnlag!N43 -> 50 | I43: =datagrunnlag!O43 -> 36.22287405 | J43: =datagrunnlag!P43 -> 14.21418038 | K43: =+datagrunnlag!A43 -> LEV | L43: =+datagrunnlag!B43 -> s | M43: =+datagrunnlag!C43 -> 125 | P43: =++IF(datagrunnlag!F43="s","c",datagrunnlag!F43) -> c | Q43: =+datagrunnlag!G43 -> 1000 | R43: =+datagrunnlag!Q43 -> 0.002645168964 | S43: 0 | T43: 201 | U43: r | V43: 0 | W43: 0 | X43: =IF(skjermbilde!$D$2=1,S43^2*R43,2*S43^2*R43) -> 0 | Y43: =IF(C43="","",IF(skjermbilde!$D$2=1,C43,IF(AND(skjermbilde!$D$2=2,2*C43>60),60,IF(skjermbilde!$D$2=2,2*C43)))) -> 1 | Z43: =IF(skjermbilde!$D$2=1,D43,IF(AND(skjermbilde!$D$2=2,2*D43>60),60,IF(skjermbilde!$D$2=2,2*D43))) -> 11.01047318 | AA43: =IF(skjermbilde!$D$2=1,E43,IF(AND(skjermbilde!$D$2=2,2*E43>60),60,IF(skjermbilde!$D$2=2,2*E43))) -> 19.48521158 | AB43: =IF(skjermbilde!$D$2=1,F43,IF(AND(skjermbilde!$D$2=2,2*F43>60),60,IF(skjermbilde!$D$2=2,2*F43))) -> 37.71525256 | AC43: =IF(skjermbilde!$D$2=1,G43,IF(AND(skjermbilde!$D$2=2,2*G43>60),60,IF(skjermbilde!$D$2=2,2*G43))) -> 50 | AD43: =IF(skjermbilde!$D$2=1,H43,IF(AND(skjermbilde!$D$2=2,2*H43>60),60,IF(skjermbilde!$D$2=2,2*H43))) -> 50 | AE43: =IF(skjermbilde!$D$2=1,I43,IF(AND(skjermbilde!$D$2=2,2*I43>60),60,IF(skjermbilde!$D$2=2,2*I43))) -> 36.22287405 | AF43: =IF(J43="","",IF(skjermbilde!$D$2=1,J43,IF(AND(skjermbilde!$D$2=2,2*J43>60),60,IF(skjermbilde!$D$2=2,2*J43)))) -> 14.21418038 | AI43: =+IF(ISNUMBER(skjermbilde!G$3-Y43-skjermbilde!G$6-4),skjermbilde!G$3-Y43-skjermbilde!G$6-4,0) -> -5 | AJ43: =+IF(ISNUMBER(skjermbilde!H$3-Z43-skjermbilde!H$6-4),skjermbilde!H$3-Z43-skjermbilde!H$6-4,0) -> -15.01047318 | AK43: =+IF(ISNUMBER(skjermbilde!I$3-AA43-skjermbilde!I$6-4),skjermbilde!I$3-AA43-skjermbilde!I$6-4,0) -> -23.48521158 | AL43: =+IF(ISNUMBER(skjermbilde!J$3-AB43-skjermbilde!J$6-4),skjermbilde!J$3-AB43-skjermbilde!J$6-4,0) -> -41.71525256 | AM43: =+IF(ISNUMBER(skjermbilde!K$3-AC43-skjermbilde!K$6-4),skjermbilde!K$3-AC43-skjermbilde!K$6-4,0) -> -54 | AN43: =+IF(ISNUMBER(skjermbilde!L$3-AD43-skjermbilde!L$6-4),skjermbilde!L$3-AD43-skjermbilde!L$6-4,0) -> -54 | AO43: =+IF(ISNUMBER(skjermbilde!M$3-AE43-skjermbilde!M$6-4),skjermbilde!M$3-AE43-skjermbilde!M$6-4,0) -> -40.22287405 | AP43: =+IF(ISNUMBER(skjermbilde!N$3-AF43-skjermbilde!N$6-4),skjermbilde!N$3-AF43-skjermbilde!N$6-4,0) -> -18.21418038 | AQ43: =IF(skjermbilde!$O$10=TRUE,10*LOG10(10^(0.1*(AI43+AI$12))+10^(0.1*(AJ43+AJ$12))+10^(0.1*(AK43+AK$12))+10^(0.1*(AL43+AL$12))+10^(0.1*(AM43+AM$12))+10^(0.1*(AN43+AN$12))+10^(0.1*(AO43+AO$12))+10^(0.1*(AP43+AP$12))),"") ->  | AR43: 1 | AS43: 1 | AT43: 1 | AU43: 1 | AV43: 1 | AW43: 1 | AX43: 1 | AY43: 1 | AZ43: 1 | BA43: 0 | BB43: =IF(skjermbilde!$D$4="",1,IF(P43=skjermbilde!$D$4,1,0)) -> 0 | BC43: =+IF(skjermbilde!$N$10=1,1,0) -> 1 | BD43: =+IF(U43="r",1,IF(M43=skjermbilde!$D$3,1,0)) -> 1 | BE43: =+IF(U43="s",1,IF(N43=skjermbilde!$C$3,1,0)) -> 1 | BF43: =+IF(U43="s",1,IF(O43=skjermbilde!$C$4,1,0)) -> 1 | BG43: 1 | BH43: 0 | BL43: 28 | CC43: 28 | CR43: 28 | CY43: =IF(skjermbilde!$D$2=1,VLOOKUP($CS43,$CB$17:$CD$261,3,FALSE),CONCATENATE("2 x ",VLOOKUP($CS43,$CB$17:$CD$261,3,FALSE))) ->  | DI43: 2.7e-07 | DJ43: 1.00000027 | DK43: 1 | DL43: LEV-125-1000 | DM43: 1.00000014 | DN43: 0 | DO43: 0
A44: 29 | B44: =datagrunnlag!H44 -> LEV-160-1000 | C44: =datagrunnlag!I44 -> 1 | D44: =datagrunnlag!J44 -> 7.768155355 | E44: =datagrunnlag!K44 -> 14.54974273 | F44: =datagrunnlag!L44 -> 33.1327488 | G44: =datagrunnlag!M44 -> 50 | H44: =datagrunnlag!N44 -> 48.98230495 | I44: =datagrunnlag!O44 -> 23.58886709 | J44: =datagrunnlag!P44 -> 9.68501618 | K44: =+datagrunnlag!A44 -> LEV | L44: =+datagrunnlag!B44 -> s | M44: =+datagrunnlag!C44 -> 160 | P44: =++IF(datagrunnlag!F44="s","c",datagrunnlag!F44) -> c | Q44: =+datagrunnlag!G44 -> 1000 | R44: =+datagrunnlag!Q44 -> 0.001079686196 | S44: 0 | T44: 201 | U44: r | V44: 0 | W44: 0 | X44: =IF(skjermbilde!$D$2=1,S44^2*R44,2*S44^2*R44) -> 0 | Y44: =IF(C44="","",IF(skjermbilde!$D$2=1,C44,IF(AND(skjermbilde!$D$2=2,2*C44>60),60,IF(skjermbilde!$D$2=2,2*C44)))) -> 1 | Z44: =IF(skjermbilde!$D$2=1,D44,IF(AND(skjermbilde!$D$2=2,2*D44>60),60,IF(skjermbilde!$D$2=2,2*D44))) -> 7.768155355 | AA44: =IF(skjermbilde!$D$2=1,E44,IF(AND(skjermbilde!$D$2=2,2*E44>60),60,IF(skjermbilde!$D$2=2,2*E44))) -> 14.54974273 | AB44: =IF(skjermbilde!$D$2=1,F44,IF(AND(skjermbilde!$D$2=2,2*F44>60),60,IF(skjermbilde!$D$2=2,2*F44))) -> 33.1327488 | AC44: =IF(skjermbilde!$D$2=1,G44,IF(AND(skjermbilde!$D$2=2,2*G44>60),60,IF(skjermbilde!$D$2=2,2*G44))) -> 50 | AD44: =IF(skjermbilde!$D$2=1,H44,IF(AND(skjermbilde!$D$2=2,2*H44>60),60,IF(skjermbilde!$D$2=2,2*H44))) -> 48.98230495 | AE44: =IF(skjermbilde!$D$2=1,I44,IF(AND(skjermbilde!$D$2=2,2*I44>60),60,IF(skjermbilde!$D$2=2,2*I44))) -> 23.58886709 | AF44: =IF(J44="","",IF(skjermbilde!$D$2=1,J44,IF(AND(skjermbilde!$D$2=2,2*J44>60),60,IF(skjermbilde!$D$2=2,2*J44)))) -> 9.68501618 | AI44: =+IF(ISNUMBER(skjermbilde!G$3-Y44-skjermbilde!G$6-4),skjermbilde!G$3-Y44-skjermbilde!G$6-4,0) -> -5 | AJ44: =+IF(ISNUMBER(skjermbilde!H$3-Z44-skjermbilde!H$6-4),skjermbilde!H$3-Z44-skjermbilde!H$6-4,0) -> -11.76815535 | AK44: =+IF(ISNUMBER(skjermbilde!I$3-AA44-skjermbilde!I$6-4),skjermbilde!I$3-AA44-skjermbilde!I$6-4,0) -> -18.54974273 | AL44: =+IF(ISNUMBER(skjermbilde!J$3-AB44-skjermbilde!J$6-4),skjermbilde!J$3-AB44-skjermbilde!J$6-4,0) -> -37.1327488 | AM44: =+IF(ISNUMBER(skjermbilde!K$3-AC44-skjermbilde!K$6-4),skjermbilde!K$3-AC44-skjermbilde!K$6-4,0) -> -54 | AN44: =+IF(ISNUMBER(skjermbilde!L$3-AD44-skjermbilde!L$6-4),skjermbilde!L$3-AD44-skjermbilde!L$6-4,0) -> -52.98230495 | AO44: =+IF(ISNUMBER(skjermbilde!M$3-AE44-skjermbilde!M$6-4),skjermbilde!M$3-AE44-skjermbilde!M$6-4,0) -> -27.58886709 | AP44: =+IF(ISNUMBER(skjermbilde!N$3-AF44-skjermbilde!N$6-4),skjermbilde!N$3-AF44-skjermbilde!N$6-4,0) -> -13.68501618 | AQ44: =IF(skjermbilde!$O$10=TRUE,10*LOG10(10^(0.1*(AI44+AI$12))+10^(0.1*(AJ44+AJ$12))+10^(0.1*(AK44+AK$12))+10^(0.1*(AL44+AL$12))+10^(0.1*(AM44+AM$12))+10^(0.1*(AN44+AN$12))+10^(0.1*(AO44+AO$12))+10^(0.1*(AP44+AP$12))),"") ->  | AR44: 1 | AS44: 1 | AT44: 1 | AU44: 1 | AV44: 1 | AW44: 1 | AX44: 1 | AY44: 1 | AZ44: 1 | BA44: 0 | BB44: =IF(skjermbilde!$D$4="",1,IF(P44=skjermbilde!$D$4,1,0)) -> 0 | BC44: =+IF(skjermbilde!$N$10=1,1,0) -> 1 | BD44: =+IF(U44="r",1,IF(M44=skjermbilde!$D$3,1,0)) -> 1 | BE44: =+IF(U44="s",1,IF(N44=skjermbilde!$C$3,1,0)) -> 1 | BF44: =+IF(U44="s",1,IF(O44=skjermbilde!$C$4,1,0)) -> 1 | BG44: 1 | BH44: 0 | BL44: 29 | CC44: 29 | CR44: 29 | CY44: =IF(skjermbilde!$D$2=1,VLOOKUP($CS44,$CB$17:$CD$261,3,FALSE),CONCATENATE("2 x ",VLOOKUP($CS44,$CB$17:$CD$261,3,FALSE))) ->  | DI44: 2.8e-07 | DJ44: 1.00000028 | DK44: 1 | DL44: LEV-160-1000 | DM44: 1.00000014 | DN44: 0 | DO44: 0
A45: 30 | B45: =datagrunnlag!H45 -> LEV-200-1000 | C45: =datagrunnlag!I45 -> 1 | D45: =datagrunnlag!J45 -> 7.787316053 | E45: =datagrunnlag!K45 -> 12.70979165 | F45: =datagrunnlag!L45 -> 28.07890466 | G45: =datagrunnlag!M45 -> 45.68960779 | H45: =datagrunnlag!N45 -> 34.78922636 | I45: =datagrunnlag!O45 -> 15.30436914 | J45: =datagrunnlag!P45 -> 7.669502486 | K45: =+datagrunnlag!A45 -> LEV | L45: =+datagrunnlag!B45 -> s | M45: =+datagrunnlag!C45 -> 200 | P45: =++IF(datagrunnlag!F45="s","c",datagrunnlag!F45) -> c | Q45: =+datagrunnlag!G45 -> 1000 | R45: =+datagrunnlag!Q45 -> 0.0002687811268 | S45: 0 | T45: 201 | U45: r | V45: 0 | W45: 0 | X45: =IF(skjermbilde!$D$2=1,S45^2*R45,2*S45^2*R45) -> 0 | Y45: =IF(C45="","",IF(skjermbilde!$D$2=1,C45,IF(AND(skjermbilde!$D$2=2,2*C45>60),60,IF(skjermbilde!$D$2=2,2*C45)))) -> 1 | Z45: =IF(skjermbilde!$D$2=1,D45,IF(AND(skjermbilde!$D$2=2,2*D45>60),60,IF(skjermbilde!$D$2=2,2*D45))) -> 7.787316053 | AA45: =IF(skjermbilde!$D$2=1,E45,IF(AND(skjermbilde!$D$2=2,2*E45>60),60,IF(skjermbilde!$D$2=2,2*E45))) -> 12.70979165 | AB45: =IF(skjermbilde!$D$2=1,F45,IF(AND(skjermbilde!$D$2=2,2*F45>60),60,IF(skjermbilde!$D$2=2,2*F45))) -> 28.07890466 | AC45: =IF(skjermbilde!$D$2=1,G45,IF(AND(skjermbilde!$D$2=2,2*G45>60),60,IF(skjermbilde!$D$2=2,2*G45))) -> 45.68960779 | AD45: =IF(skjermbilde!$D$2=1,H45,IF(AND(skjermbilde!$D$2=2,2*H45>60),60,IF(skjermbilde!$D$2=2,2*H45))) -> 34.78922636 | AE45: =IF(skjermbilde!$D$2=1,I45,IF(AND(skjermbilde!$D$2=2,2*I45>60),60,IF(skjermbilde!$D$2=2,2*I45))) -> 15.30436914 | AF45: =IF(J45="","",IF(skjermbilde!$D$2=1,J45,IF(AND(skjermbilde!$D$2=2,2*J45>60),60,IF(skjermbilde!$D$2=2,2*J45)))) -> 7.669502486 | AI45: =+IF(ISNUMBER(skjermbilde!G$3-Y45-skjermbilde!G$6-4),skjermbilde!G$3-Y45-skjermbilde!G$6-4,0) -> -5 | AJ45: =+IF(ISNUMBER(skjermbilde!H$3-Z45-skjermbilde!H$6-4),skjermbilde!H$3-Z45-skjermbilde!H$6-4,0) -> -11.78731605 | AK45: =+IF(ISNUMBER(skjermbilde!I$3-AA45-skjermbilde!I$6-4),skjermbilde!I$3-AA45-skjermbilde!I$6-4,0) -> -16.70979165 | AL45: =+IF(ISNUMBER(skjermbilde!J$3-AB45-skjermbilde!J$6-4),skjermbilde!J$3-AB45-skjermbilde!J$6-4,0) -> -32.07890466 | AM45: =+IF(ISNUMBER(skjermbilde!K$3-AC45-skjermbilde!K$6-4),skjermbilde!K$3-AC45-skjermbilde!K$6-4,0) -> -49.68960779 | AN45: =+IF(ISNUMBER(skjermbilde!L$3-AD45-skjermbilde!L$6-4),skjermbilde!L$3-AD45-skjermbilde!L$6-4,0) -> -38.78922636 | AO45: =+IF(ISNUMBER(skjermbilde!M$3-AE45-skjermbilde!M$6-4),skjermbilde!M$3-AE45-skjermbilde!M$6-4,0) -> -19.30436914 | AP45: =+IF(ISNUMBER(skjermbilde!N$3-AF45-skjermbilde!N$6-4),skjermbilde!N$3-AF45-skjermbilde!N$6-4,0) -> -11.66950249 | AQ45: =IF(skjermbilde!$O$10=TRUE,10*LOG10(10^(0.1*(AI45+AI$12))+10^(0.1*(AJ45+AJ$12))+10^(0.1*(AK45+AK$12))+10^(0.1*(AL45+AL$12))+10^(0.1*(AM45+AM$12))+10^(0.1*(AN45+AN$12))+10^(0.1*(AO45+AO$12))+10^(0.1*(AP45+AP$12))),"") ->  | AR45: 1 | AS45: 1 | AT45: 1 | AU45: 1 | AV45: 1 | AW45: 1 | AX45: 1 | AY45: 1 | AZ45: 1 | BA45: 0 | BB45: =IF(skjermbilde!$D$4="",1,IF(P45=skjermbilde!$D$4,1,0)) -> 0 | BC45: =+IF(skjermbilde!$N$10=1,1,0) -> 1 | BD45: =+IF(U45="r",1,IF(M45=skjermbilde!$D$3,1,0)) -> 1 | BE45: =+IF(U45="s",1,IF(N45=skjermbilde!$C$3,1,0)) -> 1 | BF45: =+IF(U45="s",1,IF(O45=skjermbilde!$C$4,1,0)) -> 1 | BG45: 1 | BH45: 0 | BL45: 30 | CC45: 30 | CR45: 30 | CY45: =IF(skjermbilde!$D$2=1,VLOOKUP($CS45,$CB$17:$CD$261,3,FALSE),CONCATENATE("2 x ",VLOOKUP($CS45,$CB$17:$CD$261,3,FALSE))) ->  | DI45: 2.9e-07 | DJ45: 1.00000029 | DK45: 1 | DL45: LEV-200-1000 | DM45: 1.00000015 | DN45: 0 | DO45: 0
A46: 31 | B46: =datagrunnlag!H46 -> LEV-250-1000 | C46: =datagrunnlag!I46 -> 1 | D46: =datagrunnlag!J46 -> 5.219010252 | E46: =datagrunnlag!K46 -> 10.85749064 | F46: =datagrunnlag!L46 -> 24.1978478 | G46: =datagrunnlag!M46 -> 41.35591378 | H46: =datagrunnlag!N46 -> 25.88093583 | I46: =datagrunnlag!O46 -> 9.508633389 | J46: =datagrunnlag!P46 -> 4.701025549 | K46: =+datagrunnlag!A46 -> LEV | L46: =+datagrunnlag!B46 -> s | M46: =+datagrunnlag!C46 -> 250 | P46: =++IF(datagrunnlag!F46="s","c",datagrunnlag!F46) -> c | Q46: =+datagrunnlag!G46 -> 1000 | R46: =+datagrunnlag!Q46 -> 0.000118431466 | S46: 0 | T46: 201 | U46: r | V46: 0 | W46: 0 | X46: =IF(skjermbilde!$D$2=1,S46^2*R46,2*S46^2*R46) -> 0 | Y46: =IF(C46="","",IF(skjermbilde!$D$2=1,C46,IF(AND(skjermbilde!$D$2=2,2*C46>60),60,IF(skjermbilde!$D$2=2,2*C46)))) -> 1 | Z46: =IF(skjermbilde!$D$2=1,D46,IF(AND(skjermbilde!$D$2=2,2*D46>60),60,IF(skjermbilde!$D$2=2,2*D46))) -> 5.219010252 | AA46: =IF(skjermbilde!$D$2=1,E46,IF(AND(skjermbilde!$D$2=2,2*E46>60),60,IF(skjermbilde!$D$2=2,2*E46))) -> 10.85749064 | AB46: =IF(skjermbilde!$D$2=1,F46,IF(AND(skjermbilde!$D$2=2,2*F46>60),60,IF(skjermbilde!$D$2=2,2*F46))) -> 24.1978478 | AC46: =IF(skjermbilde!$D$2=1,G46,IF(AND(skjermbilde!$D$2=2,2*G46>60),60,IF(skjermbilde!$D$2=2,2*G46))) -> 41.35591378 | AD46: =IF(skjermbilde!$D$2=1,H46,IF(AND(skjermbilde!$D$2=2,2*H46>60),60,IF(skjermbilde!$D$2=2,2*H46))) -> 25.88093583 | AE46: =IF(skjermbilde!$D$2=1,I46,IF(AND(skjermbilde!$D$2=2,2*I46>60),60,IF(skjermbilde!$D$2=2,2*I46))) -> 9.508633389 | AF46: =IF(J46="","",IF(skjermbilde!$D$2=1,J46,IF(AND(skjermbilde!$D$2=2,2*J46>60),60,IF(skjermbilde!$D$2=2,2*J46)))) -> 4.701025549 | AI46: =+IF(ISNUMBER(skjermbilde!G$3-Y46-skjermbilde!G$6-4),skjermbilde!G$3-Y46-skjermbilde!G$6-4,0) -> -5 | AJ46: =+IF(ISNUMBER(skjermbilde!H$3-Z46-skjermbilde!H$6-4),skjermbilde!H$3-Z46-skjermbilde!H$6-4,0) -> -9.219010252 | AK46: =+IF(ISNUMBER(skjermbilde!I$3-AA46-skjermbilde!I$6-4),skjermbilde!I$3-AA46-skjermbilde!I$6-4,0) -> -14.85749064 | AL46: =+IF(ISNUMBER(skjermbilde!J$3-AB46-skjermbilde!J$6-4),skjermbilde!J$3-AB46-skjermbilde!J$6-4,0) -> -28.1978478 | AM46: =+IF(ISNUMBER(skjermbilde!K$3-AC46-skjermbilde!K$6-4),skjermbilde!K$3-AC46-skjermbilde!K$6-4,0) -> -45.35591378 | AN46: =+IF(ISNUMBER(skjermbilde!L$3-AD46-skjermbilde!L$6-4),skjermbilde!L$3-AD46-skjermbilde!L$6-4,0) -> -29.88093583 | AO46: =+IF(ISNUMBER(skjermbilde!M$3-AE46-skjermbilde!M$6-4),skjermbilde!M$3-AE46-skjermbilde!M$6-4,0) -> -13.50863339 | AP46: =+IF(ISNUMBER(skjermbilde!N$3-AF46-skjermbilde!N$6-4),skjermbilde!N$3-AF46-skjermbilde!N$6-4,0) -> -8.701025549 | AQ46: =IF(skjermbilde!$O$10=TRUE,10*LOG10(10^(0.1*(AI46+AI$12))+10^(0.1*(AJ46+AJ$12))+10^(0.1*(AK46+AK$12))+10^(0.1*(AL46+AL$12))+10^(0.1*(AM46+AM$12))+10^(0.1*(AN46+AN$12))+10^(0.1*(AO46+AO$12))+10^(0.1*(AP46+AP$12))),"") ->  | AR46: 1 | AS46: 1 | AT46: 1 | AU46: 1 | AV46: 1 | AW46: 1 | AX46: 1 | AY46: 1 | AZ46: 1 | BA46: 0 | BB46: =IF(skjermbilde!$D$4="",1,IF(P46=skjermbilde!$D$4,1,0)) -> 0 | BC46: =+IF(skjermbilde!$N$10=1,1,0) -> 1 | BD46: =+IF(U46="r",1,IF(M46=skjermbilde!$D$3,1,0)) -> 1 | BE46: =+IF(U46="s",1,IF(N46=skjermbilde!$C$3,1,0)) -> 1 | BF46: =+IF(U46="s",1,IF(O46=skjermbilde!$C$4,1,0)) -> 1 | BG46: 1 | BH46: 0 | BL46: 31 | CC46: 31 | CR46: 31 | CY46: =IF(skjermbilde!$D$2=1,VLOOKUP($CS46,$CB$17:$CD$261,3,FALSE),CONCATENATE("2 x ",VLOOKUP($CS46,$CB$17:$CD$261,3,FALSE))) ->  | DI46: 3e-07 | DJ46: 1.0000003 | DK46: 1 | DL46: LEV-250-1000 | DM46: 1.00000015 | DN46: 0 | DO46: 0
A47: 32 | B47: =datagrunnlag!H47 -> LEV-315-1000 | C47: =datagrunnlag!I47 -> 1.226994064 | D47: =datagrunnlag!J47 -> 2.773699685 | E47: =datagrunnlag!K47 -> 9.449723902 | F47: =datagrunnlag!L47 -> 20.9222382 | G47: =datagrunnlag!M47 -> 27.60508743 | H47: =datagrunnlag!N47 -> 14.35358871 | I47: =datagrunnlag!O47 -> 6.676446626 | J47: =datagrunnlag!P47 -> 5.421270032 | K47: =+datagrunnlag!A47 -> LEV | L47: =+datagrunnlag!B47 -> s | M47: =+datagrunnlag!C47 -> 315 | P47: =++IF(datagrunnlag!F47="s","c",datagrunnlag!F47) -> c | Q47: =+datagrunnlag!G47 -> 1000 | R47: =+datagrunnlag!Q47 -> 3.046948469e-05 | S47: 0 | T47: 201 | U47: r | V47: 0 | W47: 0 | X47: =IF(skjermbilde!$D$2=1,S47^2*R47,2*S47^2*R47) -> 0 | Y47: =IF(C47="","",IF(skjermbilde!$D$2=1,C47,IF(AND(skjermbilde!$D$2=2,2*C47>60),60,IF(skjermbilde!$D$2=2,2*C47)))) -> 1.226994064 | Z47: =IF(skjermbilde!$D$2=1,D47,IF(AND(skjermbilde!$D$2=2,2*D47>60),60,IF(skjermbilde!$D$2=2,2*D47))) -> 2.773699685 | AA47: =IF(skjermbilde!$D$2=1,E47,IF(AND(skjermbilde!$D$2=2,2*E47>60),60,IF(skjermbilde!$D$2=2,2*E47))) -> 9.449723902 | AB47: =IF(skjermbilde!$D$2=1,F47,IF(AND(skjermbilde!$D$2=2,2*F47>60),60,IF(skjermbilde!$D$2=2,2*F47))) -> 20.9222382 | AC47: =IF(skjermbilde!$D$2=1,G47,IF(AND(skjermbilde!$D$2=2,2*G47>60),60,IF(skjermbilde!$D$2=2,2*G47))) -> 27.60508743 | AD47: =IF(skjermbilde!$D$2=1,H47,IF(AND(skjermbilde!$D$2=2,2*H47>60),60,IF(skjermbilde!$D$2=2,2*H47))) -> 14.35358871 | AE47: =IF(skjermbilde!$D$2=1,I47,IF(AND(skjermbilde!$D$2=2,2*I47>60),60,IF(skjermbilde!$D$2=2,2*I47))) -> 6.676446626 | AF47: =IF(J47="","",IF(skjermbilde!$D$2=1,J47,IF(AND(skjermbilde!$D$2=2,2*J47>60),60,IF(skjermbilde!$D$2=2,2*J47)))) -> 5.421270032 | AI47: =+IF(ISNUMBER(skjermbilde!G$3-Y47-skjermbilde!G$6-4),skjermbilde!G$3-Y47-skjermbilde!G$6-4,0) -> -5.226994064 | AJ47: =+IF(ISNUMBER(skjermbilde!H$3-Z47-skjermbilde!H$6-4),skjermbilde!H$3-Z47-skjermbilde!H$6-4,0) -> -6.773699685 | AK47: =+IF(ISNUMBER(skjermbilde!I$3-AA47-skjermbilde!I$6-4),skjermbilde!I$3-AA47-skjermbilde!I$6-4,0) -> -13.4497239 | AL47: =+IF(ISNUMBER(skjermbilde!J$3-AB47-skjermbilde!J$6-4),skjermbilde!J$3-AB47-skjermbilde!J$6-4,0) -> -24.9222382 | AM47: =+IF(ISNUMBER(skjermbilde!K$3-AC47-skjermbilde!K$6-4),skjermbilde!K$3-AC47-skjermbilde!K$6-4,0) -> -31.60508743 | AN47: =+IF(ISNUMBER(skjermbilde!L$3-AD47-skjermbilde!L$6-4),skjermbilde!L$3-AD47-skjermbilde!L$6-4,0) -> -18.35358871 | AO47: =+IF(ISNUMBER(skjermbilde!M$3-AE47-skjermbilde!M$6-4),skjermbilde!M$3-AE47-skjermbilde!M$6-4,0) -> -10.67644663 | AP47: =+IF(ISNUMBER(skjermbilde!N$3-AF47-skjermbilde!N$6-4),skjermbilde!N$3-AF47-skjermbilde!N$6-4,0) -> -9.421270032 | AQ47: =IF(skjermbilde!$O$10=TRUE,10*LOG10(10^(0.1*(AI47+AI$12))+10^(0.1*(AJ47+AJ$12))+10^(0.1*(AK47+AK$12))+10^(0.1*(AL47+AL$12))+10^(0.1*(AM47+AM$12))+10^(0.1*(AN47+AN$12))+10^(0.1*(AO47+AO$12))+10^(0.1*(AP47+AP$12))),"") ->  | AR47: 1 | AS47: 1 | AT47: 1 | AU47: 1 | AV47: 1 | AW47: 1 | AX47: 1 | AY47: 1 | AZ47: 1 | BA47: 0 | BB47: =IF(skjermbilde!$D$4="",1,IF(P47=skjermbilde!$D$4,1,0)) -> 0 | BC47: =+IF(skjermbilde!$N$10=1,1,0) -> 1 | BD47: =+IF(U47="r",1,IF(M47=skjermbilde!$D$3,1,0)) -> 1 | BE47: =+IF(U47="s",1,IF(N47=skjermbilde!$C$3,1,0)) -> 1 | BF47: =+IF(U47="s",1,IF(O47=skjermbilde!$C$4,1,0)) -> 1 | BG47: 1 | BH47: 0 | BL47: 32 | CC47: 32 | CR47: 32 | CY47: =IF(skjermbilde!$D$2=1,VLOOKUP($CS47,$CB$17:$CD$261,3,FALSE),CONCATENATE("2 x ",VLOOKUP($CS47,$CB$17:$CD$261,3,FALSE))) ->  | DI47: 3.1e-07 | DJ47: 1.00000031 | DK47: 1 | DL47: LEV-315-1000 | DM47: 1.00000016 | DN47: 0 | DO47: 0
A48: 33 | B48: =datagrunnlag!H48 -> LEV-400-1000 | C48: =datagrunnlag!I48 -> 3.115771784 | D48: =datagrunnlag!J48 -> 2.466071672 | E48: =datagrunnlag!K48 -> 7.818651647 | F48: =datagrunnlag!L48 -> 17.9808489 | G48: =datagrunnlag!M48 -> 18.21302253 | H48: =datagrunnlag!N48 -> 8.348460386 | I48: =datagrunnlag!O48 -> 4.697032113 | J48: =datagrunnlag!P48 -> 4.49868172 | K48: =+datagrunnlag!A48 -> LEV | L48: =+datagrunnlag!B48 -> s | M48: =+datagrunnlag!C48 -> 400 | P48: =++IF(datagrunnlag!F48="s","c",datagrunnlag!F48) -> c | Q48: =+datagrunnlag!G48 -> 1000 | R48: =+datagrunnlag!Q48 -> 1e-05 | S48: 0 | T48: 201 | U48: r | V48: 0 | W48: 0 | X48: =IF(skjermbilde!$D$2=1,S48^2*R48,2*S48^2*R48) -> 0 | Y48: =IF(C48="","",IF(skjermbilde!$D$2=1,C48,IF(AND(skjermbilde!$D$2=2,2*C48>60),60,IF(skjermbilde!$D$2=2,2*C48)))) -> 3.115771784 | Z48: =IF(skjermbilde!$D$2=1,D48,IF(AND(skjermbilde!$D$2=2,2*D48>60),60,IF(skjermbilde!$D$2=2,2*D48))) -> 2.466071672 | AA48: =IF(skjermbilde!$D$2=1,E48,IF(AND(skjermbilde!$D$2=2,2*E48>60),60,IF(skjermbilde!$D$2=2,2*E48))) -> 7.818651647 | AB48: =IF(skjermbilde!$D$2=1,F48,IF(AND(skjermbilde!$D$2=2,2*F48>60),60,IF(skjermbilde!$D$2=2,2*F48))) -> 17.9808489 | AC48: =IF(skjermbilde!$D$2=1,G48,IF(AND(skjermbilde!$D$2=2,2*G48>60),60,IF(skjermbilde!$D$2=2,2*G48))) -> 18.21302253 | AD48: =IF(skjermbilde!$D$2=1,H48,IF(AND(skjermbilde!$D$2=2,2*H48>60),60,IF(skjermbilde!$D$2=2,2*H48))) -> 8.348460386 | AE48: =IF(skjermbilde!$D$2=1,I48,IF(AND(skjermbilde!$D$2=2,2*I48>60),60,IF(skjermbilde!$D$2=2,2*I48))) -> 4.697032113 | AF48: =IF(J48="","",IF(skjermbilde!$D$2=1,J48,IF(AND(skjermbilde!$D$2=2,2*J48>60),60,IF(skjermbilde!$D$2=2,2*J48)))) -> 4.49868172 | AI48: =+IF(ISNUMBER(skjermbilde!G$3-Y48-skjermbilde!G$6-4),skjermbilde!G$3-Y48-skjermbilde!G$6-4,0) -> -7.115771784 | AJ48: =+IF(ISNUMBER(skjermbilde!H$3-Z48-skjermbilde!H$6-4),skjermbilde!H$3-Z48-skjermbilde!H$6-4,0) -> -6.466071672 | AK48: =+IF(ISNUMBER(skjermbilde!I$3-AA48-skjermbilde!I$6-4),skjermbilde!I$3-AA48-skjermbilde!I$6-4,0) -> -11.81865165 | AL48: =+IF(ISNUMBER(skjermbilde!J$3-AB48-skjermbilde!J$6-4),skjermbilde!J$3-AB48-skjermbilde!J$6-4,0) -> -21.9808489 | AM48: =+IF(ISNUMBER(skjermbilde!K$3-AC48-skjermbilde!K$6-4),skjermbilde!K$3-AC48-skjermbilde!K$6-4,0) -> -22.21302253 | AN48: =+IF(ISNUMBER(skjermbilde!L$3-AD48-skjermbilde!L$6-4),skjermbilde!L$3-AD48-skjermbilde!L$6-4,0) -> -12.34846039 | AO48: =+IF(ISNUMBER(skjermbilde!M$3-AE48-skjermbilde!M$6-4),skjermbilde!M$3-AE48-skjermbilde!M$6-4,0) -> -8.697032113 | AP48: =+IF(ISNUMBER(skjermbilde!N$3-AF48-skjermbilde!N$6-4),skjermbilde!N$3-AF48-skjermbilde!N$6-4,0) -> -8.49868172 | AQ48: =IF(skjermbilde!$O$10=TRUE,10*LOG10(10^(0.1*(AI48+AI$12))+10^(0.1*(AJ48+AJ$12))+10^(0.1*(AK48+AK$12))+10^(0.1*(AL48+AL$12))+10^(0.1*(AM48+AM$12))+10^(0.1*(AN48+AN$12))+10^(0.1*(AO48+AO$12))+10^(0.1*(AP48+AP$12))),"") ->  | AR48: 1 | AS48: 1 | AT48: 1 | AU48: 1 | AV48: 1 | AW48: 1 | AX48: 1 | AY48: 1 | AZ48: 1 | BA48: 0 | BB48: =IF(skjermbilde!$D$4="",1,IF(P48=skjermbilde!$D$4,1,0)) -> 0 | BC48: =+IF(skjermbilde!$N$10=1,1,0) -> 1 | BD48: =+IF(U48="r",1,IF(M48=skjermbilde!$D$3,1,0)) -> 1 | BE48: =+IF(U48="s",1,IF(N48=skjermbilde!$C$3,1,0)) -> 1 | BF48: =+IF(U48="s",1,IF(O48=skjermbilde!$C$4,1,0)) -> 1 | BG48: 1 | BH48: 0 | BL48: 33 | CC48: 33 | CR48: 33 | CY48: =IF(skjermbilde!$D$2=1,VLOOKUP($CS48,$CB$17:$CD$261,3,FALSE),CONCATENATE("2 x ",VLOOKUP($CS48,$CB$17:$CD$261,3,FALSE))) ->  | DI48: 3.2e-07 | DJ48: 1.00000032 | DK48: 1 | DL48: LEV-400-1000 | DM48: 1.00000016 | DN48: 0 | DO48: 0
A49: 34 | B49: =datagrunnlag!H49 -> LEV-500-1000 | C49: =datagrunnlag!I49 -> 3 | D49: =datagrunnlag!J49 -> 2 | E49: =datagrunnlag!K49 -> 6 | F49: =datagrunnlag!L49 -> 11 | G49: =datagrunnlag!M49 -> 10 | H49: =datagrunnlag!N49 -> 7 | I49: =datagrunnlag!O49 -> 5 | J49: =datagrunnlag!P49 -> 5 | K49: =+datagrunnlag!A49 -> LEV | L49: =+datagrunnlag!B49 -> s | M49: =+datagrunnlag!C49 -> 500 | P49: =++IF(datagrunnlag!F49="s","c",datagrunnlag!F49) -> c | Q49: =+datagrunnlag!G49 -> 1000 | R49: =+datagrunnlag!Q49 -> 4.5e-06 | S49: 0 | T49: 201 | U49: r | V49: 0 | W49: 0 | X49: =IF(skjermbilde!$D$2=1,S49^2*R49,2*S49^2*R49) -> 0 | Y49: =IF(C49="","",IF(skjermbilde!$D$2=1,C49,IF(AND(skjermbilde!$D$2=2,2*C49>60),60,IF(skjermbilde!$D$2=2,2*C49)))) -> 3 | Z49: =IF(skjermbilde!$D$2=1,D49,IF(AND(skjermbilde!$D$2=2,2*D49>60),60,IF(skjermbilde!$D$2=2,2*D49))) -> 2 | AA49: =IF(skjermbilde!$D$2=1,E49,IF(AND(skjermbilde!$D$2=2,2*E49>60),60,IF(skjermbilde!$D$2=2,2*E49))) -> 6 | AB49: =IF(skjermbilde!$D$2=1,F49,IF(AND(skjermbilde!$D$2=2,2*F49>60),60,IF(skjermbilde!$D$2=2,2*F49))) -> 11 | AC49: =IF(skjermbilde!$D$2=1,G49,IF(AND(skjermbilde!$D$2=2,2*G49>60),60,IF(skjermbilde!$D$2=2,2*G49))) -> 10 | AD49: =IF(skjermbilde!$D$2=1,H49,IF(AND(skjermbilde!$D$2=2,2*H49>60),60,IF(skjermbilde!$D$2=2,2*H49))) -> 7 | AE49: =IF(skjermbilde!$D$2=1,I49,IF(AND(skjermbilde!$D$2=2,2*I49>60),60,IF(skjermbilde!$D$2=2,2*I49))) -> 5 | AF49: =IF(J49="","",IF(skjermbilde!$D$2=1,J49,IF(AND(skjermbilde!$D$2=2,2*J49>60),60,IF(skjermbilde!$D$2=2,2*J49)))) -> 5 | AI49: =+IF(ISNUMBER(skjermbilde!G$3-Y49-skjermbilde!G$6-4),skjermbilde!G$3-Y49-skjermbilde!G$6-4,0) -> -7 | AJ49: =+IF(ISNUMBER(skjermbilde!H$3-Z49-skjermbilde!H$6-4),skjermbilde!H$3-Z49-skjermbilde!H$6-4,0) -> -6 | AK49: =+IF(ISNUMBER(skjermbilde!I$3-AA49-skjermbilde!I$6-4),skjermbilde!I$3-AA49-skjermbilde!I$6-4,0) -> -10 | AL49: =+IF(ISNUMBER(skjermbilde!J$3-AB49-skjermbilde!J$6-4),skjermbilde!J$3-AB49-skjermbilde!J$6-4,0) -> -15 | AM49: =+IF(ISNUMBER(skjermbilde!K$3-AC49-skjermbilde!K$6-4),skjermbilde!K$3-AC49-skjermbilde!K$6-4,0) -> -14 | AN49: =+IF(ISNUMBER(skjermbilde!L$3-AD49-skjermbilde!L$6-4),skjermbilde!L$3-AD49-skjermbilde!L$6-4,0) -> -11 | AO49: =+IF(ISNUMBER(skjermbilde!M$3-AE49-skjermbilde!M$6-4),skjermbilde!M$3-AE49-skjermbilde!M$6-4,0) -> -9 | AP49: =+IF(ISNUMBER(skjermbilde!N$3-AF49-skjermbilde!N$6-4),skjermbilde!N$3-AF49-skjermbilde!N$6-4,0) -> -9 | AQ49: =IF(skjermbilde!$O$10=TRUE,10*LOG10(10^(0.1*(AI49+AI$12))+10^(0.1*(AJ49+AJ$12))+10^(0.1*(AK49+AK$12))+10^(0.1*(AL49+AL$12))+10^(0.1*(AM49+AM$12))+10^(0.1*(AN49+AN$12))+10^(0.1*(AO49+AO$12))+10^(0.1*(AP49+AP$12))),"") ->  | AR49: 1 | AS49: 1 | AT49: 1 | AU49: 1 | AV49: 1 | AW49: 1 | AX49: 1 | AY49: 1 | AZ49: 1 | BA49: 0 | BB49: =IF(skjermbilde!$D$4="",1,IF(P49=skjermbilde!$D$4,1,0)) -> 0 | BC49: =+IF(skjermbilde!$N$10=1,1,0) -> 1 | BD49: =+IF(U49="r",1,IF(M49=skjermbilde!$D$3,1,0)) -> 1 | BE49: =+IF(U49="s",1,IF(N49=skjermbilde!$C$3,1,0)) -> 1 | BF49: =+IF(U49="s",1,IF(O49=skjermbilde!$C$4,1,0)) -> 1 | BG49: 1 | BH49: 0 | BL49: 34 | CC49: 34 | CR49: 34 | CX49: =+IF(CS49="","",VLOOKUP($CS49,$CB$17:$CD$261,2,FALSE)) ->  | CY49: =IF(skjermbilde!$D$2=1,VLOOKUP($CS49,$CB$17:$CD$261,3,FALSE),CONCATENATE("2 x ",VLOOKUP($CS49,$CB$17:$CD$261,3,FALSE))) ->  | DI49: 3.3e-07 | DJ49: 1.00000033 | DK49: 1 | DL49: LEV-500-1000 | DM49: 1.00000016 | DN49: =VLOOKUP(DM49,DJ$17:DM$261,3,FALSE) -> 0 | DO49: =VLOOKUP(DN49,$B$17:$CQ$261,62,FALSE) -> 0
A50: 35 | B50: =datagrunnlag!H50 -> LEV-630-1000 | C50: =datagrunnlag!I50 -> 1 | D50: =datagrunnlag!J50 -> 2 | E50: =datagrunnlag!K50 -> 4 | F50: =datagrunnlag!L50 -> 11 | G50: =datagrunnlag!M50 -> 9 | H50: =datagrunnlag!N50 -> 5 | I50: =datagrunnlag!O50 -> 4 | J50: =datagrunnlag!P50 -> 4 | K50: =+datagrunnlag!A50 -> LEV | L50: =+datagrunnlag!B50 -> s | M50: =+datagrunnlag!C50 -> 630 | P50: =++IF(datagrunnlag!F50="s","c",datagrunnlag!F50) -> c | Q50: =+datagrunnlag!G50 -> 1000 | R50: =+datagrunnlag!Q50 -> 1.78e-06 | S50: 0 | T50: 201 | U50: r | V50: 0 | W50: 0 | X50: =IF(skjermbilde!$D$2=1,S50^2*R50,2*S50^2*R50) -> 0 | Y50: =IF(C50="","",IF(skjermbilde!$D$2=1,C50,IF(AND(skjermbilde!$D$2=2,2*C50>60),60,IF(skjermbilde!$D$2=2,2*C50)))) -> 1 | Z50: =IF(skjermbilde!$D$2=1,D50,IF(AND(skjermbilde!$D$2=2,2*D50>60),60,IF(skjermbilde!$D$2=2,2*D50))) -> 2 | AA50: =IF(skjermbilde!$D$2=1,E50,IF(AND(skjermbilde!$D$2=2,2*E50>60),60,IF(skjermbilde!$D$2=2,2*E50))) -> 4 | AB50: =IF(skjermbilde!$D$2=1,F50,IF(AND(skjermbilde!$D$2=2,2*F50>60),60,IF(skjermbilde!$D$2=2,2*F50))) -> 11 | AC50: =IF(skjermbilde!$D$2=1,G50,IF(AND(skjermbilde!$D$2=2,2*G50>60),60,IF(skjermbilde!$D$2=2,2*G50))) -> 9 | AD50: =IF(skjermbilde!$D$2=1,H50,IF(AND(skjermbilde!$D$2=2,2*H50>60),60,IF(skjermbilde!$D$2=2,2*H50))) -> 5 | AE50: =IF(skjermbilde!$D$2=1,I50,IF(AND(skjermbilde!$D$2=2,2*I50>60),60,IF(skjermbilde!$D$2=2,2*I50))) -> 4 | AF50: =IF(J50="","",IF(skjermbilde!$D$2=1,J50,IF(AND(skjermbilde!$D$2=2,2*J50>60),60,IF(skjermbilde!$D$2=2,2*J50)))) -> 4 | AI50: =+IF(ISNUMBER(skjermbilde!G$3-Y50-skjermbilde!G$6-4),skjermbilde!G$3-Y50-skjermbilde!G$6-4,0) -> -5 | AJ50: =+IF(ISNUMBER(skjermbilde!H$3-Z50-skjermbilde!H$6-4),skjermbilde!H$3-Z50-skjermbilde!H$6-4,0) -> -6 | AK50: =+IF(ISNUMBER(skjermbilde!I$3-AA50-skjermbilde!I$6-4),skjermbilde!I$3-AA50-skjermbilde!I$6-4,0) -> -8 | AL50: =+IF(ISNUMBER(skjermbilde!J$3-AB50-skjermbilde!J$6-4),skjermbilde!J$3-AB50-skjermbilde!J$6-4,0) -> -15 | AM50: =+IF(ISNUMBER(skjermbilde!K$3-AC50-skjermbilde!K$6-4),skjermbilde!K$3-AC50-skjermbilde!K$6-4,0) -> -13 | AN50: =+IF(ISNUMBER(skjermbilde!L$3-AD50-skjermbilde!L$6-4),skjermbilde!L$3-AD50-skjermbilde!L$6-4,0) -> -9 | AO50: =+IF(ISNUMBER(skjermbilde!M$3-AE50-skjermbilde!M$6-4),skjermbilde!M$3-AE50-skjermbilde!M$6-4,0) -> -8 | AP50: =+IF(ISNUMBER(skjermbilde!N$3-AF50-skjermbilde!N$6-4),skjermbilde!N$3-AF50-skjermbilde!N$6-4,0) -> -8 | AQ50: =IF(skjermbilde!$O$10=TRUE,10*LOG10(10^(0.1*(AI50+AI$12))+10^(0.1*(AJ50+AJ$12))+10^(0.1*(AK50+AK$12))+10^(0.1*(AL50+AL$12))+10^(0.1*(AM50+AM$12))+10^(0.1*(AN50+AN$12))+10^(0.1*(AO50+AO$12))+10^(0.1*(AP50+AP$12))),"") ->  | AR50: 1 | AS50: 1 | AT50: 1 | AU50: 1 | AV50: 1 | AW50: 1 | AX50: 1 | AY50: 1 | AZ50: 1 | BA50: 0 | BB50: =IF(skjermbilde!$D$4="",1,IF(P50=skjermbilde!$D$4,1,0)) -> 0 | BC50: =+IF(skjermbilde!$N$10=1,1,0) -> 1 | BD50: =+IF(U50="r",1,IF(M50=skjermbilde!$D$3,1,0)) -> 1 | BE50: =+IF(U50="s",1,IF(N50=skjermbilde!$C$3,1,0)) -> 1 | BF50: =+IF(U50="s",1,IF(O50=skjermbilde!$C$4,1,0)) -> 1 | BG50: 1 | BH50: 0 | BL50: 35 | CC50: 35 | CR50: 35 | CY50: =IF(skjermbilde!$D$2=1,VLOOKUP($CS50,$CB$17:$CD$261,3,FALSE),CONCATENATE("2 x ",VLOOKUP($CS50,$CB$17:$CD$261,3,FALSE))) ->  | DI50: 3.4e-07 | DJ50: 1.00000034 | DK50: 1 | DL50: LEV-630-1000 | DM50: 1.00000017 | DN50: 0 | DO50: 0
A51: 36 | B51: =+IF(skjermbilde!$N$10=1,datagrunnlag!H51,CONCATENATE(datagrunnlag!H51,"-V")) -> LKR-100-300 | C51: =IF(skjermbilde!$N$10=1,datagrunnlag!I51,datagrunnlag!S51) -> 1 | D51: =IF(skjermbilde!$N$10=1,datagrunnlag!J51,datagrunnlag!T51) -> 3.27635295 | E51: =IF(skjermbilde!$N$10=1,datagrunnlag!K51,datagrunnlag!U51) -> 5.216860757 | F51: =IF(skjermbilde!$N$10=1,datagrunnlag!L51,datagrunnlag!V51) -> 9.385164764 | G51: =IF(skjermbilde!$N$10=1,datagrunnlag!M51,datagrunnlag!W51) -> 12.70929222 | H51: =IF(skjermbilde!$N$10=1,datagrunnlag!N51,datagrunnlag!X51) -> 19.91555238 | I51: =IF(skjermbilde!$N$10=1,datagrunnlag!O51,datagrunnlag!Y51) -> 22.97844482 | J51: =IF(skjermbilde!$N$10=1,datagrunnlag!P51,datagrunnlag!Z51) -> 9.635457542 | K51: =+datagrunnlag!A51 -> LKR | L51: =+datagrunnlag!B51 -> s | M51: =+datagrunnlag!C51 -> 100 | P51: =++IF(datagrunnlag!F51="s","c",datagrunnlag!F51) -> r | Q51: =+datagrunnlag!G51 -> 300 | R51: =IF(skjermbilde!$N$10=1,datagrunnlag!Q51,datagrunnlag!AI51) -> 0.006 | S51: =+$B$6 -> 0 | T51: 201 | U51: =+$B$7 -> r | V51: =+$B$3 -> 0 | W51: =+$B$4 -> 0 | X51: =IF(skjermbilde!$D$2=1,S51^2*R51,2*S51^2*R51) -> 0 | Y51: =IF(C51="","",IF(skjermbilde!$D$2=1,C51,IF(AND(skjermbilde!$D$2=2,2*C51>60),60,IF(skjermbilde!$D$2=2,2*C51)))) -> 1 | Z51: =IF(skjermbilde!$D$2=1,D51,IF(AND(skjermbilde!$D$2=2,2*D51>60),60,IF(skjermbilde!$D$2=2,2*D51))) -> 3.27635295 | AA51: =IF(skjermbilde!$D$2=1,E51,IF(AND(skjermbilde!$D$2=2,2*E51>60),60,IF(skjermbilde!$D$2=2,2*E51))) -> 5.216860757 | AB51: =IF(skjermbilde!$D$2=1,F51,IF(AND(skjermbilde!$D$2=2,2*F51>60),60,IF(skjermbilde!$D$2=2,2*F51))) -> 9.385164764 | AC51: =IF(skjermbilde!$D$2=1,G51,IF(AND(skjermbilde!$D$2=2,2*G51>60),60,IF(skjermbilde!$D$2=2,2*G51))) -> 12.70929222 | AD51: =IF(skjermbilde!$D$2=1,H51,IF(AND(skjermbilde!$D$2=2,2*H51>60),60,IF(skjermbilde!$D$2=2,2*H51))) -> 19.91555238 | AE51: =IF(skjermbilde!$D$2=1,I51,IF(AND(skjermbilde!$D$2=2,2*I51>60),60,IF(skjermbilde!$D$2=2,2*I51))) -> 22.97844482 | AF51: =IF(J51="","",IF(skjermbilde!$D$2=1,J51,IF(AND(skjermbilde!$D$2=2,2*J51>60),60,IF(skjermbilde!$D$2=2,2*J51)))) -> 9.635457542 | AI51: =+IF(ISNUMBER(skjermbilde!G$3-Y51-skjermbilde!G$6-4),skjermbilde!G$3-Y51-skjermbilde!G$6-4,0) -> -5 | AJ51: =+IF(ISNUMBER(skjermbilde!H$3-Z51-skjermbilde!H$6-4),skjermbilde!H$3-Z51-skjermbilde!H$6-4,0) -> -7.27635295 | AK51: =+IF(ISNUMBER(skjermbilde!I$3-AA51-skjermbilde!I$6-4),skjermbilde!I$3-AA51-skjermbilde!I$6-4,0) -> -9.216860757 | AL51: =+IF(ISNUMBER(skjermbilde!J$3-AB51-skjermbilde!J$6-4),skjermbilde!J$3-AB51-skjermbilde!J$6-4,0) -> -13.38516476 | AM51: =+IF(ISNUMBER(skjermbilde!K$3-AC51-skjermbilde!K$6-4),skjermbilde!K$3-AC51-skjermbilde!K$6-4,0) -> -16.70929222 | AN51: =+IF(ISNUMBER(skjermbilde!L$3-AD51-skjermbilde!L$6-4),skjermbilde!L$3-AD51-skjermbilde!L$6-4,0) -> -23.91555238 | AO51: =+IF(ISNUMBER(skjermbilde!M$3-AE51-skjermbilde!M$6-4),skjermbilde!M$3-AE51-skjermbilde!M$6-4,0) -> -26.97844482 | AP51: =+IF(ISNUMBER(skjermbilde!N$3-AF51-skjermbilde!N$6-4),skjermbilde!N$3-AF51-skjermbilde!N$6-4,0) -> -13.63545754 | AQ51: =IF(skjermbilde!$O$10=TRUE,10*LOG10(10^(0.1*(AI51+AI$12))+10^(0.1*(AJ51+AJ$12))+10^(0.1*(AK51+AK$12))+10^(0.1*(AL51+AL$12))+10^(0.1*(AM51+AM$12))+10^(0.1*(AN51+AN$12))+10^(0.1*(AO51+AO$12))+10^(0.1*(AP51+AP$12))),"") ->  | AR51: 1 | AS51: =+IF(Y51>Y$11,1,0) -> 1 | AT51: =+IF(Z51>Z$11,1,0) -> 1 | AU51: =+IF(AA51>AA$11,1,0) -> 1 | AV51: =+IF(AB51>AB$11,1,0) -> 1 | AW51: =+IF(AC51>AC$11,1,0) -> 1 | AX51: =+IF(AD51>AD$11,1,0) -> 1 | AY51: =+IF(AE51>AE$11,1,0) -> 1 | AZ51: =+IF(AF51>AF$11,1,0) -> 1 | BA51: 0 | BB51: =IF(skjermbilde!$D$4="",1,IF(P51=skjermbilde!$D$4,1,0)) -> 1 | BC51: =IF(skjermbilde!$D$4="",1,IF(U51="r",1,IF(P51=skjermbilde!$D$4,1,0))) -> 1 | BD51: =+IF(U51="r",1,IF(M51=skjermbilde!$D$3,1,0)) -> 1 | BE51: =+IF(U51="s",1,IF(N51=skjermbilde!$C$3,1,0)) -> 1 | BF51: =+IF(U51="s",1,IF(O51=skjermbilde!$C$4,1,0)) -> 1 | BG51: 1 | BH51: 0 | BL51: 36 | CC51: 36 | CR51: 36 | CS51: =IF(ISERROR(SMALL(CB$17:CB$261,#REF!)),"",SMALL(CB$17:CB$261,#REF!)) ->  | CY51: =IF(skjermbilde!$D$2=1,VLOOKUP($CS51,$CB$17:$CD$261,3,FALSE),CONCATENATE("2 x ",VLOOKUP($CS51,$CB$17:$CD$261,3,FALSE))) ->  | DI51: =0.00000001 -> 1e-08 | DJ51: 1.00000001 | DK51: 1 | DL51: LKR-100-300 | DM51: =IF(ISERROR(SMALL(DJ$17:DJ$261,#REF!)),"",SMALL(DJ$17:DJ$261,#REF!)) -> 
A52: 37 | B52: =+IF(skjermbilde!$N$10=1,datagrunnlag!H52,CONCATENATE(datagrunnlag!H52,"-V")) -> LKR-125-300 | C52: =IF(skjermbilde!$N$10=1,datagrunnlag!I52,datagrunnlag!S52) -> 1 | D52: =IF(skjermbilde!$N$10=1,datagrunnlag!J52,datagrunnlag!T52) -> 5.829141404 | E52: =IF(skjermbilde!$N$10=1,datagrunnlag!K52,datagrunnlag!U52) -> 5.041275423 | F52: =IF(skjermbilde!$N$10=1,datagrunnlag!L52,datagrunnlag!V52) -> 10.03331592 | G52: =IF(skjermbilde!$N$10=1,datagrunnlag!M52,datagrunnlag!W52) -> 14.06756524 | H52: =IF(skjermbilde!$N$10=1,datagrunnlag!N52,datagrunnlag!X52) -> 21.52221411 | I52: =IF(skjermbilde!$N$10=1,datagrunnlag!O52,datagrunnlag!Y52) -> 18.1250803 | J52: =IF(skjermbilde!$N$10=1,datagrunnlag!P52,datagrunnlag!Z52) -> 9.668257287 | K52: =+datagrunnlag!A52 -> LKR | L52: =+datagrunnlag!B52 -> s | M52: =+datagrunnlag!C52 -> 125 | P52: =++IF(datagrunnlag!F52="s","c",datagrunnlag!F52) -> r | Q52: =+datagrunnlag!G52 -> 300 | R52: =IF(skjermbilde!$N$10=1,datagrunnlag!Q52,datagrunnlag!AI52) -> 0.002435485127 | S52: 0 | T52: 201 | U52: r | V52: 0 | W52: 0 | X52: =IF(skjermbilde!$D$2=1,S52^2*R52,2*S52^2*R52) -> 0 | Y52: =IF(C52="","",IF(skjermbilde!$D$2=1,C52,IF(AND(skjermbilde!$D$2=2,2*C52>60),60,IF(skjermbilde!$D$2=2,2*C52)))) -> 1 | Z52: =IF(skjermbilde!$D$2=1,D52,IF(AND(skjermbilde!$D$2=2,2*D52>60),60,IF(skjermbilde!$D$2=2,2*D52))) -> 5.829141404 | AA52: =IF(skjermbilde!$D$2=1,E52,IF(AND(skjermbilde!$D$2=2,2*E52>60),60,IF(skjermbilde!$D$2=2,2*E52))) -> 5.041275423 | AB52: =IF(skjermbilde!$D$2=1,F52,IF(AND(skjermbilde!$D$2=2,2*F52>60),60,IF(skjermbilde!$D$2=2,2*F52))) -> 10.03331592 | AC52: =IF(skjermbilde!$D$2=1,G52,IF(AND(skjermbilde!$D$2=2,2*G52>60),60,IF(skjermbilde!$D$2=2,2*G52))) -> 14.06756524 | AD52: =IF(skjermbilde!$D$2=1,H52,IF(AND(skjermbilde!$D$2=2,2*H52>60),60,IF(skjermbilde!$D$2=2,2*H52))) -> 21.52221411 | AE52: =IF(skjermbilde!$D$2=1,I52,IF(AND(skjermbilde!$D$2=2,2*I52>60),60,IF(skjermbilde!$D$2=2,2*I52))) -> 18.1250803 | AF52: =IF(J52="","",IF(skjermbilde!$D$2=1,J52,IF(AND(skjermbilde!$D$2=2,2*J52>60),60,IF(skjermbilde!$D$2=2,2*J52)))) -> 9.668257287 | AI52: =+IF(ISNUMBER(skjermbilde!G$3-Y52-skjermbilde!G$6-4),skjermbilde!G$3-Y52-skjermbilde!G$6-4,0) -> -5 | AJ52: =+IF(ISNUMBER(skjermbilde!H$3-Z52-skjermbilde!H$6-4),skjermbilde!H$3-Z52-skjermbilde!H$6-4,0) -> -9.829141404 | AK52: =+IF(ISNUMBER(skjermbilde!I$3-AA52-skjermbilde!I$6-4),skjermbilde!I$3-AA52-skjermbilde!I$6-4,0) -> -9.041275423 | AL52: =+IF(ISNUMBER(skjermbilde!J$3-AB52-skjermbilde!J$6-4),skjermbilde!J$3-AB52-skjermbilde!J$6-4,0) -> -14.03331592 | AM52: =+IF(ISNUMBER(skjermbilde!K$3-AC52-skjermbilde!K$6-4),skjermbilde!K$3-AC52-skjermbilde!K$6-4,0) -> -18.06756524 | AN52: =+IF(ISNUMBER(skjermbilde!L$3-AD52-skjermbilde!L$6-4),skjermbilde!L$3-AD52-skjermbilde!L$6-4,0) -> -25.52221411 | AO52: =+IF(ISNUMBER(skjermbilde!M$3-AE52-skjermbilde!M$6-4),skjermbilde!M$3-AE52-skjermbilde!M$6-4,0) -> -22.1250803 | AP52: =+IF(ISNUMBER(skjermbilde!N$3-AF52-skjermbilde!N$6-4),skjermbilde!N$3-AF52-skjermbilde!N$6-4,0) -> -13.66825729 | AQ52: =IF(skjermbilde!$O$10=TRUE,10*LOG10(10^(0.1*(AI52+AI$12))+10^(0.1*(AJ52+AJ$12))+10^(0.1*(AK52+AK$12))+10^(0.1*(AL52+AL$12))+10^(0.1*(AM52+AM$12))+10^(0.1*(AN52+AN$12))+10^(0.1*(AO52+AO$12))+10^(0.1*(AP52+AP$12))),"") ->  | AR52: 1 | AS52: 1 | AT52: 1 | AU52: 1 | AV52: 1 | AW52: 1 | AX52: 1 | AY52: 1 | AZ52: 1 | BA52: 0 | BB52: =IF(skjermbilde!$D$4="",1,IF(P52=skjermbilde!$D$4,1,0)) -> 1 | BC52: =IF(skjermbilde!$D$4="",1,IF(U52="r",1,IF(P52=skjermbilde!$D$4,1,0))) -> 1 | BD52: =+IF(U52="r",1,IF(M52=skjermbilde!$D$3,1,0)) -> 1 | BE52: =+IF(U52="s",1,IF(N52=skjermbilde!$C$3,1,0)) -> 1 | BF52: =+IF(U52="s",1,IF(O52=skjermbilde!$C$4,1,0)) -> 1 | BG52: 1 | BH52: 0 | BL52: 37 | CC52: 37 | CR52: 37 | CS52: =IF(ISERROR(SMALL(CB$17:CB$261,BL51)),"",SMALL(CB$17:CB$261,BL51)) ->  | CY52: =IF(skjermbilde!$D$2=1,VLOOKUP($CS52,$CB$17:$CD$261,3,FALSE),CONCATENATE("2 x ",VLOOKUP($CS52,$CB$17:$CD$261,3,FALSE))) ->  | DI52: 2e-08 | DJ52: 1.00000002 | DK52: 1 | DL52: LKR-125-300 | DM52: =IF(ISERROR(SMALL(DJ$17:DJ$261,BL51)),"",SMALL(DJ$17:DJ$261,BL51)) -> 1.00000017 | DN52: 0 | DO52: 0
A53: 38 | B53: =+IF(skjermbilde!$N$10=1,datagrunnlag!H53,CONCATENATE(datagrunnlag!H53,"-V")) -> LKR-160-300 | C53: =IF(skjermbilde!$N$10=1,datagrunnlag!I53,datagrunnlag!S53) -> 2 | D53: =IF(skjermbilde!$N$10=1,datagrunnlag!J53,datagrunnlag!T53) -> 5.86837722 | E53: =IF(skjermbilde!$N$10=1,datagrunnlag!K53,datagrunnlag!U53) -> 5.268870844 | F53: =IF(skjermbilde!$N$10=1,datagrunnlag!L53,datagrunnlag!V53) -> 8.48445239 | G53: =IF(skjermbilde!$N$10=1,datagrunnlag!M53,datagrunnlag!W53) -> 15.56086031 | H53: =IF(skjermbilde!$N$10=1,datagrunnlag!N53,datagrunnlag!X53) -> 21.15527757 | I53: =IF(skjermbilde!$N$10=1,datagrunnlag!O53,datagrunnlag!Y53) -> 13.73677495 | J53: =IF(skjermbilde!$N$10=1,datagrunnlag!P53,datagrunnlag!Z53) -> 8.508680109 | K53: =+datagrunnlag!A53 -> LKR | L53: =+datagrunnlag!B53 -> s | M53: =+datagrunnlag!C53 -> 160 | P53: =++IF(datagrunnlag!F53="s","c",datagrunnlag!F53) -> r | Q53: =+datagrunnlag!G53 -> 300 | R53: =IF(skjermbilde!$N$10=1,datagrunnlag!Q53,datagrunnlag!AI53) -> 0.00065 | S53: 0 | T53: 201 | U53: r | V53: 0 | W53: 0 | X53: =IF(skjermbilde!$D$2=1,S53^2*R53,2*S53^2*R53) -> 0 | Y53: =IF(C53="","",IF(skjermbilde!$D$2=1,C53,IF(AND(skjermbilde!$D$2=2,2*C53>60),60,IF(skjermbilde!$D$2=2,2*C53)))) -> 2 | Z53: =IF(skjermbilde!$D$2=1,D53,IF(AND(skjermbilde!$D$2=2,2*D53>60),60,IF(skjermbilde!$D$2=2,2*D53))) -> 5.86837722 | AA53: =IF(skjermbilde!$D$2=1,E53,IF(AND(skjermbilde!$D$2=2,2*E53>60),60,IF(skjermbilde!$D$2=2,2*E53))) -> 5.268870844 | AB53: =IF(skjermbilde!$D$2=1,F53,IF(AND(skjermbilde!$D$2=2,2*F53>60),60,IF(skjermbilde!$D$2=2,2*F53))) -> 8.48445239 | AC53: =IF(skjermbilde!$D$2=1,G53,IF(AND(skjermbilde!$D$2=2,2*G53>60),60,IF(skjermbilde!$D$2=2,2*G53))) -> 15.56086031 | AD53: =IF(skjermbilde!$D$2=1,H53,IF(AND(skjermbilde!$D$2=2,2*H53>60),60,IF(skjermbilde!$D$2=2,2*H53))) -> 21.15527757 | AE53: =IF(skjermbilde!$D$2=1,I53,IF(AND(skjermbilde!$D$2=2,2*I53>60),60,IF(skjermbilde!$D$2=2,2*I53))) -> 13.73677495 | AF53: =IF(J53="","",IF(skjermbilde!$D$2=1,J53,IF(AND(skjermbilde!$D$2=2,2*J53>60),60,IF(skjermbilde!$D$2=2,2*J53)))) -> 8.508680109 | AI53: =+IF(ISNUMBER(skjermbilde!G$3-Y53-skjermbilde!G$6-4),skjermbilde!G$3-Y53-skjermbilde!G$6-4,0) -> -6 | AJ53: =+IF(ISNUMBER(skjermbilde!H$3-Z53-skjermbilde!H$6-4),skjermbilde!H$3-Z53-skjermbilde!H$6-4,0) -> -9.86837722 | AK53: =+IF(ISNUMBER(skjermbilde!I$3-AA53-skjermbilde!I$6-4),skjermbilde!I$3-AA53-skjermbilde!I$6-4,0) -> -9.268870844 | AL53: =+IF(ISNUMBER(skjermbilde!J$3-AB53-skjermbilde!J$6-4),skjermbilde!J$3-AB53-skjermbilde!J$6-4,0) -> -12.48445239 | AM53: =+IF(ISNUMBER(skjermbilde!K$3-AC53-skjermbilde!K$6-4),skjermbilde!K$3-AC53-skjermbilde!K$6-4,0) -> -19.56086031 | AN53: =+IF(ISNUMBER(skjermbilde!L$3-AD53-skjermbilde!L$6-4),skjermbilde!L$3-AD53-skjermbilde!L$6-4,0) -> -25.15527757 | AO53: =+IF(ISNUMBER(skjermbilde!M$3-AE53-skjermbilde!M$6-4),skjermbilde!M$3-AE53-skjermbilde!M$6-4,0) -> -17.73677495 | AP53: =+IF(ISNUMBER(skjermbilde!N$3-AF53-skjermbilde!N$6-4),skjermbilde!N$3-AF53-skjermbilde!N$6-4,0) -> -12.50868011 | AQ53: =IF(skjermbilde!$O$10=TRUE,10*LOG10(10^(0.1*(AI53+AI$12))+10^(0.1*(AJ53+AJ$12))+10^(0.1*(AK53+AK$12))+10^(0.1*(AL53+AL$12))+10^(0.1*(AM53+AM$12))+10^(0.1*(AN53+AN$12))+10^(0.1*(AO53+AO$12))+10^(0.1*(AP53+AP$12))),"") ->  | AR53: 1 | AS53: 1 | AT53: 1 | AU53: 1 | AV53: 1 | AW53: 1 | AX53: 1 | AY53: 1 | AZ53: 1 | BA53: 0 | BB53: =IF(skjermbilde!$D$4="",1,IF(P53=skjermbilde!$D$4,1,0)) -> 1 | BC53: =IF(skjermbilde!$D$4="",1,IF(U53="r",1,IF(P53=skjermbilde!$D$4,1,0))) -> 1 | BD53: =+IF(U53="r",1,IF(M53=skjermbilde!$D$3,1,0)) -> 1 | BE53: =+IF(U53="s",1,IF(N53=skjermbilde!$C$3,1,0)) -> 1 | BF53: =+IF(U53="s",1,IF(O53=skjermbilde!$C$4,1,0)) -> 1 | BG53: 1 | BH53: 0 | BL53: 38 | CC53: 38 | CR53: 38 | CY53: =IF(skjermbilde!$D$2=1,VLOOKUP($CS53,$CB$17:$CD$261,3,FALSE),CONCATENATE("2 x ",VLOOKUP($CS53,$CB$17:$CD$261,3,FALSE))) ->  | DI53: 3e-08 | DJ53: 1.00000003 | DK53: 1 | DL53: LKR-160-300 | DM53: 1.00000018 | DN53: 0 | DO53: 0
A54: 39 | B54: =+IF(skjermbilde!$N$10=1,datagrunnlag!H54,CONCATENATE(datagrunnlag!H54,"-V")) -> LKR-200-300 | C54: =IF(skjermbilde!$N$10=1,datagrunnlag!I54,datagrunnlag!S54) -> 1 | D54: =IF(skjermbilde!$N$10=1,datagrunnlag!J54,datagrunnlag!T54) -> 1.894705049 | E54: =IF(skjermbilde!$N$10=1,datagrunnlag!K54,datagrunnlag!U54) -> 3.431549162 | F54: =IF(skjermbilde!$N$10=1,datagrunnlag!L54,datagrunnlag!V54) -> 6.969199338 | G54: =IF(skjermbilde!$N$10=1,datagrunnlag!M54,datagrunnlag!W54) -> 14.07226696 | H54: =IF(skjermbilde!$N$10=1,datagrunnlag!N54,datagrunnlag!X54) -> 14.28596624 | I54: =IF(skjermbilde!$N$10=1,datagrunnlag!O54,datagrunnlag!Y54) -> 10.43585806 | J54: =IF(skjermbilde!$N$10=1,datagrunnlag!P54,datagrunnlag!Z54) -> 8.458638496 | K54: =+datagrunnlag!A54 -> LKR | L54: =+datagrunnlag!B54 -> s | M54: =+datagrunnlag!C54 -> 200 | P54: =++IF(datagrunnlag!F54="s","c",datagrunnlag!F54) -> r | Q54: =+datagrunnlag!G54 -> 300 | R54: =IF(skjermbilde!$N$10=1,datagrunnlag!Q54,datagrunnlag!AI54) -> 0.0001788889049 | S54: 0 | T54: 201 | U54: r | V54: 0 | W54: 0 | X54: =IF(skjermbilde!$D$2=1,S54^2*R54,2*S54^2*R54) -> 0 | Y54: =IF(C54="","",IF(skjermbilde!$D$2=1,C54,IF(AND(skjermbilde!$D$2=2,2*C54>60),60,IF(skjermbilde!$D$2=2,2*C54)))) -> 1 | Z54: =IF(skjermbilde!$D$2=1,D54,IF(AND(skjermbilde!$D$2=2,2*D54>60),60,IF(skjermbilde!$D$2=2,2*D54))) -> 1.894705049 | AA54: =IF(skjermbilde!$D$2=1,E54,IF(AND(skjermbilde!$D$2=2,2*E54>60),60,IF(skjermbilde!$D$2=2,2*E54))) -> 3.431549162 | AB54: =IF(skjermbilde!$D$2=1,F54,IF(AND(skjermbilde!$D$2=2,2*F54>60),60,IF(skjermbilde!$D$2=2,2*F54))) -> 6.969199338 | AC54: =IF(skjermbilde!$D$2=1,G54,IF(AND(skjermbilde!$D$2=2,2*G54>60),60,IF(skjermbilde!$D$2=2,2*G54))) -> 14.07226696 | AD54: =IF(skjermbilde!$D$2=1,H54,IF(AND(skjermbilde!$D$2=2,2*H54>60),60,IF(skjermbilde!$D$2=2,2*H54))) -> 14.28596624 | AE54: =IF(skjermbilde!$D$2=1,I54,IF(AND(skjermbilde!$D$2=2,2*I54>60),60,IF(skjermbilde!$D$2=2,2*I54))) -> 10.43585806 | AF54: =IF(J54="","",IF(skjermbilde!$D$2=1,J54,IF(AND(skjermbilde!$D$2=2,2*J54>60),60,IF(skjermbilde!$D$2=2,2*J54)))) -> 8.458638496 | AI54: =+IF(ISNUMBER(skjermbilde!G$3-Y54-skjermbilde!G$6-4),skjermbilde!G$3-Y54-skjermbilde!G$6-4,0) -> -5 | AJ54: =+IF(ISNUMBER(skjermbilde!H$3-Z54-skjermbilde!H$6-4),skjermbilde!H$3-Z54-skjermbilde!H$6-4,0) -> -5.894705049 | AK54: =+IF(ISNUMBER(skjermbilde!I$3-AA54-skjermbilde!I$6-4),skjermbilde!I$3-AA54-skjermbilde!I$6-4,0) -> -7.431549162 | AL54: =+IF(ISNUMBER(skjermbilde!J$3-AB54-skjermbilde!J$6-4),skjermbilde!J$3-AB54-skjermbilde!J$6-4,0) -> -10.96919934 | AM54: =+IF(ISNUMBER(skjermbilde!K$3-AC54-skjermbilde!K$6-4),skjermbilde!K$3-AC54-skjermbilde!K$6-4,0) -> -18.07226696 | AN54: =+IF(ISNUMBER(skjermbilde!L$3-AD54-skjermbilde!L$6-4),skjermbilde!L$3-AD54-skjermbilde!L$6-4,0) -> -18.28596624 | AO54: =+IF(ISNUMBER(skjermbilde!M$3-AE54-skjermbilde!M$6-4),skjermbilde!M$3-AE54-skjermbilde!M$6-4,0) -> -14.43585806 | AP54: =+IF(ISNUMBER(skjermbilde!N$3-AF54-skjermbilde!N$6-4),skjermbilde!N$3-AF54-skjermbilde!N$6-4,0) -> -12.4586385 | AQ54: =IF(skjermbilde!$O$10=TRUE,10*LOG10(10^(0.1*(AI54+AI$12))+10^(0.1*(AJ54+AJ$12))+10^(0.1*(AK54+AK$12))+10^(0.1*(AL54+AL$12))+10^(0.1*(AM54+AM$12))+10^(0.1*(AN54+AN$12))+10^(0.1*(AO54+AO$12))+10^(0.1*(AP54+AP$12))),"") ->  | AR54: 1 | AS54: 1 | AT54: 1 | AU54: 1 | AV54: 1 | AW54: 1 | AX54: 1 | AY54: 1 | AZ54: 1 | BA54: 0 | BB54: =IF(skjermbilde!$D$4="",1,IF(P54=skjermbilde!$D$4,1,0)) -> 1 | BC54: =IF(skjermbilde!$D$4="",1,IF(U54="r",1,IF(P54=skjermbilde!$D$4,1,0))) -> 1 | BD54: =+IF(U54="r",1,IF(M54=skjermbilde!$D$3,1,0)) -> 1 | BE54: =+IF(U54="s",1,IF(N54=skjermbilde!$C$3,1,0)) -> 1 | BF54: =+IF(U54="s",1,IF(O54=skjermbilde!$C$4,1,0)) -> 1 | BG54: 1 | BH54: 0 | BL54: 39 | CC54: 39 | CR54: 39 | CY54: =IF(skjermbilde!$D$2=1,VLOOKUP($CS54,$CB$17:$CD$261,3,FALSE),CONCATENATE("2 x ",VLOOKUP($CS54,$CB$17:$CD$261,3,FALSE))) ->  | DI54: 4e-08 | DJ54: 1.00000004 | DK54: 1 | DL54: LKR-200-300 | DM54: 1.00000018 | DN54: 0 | DO54: 0
A55: 40 | B55: =+IF(skjermbilde!$N$10=1,datagrunnlag!H55,CONCATENATE(datagrunnlag!H55,"-V")) -> LKR-250-300 | C55: =IF(skjermbilde!$N$10=1,datagrunnlag!I55,datagrunnlag!S55) -> 2 | D55: =IF(skjermbilde!$N$10=1,datagrunnlag!J55,datagrunnlag!T55) -> 3.332976378 | E55: =IF(skjermbilde!$N$10=1,datagrunnlag!K55,datagrunnlag!U55) -> 5.938053027 | F55: =IF(skjermbilde!$N$10=1,datagrunnlag!L55,datagrunnlag!V55) -> 9.427223255 | G55: =IF(skjermbilde!$N$10=1,datagrunnlag!M55,datagrunnlag!W55) -> 15.37623549 | H55: =IF(skjermbilde!$N$10=1,datagrunnlag!N55,datagrunnlag!X55) -> 12.78934136 | I55: =IF(skjermbilde!$N$10=1,datagrunnlag!O55,datagrunnlag!Y55) -> 9.772412807 | J55: =IF(skjermbilde!$N$10=1,datagrunnlag!P55,datagrunnlag!Z55) -> 8.357169695 | K55: =+datagrunnlag!A55 -> LKR | L55: =+datagrunnlag!B55 -> s | M55: =+datagrunnlag!C55 -> 250 | P55: =++IF(datagrunnlag!F55="s","c",datagrunnlag!F55) -> r | Q55: =+datagrunnlag!G55 -> 300 | R55: =IF(skjermbilde!$N$10=1,datagrunnlag!Q55,datagrunnlag!AI55) -> 0.0001530612245 | S55: 0 | T55: 201 | U55: r | V55: 0 | W55: 0 | X55: =IF(skjermbilde!$D$2=1,S55^2*R55,2*S55^2*R55) -> 0 | Y55: =IF(C55="","",IF(skjermbilde!$D$2=1,C55,IF(AND(skjermbilde!$D$2=2,2*C55>60),60,IF(skjermbilde!$D$2=2,2*C55)))) -> 2 | Z55: =IF(skjermbilde!$D$2=1,D55,IF(AND(skjermbilde!$D$2=2,2*D55>60),60,IF(skjermbilde!$D$2=2,2*D55))) -> 3.332976378 | AA55: =IF(skjermbilde!$D$2=1,E55,IF(AND(skjermbilde!$D$2=2,2*E55>60),60,IF(skjermbilde!$D$2=2,2*E55))) -> 5.938053027 | AB55: =IF(skjermbilde!$D$2=1,F55,IF(AND(skjermbilde!$D$2=2,2*F55>60),60,IF(skjermbilde!$D$2=2,2*F55))) -> 9.427223255 | AC55: =IF(skjermbilde!$D$2=1,G55,IF(AND(skjermbilde!$D$2=2,2*G55>60),60,IF(skjermbilde!$D$2=2,2*G55))) -> 15.37623549 | AD55: =IF(skjermbilde!$D$2=1,H55,IF(AND(skjermbilde!$D$2=2,2*H55>60),60,IF(skjermbilde!$D$2=2,2*H55))) -> 12.78934136 | AE55: =IF(skjermbilde!$D$2=1,I55,IF(AND(skjermbilde!$D$2=2,2*I55>60),60,IF(skjermbilde!$D$2=2,2*I55))) -> 9.772412807 | AF55: =IF(J55="","",IF(skjermbilde!$D$2=1,J55,IF(AND(skjermbilde!$D$2=2,2*J55>60),60,IF(skjermbilde!$D$2=2,2*J55)))) -> 8.357169695 | AI55: =+IF(ISNUMBER(skjermbilde!G$3-Y55-skjermbilde!G$6-4),skjermbilde!G$3-Y55-skjermbilde!G$6-4,0) -> -6 | AJ55: =+IF(ISNUMBER(skjermbilde!H$3-Z55-skjermbilde!H$6-4),skjermbilde!H$3-Z55-skjermbilde!H$6-4,0) -> -7.332976378 | AK55: =+IF(ISNUMBER(skjermbilde!I$3-AA55-skjermbilde!I$6-4),skjermbilde!I$3-AA55-skjermbilde!I$6-4,0) -> -9.938053027 | AL55: =+IF(ISNUMBER(skjermbilde!J$3-AB55-skjermbilde!J$6-4),skjermbilde!J$3-AB55-skjermbilde!J$6-4,0) -> -13.42722326 | AM55: =+IF(ISNUMBER(skjermbilde!K$3-AC55-skjermbilde!K$6-4),skjermbilde!K$3-AC55-skjermbilde!K$6-4,0) -> -19.37623549 | AN55: =+IF(ISNUMBER(skjermbilde!L$3-AD55-skjermbilde!L$6-4),skjermbilde!L$3-AD55-skjermbilde!L$6-4,0) -> -16.78934136 | AO55: =+IF(ISNUMBER(skjermbilde!M$3-AE55-skjermbilde!M$6-4),skjermbilde!M$3-AE55-skjermbilde!M$6-4,0) -> -13.77241281 | AP55: =+IF(ISNUMBER(skjermbilde!N$3-AF55-skjermbilde!N$6-4),skjermbilde!N$3-AF55-skjermbilde!N$6-4,0) -> -12.3571697 | AQ55: =IF(skjermbilde!$O$10=TRUE,10*LOG10(10^(0.1*(AI55+AI$12))+10^(0.1*(AJ55+AJ$12))+10^(0.1*(AK55+AK$12))+10^(0.1*(AL55+AL$12))+10^(0.1*(AM55+AM$12))+10^(0.1*(AN55+AN$12))+10^(0.1*(AO55+AO$12))+10^(0.1*(AP55+AP$12))),"") ->  | AR55: 1 | AS55: 1 | AT55: 1 | AU55: 1 | AV55: 1 | AW55: 1 | AX55: 1 | AY55: 1 | AZ55: 1 | BA55: 0 | BB55: =IF(skjermbilde!$D$4="",1,IF(P55=skjermbilde!$D$4,1,0)) -> 1 | BC55: =IF(skjermbilde!$D$4="",1,IF(U55="r",1,IF(P55=skjermbilde!$D$4,1,0))) -> 1 | BD55: =+IF(U55="r",1,IF(M55=skjermbilde!$D$3,1,0)) -> 1 | BE55: =+IF(U55="s",1,IF(N55=skjermbilde!$C$3,1,0)) -> 1 | BF55: =+IF(U55="s",1,IF(O55=skjermbilde!$C$4,1,0)) -> 1 | BG55: 1 | BH55: 0 | BL55: 40 | CC55: 40 | CR55: 40 | CY55: =IF(skjermbilde!$D$2=1,VLOOKUP($CS55,$CB$17:$CD$261,3,FALSE),CONCATENATE("2 x ",VLOOKUP($CS55,$CB$17:$CD$261,3,FALSE))) ->  | DI55: 5e-08 | DJ55: 1.00000005 | DK55: 1 | DL55: LKR-250-300 | DM55: 1.00000019 | DN55: LEV-100-500 | DO55: 0
A56: 41 | B56: =+IF(skjermbilde!$N$10=1,datagrunnlag!H56,CONCATENATE(datagrunnlag!H56,"-V")) -> LKR-100-600 | C56: =IF(skjermbilde!$N$10=1,datagrunnlag!I56,datagrunnlag!S56) -> 2 | D56: =IF(skjermbilde!$N$10=1,datagrunnlag!J56,datagrunnlag!T56) -> 7.294334925 | E56: =IF(skjermbilde!$N$10=1,datagrunnlag!K56,datagrunnlag!U56) -> 10.0448078 | F56: =IF(skjermbilde!$N$10=1,datagrunnlag!L56,datagrunnlag!V56) -> 16.56180428 | G56: =IF(skjermbilde!$N$10=1,datagrunnlag!M56,datagrunnlag!W56) -> 22.70636066 | H56: =IF(skjermbilde!$N$10=1,datagrunnlag!N56,datagrunnlag!X56) -> 34.49233208 | I56: =IF(skjermbilde!$N$10=1,datagrunnlag!O56,datagrunnlag!Y56) -> 43.48809591 | J56: =IF(skjermbilde!$N$10=1,datagrunnlag!P56,datagrunnlag!Z56) -> 20.37529721 | K56: =+datagrunnlag!A56 -> LKR | L56: =+datagrunnlag!B56 -> s | M56: =+datagrunnlag!C56 -> 100 | P56: =++IF(datagrunnlag!F56="s","c",datagrunnlag!F56) -> r | Q56: =+datagrunnlag!G56 -> 600 | R56: =IF(skjermbilde!$N$10=1,datagrunnlag!Q56,datagrunnlag!AI56) -> 0.0075 | S56: 0 | T56: 201 | U56: r | V56: 0 | W56: 0 | X56: =IF(skjermbilde!$D$2=1,S56^2*R56,2*S56^2*R56) -> 0 | Y56: =IF(C56="","",IF(skjermbilde!$D$2=1,C56,IF(AND(skjermbilde!$D$2=2,2*C56>60),60,IF(skjermbilde!$D$2=2,2*C56)))) -> 2 | Z56: =IF(skjermbilde!$D$2=1,D56,IF(AND(skjermbilde!$D$2=2,2*D56>60),60,IF(skjermbilde!$D$2=2,2*D56))) -> 7.294334925 | AA56: =IF(skjermbilde!$D$2=1,E56,IF(AND(skjermbilde!$D$2=2,2*E56>60),60,IF(skjermbilde!$D$2=2,2*E56))) -> 10.0448078 | AB56: =IF(skjermbilde!$D$2=1,F56,IF(AND(skjermbilde!$D$2=2,2*F56>60),60,IF(skjermbilde!$D$2=2,2*F56))) -> 16.56180428 | AC56: =IF(skjermbilde!$D$2=1,G56,IF(AND(skjermbilde!$D$2=2,2*G56>60),60,IF(skjermbilde!$D$2=2,2*G56))) -> 22.70636066 | AD56: =IF(skjermbilde!$D$2=1,H56,IF(AND(skjermbilde!$D$2=2,2*H56>60),60,IF(skjermbilde!$D$2=2,2*H56))) -> 34.49233208 | AE56: =IF(skjermbilde!$D$2=1,I56,IF(AND(skjermbilde!$D$2=2,2*I56>60),60,IF(skjermbilde!$D$2=2,2*I56))) -> 43.48809591 | AF56: =IF(J56="","",IF(skjermbilde!$D$2=1,J56,IF(AND(skjermbilde!$D$2=2,2*J56>60),60,IF(skjermbilde!$D$2=2,2*J56)))) -> 20.37529721 | AI56: =+IF(ISNUMBER(skjermbilde!G$3-Y56-skjermbilde!G$6-4),skjermbilde!G$3-Y56-skjermbilde!G$6-4,0) -> -6 | AJ56: =+IF(ISNUMBER(skjermbilde!H$3-Z56-skjermbilde!H$6-4),skjermbilde!H$3-Z56-skjermbilde!H$6-4,0) -> -11.29433493 | AK56: =+IF(ISNUMBER(skjermbilde!I$3-AA56-skjermbilde!I$6-4),skjermbilde!I$3-AA56-skjermbilde!I$6-4,0) -> -14.0448078 | AL56: =+IF(ISNUMBER(skjermbilde!J$3-AB56-skjermbilde!J$6-4),skjermbilde!J$3-AB56-skjermbilde!J$6-4,0) -> -20.56180428 | AM56: =+IF(ISNUMBER(skjermbilde!K$3-AC56-skjermbilde!K$6-4),skjermbilde!K$3-AC56-skjermbilde!K$6-4,0) -> -26.70636066 | AN56: =+IF(ISNUMBER(skjermbilde!L$3-AD56-skjermbilde!L$6-4),skjermbilde!L$3-AD56-skjermbilde!L$6-4,0) -> -38.49233208 | AO56: =+IF(ISNUMBER(skjermbilde!M$3-AE56-skjermbilde!M$6-4),skjermbilde!M$3-AE56-skjermbilde!M$6-4,0) -> -47.48809591 | AP56: =+IF(ISNUMBER(skjermbilde!N$3-AF56-skjermbilde!N$6-4),skjermbilde!N$3-AF56-skjermbilde!N$6-4,0) -> -24.37529721 | AQ56: =IF(skjermbilde!$O$10=TRUE,10*LOG10(10^(0.1*(AI56+AI$12))+10^(0.1*(AJ56+AJ$12))+10^(0.1*(AK56+AK$12))+10^(0.1*(AL56+AL$12))+10^(0.1*(AM56+AM$12))+10^(0.1*(AN56+AN$12))+10^(0.1*(AO56+AO$12))+10^(0.1*(AP56+AP$12))),"") ->  | AR56: 1 | AS56: 1 | AT56: 1 | AU56: 1 | AV56: 1 | AW56: 1 | AX56: 1 | AY56: 1 | AZ56: 1 | BA56: 0 | BB56: =IF(skjermbilde!$D$4="",1,IF(P56=skjermbilde!$D$4,1,0)) -> 1 | BC56: =IF(skjermbilde!$D$4="",1,IF(U56="r",1,IF(P56=skjermbilde!$D$4,1,0))) -> 1 | BD56: =+IF(U56="r",1,IF(M56=skjermbilde!$D$3,1,0)) -> 1 | BE56: =+IF(U56="s",1,IF(N56=skjermbilde!$C$3,1,0)) -> 1 | BF56: =+IF(U56="s",1,IF(O56=skjermbilde!$C$4,1,0)) -> 1 | BG56: 1 | BH56: 0 | BL56: 41 | CC56: 41 | CR56: 41 | CY56: =IF(skjermbilde!$D$2=1,VLOOKUP($CS56,$CB$17:$CD$261,3,FALSE),CONCATENATE("2 x ",VLOOKUP($CS56,$CB$17:$CD$261,3,FALSE))) ->  | DI56: 6e-08 | DJ56: 1.00000006 | DK56: 1 | DL56: LKR-100-600 | DM56: 1.00000019 | DN56: LEV-100-500 | DO56: 0
A57: 42 | B57: =+IF(skjermbilde!$N$10=1,datagrunnlag!H57,CONCATENATE(datagrunnlag!H57,"-V")) -> LKR-125-600 | C57: =IF(skjermbilde!$N$10=1,datagrunnlag!I57,datagrunnlag!S57) -> 2.389965638 | D57: =IF(skjermbilde!$N$10=1,datagrunnlag!J57,datagrunnlag!T57) -> 8.640657287 | E57: =IF(skjermbilde!$N$10=1,datagrunnlag!K57,datagrunnlag!U57) -> 10.32039879 | F57: =IF(skjermbilde!$N$10=1,datagrunnlag!L57,datagrunnlag!V57) -> 17.9017454 | G57: =IF(skjermbilde!$N$10=1,datagrunnlag!M57,datagrunnlag!W57) -> 26.11216097 | H57: =IF(skjermbilde!$N$10=1,datagrunnlag!N57,datagrunnlag!X57) -> 38.6091703 | I57: =IF(skjermbilde!$N$10=1,datagrunnlag!O57,datagrunnlag!Y57) -> 35.66032314 | J57: =IF(skjermbilde!$N$10=1,datagrunnlag!P57,datagrunnlag!Z57) -> 17.21855642 | K57: =+datagrunnlag!A57 -> LKR | L57: =+datagrunnlag!B57 -> s | M57: =+datagrunnlag!C57 -> 125 | P57: =++IF(datagrunnlag!F57="s","c",datagrunnlag!F57) -> r | Q57: =+datagrunnlag!G57 -> 600 | R57: =IF(skjermbilde!$N$10=1,datagrunnlag!Q57,datagrunnlag!AI57) -> 0.003014296811 | S57: 0 | T57: 201 | U57: r | V57: 0 | W57: 0 | X57: =IF(skjermbilde!$D$2=1,S57^2*R57,2*S57^2*R57) -> 0 | Y57: =IF(C57="","",IF(skjermbilde!$D$2=1,C57,IF(AND(skjermbilde!$D$2=2,2*C57>60),60,IF(skjermbilde!$D$2=2,2*C57)))) -> 2.389965638 | Z57: =IF(skjermbilde!$D$2=1,D57,IF(AND(skjermbilde!$D$2=2,2*D57>60),60,IF(skjermbilde!$D$2=2,2*D57))) -> 8.640657287 | AA57: =IF(skjermbilde!$D$2=1,E57,IF(AND(skjermbilde!$D$2=2,2*E57>60),60,IF(skjermbilde!$D$2=2,2*E57))) -> 10.32039879 | AB57: =IF(skjermbilde!$D$2=1,F57,IF(AND(skjermbilde!$D$2=2,2*F57>60),60,IF(skjermbilde!$D$2=2,2*F57))) -> 17.9017454 | AC57: =IF(skjermbilde!$D$2=1,G57,IF(AND(skjermbilde!$D$2=2,2*G57>60),60,IF(skjermbilde!$D$2=2,2*G57))) -> 26.11216097 | AD57: =IF(skjermbilde!$D$2=1,H57,IF(AND(skjermbilde!$D$2=2,2*H57>60),60,IF(skjermbilde!$D$2=2,2*H57))) -> 38.6091703 | AE57: =IF(skjermbilde!$D$2=1,I57,IF(AND(skjermbilde!$D$2=2,2*I57>60),60,IF(skjermbilde!$D$2=2,2*I57))) -> 35.66032314 | AF57: =IF(J57="","",IF(skjermbilde!$D$2=1,J57,IF(AND(skjermbilde!$D$2=2,2*J57>60),60,IF(skjermbilde!$D$2=2,2*J57)))) -> 17.21855642 | AI57: =+IF(ISNUMBER(skjermbilde!G$3-Y57-skjermbilde!G$6-4),skjermbilde!G$3-Y57-skjermbilde!G$6-4,0) -> -6.389965638 | AJ57: =+IF(ISNUMBER(skjermbilde!H$3-Z57-skjermbilde!H$6-4),skjermbilde!H$3-Z57-skjermbilde!H$6-4,0) -> -12.64065729 | AK57: =+IF(ISNUMBER(skjermbilde!I$3-AA57-skjermbilde!I$6-4),skjermbilde!I$3-AA57-skjermbilde!I$6-4,0) -> -14.32039879 | AL57: =+IF(ISNUMBER(skjermbilde!J$3-AB57-skjermbilde!J$6-4),skjermbilde!J$3-AB57-skjermbilde!J$6-4,0) -> -21.9017454 | AM57: =+IF(ISNUMBER(skjermbilde!K$3-AC57-skjermbilde!K$6-4),skjermbilde!K$3-AC57-skjermbilde!K$6-4,0) -> -30.11216097 | AN57: =+IF(ISNUMBER(skjermbilde!L$3-AD57-skjermbilde!L$6-4),skjermbilde!L$3-AD57-skjermbilde!L$6-4,0) -> -42.6091703 | AO57: =+IF(ISNUMBER(skjermbilde!M$3-AE57-skjermbilde!M$6-4),skjermbilde!M$3-AE57-skjermbilde!M$6-4,0) -> -39.66032314 | AP57: =+IF(ISNUMBER(skjermbilde!N$3-AF57-skjermbilde!N$6-4),skjermbilde!N$3-AF57-skjermbilde!N$6-4,0) -> -21.21855642 | AQ57: =IF(skjermbilde!$O$10=TRUE,10*LOG10(10^(0.1*(AI57+AI$12))+10^(0.1*(AJ57+AJ$12))+10^(0.1*(AK57+AK$12))+10^(0.1*(AL57+AL$12))+10^(0.1*(AM57+AM$12))+10^(0.1*(AN57+AN$12))+10^(0.1*(AO57+AO$12))+10^(0.1*(AP57+AP$12))),"") ->  | AR57: 1 | AS57: 1 | AT57: 1 | AU57: 1 | AV57: 1 | AW57: 1 | AX57: 1 | AY57: 1 | AZ57: 1 | BA57: 0 | BB57: =IF(skjermbilde!$D$4="",1,IF(P57=skjermbilde!$D$4,1,0)) -> 1 | BC57: =IF(skjermbilde!$D$4="",1,IF(U57="r",1,IF(P57=skjermbilde!$D$4,1,0))) -> 1 | BD57: =+IF(U57="r",1,IF(M57=skjermbilde!$D$3,1,0)) -> 1 | BE57: =+IF(U57="s",1,IF(N57=skjermbilde!$C$3,1,0)) -> 1 | BF57: =+IF(U57="s",1,IF(O57=skjermbilde!$C$4,1,0)) -> 1 | BG57: 1 | BH57: 0 | BL57: 42 | CC57: 42 | CR57: 42 | CY57: =IF(skjermbilde!$D$2=1,VLOOKUP($CS57,$CB$17:$CD$261,3,FALSE),CONCATENATE("2 x ",VLOOKUP($CS57,$CB$17:$CD$261,3,FALSE))) ->  | DI57: 7e-08 | DJ57: 1.00000007 | DK57: 1 | DL57: LKR-125-600 | DM57: 1.0000002 | DN57: LEV-125-500 | DO57: 0
A58: 43 | B58: =+IF(skjermbilde!$N$10=1,datagrunnlag!H58,CONCATENATE(datagrunnlag!H58,"-V")) -> LKR-160-600 | C58: =IF(skjermbilde!$N$10=1,datagrunnlag!I58,datagrunnlag!S58) -> 2.9 | D58: =IF(skjermbilde!$N$10=1,datagrunnlag!J58,datagrunnlag!T58) -> 8.609965447 | E58: =IF(skjermbilde!$N$10=1,datagrunnlag!K58,datagrunnlag!U58) -> 10.34411018 | F58: =IF(skjermbilde!$N$10=1,datagrunnlag!L58,datagrunnlag!V58) -> 16.45994837 | G58: =IF(skjermbilde!$N$10=1,datagrunnlag!M58,datagrunnlag!W58) -> 27.78995858 | H58: =IF(skjermbilde!$N$10=1,datagrunnlag!N58,datagrunnlag!X58) -> 44.93029772 | I58: =IF(skjermbilde!$N$10=1,datagrunnlag!O58,datagrunnlag!Y58) -> 25.63649928 | J58: =IF(skjermbilde!$N$10=1,datagrunnlag!P58,datagrunnlag!Z58) -> 15.11592161 | K58: =+datagrunnlag!A58 -> LKR | L58: =+datagrunnlag!B58 -> s | M58: =+datagrunnlag!C58 -> 160 | P58: =++IF(datagrunnlag!F58="s","c",datagrunnlag!F58) -> r | Q58: =+datagrunnlag!G58 -> 600 | R58: =IF(skjermbilde!$N$10=1,datagrunnlag!Q58,datagrunnlag!AI58) -> 0.0006790973166 | S58: 0 | T58: 201 | U58: r | V58: 0 | W58: 0 | X58: =IF(skjermbilde!$D$2=1,S58^2*R58,2*S58^2*R58) -> 0 | Y58: =IF(C58="","",IF(skjermbilde!$D$2=1,C58,IF(AND(skjermbilde!$D$2=2,2*C58>60),60,IF(skjermbilde!$D$2=2,2*C58)))) -> 2.9 | Z58: =IF(skjermbilde!$D$2=1,D58,IF(AND(skjermbilde!$D$2=2,2*D58>60),60,IF(skjermbilde!$D$2=2,2*D58))) -> 8.609965447 | AA58: =IF(skjermbilde!$D$2=1,E58,IF(AND(skjermbilde!$D$2=2,2*E58>60),60,IF(skjermbilde!$D$2=2,2*E58))) -> 10.34411018 | AB58: =IF(skjermbilde!$D$2=1,F58,IF(AND(skjermbilde!$D$2=2,2*F58>60),60,IF(skjermbilde!$D$2=2,2*F58))) -> 16.45994837 | AC58: =IF(skjermbilde!$D$2=1,G58,IF(AND(skjermbilde!$D$2=2,2*G58>60),60,IF(skjermbilde!$D$2=2,2*G58))) -> 27.78995858 | AD58: =IF(skjermbilde!$D$2=1,H58,IF(AND(skjermbilde!$D$2=2,2*H58>60),60,IF(skjermbilde!$D$2=2,2*H58))) -> 44.93029772 | AE58: =IF(skjermbilde!$D$2=1,I58,IF(AND(skjermbilde!$D$2=2,2*I58>60),60,IF(skjermbilde!$D$2=2,2*I58))) -> 25.63649928 | AF58: =IF(J58="","",IF(skjermbilde!$D$2=1,J58,IF(AND(skjermbilde!$D$2=2,2*J58>60),60,IF(skjermbilde!$D$2=2,2*J58)))) -> 15.11592161 | AI58: =+IF(ISNUMBER(skjermbilde!G$3-Y58-skjermbilde!G$6-4),skjermbilde!G$3-Y58-skjermbilde!G$6-4,0) -> -6.9 | AJ58: =+IF(ISNUMBER(skjermbilde!H$3-Z58-skjermbilde!H$6-4),skjermbilde!H$3-Z58-skjermbilde!H$6-4,0) -> -12.60996545 | AK58: =+IF(ISNUMBER(skjermbilde!I$3-AA58-skjermbilde!I$6-4),skjermbilde!I$3-AA58-skjermbilde!I$6-4,0) -> -14.34411018 | AL58: =+IF(ISNUMBER(skjermbilde!J$3-AB58-skjermbilde!J$6-4),skjermbilde!J$3-AB58-skjermbilde!J$6-4,0) -> -20.45994837 | AM58: =+IF(ISNUMBER(skjermbilde!K$3-AC58-skjermbilde!K$6-4),skjermbilde!K$3-AC58-skjermbilde!K$6-4,0) -> -31.78995858 | AN58: =+IF(ISNUMBER(skjermbilde!L$3-AD58-skjermbilde!L$6-4),skjermbilde!L$3-AD58-skjermbilde!L$6-4,0) -> -48.93029772 | AO58: =+IF(ISNUMBER(skjermbilde!M$3-AE58-skjermbilde!M$6-4),skjermbilde!M$3-AE58-skjermbilde!M$6-4,0) -> -29.63649928 | AP58: =+IF(ISNUMBER(skjermbilde!N$3-AF58-skjermbilde!N$6-4),skjermbilde!N$3-AF58-skjermbilde!N$6-4,0) -> -19.11592161 | AQ58: =IF(skjermbilde!$O$10=TRUE,10*LOG10(10^(0.1*(AI58+AI$12))+10^(0.1*(AJ58+AJ$12))+10^(0.1*(AK58+AK$12))+10^(0.1*(AL58+AL$12))+10^(0.1*(AM58+AM$12))+10^(0.1*(AN58+AN$12))+10^(0.1*(AO58+AO$12))+10^(0.1*(AP58+AP$12))),"") ->  | AR58: 1 | AS58: 1 | AT58: 1 | AU58: 1 | AV58: 1 | AW58: 1 | AX58: 1 | AY58: 1 | AZ58: 1 | BA58: 0 | BB58: =IF(skjermbilde!$D$4="",1,IF(P58=skjermbilde!$D$4,1,0)) -> 1 | BC58: =IF(skjermbilde!$D$4="",1,IF(U58="r",1,IF(P58=skjermbilde!$D$4,1,0))) -> 1 | BD58: =+IF(U58="r",1,IF(M58=skjermbilde!$D$3,1,0)) -> 1 | BE58: =+IF(U58="s",1,IF(N58=skjermbilde!$C$3,1,0)) -> 1 | BF58: =+IF(U58="s",1,IF(O58=skjermbilde!$C$4,1,0)) -> 1 | BG58: 1 | BH58: 0 | BL58: 43 | CC58: 43 | CR58: 43 | CY58: =IF(skjermbilde!$D$2=1,VLOOKUP($CS58,$CB$17:$CD$261,3,FALSE),CONCATENATE("2 x ",VLOOKUP($CS58,$CB$17:$CD$261,3,FALSE))) ->  | DI58: 8e-08 | DJ58: 1.00000008 | DK58: 1 | DL58: LKR-160-600 | DM58: 1.0000002 | DN58: LEV-125-500 | DO58: 0
A59: 44 | B59: =+IF(skjermbilde!$N$10=1,datagrunnlag!H59,CONCATENATE(datagrunnlag!H59,"-V")) -> LKR-200-600 | C59: =IF(skjermbilde!$N$10=1,datagrunnlag!I59,datagrunnlag!S59) -> 3.364497391 | D59: =IF(skjermbilde!$N$10=1,datagrunnlag!J59,datagrunnlag!T59) -> 4.323453271 | E59: =IF(skjermbilde!$N$10=1,datagrunnlag!K59,datagrunnlag!U59) -> 7.03716383 | F59: =IF(skjermbilde!$N$10=1,datagrunnlag!L59,datagrunnlag!V59) -> 13.27491855 | G59: =IF(skjermbilde!$N$10=1,datagrunnlag!M59,datagrunnlag!W59) -> 23.88780721 | H59: =IF(skjermbilde!$N$10=1,datagrunnlag!N59,datagrunnlag!X59) -> 33.82308548 | I59: =IF(skjermbilde!$N$10=1,datagrunnlag!O59,datagrunnlag!Y59) -> 17.49238857 | J59: =IF(skjermbilde!$N$10=1,datagrunnlag!P59,datagrunnlag!Z59) -> 11.85608411 | K59: =+datagrunnlag!A59 -> LKR | L59: =+datagrunnlag!B59 -> s | M59: =+datagrunnlag!C59 -> 200 | P59: =++IF(datagrunnlag!F59="s","c",datagrunnlag!F59) -> r | Q59: =+datagrunnlag!G59 -> 600 | R59: =IF(skjermbilde!$N$10=1,datagrunnlag!Q59,datagrunnlag!AI59) -> 0.0002164555501 | S59: 0 | T59: 201 | U59: r | V59: 0 | W59: 0 | X59: =IF(skjermbilde!$D$2=1,S59^2*R59,2*S59^2*R59) -> 0 | Y59: =IF(C59="","",IF(skjermbilde!$D$2=1,C59,IF(AND(skjermbilde!$D$2=2,2*C59>60),60,IF(skjermbilde!$D$2=2,2*C59)))) -> 3.364497391 | Z59: =IF(skjermbilde!$D$2=1,D59,IF(AND(skjermbilde!$D$2=2,2*D59>60),60,IF(skjermbilde!$D$2=2,2*D59))) -> 4.323453271 | AA59: =IF(skjermbilde!$D$2=1,E59,IF(AND(skjermbilde!$D$2=2,2*E59>60),60,IF(skjermbilde!$D$2=2,2*E59))) -> 7.03716383 | AB59: =IF(skjermbilde!$D$2=1,F59,IF(AND(skjermbilde!$D$2=2,2*F59>60),60,IF(skjermbilde!$D$2=2,2*F59))) -> 13.27491855 | AC59: =IF(skjermbilde!$D$2=1,G59,IF(AND(skjermbilde!$D$2=2,2*G59>60),60,IF(skjermbilde!$D$2=2,2*G59))) -> 23.88780721 | AD59: =IF(skjermbilde!$D$2=1,H59,IF(AND(skjermbilde!$D$2=2,2*H59>60),60,IF(skjermbilde!$D$2=2,2*H59))) -> 33.82308548 | AE59: =IF(skjermbilde!$D$2=1,I59,IF(AND(skjermbilde!$D$2=2,2*I59>60),60,IF(skjermbilde!$D$2=2,2*I59))) -> 17.49238857 | AF59: =IF(J59="","",IF(skjermbilde!$D$2=1,J59,IF(AND(skjermbilde!$D$2=2,2*J59>60),60,IF(skjermbilde!$D$2=2,2*J59)))) -> 11.85608411 | AI59: =+IF(ISNUMBER(skjermbilde!G$3-Y59-skjermbilde!G$6-4),skjermbilde!G$3-Y59-skjermbilde!G$6-4,0) -> -7.364497391 | AJ59: =+IF(ISNUMBER(skjermbilde!H$3-Z59-skjermbilde!H$6-4),skjermbilde!H$3-Z59-skjermbilde!H$6-4,0) -> -8.323453271 | AK59: =+IF(ISNUMBER(skjermbilde!I$3-AA59-skjermbilde!I$6-4),skjermbilde!I$3-AA59-skjermbilde!I$6-4,0) -> -11.03716383 | AL59: =+IF(ISNUMBER(skjermbilde!J$3-AB59-skjermbilde!J$6-4),skjermbilde!J$3-AB59-skjermbilde!J$6-4,0) -> -17.27491855 | AM59: =+IF(ISNUMBER(skjermbilde!K$3-AC59-skjermbilde!K$6-4),skjermbilde!K$3-AC59-skjermbilde!K$6-4,0) -> -27.88780721 | AN59: =+IF(ISNUMBER(skjermbilde!L$3-AD59-skjermbilde!L$6-4),skjermbilde!L$3-AD59-skjermbilde!L$6-4,0) -> -37.82308548 | AO59: =+IF(ISNUMBER(skjermbilde!M$3-AE59-skjermbilde!M$6-4),skjermbilde!M$3-AE59-skjermbilde!M$6-4,0) -> -21.49238857 | AP59: =+IF(ISNUMBER(skjermbilde!N$3-AF59-skjermbilde!N$6-4),skjermbilde!N$3-AF59-skjermbilde!N$6-4,0) -> -15.85608411 | AQ59: =IF(skjermbilde!$O$10=TRUE,10*LOG10(10^(0.1*(AI59+AI$12))+10^(0.1*(AJ59+AJ$12))+10^(0.1*(AK59+AK$12))+10^(0.1*(AL59+AL$12))+10^(0.1*(AM59+AM$12))+10^(0.1*(AN59+AN$12))+10^(0.1*(AO59+AO$12))+10^(0.1*(AP59+AP$12))),"") ->  | AR59: 1 | AS59: 1 | AT59: 1 | AU59: 1 | AV59: 1 | AW59: 1 | AX59: 1 | AY59: 1 | AZ59: 1 | BA59: 0 | BB59: =IF(skjermbilde!$D$4="",1,IF(P59=skjermbilde!$D$4,1,0)) -> 1 | BC59: =IF(skjermbilde!$D$4="",1,IF(U59="r",1,IF(P59=skjermbilde!$D$4,1,0))) -> 1 | BD59: =+IF(U59="r",1,IF(M59=skjermbilde!$D$3,1,0)) -> 1 | BE59: =+IF(U59="s",1,IF(N59=skjermbilde!$C$3,1,0)) -> 1 | BF59: =+IF(U59="s",1,IF(O59=skjermbilde!$C$4,1,0)) -> 1 | BG59: 1 | BH59: 0 | BL59: 44 | CC59: 44 | CR59: 44 | CY59: =IF(skjermbilde!$D$2=1,VLOOKUP($CS59,$CB$17:$CD$261,3,FALSE),CONCATENATE("2 x ",VLOOKUP($CS59,$CB$17:$CD$261,3,FALSE))) ->  | DI59: 9e-08 | DJ59: 1.00000009 | DK59: 1 | DL59: LKR-200-600 | DM59: 1.00000021 | DN59: LEV-160-500 | DO59: 0
A60: 45 | B60: =+IF(skjermbilde!$N$10=1,datagrunnlag!H60,CONCATENATE(datagrunnlag!H60,"-V")) -> LKR-250-600 | C60: =IF(skjermbilde!$N$10=1,datagrunnlag!I60,datagrunnlag!S60) -> 2 | D60: =IF(skjermbilde!$N$10=1,datagrunnlag!J60,datagrunnlag!T60) -> 6.597025282 | E60: =IF(skjermbilde!$N$10=1,datagrunnlag!K60,datagrunnlag!U60) -> 10.54587408 | F60: =IF(skjermbilde!$N$10=1,datagrunnlag!L60,datagrunnlag!V60) -> 16.53281538 | G60: =IF(skjermbilde!$N$10=1,datagrunnlag!M60,datagrunnlag!W60) -> 27.1365465 | H60: =IF(skjermbilde!$N$10=1,datagrunnlag!N60,datagrunnlag!X60) -> 27.39506359 | I60: =IF(skjermbilde!$N$10=1,datagrunnlag!O60,datagrunnlag!Y60) -> 16.62882392 | J60: =IF(skjermbilde!$N$10=1,datagrunnlag!P60,datagrunnlag!Z60) -> 11.94134147 | K60: =+datagrunnlag!A60 -> LKR | L60: =+datagrunnlag!B60 -> s | M60: =+datagrunnlag!C60 -> 250 | P60: =++IF(datagrunnlag!F60="s","c",datagrunnlag!F60) -> r | Q60: =+datagrunnlag!G60 -> 600 | R60: =IF(skjermbilde!$N$10=1,datagrunnlag!Q60,datagrunnlag!AI60) -> 0.0001714285714 | S60: 0 | T60: 201 | U60: r | V60: 0 | W60: 0 | X60: =IF(skjermbilde!$D$2=1,S60^2*R60,2*S60^2*R60) -> 0 | Y60: =IF(C60="","",IF(skjermbilde!$D$2=1,C60,IF(AND(skjermbilde!$D$2=2,2*C60>60),60,IF(skjermbilde!$D$2=2,2*C60)))) -> 2 | Z60: =IF(skjermbilde!$D$2=1,D60,IF(AND(skjermbilde!$D$2=2,2*D60>60),60,IF(skjermbilde!$D$2=2,2*D60))) -> 6.597025282 | AA60: =IF(skjermbilde!$D$2=1,E60,IF(AND(skjermbilde!$D$2=2,2*E60>60),60,IF(skjermbilde!$D$2=2,2*E60))) -> 10.54587408 | AB60: =IF(skjermbilde!$D$2=1,F60,IF(AND(skjermbilde!$D$2=2,2*F60>60),60,IF(skjermbilde!$D$2=2,2*F60))) -> 16.53281538 | AC60: =IF(skjermbilde!$D$2=1,G60,IF(AND(skjermbilde!$D$2=2,2*G60>60),60,IF(skjermbilde!$D$2=2,2*G60))) -> 27.1365465 | AD60: =IF(skjermbilde!$D$2=1,H60,IF(AND(skjermbilde!$D$2=2,2*H60>60),60,IF(skjermbilde!$D$2=2,2*H60))) -> 27.39506359 | AE60: =IF(skjermbilde!$D$2=1,I60,IF(AND(skjermbilde!$D$2=2,2*I60>60),60,IF(skjermbilde!$D$2=2,2*I60))) -> 16.62882392 | AF60: =IF(J60="","",IF(skjermbilde!$D$2=1,J60,IF(AND(skjermbilde!$D$2=2,2*J60>60),60,IF(skjermbilde!$D$2=2,2*J60)))) -> 11.94134147 | AI60: =+IF(ISNUMBER(skjermbilde!G$3-Y60-skjermbilde!G$6-4),skjermbilde!G$3-Y60-skjermbilde!G$6-4,0) -> -6 | AJ60: =+IF(ISNUMBER(skjermbilde!H$3-Z60-skjermbilde!H$6-4),skjermbilde!H$3-Z60-skjermbilde!H$6-4,0) -> -10.59702528 | AK60: =+IF(ISNUMBER(skjermbilde!I$3-AA60-skjermbilde!I$6-4),skjermbilde!I$3-AA60-skjermbilde!I$6-4,0) -> -14.54587408 | AL60: =+IF(ISNUMBER(skjermbilde!J$3-AB60-skjermbilde!J$6-4),skjermbilde!J$3-AB60-skjermbilde!J$6-4,0) -> -20.53281538 | AM60: =+IF(ISNUMBER(skjermbilde!K$3-AC60-skjermbilde!K$6-4),skjermbilde!K$3-AC60-skjermbilde!K$6-4,0) -> -31.1365465 | AN60: =+IF(ISNUMBER(skjermbilde!L$3-AD60-skjermbilde!L$6-4),skjermbilde!L$3-AD60-skjermbilde!L$6-4,0) -> -31.39506359 | AO60: =+IF(ISNUMBER(skjermbilde!M$3-AE60-skjermbilde!M$6-4),skjermbilde!M$3-AE60-skjermbilde!M$6-4,0) -> -20.62882392 | AP60: =+IF(ISNUMBER(skjermbilde!N$3-AF60-skjermbilde!N$6-4),skjermbilde!N$3-AF60-skjermbilde!N$6-4,0) -> -15.94134147 | AQ60: =IF(skjermbilde!$O$10=TRUE,10*LOG10(10^(0.1*(AI60+AI$12))+10^(0.1*(AJ60+AJ$12))+10^(0.1*(AK60+AK$12))+10^(0.1*(AL60+AL$12))+10^(0.1*(AM60+AM$12))+10^(0.1*(AN60+AN$12))+10^(0.1*(AO60+AO$12))+10^(0.1*(AP60+AP$12))),"") ->  | AR60: 1 | AS60: 1 | AT60: 1 | AU60: 1 | AV60: 1 | AW60: 1 | AX60: 1 | AY60: 1 | AZ60: 1 | BA60: 0 | BB60: =IF(skjermbilde!$D$4="",1,IF(P60=skjermbilde!$D$4,1,0)) -> 1 | BC60: =IF(skjermbilde!$D$4="",1,IF(U60="r",1,IF(P60=skjermbilde!$D$4,1,0))) -> 1 | BD60: =+IF(U60="r",1,IF(M60=skjermbilde!$D$3,1,0)) -> 1 | BE60: =+IF(U60="s",1,IF(N60=skjermbilde!$C$3,1,0)) -> 1 | BF60: =+IF(U60="s",1,IF(O60=skjermbilde!$C$4,1,0)) -> 1 | BG60: 1 | BH60: 0 | BL60: 45 | CC60: 45 | CR60: 45 | CY60: =IF(skjermbilde!$D$2=1,VLOOKUP($CS60,$CB$17:$CD$261,3,FALSE),CONCATENATE("2 x ",VLOOKUP($CS60,$CB$17:$CD$261,3,FALSE))) ->  | DI60: 1e-07 | DJ60: 1.0000001 | DK60: 1 | DL60: LKR-250-600 | DM60: 1.00000021 | DN60: LEV-160-500 | DO60: 0
A61: 46 | B61: =+IF(skjermbilde!$N$10=1,datagrunnlag!H61,CONCATENATE(datagrunnlag!H61,"-V")) -> LKR-315-600 | C61: =IF(skjermbilde!$N$10=1,datagrunnlag!I61,datagrunnlag!S61) -> 1 | D61: =IF(skjermbilde!$N$10=1,datagrunnlag!J61,datagrunnlag!T61) -> 1.862742035 | E61: =IF(skjermbilde!$N$10=1,datagrunnlag!K61,datagrunnlag!U61) -> 7.22302788 | F61: =IF(skjermbilde!$N$10=1,datagrunnlag!L61,datagrunnlag!V61) -> 13.19475597 | G61: =IF(skjermbilde!$N$10=1,datagrunnlag!M61,datagrunnlag!W61) -> 24.98350174 | H61: =IF(skjermbilde!$N$10=1,datagrunnlag!N61,datagrunnlag!X61) -> 39.52087952 | I61: =IF(skjermbilde!$N$10=1,datagrunnlag!O61,datagrunnlag!Y61) -> 27.14367617 | J61: =IF(skjermbilde!$N$10=1,datagrunnlag!P61,datagrunnlag!Z61) -> 18.354129 | K61: =+datagrunnlag!A61 -> LKR | L61: =+datagrunnlag!B61 -> s | M61: =+datagrunnlag!C61 -> 315 | P61: =++IF(datagrunnlag!F61="s","c",datagrunnlag!F61) -> r | Q61: =+datagrunnlag!G61 -> 600 | R61: =IF(skjermbilde!$N$10=1,datagrunnlag!Q61,datagrunnlag!AI61) -> 8.177561697e-05 | S61: 0 | T61: 201 | U61: r | V61: 0 | W61: 0 | X61: =IF(skjermbilde!$D$2=1,S61^2*R61,2*S61^2*R61) -> 0 | Y61: =IF(C61="","",IF(skjermbilde!$D$2=1,C61,IF(AND(skjermbilde!$D$2=2,2*C61>60),60,IF(skjermbilde!$D$2=2,2*C61)))) -> 1 | Z61: =IF(skjermbilde!$D$2=1,D61,IF(AND(skjermbilde!$D$2=2,2*D61>60),60,IF(skjermbilde!$D$2=2,2*D61))) -> 1.862742035 | AA61: =IF(skjermbilde!$D$2=1,E61,IF(AND(skjermbilde!$D$2=2,2*E61>60),60,IF(skjermbilde!$D$2=2,2*E61))) -> 7.22302788 | AB61: =IF(skjermbilde!$D$2=1,F61,IF(AND(skjermbilde!$D$2=2,2*F61>60),60,IF(skjermbilde!$D$2=2,2*F61))) -> 13.19475597 | AC61: =IF(skjermbilde!$D$2=1,G61,IF(AND(skjermbilde!$D$2=2,2*G61>60),60,IF(skjermbilde!$D$2=2,2*G61))) -> 24.98350174 | AD61: =IF(skjermbilde!$D$2=1,H61,IF(AND(skjermbilde!$D$2=2,2*H61>60),60,IF(skjermbilde!$D$2=2,2*H61))) -> 39.52087952 | AE61: =IF(skjermbilde!$D$2=1,I61,IF(AND(skjermbilde!$D$2=2,2*I61>60),60,IF(skjermbilde!$D$2=2,2*I61))) -> 27.14367617 | AF61: =IF(J61="","",IF(skjermbilde!$D$2=1,J61,IF(AND(skjermbilde!$D$2=2,2*J61>60),60,IF(skjermbilde!$D$2=2,2*J61)))) -> 18.354129 | AI61: =+IF(ISNUMBER(skjermbilde!G$3-Y61-skjermbilde!G$6-4),skjermbilde!G$3-Y61-skjermbilde!G$6-4,0) -> -5 | AJ61: =+IF(ISNUMBER(skjermbilde!H$3-Z61-skjermbilde!H$6-4),skjermbilde!H$3-Z61-skjermbilde!H$6-4,0) -> -5.862742035 | AK61: =+IF(ISNUMBER(skjermbilde!I$3-AA61-skjermbilde!I$6-4),skjermbilde!I$3-AA61-skjermbilde!I$6-4,0) -> -11.22302788 | AL61: =+IF(ISNUMBER(skjermbilde!J$3-AB61-skjermbilde!J$6-4),skjermbilde!J$3-AB61-skjermbilde!J$6-4,0) -> -17.19475597 | AM61: =+IF(ISNUMBER(skjermbilde!K$3-AC61-skjermbilde!K$6-4),skjermbilde!K$3-AC61-skjermbilde!K$6-4,0) -> -28.98350174 | AN61: =+IF(ISNUMBER(skjermbilde!L$3-AD61-skjermbilde!L$6-4),skjermbilde!L$3-AD61-skjermbilde!L$6-4,0) -> -43.52087952 | AO61: =+IF(ISNUMBER(skjermbilde!M$3-AE61-skjermbilde!M$6-4),skjermbilde!M$3-AE61-skjermbilde!M$6-4,0) -> -31.14367617 | AP61: =+IF(ISNUMBER(skjermbilde!N$3-AF61-skjermbilde!N$6-4),skjermbilde!N$3-AF61-skjermbilde!N$6-4,0) -> -22.354129 | AQ61: =IF(skjermbilde!$O$10=TRUE,10*LOG10(10^(0.1*(AI61+AI$12))+10^(0.1*(AJ61+AJ$12))+10^(0.1*(AK61+AK$12))+10^(0.1*(AL61+AL$12))+10^(0.1*(AM61+AM$12))+10^(0.1*(AN61+AN$12))+10^(0.1*(AO61+AO$12))+10^(0.1*(AP61+AP$12))),"") ->  | AR61: 1 | AS61: 1 | AT61: 1 | AU61: 1 | AV61: 1 | AW61: 1 | AX61: 1 | AY61: 1 | AZ61: 1 | BA61: 0 | BB61: =IF(skjermbilde!$D$4="",1,IF(P61=skjermbilde!$D$4,1,0)) -> 1 | BC61: =IF(skjermbilde!$D$4="",1,IF(U61="r",1,IF(P61=skjermbilde!$D$4,1,0))) -> 1 | BD61: =+IF(U61="r",1,IF(M61=skjermbilde!$D$3,1,0)) -> 1 | BE61: =+IF(U61="s",1,IF(N61=skjermbilde!$C$3,1,0)) -> 1 | BF61: =+IF(U61="s",1,IF(O61=skjermbilde!$C$4,1,0)) -> 1 | BG61: 1 | BH61: 0 | BL61: 46 | CC61: 46 | CR61: 46 | CY61: =IF(skjermbilde!$D$2=1,VLOOKUP($CS61,$CB$17:$CD$261,3,FALSE),CONCATENATE("2 x ",VLOOKUP($CS61,$CB$17:$CD$261,3,FALSE))) ->  | DI61: 1.1e-07 | DJ61: 1.00000011 | DK61: 1 | DL61: LKR-315-600 | DM61: 1.00000022 | DN61: LEV-200-500 | DO61: 0
A62: 47 | B62: =+IF(skjermbilde!$N$10=1,datagrunnlag!H62,CONCATENATE(datagrunnlag!H62,"-V")) -> LKR-400-600 | C62: =IF(skjermbilde!$N$10=1,datagrunnlag!I62,datagrunnlag!S62) -> 2 | D62: =IF(skjermbilde!$N$10=1,datagrunnlag!J62,datagrunnlag!T62) -> 4.642318722 | E62: =IF(skjermbilde!$N$10=1,datagrunnlag!K62,datagrunnlag!U62) -> 7.256851739 | F62: =IF(skjermbilde!$N$10=1,datagrunnlag!L62,datagrunnlag!V62) -> 12.14082126 | G62: =IF(skjermbilde!$N$10=1,datagrunnlag!M62,datagrunnlag!W62) -> 24.31067235 | H62: =IF(skjermbilde!$N$10=1,datagrunnlag!N62,datagrunnlag!X62) -> 29.65168306 | I62: =IF(skjermbilde!$N$10=1,datagrunnlag!O62,datagrunnlag!Y62) -> 18.25547927 | J62: =IF(skjermbilde!$N$10=1,datagrunnlag!P62,datagrunnlag!Z62) -> 11.28504092 | K62: =+datagrunnlag!A62 -> LKR | L62: =+datagrunnlag!B62 -> s | M62: =+datagrunnlag!C62 -> 400 | P62: =++IF(datagrunnlag!F62="s","c",datagrunnlag!F62) -> r | Q62: =+datagrunnlag!G62 -> 600 | R62: =IF(skjermbilde!$N$10=1,datagrunnlag!Q62,datagrunnlag!AI62) -> 3.958893247e-05 | S62: 0 | T62: 201 | U62: r | V62: 0 | W62: 0 | X62: =IF(skjermbilde!$D$2=1,S62^2*R62,2*S62^2*R62) -> 0 | Y62: =IF(C62="","",IF(skjermbilde!$D$2=1,C62,IF(AND(skjermbilde!$D$2=2,2*C62>60),60,IF(skjermbilde!$D$2=2,2*C62)))) -> 2 | Z62: =IF(skjermbilde!$D$2=1,D62,IF(AND(skjermbilde!$D$2=2,2*D62>60),60,IF(skjermbilde!$D$2=2,2*D62))) -> 4.642318722 | AA62: =IF(skjermbilde!$D$2=1,E62,IF(AND(skjermbilde!$D$2=2,2*E62>60),60,IF(skjermbilde!$D$2=2,2*E62))) -> 7.256851739 | AB62: =IF(skjermbilde!$D$2=1,F62,IF(AND(skjermbilde!$D$2=2,2*F62>60),60,IF(skjermbilde!$D$2=2,2*F62))) -> 12.14082126 | AC62: =IF(skjermbilde!$D$2=1,G62,IF(AND(skjermbilde!$D$2=2,2*G62>60),60,IF(skjermbilde!$D$2=2,2*G62))) -> 24.31067235 | AD62: =IF(skjermbilde!$D$2=1,H62,IF(AND(skjermbilde!$D$2=2,2*H62>60),60,IF(skjermbilde!$D$2=2,2*H62))) -> 29.65168306 | AE62: =IF(skjermbilde!$D$2=1,I62,IF(AND(skjermbilde!$D$2=2,2*I62>60),60,IF(skjermbilde!$D$2=2,2*I62))) -> 18.25547927 | AF62: =IF(J62="","",IF(skjermbilde!$D$2=1,J62,IF(AND(skjermbilde!$D$2=2,2*J62>60),60,IF(skjermbilde!$D$2=2,2*J62)))) -> 11.28504092 | AI62: =+IF(ISNUMBER(skjermbilde!G$3-Y62-skjermbilde!G$6-4),skjermbilde!G$3-Y62-skjermbilde!G$6-4,0) -> -6 | AJ62: =+IF(ISNUMBER(skjermbilde!H$3-Z62-skjermbilde!H$6-4),skjermbilde!H$3-Z62-skjermbilde!H$6-4,0) -> -8.642318722 | AK62: =+IF(ISNUMBER(skjermbilde!I$3-AA62-skjermbilde!I$6-4),skjermbilde!I$3-AA62-skjermbilde!I$6-4,0) -> -11.25685174 | AL62: =+IF(ISNUMBER(skjermbilde!J$3-AB62-skjermbilde!J$6-4),skjermbilde!J$3-AB62-skjermbilde!J$6-4,0) -> -16.14082126 | AM62: =+IF(ISNUMBER(skjermbilde!K$3-AC62-skjermbilde!K$6-4),skjermbilde!K$3-AC62-skjermbilde!K$6-4,0) -> -28.31067235 | AN62: =+IF(ISNUMBER(skjermbilde!L$3-AD62-skjermbilde!L$6-4),skjermbilde!L$3-AD62-skjermbilde!L$6-4,0) -> -33.65168306 | AO62: =+IF(ISNUMBER(skjermbilde!M$3-AE62-skjermbilde!M$6-4),skjermbilde!M$3-AE62-skjermbilde!M$6-4,0) -> -22.25547927 | AP62: =+IF(ISNUMBER(skjermbilde!N$3-AF62-skjermbilde!N$6-4),skjermbilde!N$3-AF62-skjermbilde!N$6-4,0) -> -15.28504092 | AQ62: =IF(skjermbilde!$O$10=TRUE,10*LOG10(10^(0.1*(AI62+AI$12))+10^(0.1*(AJ62+AJ$12))+10^(0.1*(AK62+AK$12))+10^(0.1*(AL62+AL$12))+10^(0.1*(AM62+AM$12))+10^(0.1*(AN62+AN$12))+10^(0.1*(AO62+AO$12))+10^(0.1*(AP62+AP$12))),"") ->  | AR62: 1 | AS62: 1 | AT62: 1 | AU62: 1 | AV62: 1 | AW62: 1 | AX62: 1 | AY62: 1 | AZ62: 1 | BA62: 0 | BB62: =IF(skjermbilde!$D$4="",1,IF(P62=skjermbilde!$D$4,1,0)) -> 1 | BC62: =IF(skjermbilde!$D$4="",1,IF(U62="r",1,IF(P62=skjermbilde!$D$4,1,0))) -> 1 | BD62: =+IF(U62="r",1,IF(M62=skjermbilde!$D$3,1,0)) -> 1 | BE62: =+IF(U62="s",1,IF(N62=skjermbilde!$C$3,1,0)) -> 1 | BF62: =+IF(U62="s",1,IF(O62=skjermbilde!$C$4,1,0)) -> 1 | BG62: 1 | BH62: 0 | BL62: 47 | CC62: 47 | CR62: 47 | CY62: =IF(skjermbilde!$D$2=1,VLOOKUP($CS62,$CB$17:$CD$261,3,FALSE),CONCATENATE("2 x ",VLOOKUP($CS62,$CB$17:$CD$261,3,FALSE))) ->  | DI62: 1.2e-07 | DJ62: 1.00000012 | DK62: 1 | DL62: LKR-400-600 | DM62: 1.00000022 | DN62: LEV-200-500 | DO62: 0
A63: 48 | B63: =+IF(skjermbilde!$N$10=1,datagrunnlag!H63,CONCATENATE(datagrunnlag!H63,"-V")) -> LKR-500-600 | C63: =IF(skjermbilde!$N$10=1,datagrunnlag!I63,datagrunnlag!S63) -> 2 | D63: =IF(skjermbilde!$N$10=1,datagrunnlag!J63,datagrunnlag!T63) -> 4.688095914 | E63: =IF(skjermbilde!$N$10=1,datagrunnlag!K63,datagrunnlag!U63) -> 8.704782928 | F63: =IF(skjermbilde!$N$10=1,datagrunnlag!L63,datagrunnlag!V63) -> 15.99555186 | G63: =IF(skjermbilde!$N$10=1,datagrunnlag!M63,datagrunnlag!W63) -> 26.00702994 | H63: =IF(skjermbilde!$N$10=1,datagrunnlag!N63,datagrunnlag!X63) -> 26.25820002 | I63: =IF(skjermbilde!$N$10=1,datagrunnlag!O63,datagrunnlag!Y63) -> 18.62398536 | J63: =IF(skjermbilde!$N$10=1,datagrunnlag!P63,datagrunnlag!Z63) -> 10.88083294 | K63: =+datagrunnlag!A63 -> LKR | L63: =+datagrunnlag!B63 -> s | M63: =+datagrunnlag!C63 -> 500 | P63: =++IF(datagrunnlag!F63="s","c",datagrunnlag!F63) -> r | Q63: =+datagrunnlag!G63 -> 600 | R63: =IF(skjermbilde!$N$10=1,datagrunnlag!Q63,datagrunnlag!AI63) -> 2.555555556e-05 | S63: 0 | T63: 201 | U63: r | V63: 0 | W63: 0 | X63: =IF(skjermbilde!$D$2=1,S63^2*R63,2*S63^2*R63) -> 0 | Y63: =IF(C63="","",IF(skjermbilde!$D$2=1,C63,IF(AND(skjermbilde!$D$2=2,2*C63>60),60,IF(skjermbilde!$D$2=2,2*C63)))) -> 2 | Z63: =IF(skjermbilde!$D$2=1,D63,IF(AND(skjermbilde!$D$2=2,2*D63>60),60,IF(skjermbilde!$D$2=2,2*D63))) -> 4.688095914 | AA63: =IF(skjermbilde!$D$2=1,E63,IF(AND(skjermbilde!$D$2=2,2*E63>60),60,IF(skjermbilde!$D$2=2,2*E63))) -> 8.704782928 | AB63: =IF(skjermbilde!$D$2=1,F63,IF(AND(skjermbilde!$D$2=2,2*F63>60),60,IF(skjermbilde!$D$2=2,2*F63))) -> 15.99555186 | AC63: =IF(skjermbilde!$D$2=1,G63,IF(AND(skjermbilde!$D$2=2,2*G63>60),60,IF(skjermbilde!$D$2=2,2*G63))) -> 26.00702994 | AD63: =IF(skjermbilde!$D$2=1,H63,IF(AND(skjermbilde!$D$2=2,2*H63>60),60,IF(skjermbilde!$D$2=2,2*H63))) -> 26.25820002 | AE63: =IF(skjermbilde!$D$2=1,I63,IF(AND(skjermbilde!$D$2=2,2*I63>60),60,IF(skjermbilde!$D$2=2,2*I63))) -> 18.62398536 | AF63: =IF(J63="","",IF(skjermbilde!$D$2=1,J63,IF(AND(skjermbilde!$D$2=2,2*J63>60),60,IF(skjermbilde!$D$2=2,2*J63)))) -> 10.88083294 | AI63: =+IF(ISNUMBER(skjermbilde!G$3-Y63-skjermbilde!G$6-4),skjermbilde!G$3-Y63-skjermbilde!G$6-4,0) -> -6 | AJ63: =+IF(ISNUMBER(skjermbilde!H$3-Z63-skjermbilde!H$6-4),skjermbilde!H$3-Z63-skjermbilde!H$6-4,0) -> -8.688095914 | AK63: =+IF(ISNUMBER(skjermbilde!I$3-AA63-skjermbilde!I$6-4),skjermbilde!I$3-AA63-skjermbilde!I$6-4,0) -> -12.70478293 | AL63: =+IF(ISNUMBER(skjermbilde!J$3-AB63-skjermbilde!J$6-4),skjermbilde!J$3-AB63-skjermbilde!J$6-4,0) -> -19.99555186 | AM63: =+IF(ISNUMBER(skjermbilde!K$3-AC63-skjermbilde!K$6-4),skjermbilde!K$3-AC63-skjermbilde!K$6-4,0) -> -30.00702994 | AN63: =+IF(ISNUMBER(skjermbilde!L$3-AD63-skjermbilde!L$6-4),skjermbilde!L$3-AD63-skjermbilde!L$6-4,0) -> -30.25820002 | AO63: =+IF(ISNUMBER(skjermbilde!M$3-AE63-skjermbilde!M$6-4),skjermbilde!M$3-AE63-skjermbilde!M$6-4,0) -> -22.62398536 | AP63: =+IF(ISNUMBER(skjermbilde!N$3-AF63-skjermbilde!N$6-4),skjermbilde!N$3-AF63-skjermbilde!N$6-4,0) -> -14.88083294 | AQ63: =IF(skjermbilde!$O$10=TRUE,10*LOG10(10^(0.1*(AI63+AI$12))+10^(0.1*(AJ63+AJ$12))+10^(0.1*(AK63+AK$12))+10^(0.1*(AL63+AL$12))+10^(0.1*(AM63+AM$12))+10^(0.1*(AN63+AN$12))+10^(0.1*(AO63+AO$12))+10^(0.1*(AP63+AP$12))),"") ->  | AR63: 1 | AS63: 1 | AT63: 1 | AU63: 1 | AV63: 1 | AW63: 1 | AX63: 1 | AY63: 1 | AZ63: 1 | BA63: 0 | BB63: =IF(skjermbilde!$D$4="",1,IF(P63=skjermbilde!$D$4,1,0)) -> 1 | BC63: =IF(skjermbilde!$D$4="",1,IF(U63="r",1,IF(P63=skjermbilde!$D$4,1,0))) -> 1 | BD63: =+IF(U63="r",1,IF(M63=skjermbilde!$D$3,1,0)) -> 1 | BE63: =+IF(U63="s",1,IF(N63=skjermbilde!$C$3,1,0)) -> 1 | BF63: =+IF(U63="s",1,IF(O63=skjermbilde!$C$4,1,0)) -> 1 | BG63: 1 | BH63: 0 | BL63: 48 | CC63: 48 | CR63: 48 | CY63: =IF(skjermbilde!$D$2=1,VLOOKUP($CS63,$CB$17:$CD$261,3,FALSE),CONCATENATE("2 x ",VLOOKUP($CS63,$CB$17:$CD$261,3,FALSE))) ->  | DI63: 1.3e-07 | DJ63: 1.00000013 | DK63: 1 | DL63: LKR-500-600 | DM63: 1.00000023 | DN63: LEV-250-500 | DO63: 0
A64: 49 | B64: =+IF(skjermbilde!$N$10=1,datagrunnlag!H64,CONCATENATE(datagrunnlag!H64,"-V")) -> LKR-630-600 | C64: =IF(skjermbilde!$N$10=1,datagrunnlag!I64,datagrunnlag!S64) -> 1.190377489 | D64: =IF(skjermbilde!$N$10=1,datagrunnlag!J64,datagrunnlag!T64) -> 6.056532957 | E64: =IF(skjermbilde!$N$10=1,datagrunnlag!K64,datagrunnlag!U64) -> 8.190980617 | F64: =IF(skjermbilde!$N$10=1,datagrunnlag!L64,datagrunnlag!V64) -> 14.94521066 | G64: =IF(skjermbilde!$N$10=1,datagrunnlag!M64,datagrunnlag!W64) -> 24.55527757 | H64: =IF(skjermbilde!$N$10=1,datagrunnlag!N64,datagrunnlag!X64) -> 18.40264226 | I64: =IF(skjermbilde!$N$10=1,datagrunnlag!O64,datagrunnlag!Y64) -> 13.20086463 | J64: =IF(skjermbilde!$N$10=1,datagrunnlag!P64,datagrunnlag!Z64) -> 8.92282104 | K64: =+datagrunnlag!A64 -> LKR | L64: =+datagrunnlag!B64 -> s | M64: =+datagrunnlag!C64 -> 630 | P64: =++IF(datagrunnlag!F64="s","c",datagrunnlag!F64) -> r | Q64: =+datagrunnlag!G64 -> 600 | R64: =IF(skjermbilde!$N$10=1,datagrunnlag!Q64,datagrunnlag!AI64) -> 8.333333333e-06 | S64: 0 | T64: 201 | U64: r | V64: 0 | W64: 0 | X64: =IF(skjermbilde!$D$2=1,S64^2*R64,2*S64^2*R64) -> 0 | Y64: =IF(C64="","",IF(skjermbilde!$D$2=1,C64,IF(AND(skjermbilde!$D$2=2,2*C64>60),60,IF(skjermbilde!$D$2=2,2*C64)))) -> 1.190377489 | Z64: =IF(skjermbilde!$D$2=1,D64,IF(AND(skjermbilde!$D$2=2,2*D64>60),60,IF(skjermbilde!$D$2=2,2*D64))) -> 6.056532957 | AA64: =IF(skjermbilde!$D$2=1,E64,IF(AND(skjermbilde!$D$2=2,2*E64>60),60,IF(skjermbilde!$D$2=2,2*E64))) -> 8.190980617 | AB64: =IF(skjermbilde!$D$2=1,F64,IF(AND(skjermbilde!$D$2=2,2*F64>60),60,IF(skjermbilde!$D$2=2,2*F64))) -> 14.94521066 | AC64: =IF(skjermbilde!$D$2=1,G64,IF(AND(skjermbilde!$D$2=2,2*G64>60),60,IF(skjermbilde!$D$2=2,2*G64))) -> 24.55527757 | AD64: =IF(skjermbilde!$D$2=1,H64,IF(AND(skjermbilde!$D$2=2,2*H64>60),60,IF(skjermbilde!$D$2=2,2*H64))) -> 18.40264226 | AE64: =IF(skjermbilde!$D$2=1,I64,IF(AND(skjermbilde!$D$2=2,2*I64>60),60,IF(skjermbilde!$D$2=2,2*I64))) -> 13.20086463 | AF64: =IF(J64="","",IF(skjermbilde!$D$2=1,J64,IF(AND(skjermbilde!$D$2=2,2*J64>60),60,IF(skjermbilde!$D$2=2,2*J64)))) -> 8.92282104 | AI64: =+IF(ISNUMBER(skjermbilde!G$3-Y64-skjermbilde!G$6-4),skjermbilde!G$3-Y64-skjermbilde!G$6-4,0) -> -5.190377489 | AJ64: =+IF(ISNUMBER(skjermbilde!H$3-Z64-skjermbilde!H$6-4),skjermbilde!H$3-Z64-skjermbilde!H$6-4,0) -> -10.05653296 | AK64: =+IF(ISNUMBER(skjermbilde!I$3-AA64-skjermbilde!I$6-4),skjermbilde!I$3-AA64-skjermbilde!I$6-4,0) -> -12.19098062 | AL64: =+IF(ISNUMBER(skjermbilde!J$3-AB64-skjermbilde!J$6-4),skjermbilde!J$3-AB64-skjermbilde!J$6-4,0) -> -18.94521066 | AM64: =+IF(ISNUMBER(skjermbilde!K$3-AC64-skjermbilde!K$6-4),skjermbilde!K$3-AC64-skjermbilde!K$6-4,0) -> -28.55527757 | AN64: =+IF(ISNUMBER(skjermbilde!L$3-AD64-skjermbilde!L$6-4),skjermbilde!L$3-AD64-skjermbilde!L$6-4,0) -> -22.40264226 | AO64: =+IF(ISNUMBER(skjermbilde!M$3-AE64-skjermbilde!M$6-4),skjermbilde!M$3-AE64-skjermbilde!M$6-4,0) -> -17.20086463 | AP64: =+IF(ISNUMBER(skjermbilde!N$3-AF64-skjermbilde!N$6-4),skjermbilde!N$3-AF64-skjermbilde!N$6-4,0) -> -12.92282104 | AQ64: =IF(skjermbilde!$O$10=TRUE,10*LOG10(10^(0.1*(AI64+AI$12))+10^(0.1*(AJ64+AJ$12))+10^(0.1*(AK64+AK$12))+10^(0.1*(AL64+AL$12))+10^(0.1*(AM64+AM$12))+10^(0.1*(AN64+AN$12))+10^(0.1*(AO64+AO$12))+10^(0.1*(AP64+AP$12))),"") ->  | AR64: 1 | AS64: 1 | AT64: 1 | AU64: 1 | AV64: 1 | AW64: 1 | AX64: 1 | AY64: 1 | AZ64: 1 | BA64: 0 | BB64: =IF(skjermbilde!$D$4="",1,IF(P64=skjermbilde!$D$4,1,0)) -> 1 | BC64: =IF(skjermbilde!$D$4="",1,IF(U64="r",1,IF(P64=skjermbilde!$D$4,1,0))) -> 1 | BD64: =+IF(U64="r",1,IF(M64=skjermbilde!$D$3,1,0)) -> 1 | BE64: =+IF(U64="s",1,IF(N64=skjermbilde!$C$3,1,0)) -> 1 | BF64: =+IF(U64="s",1,IF(O64=skjermbilde!$C$4,1,0)) -> 1 | BG64: 1 | BH64: 0 | BL64: 49 | CC64: 49 | CR64: 49 | CY64: =IF(skjermbilde!$D$2=1,VLOOKUP($CS64,$CB$17:$CD$261,3,FALSE),CONCATENATE("2 x ",VLOOKUP($CS64,$CB$17:$CD$261,3,FALSE))) ->  | DI64: 1.4e-07 | DJ64: 1.00000014 | DK64: 1 | DL64: LKR-630-600 | DM64: 1.00000023 | DN64: LEV-250-500 | DO64: 0
A65: 50 | B65: =+IF(skjermbilde!$N$10=1,datagrunnlag!H65,CONCATENATE(datagrunnlag!H65,"-V")) -> 0 | C65: =IF(skjermbilde!$N$10=1,datagrunnlag!I65,datagrunnlag!S65) -> 0 | D65: =IF(skjermbilde!$N$10=1,datagrunnlag!J65,datagrunnlag!T65) -> 0 | E65: =IF(skjermbilde!$N$10=1,datagrunnlag!K65,datagrunnlag!U65) -> 0 | F65: =IF(skjermbilde!$N$10=1,datagrunnlag!L65,datagrunnlag!V65) -> 0 | G65: =IF(skjermbilde!$N$10=1,datagrunnlag!M65,datagrunnlag!W65) -> 0 | H65: =IF(skjermbilde!$N$10=1,datagrunnlag!N65,datagrunnlag!X65) -> 0 | I65: =IF(skjermbilde!$N$10=1,datagrunnlag!O65,datagrunnlag!Y65) -> 0 | J65: =IF(skjermbilde!$N$10=1,datagrunnlag!P65,datagrunnlag!Z65) -> 0 | K65: =+datagrunnlag!A65 -> 0 | L65: =+datagrunnlag!B65 -> 0 | M65: =+datagrunnlag!C65 -> 0 | P65: =++IF(datagrunnlag!F65="s","c",datagrunnlag!F65) -> 0 | Q65: =+datagrunnlag!G65 -> 0 | R65: =IF(skjermbilde!$N$10=1,datagrunnlag!Q65,datagrunnlag!AI65) -> 0 | S65: 0 | T65: 201 | U65: r | V65: 0 | W65: 0 | X65: =IF(skjermbilde!$D$2=1,S65^2*R65,2*S65^2*R65) -> 0 | Y65: =IF(C65="","",IF(skjermbilde!$D$2=1,C65,IF(AND(skjermbilde!$D$2=2,2*C65>60),60,IF(skjermbilde!$D$2=2,2*C65)))) -> 0 | Z65: =IF(skjermbilde!$D$2=1,D65,IF(AND(skjermbilde!$D$2=2,2*D65>60),60,IF(skjermbilde!$D$2=2,2*D65))) -> 0 | AA65: =IF(skjermbilde!$D$2=1,E65,IF(AND(skjermbilde!$D$2=2,2*E65>60),60,IF(skjermbilde!$D$2=2,2*E65))) -> 0 | AB65: =IF(skjermbilde!$D$2=1,F65,IF(AND(skjermbilde!$D$2=2,2*F65>60),60,IF(skjermbilde!$D$2=2,2*F65))) -> 0 | AC65: =IF(skjermbilde!$D$2=1,G65,IF(AND(skjermbilde!$D$2=2,2*G65>60),60,IF(skjermbilde!$D$2=2,2*G65))) -> 0 | AD65: =IF(skjermbilde!$D$2=1,H65,IF(AND(skjermbilde!$D$2=2,2*H65>60),60,IF(skjermbilde!$D$2=2,2*H65))) -> 0 | AE65: =IF(skjermbilde!$D$2=1,I65,IF(AND(skjermbilde!$D$2=2,2*I65>60),60,IF(skjermbilde!$D$2=2,2*I65))) -> 0 | AF65: =IF(J65="","",IF(skjermbilde!$D$2=1,J65,IF(AND(skjermbilde!$D$2=2,2*J65>60),60,IF(skjermbilde!$D$2=2,2*J65)))) -> 0 | AI65: =+IF(ISNUMBER(skjermbilde!G$3-Y65-skjermbilde!G$6-4),skjermbilde!G$3-Y65-skjermbilde!G$6-4,0) -> -4 | AJ65: =+IF(ISNUMBER(skjermbilde!H$3-Z65-skjermbilde!H$6-4),skjermbilde!H$3-Z65-skjermbilde!H$6-4,0) -> -4 | AK65: =+IF(ISNUMBER(skjermbilde!I$3-AA65-skjermbilde!I$6-4),skjermbilde!I$3-AA65-skjermbilde!I$6-4,0) -> -4 | AL65: =+IF(ISNUMBER(skjermbilde!J$3-AB65-skjermbilde!J$6-4),skjermbilde!J$3-AB65-skjermbilde!J$6-4,0) -> -4 | AM65: =+IF(ISNUMBER(skjermbilde!K$3-AC65-skjermbilde!K$6-4),skjermbilde!K$3-AC65-skjermbilde!K$6-4,0) -> -4 | AN65: =+IF(ISNUMBER(skjermbilde!L$3-AD65-skjermbilde!L$6-4),skjermbilde!L$3-AD65-skjermbilde!L$6-4,0) -> -4 | AO65: =+IF(ISNUMBER(skjermbilde!M$3-AE65-skjermbilde!M$6-4),skjermbilde!M$3-AE65-skjermbilde!M$6-4,0) -> -4 | AP65: =+IF(ISNUMBER(skjermbilde!N$3-AF65-skjermbilde!N$6-4),skjermbilde!N$3-AF65-skjermbilde!N$6-4,0) -> -4 | AQ65: =IF(skjermbilde!$O$10=TRUE,10*LOG10(10^(0.1*(AI65+AI$12))+10^(0.1*(AJ65+AJ$12))+10^(0.1*(AK65+AK$12))+10^(0.1*(AL65+AL$12))+10^(0.1*(AM65+AM$12))+10^(0.1*(AN65+AN$12))+10^(0.1*(AO65+AO$12))+10^(0.1*(AP65+AP$12))),"") ->  | AR65: 1 | AS65: 1 | AT65: 1 | AU65: 1 | AV65: 1 | AW65: 1 | AX65: 1 | AY65: 1 | AZ65: 1 | BA65: 0 | BB65: =IF(skjermbilde!$D$4="",1,IF(P65=skjermbilde!$D$4,1,0)) -> 0 | BC65: =IF(skjermbilde!$D$4="",1,IF(U65="r",1,IF(P65=skjermbilde!$D$4,1,0))) -> 1 | BD65: =+IF(U65="r",1,IF(M65=skjermbilde!$D$3,1,0)) -> 1 | BE65: =+IF(U65="s",1,IF(N65=skjermbilde!$C$3,1,0)) -> 1 | BF65: =+IF(U65="s",1,IF(O65=skjermbilde!$C$4,1,0)) -> 1 | BG65: 1 | BH65: 0 | BL65: 50 | CC65: 50 | CR65: 50 | CY65: =IF(skjermbilde!$D$2=1,VLOOKUP($CS65,$CB$17:$CD$261,3,FALSE),CONCATENATE("2 x ",VLOOKUP($CS65,$CB$17:$CD$261,3,FALSE))) ->  | DI65: =0.00000001+DI64 -> 1.5e-07 | DJ65: 1.00000015 | DK65: 1 | DL65: 0 | DM65: 1.00000024 | DN65: LEV-315-500 | DO65: 0
A66: 51 | B66: =+IF(skjermbilde!$N$10=1,datagrunnlag!H66,CONCATENATE(datagrunnlag!H66,"-V")) -> 0 | C66: =IF(skjermbilde!$N$10=1,datagrunnlag!I66,datagrunnlag!S66) -> 0 | D66: =IF(skjermbilde!$N$10=1,datagrunnlag!J66,datagrunnlag!T66) -> 0 | E66: =IF(skjermbilde!$N$10=1,datagrunnlag!K66,datagrunnlag!U66) -> 0 | F66: =IF(skjermbilde!$N$10=1,datagrunnlag!L66,datagrunnlag!V66) -> 0 | G66: =IF(skjermbilde!$N$10=1,datagrunnlag!M66,datagrunnlag!W66) -> 0 | H66: =IF(skjermbilde!$N$10=1,datagrunnlag!N66,datagrunnlag!X66) -> 0 | I66: =IF(skjermbilde!$N$10=1,datagrunnlag!O66,datagrunnlag!Y66) -> 0 | J66: =IF(skjermbilde!$N$10=1,datagrunnlag!P66,datagrunnlag!Z66) -> 0 | K66: =+datagrunnlag!A66 -> 0 | L66: =+datagrunnlag!B66 -> 0 | M66: =+datagrunnlag!C66 -> 0 | P66: =++IF(datagrunnlag!F66="s","c",datagrunnlag!F66) -> 0 | Q66: =+datagrunnlag!G66 -> 0 | R66: =IF(skjermbilde!$N$10=1,datagrunnlag!Q66,datagrunnlag!AI66) -> 0 | S66: 0 | T66: 201 | U66: r | V66: 0 | W66: 0 | X66: =IF(skjermbilde!$D$2=1,S66^2*R66,2*S66^2*R66) -> 0 | Y66: =IF(C66="","",IF(skjermbilde!$D$2=1,C66,IF(AND(skjermbilde!$D$2=2,2*C66>60),60,IF(skjermbilde!$D$2=2,2*C66)))) -> 0 | Z66: =IF(skjermbilde!$D$2=1,D66,IF(AND(skjermbilde!$D$2=2,2*D66>60),60,IF(skjermbilde!$D$2=2,2*D66))) -> 0 | AA66: =IF(skjermbilde!$D$2=1,E66,IF(AND(skjermbilde!$D$2=2,2*E66>60),60,IF(skjermbilde!$D$2=2,2*E66))) -> 0 | AB66: =IF(skjermbilde!$D$2=1,F66,IF(AND(skjermbilde!$D$2=2,2*F66>60),60,IF(skjermbilde!$D$2=2,2*F66))) -> 0 | AC66: =IF(skjermbilde!$D$2=1,G66,IF(AND(skjermbilde!$D$2=2,2*G66>60),60,IF(skjermbilde!$D$2=2,2*G66))) -> 0 | AD66: =IF(skjermbilde!$D$2=1,H66,IF(AND(skjermbilde!$D$2=2,2*H66>60),60,IF(skjermbilde!$D$2=2,2*H66))) -> 0 | AE66: =IF(skjermbilde!$D$2=1,I66,IF(AND(skjermbilde!$D$2=2,2*I66>60),60,IF(skjermbilde!$D$2=2,2*I66))) -> 0 | AF66: =IF(J66="","",IF(skjermbilde!$D$2=1,J66,IF(AND(skjermbilde!$D$2=2,2*J66>60),60,IF(skjermbilde!$D$2=2,2*J66)))) -> 0 | AI66: =+IF(ISNUMBER(skjermbilde!G$3-Y66-skjermbilde!G$6-4),skjermbilde!G$3-Y66-skjermbilde!G$6-4,0) -> -4 | AJ66: =+IF(ISNUMBER(skjermbilde!H$3-Z66-skjermbilde!H$6-4),skjermbilde!H$3-Z66-skjermbilde!H$6-4,0) -> -4 | AK66: =+IF(ISNUMBER(skjermbilde!I$3-AA66-skjermbilde!I$6-4),skjermbilde!I$3-AA66-skjermbilde!I$6-4,0) -> -4 | AL66: =+IF(ISNUMBER(skjermbilde!J$3-AB66-skjermbilde!J$6-4),skjermbilde!J$3-AB66-skjermbilde!J$6-4,0) -> -4 | AM66: =+IF(ISNUMBER(skjermbilde!K$3-AC66-skjermbilde!K$6-4),skjermbilde!K$3-AC66-skjermbilde!K$6-4,0) -> -4 | AN66: =+IF(ISNUMBER(skjermbilde!L$3-AD66-skjermbilde!L$6-4),skjermbilde!L$3-AD66-skjermbilde!L$6-4,0) -> -4 | AO66: =+IF(ISNUMBER(skjermbilde!M$3-AE66-skjermbilde!M$6-4),skjermbilde!M$3-AE66-skjermbilde!M$6-4,0) -> -4 | AP66: =+IF(ISNUMBER(skjermbilde!N$3-AF66-skjermbilde!N$6-4),skjermbilde!N$3-AF66-skjermbilde!N$6-4,0) -> -4 | AQ66: =IF(skjermbilde!$O$10=TRUE,10*LOG10(10^(0.1*(AI66+AI$12))+10^(0.1*(AJ66+AJ$12))+10^(0.1*(AK66+AK$12))+10^(0.1*(AL66+AL$12))+10^(0.1*(AM66+AM$12))+10^(0.1*(AN66+AN$12))+10^(0.1*(AO66+AO$12))+10^(0.1*(AP66+AP$12))),"") ->  | AR66: =+IF(AND(X66-1<T66,X66<201),1,0) -> 1 | AS66: =+IF(Y66>Y$11,1,0) -> 1 | AT66: 1 | AU66: 1 | AV66: 1 | AW66: 1 | AX66: 1 | AY66: 1 | AZ66: 1 | BA66: =+IF(U66=L66,1,0) -> 0 | BB66: =IF(skjermbilde!$D$4="",1,IF(P66=skjermbilde!$D$4,1,0)) -> 0 | BC66: =IF(skjermbilde!$D$4="",1,IF(U66="r",1,IF(P66=skjermbilde!$D$4,1,0))) -> 1 | BD66: =+IF(U66="r",1,IF(M66=skjermbilde!$D$3,1,0)) -> 1 | BE66: =+IF(U66="s",1,IF(N66=skjermbilde!$C$3,1,0)) -> 1 | BF66: =+IF(U66="s",1,IF(O66=skjermbilde!$C$4,1,0)) -> 1 | BG66: =+IF(OR(W66=Q66,W66=0),1,0) -> 1 | BH66: =+IF(SUM(AR66:BG66)=16,1,0) -> 0 | BL66: =+A66 -> 51 | CB66: =+IF($BH66=1,$X66+DI66,"") ->  | CC66: =+BL66 -> 51 | CR66: 51 | CY66: =IF(skjermbilde!$D$2=1,VLOOKUP($CS66,$CB$17:$CD$261,3,FALSE),CONCATENATE("2 x ",VLOOKUP($CS66,$CB$17:$CD$261,3,FALSE))) ->  | DI66: =0.00000001+DI65 -> 1.6e-07 | DJ66: =IF(ISNUMBER(DK66),DK66+DI66,"") -> 1.00000016 | DK66: =SEARCH($DL$14,B66,1) -> 1 | DL66: =IF(ISNUMBER(DK66),B66,"") -> 0 | DM66: 1.00000024 | DN66: LEV-315-500 | DO66: 0
A67: 52 | B67: =+IF(skjermbilde!$N$10=1,datagrunnlag!H67,CONCATENATE(datagrunnlag!H67,"-V")) -> 0 | C67: =IF(skjermbilde!$N$10=1,datagrunnlag!I67,datagrunnlag!S67) -> 0 | D67: =IF(skjermbilde!$N$10=1,datagrunnlag!J67,datagrunnlag!T67) -> 0 | E67: =IF(skjermbilde!$N$10=1,datagrunnlag!K67,datagrunnlag!U67) -> 0 | F67: =IF(skjermbilde!$N$10=1,datagrunnlag!L67,datagrunnlag!V67) -> 0 | G67: =IF(skjermbilde!$N$10=1,datagrunnlag!M67,datagrunnlag!W67) -> 0 | H67: =IF(skjermbilde!$N$10=1,datagrunnlag!N67,datagrunnlag!X67) -> 0 | I67: =IF(skjermbilde!$N$10=1,datagrunnlag!O67,datagrunnlag!Y67) -> 0 | J67: =IF(skjermbilde!$N$10=1,datagrunnlag!P67,datagrunnlag!Z67) -> 0 | K67: =+datagrunnlag!A67 -> 0 | L67: =+datagrunnlag!B67 -> 0 | M67: =+datagrunnlag!C67 -> 0 | P67: =++IF(datagrunnlag!F67="s","c",datagrunnlag!F67) -> 0 | Q67: =+datagrunnlag!G67 -> 0 | R67: =IF(skjermbilde!$N$10=1,datagrunnlag!Q67,datagrunnlag!AI67) -> 0 | S67: 0 | T67: 201 | U67: r | V67: 0 | W67: 0 | X67: =IF(skjermbilde!$D$2=1,S67^2*R67,2*S67^2*R67) -> 0 | Y67: =IF(C67="","",IF(skjermbilde!$D$2=1,C67,IF(AND(skjermbilde!$D$2=2,2*C67>60),60,IF(skjermbilde!$D$2=2,2*C67)))) -> 0 | Z67: =IF(skjermbilde!$D$2=1,D67,IF(AND(skjermbilde!$D$2=2,2*D67>60),60,IF(skjermbilde!$D$2=2,2*D67))) -> 0 | AA67: =IF(skjermbilde!$D$2=1,E67,IF(AND(skjermbilde!$D$2=2,2*E67>60),60,IF(skjermbilde!$D$2=2,2*E67))) -> 0 | AB67: =IF(skjermbilde!$D$2=1,F67,IF(AND(skjermbilde!$D$2=2,2*F67>60),60,IF(skjermbilde!$D$2=2,2*F67))) -> 0 | AC67: =IF(skjermbilde!$D$2=1,G67,IF(AND(skjermbilde!$D$2=2,2*G67>60),60,IF(skjermbilde!$D$2=2,2*G67))) -> 0 | AD67: =IF(skjermbilde!$D$2=1,H67,IF(AND(skjermbilde!$D$2=2,2*H67>60),60,IF(skjermbilde!$D$2=2,2*H67))) -> 0 | AE67: =IF(skjermbilde!$D$2=1,I67,IF(AND(skjermbilde!$D$2=2,2*I67>60),60,IF(skjermbilde!$D$2=2,2*I67))) -> 0 | AF67: =IF(J67="","",IF(skjermbilde!$D$2=1,J67,IF(AND(skjermbilde!$D$2=2,2*J67>60),60,IF(skjermbilde!$D$2=2,2*J67)))) -> 0 | AI67: =+IF(ISNUMBER(skjermbilde!G$3-Y67-skjermbilde!G$6-4),skjermbilde!G$3-Y67-skjermbilde!G$6-4,0) -> -4 | AJ67: =+IF(ISNUMBER(skjermbilde!H$3-Z67-skjermbilde!H$6-4),skjermbilde!H$3-Z67-skjermbilde!H$6-4,0) -> -4 | AK67: =+IF(ISNUMBER(skjermbilde!I$3-AA67-skjermbilde!I$6-4),skjermbilde!I$3-AA67-skjermbilde!I$6-4,0) -> -4 | AL67: =+IF(ISNUMBER(skjermbilde!J$3-AB67-skjermbilde!J$6-4),skjermbilde!J$3-AB67-skjermbilde!J$6-4,0) -> -4 | AM67: =+IF(ISNUMBER(skjermbilde!K$3-AC67-skjermbilde!K$6-4),skjermbilde!K$3-AC67-skjermbilde!K$6-4,0) -> -4 | AN67: =+IF(ISNUMBER(skjermbilde!L$3-AD67-skjermbilde!L$6-4),skjermbilde!L$3-AD67-skjermbilde!L$6-4,0) -> -4 | AO67: =+IF(ISNUMBER(skjermbilde!M$3-AE67-skjermbilde!M$6-4),skjermbilde!M$3-AE67-skjermbilde!M$6-4,0) -> -4 | AP67: =+IF(ISNUMBER(skjermbilde!N$3-AF67-skjermbilde!N$6-4),skjermbilde!N$3-AF67-skjermbilde!N$6-4,0) -> -4 | AQ67: =IF(skjermbilde!$O$10=TRUE,10*LOG10(10^(0.1*(AI67+AI$12))+10^(0.1*(AJ67+AJ$12))+10^(0.1*(AK67+AK$12))+10^(0.1*(AL67+AL$12))+10^(0.1*(AM67+AM$12))+10^(0.1*(AN67+AN$12))+10^(0.1*(AO67+AO$12))+10^(0.1*(AP67+AP$12))),"") ->  | AR67: =+IF(AND(X67-1<T67,X67<201),1,0) -> 1 | AS67: 1 | AT67: 1 | AU67: 1 | AV67: 1 | AW67: 1 | AX67: 1 | AY67: 1 | AZ67: 1 | BA67: =+IF(U67=L67,1,0) -> 0 | BB67: =IF(skjermbilde!$D$4="",1,IF(P67=skjermbilde!$D$4,1,0)) -> 0 | BC67: =IF(skjermbilde!$D$4="",1,IF(U67="r",1,IF(P67=skjermbilde!$D$4,1,0))) -> 1 | BD67: =+IF(U67="r",1,IF(M67=skjermbilde!$D$3,1,0)) -> 1 | BE67: =+IF(U67="s",1,IF(N67=skjermbilde!$C$3,1,0)) -> 1 | BF67: =+IF(U67="s",1,IF(O67=skjermbilde!$C$4,1,0)) -> 1 | BG67: =+IF(OR(W67=Q67,W67=0),1,0) -> 1 | BH67: =+IF(SUM(AR67:BG67)=16,1,0) -> 0 | BL67: =+A67 -> 52 | CB67: =+IF($BH67=1,$X67+DI67,"") ->  | CC67: =+BL67 -> 52 | CR67: 52 | CY67: =IF(skjermbilde!$D$2=1,VLOOKUP($CS67,$CB$17:$CD$261,3,FALSE),CONCATENATE("2 x ",VLOOKUP($CS67,$CB$17:$CD$261,3,FALSE))) ->  | DI67: =0.00000001+DI66 -> 1.7e-07 | DJ67: =IF(ISNUMBER(DK67),DK67+DI67,"") -> 1.00000017 | DK67: =SEARCH($DL$14,B67,1) -> 1 | DL67: =IF(ISNUMBER(DK67),B67,"") -> 0 | DM67: 1.00000025 | DN67: LEV-400-500 | DO67: 0
A68: 53 | B68: =+IF(skjermbilde!$N$10=1,datagrunnlag!H68,CONCATENATE(datagrunnlag!H68,"-V")) -> LKR-100-900 | C68: =IF(skjermbilde!$N$10=1,datagrunnlag!I68,datagrunnlag!S68) -> 2 | D68: =IF(skjermbilde!$N$10=1,datagrunnlag!J68,datagrunnlag!T68) -> 5.53360377 | E68: =IF(skjermbilde!$N$10=1,datagrunnlag!K68,datagrunnlag!U68) -> 13.4679008 | F68: =IF(skjermbilde!$N$10=1,datagrunnlag!L68,datagrunnlag!V68) -> 22.92031843 | G68: =IF(skjermbilde!$N$10=1,datagrunnlag!M68,datagrunnlag!W68) -> 33.61546745 | H68: =IF(skjermbilde!$N$10=1,datagrunnlag!N68,datagrunnlag!X68) -> 49.39432802 | I68: =IF(skjermbilde!$N$10=1,datagrunnlag!O68,datagrunnlag!Y68) -> 49.99715667 | J68: =IF(skjermbilde!$N$10=1,datagrunnlag!P68,datagrunnlag!Z68) -> 26.62166234 | K68: =+datagrunnlag!A68 -> LKR | L68: =+datagrunnlag!B68 -> s | M68: =+datagrunnlag!C68 -> 100 | P68: =++IF(datagrunnlag!F68="s","c",datagrunnlag!F68) -> r | Q68: =+datagrunnlag!G68 -> 900 | R68: =IF(skjermbilde!$N$10=1,datagrunnlag!Q68,datagrunnlag!AI68) -> 0.006210362352 | S68: 0 | T68: 201 | U68: r | V68: 0 | W68: 0 | X68: =IF(skjermbilde!$D$2=1,S68^2*R68,2*S68^2*R68) -> 0 | Y68: =IF(C68="","",IF(skjermbilde!$D$2=1,C68,IF(AND(skjermbilde!$D$2=2,2*C68>60),60,IF(skjermbilde!$D$2=2,2*C68)))) -> 2 | Z68: =IF(skjermbilde!$D$2=1,D68,IF(AND(skjermbilde!$D$2=2,2*D68>60),60,IF(skjermbilde!$D$2=2,2*D68))) -> 5.53360377 | AA68: =IF(skjermbilde!$D$2=1,E68,IF(AND(skjermbilde!$D$2=2,2*E68>60),60,IF(skjermbilde!$D$2=2,2*E68))) -> 13.4679008 | AB68: =IF(skjermbilde!$D$2=1,F68,IF(AND(skjermbilde!$D$2=2,2*F68>60),60,IF(skjermbilde!$D$2=2,2*F68))) -> 22.92031843 | AC68: =IF(skjermbilde!$D$2=1,G68,IF(AND(skjermbilde!$D$2=2,2*G68>60),60,IF(skjermbilde!$D$2=2,2*G68))) -> 33.61546745 | AD68: =IF(skjermbilde!$D$2=1,H68,IF(AND(skjermbilde!$D$2=2,2*H68>60),60,IF(skjermbilde!$D$2=2,2*H68))) -> 49.39432802 | AE68: =IF(skjermbilde!$D$2=1,I68,IF(AND(skjermbilde!$D$2=2,2*I68>60),60,IF(skjermbilde!$D$2=2,2*I68))) -> 49.99715667 | AF68: =IF(J68="","",IF(skjermbilde!$D$2=1,J68,IF(AND(skjermbilde!$D$2=2,2*J68>60),60,IF(skjermbilde!$D$2=2,2*J68)))) -> 26.62166234 | AI68: =+IF(ISNUMBER(skjermbilde!G$3-Y68-skjermbilde!G$6-4),skjermbilde!G$3-Y68-skjermbilde!G$6-4,0) -> -6 | AJ68: =+IF(ISNUMBER(skjermbilde!H$3-Z68-skjermbilde!H$6-4),skjermbilde!H$3-Z68-skjermbilde!H$6-4,0) -> -9.53360377 | AK68: =+IF(ISNUMBER(skjermbilde!I$3-AA68-skjermbilde!I$6-4),skjermbilde!I$3-AA68-skjermbilde!I$6-4,0) -> -17.4679008 | AL68: =+IF(ISNUMBER(skjermbilde!J$3-AB68-skjermbilde!J$6-4),skjermbilde!J$3-AB68-skjermbilde!J$6-4,0) -> -26.92031843 | AM68: =+IF(ISNUMBER(skjermbilde!K$3-AC68-skjermbilde!K$6-4),skjermbilde!K$3-AC68-skjermbilde!K$6-4,0) -> -37.61546745 | AN68: =+IF(ISNUMBER(skjermbilde!L$3-AD68-skjermbilde!L$6-4),skjermbilde!L$3-AD68-skjermbilde!L$6-4,0) -> -53.39432802 | AO68: =+IF(ISNUMBER(skjermbilde!M$3-AE68-skjermbilde!M$6-4),skjermbilde!M$3-AE68-skjermbilde!M$6-4,0) -> -53.99715667 | AP68: =+IF(ISNUMBER(skjermbilde!N$3-AF68-skjermbilde!N$6-4),skjermbilde!N$3-AF68-skjermbilde!N$6-4,0) -> -30.62166234 | AQ68: =IF(skjermbilde!$O$10=TRUE,10*LOG10(10^(0.1*(AI68+AI$12))+10^(0.1*(AJ68+AJ$12))+10^(0.1*(AK68+AK$12))+10^(0.1*(AL68+AL$12))+10^(0.1*(AM68+AM$12))+10^(0.1*(AN68+AN$12))+10^(0.1*(AO68+AO$12))+10^(0.1*(AP68+AP$12))),"") ->  | AR68: 1 | AS68: 1 | AT68: 1 | AU68: 1 | AV68: 1 | AW68: 1 | AX68: 1 | AY68: 1 | AZ68: 1 | BA68: 0 | BB68: =IF(skjermbilde!$D$4="",1,IF(P68=skjermbilde!$D$4,1,0)) -> 1 | BC68: =IF(skjermbilde!$D$4="",1,IF(U68="r",1,IF(P68=skjermbilde!$D$4,1,0))) -> 1 | BD68: =+IF(U68="r",1,IF(M68=skjermbilde!$D$3,1,0)) -> 1 | BE68: =+IF(U68="s",1,IF(N68=skjermbilde!$C$3,1,0)) -> 1 | BF68: =+IF(U68="s",1,IF(O68=skjermbilde!$C$4,1,0)) -> 1 | BG68: 1 | BH68: 0 | BL68: 53 | CC68: 53 | CR68: 53 | CS68: =IF(ISERROR(SMALL(CB$17:CB$261,BL65)),"",SMALL(CB$17:CB$261,BL65)) ->  | CY68: =IF(skjermbilde!$D$2=1,VLOOKUP($CS68,$CB$17:$CD$261,3,FALSE),CONCATENATE("2 x ",VLOOKUP($CS68,$CB$17:$CD$261,3,FALSE))) ->  | DI68: =0.00000001+DI65 -> 1.6e-07 | DJ68: 1.00000016 | DK68: 1 | DL68: LKR-100-900 | DM68: =IF(ISERROR(SMALL(DJ$17:DJ$261,BL65)),"",SMALL(DJ$17:DJ$261,BL65)) -> 1.00000024 | DN68: LEV-315-500 | DO68: 0
A69: 54 | B69: =+IF(skjermbilde!$N$10=1,datagrunnlag!H69,CONCATENATE(datagrunnlag!H69,"-V")) -> LKR-125-900 | C69: =IF(skjermbilde!$N$10=1,datagrunnlag!I69,datagrunnlag!S69) -> 3 | D69: =IF(skjermbilde!$N$10=1,datagrunnlag!J69,datagrunnlag!T69) -> 13.98277871 | E69: =IF(skjermbilde!$N$10=1,datagrunnlag!K69,datagrunnlag!U69) -> 14.15584225 | F69: =IF(skjermbilde!$N$10=1,datagrunnlag!L69,datagrunnlag!V69) -> 23.6109278 | G69: =IF(skjermbilde!$N$10=1,datagrunnlag!M69,datagrunnlag!W69) -> 34.88285527 | H69: =IF(skjermbilde!$N$10=1,datagrunnlag!N69,datagrunnlag!X69) -> 50 | I69: =IF(skjermbilde!$N$10=1,datagrunnlag!O69,datagrunnlag!Y69) -> 46.47479193 | J69: =IF(skjermbilde!$N$10=1,datagrunnlag!P69,datagrunnlag!Z69) -> 23.68113795 | K69: =+datagrunnlag!A69 -> LKR | L69: =+datagrunnlag!B69 -> s | M69: =+datagrunnlag!C69 -> 125 | P69: =++IF(datagrunnlag!F69="s","c",datagrunnlag!F69) -> r | Q69: =+datagrunnlag!G69 -> 900 | R69: =IF(skjermbilde!$N$10=1,datagrunnlag!Q69,datagrunnlag!AI69) -> 0.003315538282 | S69: 0 | T69: 201 | U69: r | V69: 0 | W69: 0 | X69: =IF(skjermbilde!$D$2=1,S69^2*R69,2*S69^2*R69) -> 0 | Y69: =IF(C69="","",IF(skjermbilde!$D$2=1,C69,IF(AND(skjermbilde!$D$2=2,2*C69>60),60,IF(skjermbilde!$D$2=2,2*C69)))) -> 3 | Z69: =IF(skjermbilde!$D$2=1,D69,IF(AND(skjermbilde!$D$2=2,2*D69>60),60,IF(skjermbilde!$D$2=2,2*D69))) -> 13.98277871 | AA69: =IF(skjermbilde!$D$2=1,E69,IF(AND(skjermbilde!$D$2=2,2*E69>60),60,IF(skjermbilde!$D$2=2,2*E69))) -> 14.15584225 | AB69: =IF(skjermbilde!$D$2=1,F69,IF(AND(skjermbilde!$D$2=2,2*F69>60),60,IF(skjermbilde!$D$2=2,2*F69))) -> 23.6109278 | AC69: =IF(skjermbilde!$D$2=1,G69,IF(AND(skjermbilde!$D$2=2,2*G69>60),60,IF(skjermbilde!$D$2=2,2*G69))) -> 34.88285527 | AD69: =IF(skjermbilde!$D$2=1,H69,IF(AND(skjermbilde!$D$2=2,2*H69>60),60,IF(skjermbilde!$D$2=2,2*H69))) -> 50 | AE69: =IF(skjermbilde!$D$2=1,I69,IF(AND(skjermbilde!$D$2=2,2*I69>60),60,IF(skjermbilde!$D$2=2,2*I69))) -> 46.47479193 | AF69: =IF(J69="","",IF(skjermbilde!$D$2=1,J69,IF(AND(skjermbilde!$D$2=2,2*J69>60),60,IF(skjermbilde!$D$2=2,2*J69)))) -> 23.68113795 | AI69: =+IF(ISNUMBER(skjermbilde!G$3-Y69-skjermbilde!G$6-4),skjermbilde!G$3-Y69-skjermbilde!G$6-4,0) -> -7 | AJ69: =+IF(ISNUMBER(skjermbilde!H$3-Z69-skjermbilde!H$6-4),skjermbilde!H$3-Z69-skjermbilde!H$6-4,0) -> -17.98277871 | AK69: =+IF(ISNUMBER(skjermbilde!I$3-AA69-skjermbilde!I$6-4),skjermbilde!I$3-AA69-skjermbilde!I$6-4,0) -> -18.15584225 | AL69: =+IF(ISNUMBER(skjermbilde!J$3-AB69-skjermbilde!J$6-4),skjermbilde!J$3-AB69-skjermbilde!J$6-4,0) -> -27.6109278 | AM69: =+IF(ISNUMBER(skjermbilde!K$3-AC69-skjermbilde!K$6-4),skjermbilde!K$3-AC69-skjermbilde!K$6-4,0) -> -38.88285527 | AN69: =+IF(ISNUMBER(skjermbilde!L$3-AD69-skjermbilde!L$6-4),skjermbilde!L$3-AD69-skjermbilde!L$6-4,0) -> -54 | AO69: =+IF(ISNUMBER(skjermbilde!M$3-AE69-skjermbilde!M$6-4),skjermbilde!M$3-AE69-skjermbilde!M$6-4,0) -> -50.47479193 | AP69: =+IF(ISNUMBER(skjermbilde!N$3-AF69-skjermbilde!N$6-4),skjermbilde!N$3-AF69-skjermbilde!N$6-4,0) -> -27.68113795 | AQ69: =IF(skjermbilde!$O$10=TRUE,10*LOG10(10^(0.1*(AI69+AI$12))+10^(0.1*(AJ69+AJ$12))+10^(0.1*(AK69+AK$12))+10^(0.1*(AL69+AL$12))+10^(0.1*(AM69+AM$12))+10^(0.1*(AN69+AN$12))+10^(0.1*(AO69+AO$12))+10^(0.1*(AP69+AP$12))),"") ->  | AR69: 1 | AS69: 1 | AT69: 1 | AU69: 1 | AV69: 1 | AW69: 1 | AX69: 1 | AY69: 1 | AZ69: 1 | BA69: 0 | BB69: =IF(skjermbilde!$D$4="",1,IF(P69=skjermbilde!$D$4,1,0)) -> 1 | BC69: =IF(skjermbilde!$D$4="",1,IF(U69="r",1,IF(P69=skjermbilde!$D$4,1,0))) -> 1 | BD69: =+IF(U69="r",1,IF(M69=skjermbilde!$D$3,1,0)) -> 1 | BE69: =+IF(U69="s",1,IF(N69=skjermbilde!$C$3,1,0)) -> 1 | BF69: =+IF(U69="s",1,IF(O69=skjermbilde!$C$4,1,0)) -> 1 | BG69: 1 | BH69: 0 | BL69: 54 | CC69: 54 | CR69: 54 | CS69: =IF(ISERROR(SMALL(CB$17:CB$261,BL68)),"",SMALL(CB$17:CB$261,BL68)) ->  | CY69: =IF(skjermbilde!$D$2=1,VLOOKUP($CS69,$CB$17:$CD$261,3,FALSE),CONCATENATE("2 x ",VLOOKUP($CS69,$CB$17:$CD$261,3,FALSE))) ->  | DI69: 1.7e-07 | DJ69: 1.00000017 | DK69: 1 | DL69: LKR-125-900 | DM69: =IF(ISERROR(SMALL(DJ$17:DJ$261,BL68)),"",SMALL(DJ$17:DJ$261,BL68)) -> 1.00000026 | DN69: LEV-100-1000 | DO69: 0
A70: 55 | B70: =+IF(skjermbilde!$N$10=1,datagrunnlag!H70,CONCATENATE(datagrunnlag!H70,"-V")) -> LKR-160-900 | C70: =IF(skjermbilde!$N$10=1,datagrunnlag!I70,datagrunnlag!S70) -> 3.17549919 | D70: =IF(skjermbilde!$N$10=1,datagrunnlag!J70,datagrunnlag!T70) -> 11.98147365 | E70: =IF(skjermbilde!$N$10=1,datagrunnlag!K70,datagrunnlag!U70) -> 15.21686076 | F70: =IF(skjermbilde!$N$10=1,datagrunnlag!L70,datagrunnlag!V70) -> 22.91571469 | G70: =IF(skjermbilde!$N$10=1,datagrunnlag!M70,datagrunnlag!W70) -> 35.93511245 | H70: =IF(skjermbilde!$N$10=1,datagrunnlag!N70,datagrunnlag!X70) -> 50 | I70: =IF(skjermbilde!$N$10=1,datagrunnlag!O70,datagrunnlag!Y70) -> 33.988185 | J70: =IF(skjermbilde!$N$10=1,datagrunnlag!P70,datagrunnlag!Z70) -> 21.02730855 | K70: =+datagrunnlag!A70 -> LKR | L70: =+datagrunnlag!B70 -> s | M70: =+datagrunnlag!C70 -> 160 | P70: =++IF(datagrunnlag!F70="s","c",datagrunnlag!F70) -> r | Q70: =+datagrunnlag!G70 -> 900 | R70: =IF(skjermbilde!$N$10=1,datagrunnlag!Q70,datagrunnlag!AI70) -> 0.00088 | S70: 0 | T70: 201 | U70: r | V70: 0 | W70: 0 | X70: =IF(skjermbilde!$D$2=1,S70^2*R70,2*S70^2*R70) -> 0 | Y70: =IF(C70="","",IF(skjermbilde!$D$2=1,C70,IF(AND(skjermbilde!$D$2=2,2*C70>60),60,IF(skjermbilde!$D$2=2,2*C70)))) -> 3.17549919 | Z70: =IF(skjermbilde!$D$2=1,D70,IF(AND(skjermbilde!$D$2=2,2*D70>60),60,IF(skjermbilde!$D$2=2,2*D70))) -> 11.98147365 | AA70: =IF(skjermbilde!$D$2=1,E70,IF(AND(skjermbilde!$D$2=2,2*E70>60),60,IF(skjermbilde!$D$2=2,2*E70))) -> 15.21686076 | AB70: =IF(skjermbilde!$D$2=1,F70,IF(AND(skjermbilde!$D$2=2,2*F70>60),60,IF(skjermbilde!$D$2=2,2*F70))) -> 22.91571469 | AC70: =IF(skjermbilde!$D$2=1,G70,IF(AND(skjermbilde!$D$2=2,2*G70>60),60,IF(skjermbilde!$D$2=2,2*G70))) -> 35.93511245 | AD70: =IF(skjermbilde!$D$2=1,H70,IF(AND(skjermbilde!$D$2=2,2*H70>60),60,IF(skjermbilde!$D$2=2,2*H70))) -> 50 | AE70: =IF(skjermbilde!$D$2=1,I70,IF(AND(skjermbilde!$D$2=2,2*I70>60),60,IF(skjermbilde!$D$2=2,2*I70))) -> 33.988185 | AF70: =IF(J70="","",IF(skjermbilde!$D$2=1,J70,IF(AND(skjermbilde!$D$2=2,2*J70>60),60,IF(skjermbilde!$D$2=2,2*J70)))) -> 21.02730855 | AI70: =+IF(ISNUMBER(skjermbilde!G$3-Y70-skjermbilde!G$6-4),skjermbilde!G$3-Y70-skjermbilde!G$6-4,0) -> -7.17549919 | AJ70: =+IF(ISNUMBER(skjermbilde!H$3-Z70-skjermbilde!H$6-4),skjermbilde!H$3-Z70-skjermbilde!H$6-4,0) -> -15.98147365 | AK70: =+IF(ISNUMBER(skjermbilde!I$3-AA70-skjermbilde!I$6-4),skjermbilde!I$3-AA70-skjermbilde!I$6-4,0) -> -19.21686076 | AL70: =+IF(ISNUMBER(skjermbilde!J$3-AB70-skjermbilde!J$6-4),skjermbilde!J$3-AB70-skjermbilde!J$6-4,0) -> -26.91571469 | AM70: =+IF(ISNUMBER(skjermbilde!K$3-AC70-skjermbilde!K$6-4),skjermbilde!K$3-AC70-skjermbilde!K$6-4,0) -> -39.93511245 | AN70: =+IF(ISNUMBER(skjermbilde!L$3-AD70-skjermbilde!L$6-4),skjermbilde!L$3-AD70-skjermbilde!L$6-4,0) -> -54 | AO70: =+IF(ISNUMBER(skjermbilde!M$3-AE70-skjermbilde!M$6-4),skjermbilde!M$3-AE70-skjermbilde!M$6-4,0) -> -37.988185 | AP70: =+IF(ISNUMBER(skjermbilde!N$3-AF70-skjermbilde!N$6-4),skjermbilde!N$3-AF70-skjermbilde!N$6-4,0) -> -25.02730855 | AQ70: =IF(skjermbilde!$O$10=TRUE,10*LOG10(10^(0.1*(AI70+AI$12))+10^(0.1*(AJ70+AJ$12))+10^(0.1*(AK70+AK$12))+10^(0.1*(AL70+AL$12))+10^(0.1*(AM70+AM$12))+10^(0.1*(AN70+AN$12))+10^(0.1*(AO70+AO$12))+10^(0.1*(AP70+AP$12))),"") ->  | AR70: 1 | AS70: 1 | AT70: 1 | AU70: 1 | AV70: 1 | AW70: 1 | AX70: 1 | AY70: 1 | AZ70: 1 | BA70: 0 | BB70: =IF(skjermbilde!$D$4="",1,IF(P70=skjermbilde!$D$4,1,0)) -> 1 | BC70: =IF(skjermbilde!$D$4="",1,IF(U70="r",1,IF(P70=skjermbilde!$D$4,1,0))) -> 1 | BD70: =+IF(U70="r",1,IF(M70=skjermbilde!$D$3,1,0)) -> 1 | BE70: =+IF(U70="s",1,IF(N70=skjermbilde!$C$3,1,0)) -> 1 | BF70: =+IF(U70="s",1,IF(O70=skjermbilde!$C$4,1,0)) -> 1 | BG70: 1 | BH70: 0 | BL70: 55 | CC70: 55 | CR70: 55 | CY70: =IF(skjermbilde!$D$2=1,VLOOKUP($CS70,$CB$17:$CD$261,3,FALSE),CONCATENATE("2 x ",VLOOKUP($CS70,$CB$17:$CD$261,3,FALSE))) ->  | DI70: 1.8e-07 | DJ70: 1.00000018 | DK70: 1 | DL70: LKR-160-900 | DM70: 1.00000026 | DN70: LEV-100-1000 | DO70: 0
A71: 56 | B71: =+IF(skjermbilde!$N$10=1,datagrunnlag!H71,CONCATENATE(datagrunnlag!H71,"-V")) -> LKR-200-900 | C71: =IF(skjermbilde!$N$10=1,datagrunnlag!I71,datagrunnlag!S71) -> 4 | D71: =IF(skjermbilde!$N$10=1,datagrunnlag!J71,datagrunnlag!T71) -> 7.913946696 | E71: =IF(skjermbilde!$N$10=1,datagrunnlag!K71,datagrunnlag!U71) -> 11.66778195 | F71: =IF(skjermbilde!$N$10=1,datagrunnlag!L71,datagrunnlag!V71) -> 18.2240753 | G71: =IF(skjermbilde!$N$10=1,datagrunnlag!M71,datagrunnlag!W71) -> 31.91014676 | H71: =IF(skjermbilde!$N$10=1,datagrunnlag!N71,datagrunnlag!X71) -> 45.74944334 | I71: =IF(skjermbilde!$N$10=1,datagrunnlag!O71,datagrunnlag!Y71) -> 22.08787324 | J71: =IF(skjermbilde!$N$10=1,datagrunnlag!P71,datagrunnlag!Z71) -> 16.35586948 | K71: =+datagrunnlag!A71 -> LKR | L71: =+datagrunnlag!B71 -> s | M71: =+datagrunnlag!C71 -> 200 | P71: =++IF(datagrunnlag!F71="s","c",datagrunnlag!F71) -> r | Q71: =+datagrunnlag!G71 -> 900 | R71: =IF(skjermbilde!$N$10=1,datagrunnlag!Q71,datagrunnlag!AI71) -> 0.0002352527345 | S71: 0 | T71: 201 | U71: r | V71: 0 | W71: 0 | X71: =IF(skjermbilde!$D$2=1,S71^2*R71,2*S71^2*R71) -> 0 | Y71: =IF(C71="","",IF(skjermbilde!$D$2=1,C71,IF(AND(skjermbilde!$D$2=2,2*C71>60),60,IF(skjermbilde!$D$2=2,2*C71)))) -> 4 | Z71: =IF(skjermbilde!$D$2=1,D71,IF(AND(skjermbilde!$D$2=2,2*D71>60),60,IF(skjermbilde!$D$2=2,2*D71))) -> 7.913946696 | AA71: =IF(skjermbilde!$D$2=1,E71,IF(AND(skjermbilde!$D$2=2,2*E71>60),60,IF(skjermbilde!$D$2=2,2*E71))) -> 11.66778195 | AB71: =IF(skjermbilde!$D$2=1,F71,IF(AND(skjermbilde!$D$2=2,2*F71>60),60,IF(skjermbilde!$D$2=2,2*F71))) -> 18.2240753 | AC71: =IF(skjermbilde!$D$2=1,G71,IF(AND(skjermbilde!$D$2=2,2*G71>60),60,IF(skjermbilde!$D$2=2,2*G71))) -> 31.91014676 | AD71: =IF(skjermbilde!$D$2=1,H71,IF(AND(skjermbilde!$D$2=2,2*H71>60),60,IF(skjermbilde!$D$2=2,2*H71))) -> 45.74944334 | AE71: =IF(skjermbilde!$D$2=1,I71,IF(AND(skjermbilde!$D$2=2,2*I71>60),60,IF(skjermbilde!$D$2=2,2*I71))) -> 22.08787324 | AF71: =IF(J71="","",IF(skjermbilde!$D$2=1,J71,IF(AND(skjermbilde!$D$2=2,2*J71>60),60,IF(skjermbilde!$D$2=2,2*J71)))) -> 16.35586948 | AI71: =+IF(ISNUMBER(skjermbilde!G$3-Y71-skjermbilde!G$6-4),skjermbilde!G$3-Y71-skjermbilde!G$6-4,0) -> -8 | AJ71: =+IF(ISNUMBER(skjermbilde!H$3-Z71-skjermbilde!H$6-4),skjermbilde!H$3-Z71-skjermbilde!H$6-4,0) -> -11.9139467 | AK71: =+IF(ISNUMBER(skjermbilde!I$3-AA71-skjermbilde!I$6-4),skjermbilde!I$3-AA71-skjermbilde!I$6-4,0) -> -15.66778195 | AL71: =+IF(ISNUMBER(skjermbilde!J$3-AB71-skjermbilde!J$6-4),skjermbilde!J$3-AB71-skjermbilde!J$6-4,0) -> -22.2240753 | AM71: =+IF(ISNUMBER(skjermbilde!K$3-AC71-skjermbilde!K$6-4),skjermbilde!K$3-AC71-skjermbilde!K$6-4,0) -> -35.91014676 | AN71: =+IF(ISNUMBER(skjermbilde!L$3-AD71-skjermbilde!L$6-4),skjermbilde!L$3-AD71-skjermbilde!L$6-4,0) -> -49.74944334 | AO71: =+IF(ISNUMBER(skjermbilde!M$3-AE71-skjermbilde!M$6-4),skjermbilde!M$3-AE71-skjermbilde!M$6-4,0) -> -26.08787324 | AP71: =+IF(ISNUMBER(skjermbilde!N$3-AF71-skjermbilde!N$6-4),skjermbilde!N$3-AF71-skjermbilde!N$6-4,0) -> -20.35586948 | AQ71: =IF(skjermbilde!$O$10=TRUE,10*LOG10(10^(0.1*(AI71+AI$12))+10^(0.1*(AJ71+AJ$12))+10^(0.1*(AK71+AK$12))+10^(0.1*(AL71+AL$12))+10^(0.1*(AM71+AM$12))+10^(0.1*(AN71+AN$12))+10^(0.1*(AO71+AO$12))+10^(0.1*(AP71+AP$12))),"") ->  | AR71: 1 | AS71: 1 | AT71: 1 | AU71: 1 | AV71: 1 | AW71: 1 | AX71: 1 | AY71: 1 | AZ71: 1 | BA71: 0 | BB71: =IF(skjermbilde!$D$4="",1,IF(P71=skjermbilde!$D$4,1,0)) -> 1 | BC71: =IF(skjermbilde!$D$4="",1,IF(U71="r",1,IF(P71=skjermbilde!$D$4,1,0))) -> 1 | BD71: =+IF(U71="r",1,IF(M71=skjermbilde!$D$3,1,0)) -> 1 | BE71: =+IF(U71="s",1,IF(N71=skjermbilde!$C$3,1,0)) -> 1 | BF71: =+IF(U71="s",1,IF(O71=skjermbilde!$C$4,1,0)) -> 1 | BG71: 1 | BH71: 0 | BL71: 56 | CC71: 56 | CR71: 56 | CY71: =IF(skjermbilde!$D$2=1,VLOOKUP($CS71,$CB$17:$CD$261,3,FALSE),CONCATENATE("2 x ",VLOOKUP($CS71,$CB$17:$CD$261,3,FALSE))) ->  | DI71: 1.9e-07 | DJ71: 1.00000019 | DK71: 1 | DL71: LKR-200-900 | DM71: 1.00000026 | DN71: LEV-100-1000 | DO71: 0
A72: 57 | B72: =+IF(skjermbilde!$N$10=1,datagrunnlag!H72,CONCATENATE(datagrunnlag!H72,"-V")) -> LKR-250-900 | C72: =IF(skjermbilde!$N$10=1,datagrunnlag!I72,datagrunnlag!S72) -> 3 | D72: =IF(skjermbilde!$N$10=1,datagrunnlag!J72,datagrunnlag!T72) -> 7.569117326 | E72: =IF(skjermbilde!$N$10=1,datagrunnlag!K72,datagrunnlag!U72) -> 13.24351312 | F72: =IF(skjermbilde!$N$10=1,datagrunnlag!L72,datagrunnlag!V72) -> 22.63311758 | G72: =IF(skjermbilde!$N$10=1,datagrunnlag!M72,datagrunnlag!W72) -> 38.86577411 | H72: =IF(skjermbilde!$N$10=1,datagrunnlag!N72,datagrunnlag!X72) -> 36.34405191 | I72: =IF(skjermbilde!$N$10=1,datagrunnlag!O72,datagrunnlag!Y72) -> 21.70049337 | J72: =IF(skjermbilde!$N$10=1,datagrunnlag!P72,datagrunnlag!Z72) -> 13.9486824 | K72: =+datagrunnlag!A72 -> LKR | L72: =+datagrunnlag!B72 -> s | M72: =+datagrunnlag!C72 -> 250 | P72: =++IF(datagrunnlag!F72="s","c",datagrunnlag!F72) -> r | Q72: =+datagrunnlag!G72 -> 900 | R72: =IF(skjermbilde!$N$10=1,datagrunnlag!Q72,datagrunnlag!AI72) -> 0.0001897959184 | S72: 0 | T72: 201 | U72: r | V72: 0 | W72: 0 | X72: =IF(skjermbilde!$D$2=1,S72^2*R72,2*S72^2*R72) -> 0 | Y72: =IF(C72="","",IF(skjermbilde!$D$2=1,C72,IF(AND(skjermbilde!$D$2=2,2*C72>60),60,IF(skjermbilde!$D$2=2,2*C72)))) -> 3 | Z72: =IF(skjermbilde!$D$2=1,D72,IF(AND(skjermbilde!$D$2=2,2*D72>60),60,IF(skjermbilde!$D$2=2,2*D72))) -> 7.569117326 | AA72: =IF(skjermbilde!$D$2=1,E72,IF(AND(skjermbilde!$D$2=2,2*E72>60),60,IF(skjermbilde!$D$2=2,2*E72))) -> 13.24351312 | AB72: =IF(skjermbilde!$D$2=1,F72,IF(AND(skjermbilde!$D$2=2,2*F72>60),60,IF(skjermbilde!$D$2=2,2*F72))) -> 22.63311758 | AC72: =IF(skjermbilde!$D$2=1,G72,IF(AND(skjermbilde!$D$2=2,2*G72>60),60,IF(skjermbilde!$D$2=2,2*G72))) -> 38.86577411 | AD72: =IF(skjermbilde!$D$2=1,H72,IF(AND(skjermbilde!$D$2=2,2*H72>60),60,IF(skjermbilde!$D$2=2,2*H72))) -> 36.34405191 | AE72: =IF(skjermbilde!$D$2=1,I72,IF(AND(skjermbilde!$D$2=2,2*I72>60),60,IF(skjermbilde!$D$2=2,2*I72))) -> 21.70049337 | AF72: =IF(J72="","",IF(skjermbilde!$D$2=1,J72,IF(AND(skjermbilde!$D$2=2,2*J72>60),60,IF(skjermbilde!$D$2=2,2*J72)))) -> 13.9486824 | AI72: =+IF(ISNUMBER(skjermbilde!G$3-Y72-skjermbilde!G$6-4),skjermbilde!G$3-Y72-skjermbilde!G$6-4,0) -> -7 | AJ72: =+IF(ISNUMBER(skjermbilde!H$3-Z72-skjermbilde!H$6-4),skjermbilde!H$3-Z72-skjermbilde!H$6-4,0) -> -11.56911733 | AK72: =+IF(ISNUMBER(skjermbilde!I$3-AA72-skjermbilde!I$6-4),skjermbilde!I$3-AA72-skjermbilde!I$6-4,0) -> -17.24351312 | AL72: =+IF(ISNUMBER(skjermbilde!J$3-AB72-skjermbilde!J$6-4),skjermbilde!J$3-AB72-skjermbilde!J$6-4,0) -> -26.63311758 | AM72: =+IF(ISNUMBER(skjermbilde!K$3-AC72-skjermbilde!K$6-4),skjermbilde!K$3-AC72-skjermbilde!K$6-4,0) -> -42.86577411 | AN72: =+IF(ISNUMBER(skjermbilde!L$3-AD72-skjermbilde!L$6-4),skjermbilde!L$3-AD72-skjermbilde!L$6-4,0) -> -40.34405191 | AO72: =+IF(ISNUMBER(skjermbilde!M$3-AE72-skjermbilde!M$6-4),skjermbilde!M$3-AE72-skjermbilde!M$6-4,0) -> -25.70049337 | AP72: =+IF(ISNUMBER(skjermbilde!N$3-AF72-skjermbilde!N$6-4),skjermbilde!N$3-AF72-skjermbilde!N$6-4,0) -> -17.9486824 | AQ72: =IF(skjermbilde!$O$10=TRUE,10*LOG10(10^(0.1*(AI72+AI$12))+10^(0.1*(AJ72+AJ$12))+10^(0.1*(AK72+AK$12))+10^(0.1*(AL72+AL$12))+10^(0.1*(AM72+AM$12))+10^(0.1*(AN72+AN$12))+10^(0.1*(AO72+AO$12))+10^(0.1*(AP72+AP$12))),"") ->  | AR72: 1 | AS72: 1 | AT72: 1 | AU72: 1 | AV72: 1 | AW72: 1 | AX72: 1 | AY72: 1 | AZ72: 1 | BA72: 0 | BB72: =IF(skjermbilde!$D$4="",1,IF(P72=skjermbilde!$D$4,1,0)) -> 1 | BC72: =IF(skjermbilde!$D$4="",1,IF(U72="r",1,IF(P72=skjermbilde!$D$4,1,0))) -> 1 | BD72: =+IF(U72="r",1,IF(M72=skjermbilde!$D$3,1,0)) -> 1 | BE72: =+IF(U72="s",1,IF(N72=skjermbilde!$C$3,1,0)) -> 1 | BF72: =+IF(U72="s",1,IF(O72=skjermbilde!$C$4,1,0)) -> 1 | BG72: 1 | BH72: 0 | BL72: 57 | CC72: 57 | CR72: 57 | CY72: =IF(skjermbilde!$D$2=1,VLOOKUP($CS72,$CB$17:$CD$261,3,FALSE),CONCATENATE("2 x ",VLOOKUP($CS72,$CB$17:$CD$261,3,FALSE))) ->  | DI72: 2e-07 | DJ72: 1.0000002 | DK72: 1 | DL72: LKR-250-900 | DM72: 1.00000027 | DN72: LEV-125-1000 | DO72: 0
A73: 58 | B73: =+IF(skjermbilde!$N$10=1,datagrunnlag!H73,CONCATENATE(datagrunnlag!H73,"-V")) -> LKR-315-900 | C73: =IF(skjermbilde!$N$10=1,datagrunnlag!I73,datagrunnlag!S73) -> 3 | D73: =IF(skjermbilde!$N$10=1,datagrunnlag!J73,datagrunnlag!T73) -> 4.606869742 | E73: =IF(skjermbilde!$N$10=1,datagrunnlag!K73,datagrunnlag!U73) -> 10.16731004 | F73: =IF(skjermbilde!$N$10=1,datagrunnlag!L73,datagrunnlag!V73) -> 19.0724911 | G73: =IF(skjermbilde!$N$10=1,datagrunnlag!M73,datagrunnlag!W73) -> 32.47723112 | H73: =IF(skjermbilde!$N$10=1,datagrunnlag!N73,datagrunnlag!X73) -> 50 | I73: =IF(skjermbilde!$N$10=1,datagrunnlag!O73,datagrunnlag!Y73) -> 34.13627772 | J73: =IF(skjermbilde!$N$10=1,datagrunnlag!P73,datagrunnlag!Z73) -> 22.37002605 | K73: =+datagrunnlag!A73 -> LKR | L73: =+datagrunnlag!B73 -> s | M73: =+datagrunnlag!C73 -> 315 | P73: =++IF(datagrunnlag!F73="s","c",datagrunnlag!F73) -> r | Q73: =+datagrunnlag!G73 -> 900 | R73: =IF(skjermbilde!$N$10=1,datagrunnlag!Q73,datagrunnlag!AI73) -> 9.435221596e-05 | S73: 0 | T73: 201 | U73: r | V73: 0 | W73: 0 | X73: =IF(skjermbilde!$D$2=1,S73^2*R73,2*S73^2*R73) -> 0 | Y73: =IF(C73="","",IF(skjermbilde!$D$2=1,C73,IF(AND(skjermbilde!$D$2=2,2*C73>60),60,IF(skjermbilde!$D$2=2,2*C73)))) -> 3 | Z73: =IF(skjermbilde!$D$2=1,D73,IF(AND(skjermbilde!$D$2=2,2*D73>60),60,IF(skjermbilde!$D$2=2,2*D73))) -> 4.606869742 | AA73: =IF(skjermbilde!$D$2=1,E73,IF(AND(skjermbilde!$D$2=2,2*E73>60),60,IF(skjermbilde!$D$2=2,2*E73))) -> 10.16731004 | AB73: =IF(skjermbilde!$D$2=1,F73,IF(AND(skjermbilde!$D$2=2,2*F73>60),60,IF(skjermbilde!$D$2=2,2*F73))) -> 19.0724911 | AC73: =IF(skjermbilde!$D$2=1,G73,IF(AND(skjermbilde!$D$2=2,2*G73>60),60,IF(skjermbilde!$D$2=2,2*G73))) -> 32.47723112 | AD73: =IF(skjermbilde!$D$2=1,H73,IF(AND(skjermbilde!$D$2=2,2*H73>60),60,IF(skjermbilde!$D$2=2,2*H73))) -> 50 | AE73: =IF(skjermbilde!$D$2=1,I73,IF(AND(skjermbilde!$D$2=2,2*I73>60),60,IF(skjermbilde!$D$2=2,2*I73))) -> 34.13627772 | AF73: =IF(J73="","",IF(skjermbilde!$D$2=1,J73,IF(AND(skjermbilde!$D$2=2,2*J73>60),60,IF(skjermbilde!$D$2=2,2*J73)))) -> 22.37002605 | AI73: =+IF(ISNUMBER(skjermbilde!G$3-Y73-skjermbilde!G$6-4),skjermbilde!G$3-Y73-skjermbilde!G$6-4,0) -> -7 | AJ73: =+IF(ISNUMBER(skjermbilde!H$3-Z73-skjermbilde!H$6-4),skjermbilde!H$3-Z73-skjermbilde!H$6-4,0) -> -8.606869742 | AK73: =+IF(ISNUMBER(skjermbilde!I$3-AA73-skjermbilde!I$6-4),skjermbilde!I$3-AA73-skjermbilde!I$6-4,0) -> -14.16731004 | AL73: =+IF(ISNUMBER(skjermbilde!J$3-AB73-skjermbilde!J$6-4),skjermbilde!J$3-AB73-skjermbilde!J$6-4,0) -> -23.0724911 | AM73: =+IF(ISNUMBER(skjermbilde!K$3-AC73-skjermbilde!K$6-4),skjermbilde!K$3-AC73-skjermbilde!K$6-4,0) -> -36.47723112 | AN73: =+IF(ISNUMBER(skjermbilde!L$3-AD73-skjermbilde!L$6-4),skjermbilde!L$3-AD73-skjermbilde!L$6-4,0) -> -54 | AO73: =+IF(ISNUMBER(skjermbilde!M$3-AE73-skjermbilde!M$6-4),skjermbilde!M$3-AE73-skjermbilde!M$6-4,0) -> -38.13627772 | AP73: =+IF(ISNUMBER(skjermbilde!N$3-AF73-skjermbilde!N$6-4),skjermbilde!N$3-AF73-skjermbilde!N$6-4,0) -> -26.37002605 | AQ73: =IF(skjermbilde!$O$10=TRUE,10*LOG10(10^(0.1*(AI73+AI$12))+10^(0.1*(AJ73+AJ$12))+10^(0.1*(AK73+AK$12))+10^(0.1*(AL73+AL$12))+10^(0.1*(AM73+AM$12))+10^(0.1*(AN73+AN$12))+10^(0.1*(AO73+AO$12))+10^(0.1*(AP73+AP$12))),"") ->  | AR73: 1 | AS73: 1 | AT73: 1 | AU73: 1 | AV73: 1 | AW73: 1 | AX73: 1 | AY73: 1 | AZ73: 1 | BA73: 0 | BB73: =IF(skjermbilde!$D$4="",1,IF(P73=skjermbilde!$D$4,1,0)) -> 1 | BC73: =IF(skjermbilde!$D$4="",1,IF(U73="r",1,IF(P73=skjermbilde!$D$4,1,0))) -> 1 | BD73: =+IF(U73="r",1,IF(M73=skjermbilde!$D$3,1,0)) -> 1 | BE73: =+IF(U73="s",1,IF(N73=skjermbilde!$C$3,1,0)) -> 1 | BF73: =+IF(U73="s",1,IF(O73=skjermbilde!$C$4,1,0)) -> 1 | BG73: 1 | BH73: 0 | BL73: 58 | CC73: 58 | CR73: 58 | CY73: =IF(skjermbilde!$D$2=1,VLOOKUP($CS73,$CB$17:$CD$261,3,FALSE),CONCATENATE("2 x ",VLOOKUP($CS73,$CB$17:$CD$261,3,FALSE))) ->  | DI73: 2.1e-07 | DJ73: 1.00000021 | DK73: 1 | DL73: LKR-315-900 | DM73: 1.00000027 | DN73: LEV-125-1000 | DO73: 0
A74: 59 | B74: =+IF(skjermbilde!$N$10=1,datagrunnlag!H74,CONCATENATE(datagrunnlag!H74,"-V")) -> LKR-400-900 | C74: =IF(skjermbilde!$N$10=1,datagrunnlag!I74,datagrunnlag!S74) -> 3 | D74: =IF(skjermbilde!$N$10=1,datagrunnlag!J74,datagrunnlag!T74) -> 5.689922002 | E74: =IF(skjermbilde!$N$10=1,datagrunnlag!K74,datagrunnlag!U74) -> 10.15933194 | F74: =IF(skjermbilde!$N$10=1,datagrunnlag!L74,datagrunnlag!V74) -> 17.16909958 | G74: =IF(skjermbilde!$N$10=1,datagrunnlag!M74,datagrunnlag!W74) -> 31.5126892 | H74: =IF(skjermbilde!$N$10=1,datagrunnlag!N74,datagrunnlag!X74) -> 38.48101031 | I74: =IF(skjermbilde!$N$10=1,datagrunnlag!O74,datagrunnlag!Y74) -> 23.60277978 | J74: =IF(skjermbilde!$N$10=1,datagrunnlag!P74,datagrunnlag!Z74) -> 14.11064152 | K74: =+datagrunnlag!A74 -> LKR | L74: =+datagrunnlag!B74 -> s | M74: =+datagrunnlag!C74 -> 400 | P74: =++IF(datagrunnlag!F74="s","c",datagrunnlag!F74) -> r | Q74: =+datagrunnlag!G74 -> 900 | R74: =IF(skjermbilde!$N$10=1,datagrunnlag!Q74,datagrunnlag!AI74) -> 4.125e-05 | S74: 0 | T74: 201 | U74: r | V74: 0 | W74: 0 | X74: =IF(skjermbilde!$D$2=1,S74^2*R74,2*S74^2*R74) -> 0 | Y74: =IF(C74="","",IF(skjermbilde!$D$2=1,C74,IF(AND(skjermbilde!$D$2=2,2*C74>60),60,IF(skjermbilde!$D$2=2,2*C74)))) -> 3 | Z74: =IF(skjermbilde!$D$2=1,D74,IF(AND(skjermbilde!$D$2=2,2*D74>60),60,IF(skjermbilde!$D$2=2,2*D74))) -> 5.689922002 | AA74: =IF(skjermbilde!$D$2=1,E74,IF(AND(skjermbilde!$D$2=2,2*E74>60),60,IF(skjermbilde!$D$2=2,2*E74))) -> 10.15933194 | AB74: =IF(skjermbilde!$D$2=1,F74,IF(AND(skjermbilde!$D$2=2,2*F74>60),60,IF(skjermbilde!$D$2=2,2*F74))) -> 17.16909958 | AC74: =IF(skjermbilde!$D$2=1,G74,IF(AND(skjermbilde!$D$2=2,2*G74>60),60,IF(skjermbilde!$D$2=2,2*G74))) -> 31.5126892 | AD74: =IF(skjermbilde!$D$2=1,H74,IF(AND(skjermbilde!$D$2=2,2*H74>60),60,IF(skjermbilde!$D$2=2,2*H74))) -> 38.48101031 | AE74: =IF(skjermbilde!$D$2=1,I74,IF(AND(skjermbilde!$D$2=2,2*I74>60),60,IF(skjermbilde!$D$2=2,2*I74))) -> 23.60277978 | AF74: =IF(J74="","",IF(skjermbilde!$D$2=1,J74,IF(AND(skjermbilde!$D$2=2,2*J74>60),60,IF(skjermbilde!$D$2=2,2*J74)))) -> 14.11064152 | AI74: =+IF(ISNUMBER(skjermbilde!G$3-Y74-skjermbilde!G$6-4),skjermbilde!G$3-Y74-skjermbilde!G$6-4,0) -> -7 | AJ74: =+IF(ISNUMBER(skjermbilde!H$3-Z74-skjermbilde!H$6-4),skjermbilde!H$3-Z74-skjermbilde!H$6-4,0) -> -9.689922002 | AK74: =+IF(ISNUMBER(skjermbilde!I$3-AA74-skjermbilde!I$6-4),skjermbilde!I$3-AA74-skjermbilde!I$6-4,0) -> -14.15933194 | AL74: =+IF(ISNUMBER(skjermbilde!J$3-AB74-skjermbilde!J$6-4),skjermbilde!J$3-AB74-skjermbilde!J$6-4,0) -> -21.16909958 | AM74: =+IF(ISNUMBER(skjermbilde!K$3-AC74-skjermbilde!K$6-4),skjermbilde!K$3-AC74-skjermbilde!K$6-4,0) -> -35.5126892 | AN74: =+IF(ISNUMBER(skjermbilde!L$3-AD74-skjermbilde!L$6-4),skjermbilde!L$3-AD74-skjermbilde!L$6-4,0) -> -42.48101031 | AO74: =+IF(ISNUMBER(skjermbilde!M$3-AE74-skjermbilde!M$6-4),skjermbilde!M$3-AE74-skjermbilde!M$6-4,0) -> -27.60277978 | AP74: =+IF(ISNUMBER(skjermbilde!N$3-AF74-skjermbilde!N$6-4),skjermbilde!N$3-AF74-skjermbilde!N$6-4,0) -> -18.11064152 | AQ74: =IF(skjermbilde!$O$10=TRUE,10*LOG10(10^(0.1*(AI74+AI$12))+10^(0.1*(AJ74+AJ$12))+10^(0.1*(AK74+AK$12))+10^(0.1*(AL74+AL$12))+10^(0.1*(AM74+AM$12))+10^(0.1*(AN74+AN$12))+10^(0.1*(AO74+AO$12))+10^(0.1*(AP74+AP$12))),"") ->  | AR74: 1 | AS74: 1 | AT74: 1 | AU74: 1 | AV74: 1 | AW74: 1 | AX74: 1 | AY74: 1 | AZ74: 1 | BA74: 0 | BB74: =IF(skjermbilde!$D$4="",1,IF(P74=skjermbilde!$D$4,1,0)) -> 1 | BC74: =IF(skjermbilde!$D$4="",1,IF(U74="r",1,IF(P74=skjermbilde!$D$4,1,0))) -> 1 | BD74: =+IF(U74="r",1,IF(M74=skjermbilde!$D$3,1,0)) -> 1 | BE74: =+IF(U74="s",1,IF(N74=skjermbilde!$C$3,1,0)) -> 1 | BF74: =+IF(U74="s",1,IF(O74=skjermbilde!$C$4,1,0)) -> 1 | BG74: 1 | BH74: 0 | BL74: 59 | CC74: 59 | CR74: 59 | CY74: =IF(skjermbilde!$D$2=1,VLOOKUP($CS74,$CB$17:$CD$261,3,FALSE),CONCATENATE("2 x ",VLOOKUP($CS74,$CB$17:$CD$261,3,FALSE))) ->  | DI74: 2.2e-07 | DJ74: 1.00000022 | DK74: 1 | DL74: LKR-400-900 | DM74: 1.00000027 | DN74: LEV-125-1000 | DO74: 0
A75: 60 | B75: =+IF(skjermbilde!$N$10=1,datagrunnlag!H75,CONCATENATE(datagrunnlag!H75,"-V")) -> LKR-500-900 | C75: =IF(skjermbilde!$N$10=1,datagrunnlag!I75,datagrunnlag!S75) -> 3 | D75: =IF(skjermbilde!$N$10=1,datagrunnlag!J75,datagrunnlag!T75) -> 6.62593673 | E75: =IF(skjermbilde!$N$10=1,datagrunnlag!K75,datagrunnlag!U75) -> 11.75726703 | F75: =IF(skjermbilde!$N$10=1,datagrunnlag!L75,datagrunnlag!V75) -> 21.3518536 | G75: =IF(skjermbilde!$N$10=1,datagrunnlag!M75,datagrunnlag!W75) -> 35.59476276 | H75: =IF(skjermbilde!$N$10=1,datagrunnlag!N75,datagrunnlag!X75) -> 35.39390669 | I75: =IF(skjermbilde!$N$10=1,datagrunnlag!O75,datagrunnlag!Y75) -> 24.33011833 | J75: =IF(skjermbilde!$N$10=1,datagrunnlag!P75,datagrunnlag!Z75) -> 14.20276318 | K75: =+datagrunnlag!A75 -> LKR | L75: =+datagrunnlag!B75 -> s | M75: =+datagrunnlag!C75 -> 500 | P75: =++IF(datagrunnlag!F75="s","c",datagrunnlag!F75) -> r | Q75: =+datagrunnlag!G75 -> 900 | R75: =IF(skjermbilde!$N$10=1,datagrunnlag!Q75,datagrunnlag!AI75) -> 2.666666667e-05 | S75: 0 | T75: 201 | U75: r | V75: 0 | W75: 0 | X75: =IF(skjermbilde!$D$2=1,S75^2*R75,2*S75^2*R75) -> 0 | Y75: =IF(C75="","",IF(skjermbilde!$D$2=1,C75,IF(AND(skjermbilde!$D$2=2,2*C75>60),60,IF(skjermbilde!$D$2=2,2*C75)))) -> 3 | Z75: =IF(skjermbilde!$D$2=1,D75,IF(AND(skjermbilde!$D$2=2,2*D75>60),60,IF(skjermbilde!$D$2=2,2*D75))) -> 6.62593673 | AA75: =IF(skjermbilde!$D$2=1,E75,IF(AND(skjermbilde!$D$2=2,2*E75>60),60,IF(skjermbilde!$D$2=2,2*E75))) -> 11.75726703 | AB75: =IF(skjermbilde!$D$2=1,F75,IF(AND(skjermbilde!$D$2=2,2*F75>60),60,IF(skjermbilde!$D$2=2,2*F75))) -> 21.3518536 | AC75: =IF(skjermbilde!$D$2=1,G75,IF(AND(skjermbilde!$D$2=2,2*G75>60),60,IF(skjermbilde!$D$2=2,2*G75))) -> 35.59476276 | AD75: =IF(skjermbilde!$D$2=1,H75,IF(AND(skjermbilde!$D$2=2,2*H75>60),60,IF(skjermbilde!$D$2=2,2*H75))) -> 35.39390669 | AE75: =IF(skjermbilde!$D$2=1,I75,IF(AND(skjermbilde!$D$2=2,2*I75>60),60,IF(skjermbilde!$D$2=2,2*I75))) -> 24.33011833 | AF75: =IF(J75="","",IF(skjermbilde!$D$2=1,J75,IF(AND(skjermbilde!$D$2=2,2*J75>60),60,IF(skjermbilde!$D$2=2,2*J75)))) -> 14.20276318 | AI75: =+IF(ISNUMBER(skjermbilde!G$3-Y75-skjermbilde!G$6-4),skjermbilde!G$3-Y75-skjermbilde!G$6-4,0) -> -7 | AJ75: =+IF(ISNUMBER(skjermbilde!H$3-Z75-skjermbilde!H$6-4),skjermbilde!H$3-Z75-skjermbilde!H$6-4,0) -> -10.62593673 | AK75: =+IF(ISNUMBER(skjermbilde!I$3-AA75-skjermbilde!I$6-4),skjermbilde!I$3-AA75-skjermbilde!I$6-4,0) -> -15.75726703 | AL75: =+IF(ISNUMBER(skjermbilde!J$3-AB75-skjermbilde!J$6-4),skjermbilde!J$3-AB75-skjermbilde!J$6-4,0) -> -25.3518536 | AM75: =+IF(ISNUMBER(skjermbilde!K$3-AC75-skjermbilde!K$6-4),skjermbilde!K$3-AC75-skjermbilde!K$6-4,0) -> -39.59476276 | AN75: =+IF(ISNUMBER(skjermbilde!L$3-AD75-skjermbilde!L$6-4),skjermbilde!L$3-AD75-skjermbilde!L$6-4,0) -> -39.39390669 | AO75: =+IF(ISNUMBER(skjermbilde!M$3-AE75-skjermbilde!M$6-4),skjermbilde!M$3-AE75-skjermbilde!M$6-4,0) -> -28.33011833 | AP75: =+IF(ISNUMBER(skjermbilde!N$3-AF75-skjermbilde!N$6-4),skjermbilde!N$3-AF75-skjermbilde!N$6-4,0) -> -18.20276318 | AQ75: =IF(skjermbilde!$O$10=TRUE,10*LOG10(10^(0.1*(AI75+AI$12))+10^(0.1*(AJ75+AJ$12))+10^(0.1*(AK75+AK$12))+10^(0.1*(AL75+AL$12))+10^(0.1*(AM75+AM$12))+10^(0.1*(AN75+AN$12))+10^(0.1*(AO75+AO$12))+10^(0.1*(AP75+AP$12))),"") ->  | AR75: 1 | AS75: 1 | AT75: 1 | AU75: 1 | AV75: 1 | AW75: 1 | AX75: 1 | AY75: 1 | AZ75: 1 | BA75: 0 | BB75: =IF(skjermbilde!$D$4="",1,IF(P75=skjermbilde!$D$4,1,0)) -> 1 | BC75: =IF(skjermbilde!$D$4="",1,IF(U75="r",1,IF(P75=skjermbilde!$D$4,1,0))) -> 1 | BD75: =+IF(U75="r",1,IF(M75=skjermbilde!$D$3,1,0)) -> 1 | BE75: =+IF(U75="s",1,IF(N75=skjermbilde!$C$3,1,0)) -> 1 | BF75: =+IF(U75="s",1,IF(O75=skjermbilde!$C$4,1,0)) -> 1 | BG75: 1 | BH75: 0 | BL75: 60 | CC75: 60 | CR75: 60 | CY75: =IF(skjermbilde!$D$2=1,VLOOKUP($CS75,$CB$17:$CD$261,3,FALSE),CONCATENATE("2 x ",VLOOKUP($CS75,$CB$17:$CD$261,3,FALSE))) ->  | DI75: 2.3e-07 | DJ75: 1.00000023 | DK75: 1 | DL75: LKR-500-900 | DM75: 1.00000028 | DN75: LEV-160-1000 | DO75: 0
A76: 61 | B76: =+IF(skjermbilde!$N$10=1,datagrunnlag!H76,CONCATENATE(datagrunnlag!H76,"-V")) -> LKR-630-900 | C76: =IF(skjermbilde!$N$10=1,datagrunnlag!I76,datagrunnlag!S76) -> 4 | D76: =IF(skjermbilde!$N$10=1,datagrunnlag!J76,datagrunnlag!T76) -> 6.227035703 | E76: =IF(skjermbilde!$N$10=1,datagrunnlag!K76,datagrunnlag!U76) -> 10.15754894 | F76: =IF(skjermbilde!$N$10=1,datagrunnlag!L76,datagrunnlag!V76) -> 18.85895312 | G76: =IF(skjermbilde!$N$10=1,datagrunnlag!M76,datagrunnlag!W76) -> 33.31424667 | H76: =IF(skjermbilde!$N$10=1,datagrunnlag!N76,datagrunnlag!X76) -> 23.79476276 | I76: =IF(skjermbilde!$N$10=1,datagrunnlag!O76,datagrunnlag!Y76) -> 16.2406607 | J76: =IF(skjermbilde!$N$10=1,datagrunnlag!P76,datagrunnlag!Z76) -> 10.73307815 | K76: =+datagrunnlag!A76 -> LKR | L76: =+datagrunnlag!B76 -> s | M76: =+datagrunnlag!C76 -> 630 | P76: =++IF(datagrunnlag!F76="s","c",datagrunnlag!F76) -> r | Q76: =+datagrunnlag!G76 -> 900 | R76: =IF(skjermbilde!$N$10=1,datagrunnlag!Q76,datagrunnlag!AI76) -> 8.666666667e-06 | S76: 0 | T76: 201 | U76: r | V76: 0 | W76: 0 | X76: =IF(skjermbilde!$D$2=1,S76^2*R76,2*S76^2*R76) -> 0 | Y76: =IF(C76="","",IF(skjermbilde!$D$2=1,C76,IF(AND(skjermbilde!$D$2=2,2*C76>60),60,IF(skjermbilde!$D$2=2,2*C76)))) -> 4 | Z76: =IF(skjermbilde!$D$2=1,D76,IF(AND(skjermbilde!$D$2=2,2*D76>60),60,IF(skjermbilde!$D$2=2,2*D76))) -> 6.227035703 | AA76: =IF(skjermbilde!$D$2=1,E76,IF(AND(skjermbilde!$D$2=2,2*E76>60),60,IF(skjermbilde!$D$2=2,2*E76))) -> 10.15754894 | AB76: =IF(skjermbilde!$D$2=1,F76,IF(AND(skjermbilde!$D$2=2,2*F76>60),60,IF(skjermbilde!$D$2=2,2*F76))) -> 18.85895312 | AC76: =IF(skjermbilde!$D$2=1,G76,IF(AND(skjermbilde!$D$2=2,2*G76>60),60,IF(skjermbilde!$D$2=2,2*G76))) -> 33.31424667 | AD76: =IF(skjermbilde!$D$2=1,H76,IF(AND(skjermbilde!$D$2=2,2*H76>60),60,IF(skjermbilde!$D$2=2,2*H76))) -> 23.79476276 | AE76: =IF(skjermbilde!$D$2=1,I76,IF(AND(skjermbilde!$D$2=2,2*I76>60),60,IF(skjermbilde!$D$2=2,2*I76))) -> 16.2406607 | AF76: =IF(J76="","",IF(skjermbilde!$D$2=1,J76,IF(AND(skjermbilde!$D$2=2,2*J76>60),60,IF(skjermbilde!$D$2=2,2*J76)))) -> 10.73307815 | AI76: =+IF(ISNUMBER(skjermbilde!G$3-Y76-skjermbilde!G$6-4),skjermbilde!G$3-Y76-skjermbilde!G$6-4,0) -> -8 | AJ76: =+IF(ISNUMBER(skjermbilde!H$3-Z76-skjermbilde!H$6-4),skjermbilde!H$3-Z76-skjermbilde!H$6-4,0) -> -10.2270357 | AK76: =+IF(ISNUMBER(skjermbilde!I$3-AA76-skjermbilde!I$6-4),skjermbilde!I$3-AA76-skjermbilde!I$6-4,0) -> -14.15754894 | AL76: =+IF(ISNUMBER(skjermbilde!J$3-AB76-skjermbilde!J$6-4),skjermbilde!J$3-AB76-skjermbilde!J$6-4,0) -> -22.85895312 | AM76: =+IF(ISNUMBER(skjermbilde!K$3-AC76-skjermbilde!K$6-4),skjermbilde!K$3-AC76-skjermbilde!K$6-4,0) -> -37.31424667 | AN76: =+IF(ISNUMBER(skjermbilde!L$3-AD76-skjermbilde!L$6-4),skjermbilde!L$3-AD76-skjermbilde!L$6-4,0) -> -27.79476276 | AO76: =+IF(ISNUMBER(skjermbilde!M$3-AE76-skjermbilde!M$6-4),skjermbilde!M$3-AE76-skjermbilde!M$6-4,0) -> -20.2406607 | AP76: =+IF(ISNUMBER(skjermbilde!N$3-AF76-skjermbilde!N$6-4),skjermbilde!N$3-AF76-skjermbilde!N$6-4,0) -> -14.73307815 | AQ76: =IF(skjermbilde!$O$10=TRUE,10*LOG10(10^(0.1*(AI76+AI$12))+10^(0.1*(AJ76+AJ$12))+10^(0.1*(AK76+AK$12))+10^(0.1*(AL76+AL$12))+10^(0.1*(AM76+AM$12))+10^(0.1*(AN76+AN$12))+10^(0.1*(AO76+AO$12))+10^(0.1*(AP76+AP$12))),"") ->  | AR76: 1 | AS76: 1 | AT76: 1 | AU76: 1 | AV76: 1 | AW76: 1 | AX76: 1 | AY76: 1 | AZ76: 1 | BA76: 0 | BB76: =IF(skjermbilde!$D$4="",1,IF(P76=skjermbilde!$D$4,1,0)) -> 1 | BC76: =IF(skjermbilde!$D$4="",1,IF(U76="r",1,IF(P76=skjermbilde!$D$4,1,0))) -> 1 | BD76: =+IF(U76="r",1,IF(M76=skjermbilde!$D$3,1,0)) -> 1 | BE76: =+IF(U76="s",1,IF(N76=skjermbilde!$C$3,1,0)) -> 1 | BF76: =+IF(U76="s",1,IF(O76=skjermbilde!$C$4,1,0)) -> 1 | BG76: 1 | BH76: 0 | BL76: 61 | CC76: 61 | CR76: 61 | CY76: =IF(skjermbilde!$D$2=1,VLOOKUP($CS76,$CB$17:$CD$261,3,FALSE),CONCATENATE("2 x ",VLOOKUP($CS76,$CB$17:$CD$261,3,FALSE))) ->  | DI76: 2.4e-07 | DJ76: 1.00000024 | DK76: 1 | DL76: LKR-630-900 | DM76: 1.00000028 | DN76: LEV-160-1000 | DO76: 0
A77: 62 | B77: =+IF(skjermbilde!$N$10=1,datagrunnlag!H77,CONCATENATE(datagrunnlag!H77,"-V")) -> 0 | C77: =IF(skjermbilde!$N$10=1,datagrunnlag!I77,datagrunnlag!S77) -> 0 | D77: =IF(skjermbilde!$N$10=1,datagrunnlag!J77,datagrunnlag!T77) -> 0 | E77: =IF(skjermbilde!$N$10=1,datagrunnlag!K77,datagrunnlag!U77) -> 0 | F77: =IF(skjermbilde!$N$10=1,datagrunnlag!L77,datagrunnlag!V77) -> 0 | G77: =IF(skjermbilde!$N$10=1,datagrunnlag!M77,datagrunnlag!W77) -> 0 | H77: =IF(skjermbilde!$N$10=1,datagrunnlag!N77,datagrunnlag!X77) -> 0 | I77: =IF(skjermbilde!$N$10=1,datagrunnlag!O77,datagrunnlag!Y77) -> 0 | J77: =IF(skjermbilde!$N$10=1,datagrunnlag!P77,datagrunnlag!Z77) -> 0 | K77: =+datagrunnlag!A77 -> 0 | L77: =+datagrunnlag!B77 -> 0 | M77: =+datagrunnlag!C77 -> 0 | P77: =++IF(datagrunnlag!F77="s","c",datagrunnlag!F77) -> 0 | Q77: =+datagrunnlag!G77 -> 0 | R77: =IF(skjermbilde!$N$10=1,datagrunnlag!Q77,datagrunnlag!AI77) -> 0 | S77: 0 | T77: 201 | U77: r | V77: 0 | W77: 0 | X77: =IF(skjermbilde!$D$2=1,S77^2*R77,2*S77^2*R77) -> 0 | Y77: =IF(C77="","",IF(skjermbilde!$D$2=1,C77,IF(AND(skjermbilde!$D$2=2,2*C77>60),60,IF(skjermbilde!$D$2=2,2*C77)))) -> 0 | Z77: =IF(skjermbilde!$D$2=1,D77,IF(AND(skjermbilde!$D$2=2,2*D77>60),60,IF(skjermbilde!$D$2=2,2*D77))) -> 0 | AA77: =IF(skjermbilde!$D$2=1,E77,IF(AND(skjermbilde!$D$2=2,2*E77>60),60,IF(skjermbilde!$D$2=2,2*E77))) -> 0 | AB77: =IF(skjermbilde!$D$2=1,F77,IF(AND(skjermbilde!$D$2=2,2*F77>60),60,IF(skjermbilde!$D$2=2,2*F77))) -> 0 | AC77: =IF(skjermbilde!$D$2=1,G77,IF(AND(skjermbilde!$D$2=2,2*G77>60),60,IF(skjermbilde!$D$2=2,2*G77))) -> 0 | AD77: =IF(skjermbilde!$D$2=1,H77,IF(AND(skjermbilde!$D$2=2,2*H77>60),60,IF(skjermbilde!$D$2=2,2*H77))) -> 0 | AE77: =IF(skjermbilde!$D$2=1,I77,IF(AND(skjermbilde!$D$2=2,2*I77>60),60,IF(skjermbilde!$D$2=2,2*I77))) -> 0 | AF77: =IF(J77="","",IF(skjermbilde!$D$2=1,J77,IF(AND(skjermbilde!$D$2=2,2*J77>60),60,IF(skjermbilde!$D$2=2,2*J77)))) -> 0 | AI77: =+IF(ISNUMBER(skjermbilde!G$3-Y77-skjermbilde!G$6-4),skjermbilde!G$3-Y77-skjermbilde!G$6-4,0) -> -4 | AJ77: =+IF(ISNUMBER(skjermbilde!H$3-Z77-skjermbilde!H$6-4),skjermbilde!H$3-Z77-skjermbilde!H$6-4,0) -> -4 | AK77: =+IF(ISNUMBER(skjermbilde!I$3-AA77-skjermbilde!I$6-4),skjermbilde!I$3-AA77-skjermbilde!I$6-4,0) -> -4 | AL77: =+IF(ISNUMBER(skjermbilde!J$3-AB77-skjermbilde!J$6-4),skjermbilde!J$3-AB77-skjermbilde!J$6-4,0) -> -4 | AM77: =+IF(ISNUMBER(skjermbilde!K$3-AC77-skjermbilde!K$6-4),skjermbilde!K$3-AC77-skjermbilde!K$6-4,0) -> -4 | AN77: =+IF(ISNUMBER(skjermbilde!L$3-AD77-skjermbilde!L$6-4),skjermbilde!L$3-AD77-skjermbilde!L$6-4,0) -> -4 | AO77: =+IF(ISNUMBER(skjermbilde!M$3-AE77-skjermbilde!M$6-4),skjermbilde!M$3-AE77-skjermbilde!M$6-4,0) -> -4 | AP77: =+IF(ISNUMBER(skjermbilde!N$3-AF77-skjermbilde!N$6-4),skjermbilde!N$3-AF77-skjermbilde!N$6-4,0) -> -4 | AQ77: =IF(skjermbilde!$O$10=TRUE,10*LOG10(10^(0.1*(AI77+AI$12))+10^(0.1*(AJ77+AJ$12))+10^(0.1*(AK77+AK$12))+10^(0.1*(AL77+AL$12))+10^(0.1*(AM77+AM$12))+10^(0.1*(AN77+AN$12))+10^(0.1*(AO77+AO$12))+10^(0.1*(AP77+AP$12))),"") ->  | AR77: 1 | AS77: 1 | AT77: 1 | AU77: 1 | AV77: 1 | AW77: 1 | AX77: 1 | AY77: 1 | AZ77: 1 | BA77: 0 | BB77: =IF(skjermbilde!$D$4="",1,IF(P77=skjermbilde!$D$4,1,0)) -> 0 | BC77: =IF(skjermbilde!$D$4="",1,IF(U77="r",1,IF(P77=skjermbilde!$D$4,1,0))) -> 1 | BD77: =+IF(U77="r",1,IF(M77=skjermbilde!$D$3,1,0)) -> 1 | BE77: =+IF(U77="s",1,IF(N77=skjermbilde!$C$3,1,0)) -> 1 | BF77: =+IF(U77="s",1,IF(O77=skjermbilde!$C$4,1,0)) -> 1 | BG77: 1 | BH77: 0 | BL77: 62 | CC77: 62 | CR77: 62 | CY77: =IF(skjermbilde!$D$2=1,VLOOKUP($CS77,$CB$17:$CD$261,3,FALSE),CONCATENATE("2 x ",VLOOKUP($CS77,$CB$17:$CD$261,3,FALSE))) ->  | DI77: 2.5e-07 | DJ77: 1.00000025 | DK77: 1 | DL77: 0 | DM77: 1.00000029 | DN77: LEV-200-1000 | DO77: 0
A78: 63 | B78: =+IF(skjermbilde!$N$10=1,datagrunnlag!H78,CONCATENATE(datagrunnlag!H78,"-V")) -> 0 | C78: =IF(skjermbilde!$N$10=1,datagrunnlag!I78,datagrunnlag!S78) -> 0 | D78: =IF(skjermbilde!$N$10=1,datagrunnlag!J78,datagrunnlag!T78) -> 0 | E78: =IF(skjermbilde!$N$10=1,datagrunnlag!K78,datagrunnlag!U78) -> 0 | F78: =IF(skjermbilde!$N$10=1,datagrunnlag!L78,datagrunnlag!V78) -> 0 | G78: =IF(skjermbilde!$N$10=1,datagrunnlag!M78,datagrunnlag!W78) -> 0 | H78: =IF(skjermbilde!$N$10=1,datagrunnlag!N78,datagrunnlag!X78) -> 0 | I78: =IF(skjermbilde!$N$10=1,datagrunnlag!O78,datagrunnlag!Y78) -> 0 | J78: =IF(skjermbilde!$N$10=1,datagrunnlag!P78,datagrunnlag!Z78) -> 0 | K78: =+datagrunnlag!A78 -> 0 | L78: =+datagrunnlag!B78 -> 0 | M78: =+datagrunnlag!C78 -> 0 | P78: =++IF(datagrunnlag!F78="s","c",datagrunnlag!F78) -> 0 | Q78: =+datagrunnlag!G78 -> 0 | R78: =IF(skjermbilde!$N$10=1,datagrunnlag!Q78,datagrunnlag!AI78) -> 0 | S78: 0 | T78: 201 | U78: r | V78: 0 | W78: 0 | X78: =IF(skjermbilde!$D$2=1,S78^2*R78,2*S78^2*R78) -> 0 | Y78: =IF(C78="","",IF(skjermbilde!$D$2=1,C78,IF(AND(skjermbilde!$D$2=2,2*C78>60),60,IF(skjermbilde!$D$2=2,2*C78)))) -> 0 | Z78: =IF(skjermbilde!$D$2=1,D78,IF(AND(skjermbilde!$D$2=2,2*D78>60),60,IF(skjermbilde!$D$2=2,2*D78))) -> 0 | AA78: =IF(skjermbilde!$D$2=1,E78,IF(AND(skjermbilde!$D$2=2,2*E78>60),60,IF(skjermbilde!$D$2=2,2*E78))) -> 0 | AB78: =IF(skjermbilde!$D$2=1,F78,IF(AND(skjermbilde!$D$2=2,2*F78>60),60,IF(skjermbilde!$D$2=2,2*F78))) -> 0 | AC78: =IF(skjermbilde!$D$2=1,G78,IF(AND(skjermbilde!$D$2=2,2*G78>60),60,IF(skjermbilde!$D$2=2,2*G78))) -> 0 | AD78: =IF(skjermbilde!$D$2=1,H78,IF(AND(skjermbilde!$D$2=2,2*H78>60),60,IF(skjermbilde!$D$2=2,2*H78))) -> 0 | AE78: =IF(skjermbilde!$D$2=1,I78,IF(AND(skjermbilde!$D$2=2,2*I78>60),60,IF(skjermbilde!$D$2=2,2*I78))) -> 0 | AF78: =IF(J78="","",IF(skjermbilde!$D$2=1,J78,IF(AND(skjermbilde!$D$2=2,2*J78>60),60,IF(skjermbilde!$D$2=2,2*J78)))) -> 0 | AI78: =+IF(ISNUMBER(skjermbilde!G$3-Y78-skjermbilde!G$6-4),skjermbilde!G$3-Y78-skjermbilde!G$6-4,0) -> -4 | AJ78: =+IF(ISNUMBER(skjermbilde!H$3-Z78-skjermbilde!H$6-4),skjermbilde!H$3-Z78-skjermbilde!H$6-4,0) -> -4 | AK78: =+IF(ISNUMBER(skjermbilde!I$3-AA78-skjermbilde!I$6-4),skjermbilde!I$3-AA78-skjermbilde!I$6-4,0) -> -4 | AL78: =+IF(ISNUMBER(skjermbilde!J$3-AB78-skjermbilde!J$6-4),skjermbilde!J$3-AB78-skjermbilde!J$6-4,0) -> -4 | AM78: =+IF(ISNUMBER(skjermbilde!K$3-AC78-skjermbilde!K$6-4),skjermbilde!K$3-AC78-skjermbilde!K$6-4,0) -> -4 | AN78: =+IF(ISNUMBER(skjermbilde!L$3-AD78-skjermbilde!L$6-4),skjermbilde!L$3-AD78-skjermbilde!L$6-4,0) -> -4 | AO78: =+IF(ISNUMBER(skjermbilde!M$3-AE78-skjermbilde!M$6-4),skjermbilde!M$3-AE78-skjermbilde!M$6-4,0) -> -4 | AP78: =+IF(ISNUMBER(skjermbilde!N$3-AF78-skjermbilde!N$6-4),skjermbilde!N$3-AF78-skjermbilde!N$6-4,0) -> -4 | AQ78: =IF(skjermbilde!$O$10=TRUE,10*LOG10(10^(0.1*(AI78+AI$12))+10^(0.1*(AJ78+AJ$12))+10^(0.1*(AK78+AK$12))+10^(0.1*(AL78+AL$12))+10^(0.1*(AM78+AM$12))+10^(0.1*(AN78+AN$12))+10^(0.1*(AO78+AO$12))+10^(0.1*(AP78+AP$12))),"") ->  | AR78: =+IF(AND(X78-1<T78,X78<201),1,0) -> 1 | AS78: =+IF(Y78>Y$11,1,0) -> 1 | AT78: 1 | AU78: 1 | AV78: 1 | AW78: 1 | AX78: 1 | AY78: 1 | AZ78: 1 | BA78: =+IF(U78=L78,1,0) -> 0 | BB78: =IF(skjermbilde!$D$4="",1,IF(P78=skjermbilde!$D$4,1,0)) -> 0 | BC78: =IF(skjermbilde!$D$4="",1,IF(U78="r",1,IF(P78=skjermbilde!$D$4,1,0))) -> 1 | BD78: =+IF(U78="r",1,IF(M78=skjermbilde!$D$3,1,0)) -> 1 | BE78: =+IF(U78="s",1,IF(N78=skjermbilde!$C$3,1,0)) -> 1 | BF78: =+IF(U78="s",1,IF(O78=skjermbilde!$C$4,1,0)) -> 1 | BG78: =+IF(OR(W78=Q78,W78=0),1,0) -> 1 | BH78: =+IF(SUM(AR78:BG78)=16,1,0) -> 0 | BL78: =+A78 -> 63 | CB78: =+IF($BH78=1,$X78+DI78,"") ->  | CC78: =+BL78 -> 63 | CR78: 63 | CY78: =IF(skjermbilde!$D$2=1,VLOOKUP($CS78,$CB$17:$CD$261,3,FALSE),CONCATENATE("2 x ",VLOOKUP($CS78,$CB$17:$CD$261,3,FALSE))) ->  | DI78: =0.00000001+DI77 -> 2.6e-07 | DJ78: =IF(ISNUMBER(DK78),DK78+DI78,"") -> 1.00000026 | DK78: =SEARCH($DL$14,B78,1) -> 1 | DL78: =IF(ISNUMBER(DK78),B78,"") -> 0 | DM78: 1.00000029 | DN78: LEV-200-1000 | DO78: 0
A79: 64 | B79: =+IF(skjermbilde!$N$10=1,datagrunnlag!H79,CONCATENATE(datagrunnlag!H79,"-V")) -> 0 | C79: =IF(skjermbilde!$N$10=1,datagrunnlag!I79,datagrunnlag!S79) -> 0 | D79: =IF(skjermbilde!$N$10=1,datagrunnlag!J79,datagrunnlag!T79) -> 0 | E79: =IF(skjermbilde!$N$10=1,datagrunnlag!K79,datagrunnlag!U79) -> 0 | F79: =IF(skjermbilde!$N$10=1,datagrunnlag!L79,datagrunnlag!V79) -> 0 | G79: =IF(skjermbilde!$N$10=1,datagrunnlag!M79,datagrunnlag!W79) -> 0 | H79: =IF(skjermbilde!$N$10=1,datagrunnlag!N79,datagrunnlag!X79) -> 0 | I79: =IF(skjermbilde!$N$10=1,datagrunnlag!O79,datagrunnlag!Y79) -> 0 | J79: =IF(skjermbilde!$N$10=1,datagrunnlag!P79,datagrunnlag!Z79) -> 0 | K79: =+datagrunnlag!A79 -> 0 | L79: =+datagrunnlag!B79 -> 0 | M79: =+datagrunnlag!C79 -> 0 | P79: =++IF(datagrunnlag!F79="s","c",datagrunnlag!F79) -> 0 | Q79: =+datagrunnlag!G79 -> 0 | R79: =IF(skjermbilde!$N$10=1,datagrunnlag!Q79,datagrunnlag!AI79) -> 0 | S79: 0 | T79: 201 | U79: r | V79: 0 | W79: 0 | X79: =IF(skjermbilde!$D$2=1,S79^2*R79,2*S79^2*R79) -> 0 | Y79: =IF(C79="","",IF(skjermbilde!$D$2=1,C79,IF(AND(skjermbilde!$D$2=2,2*C79>60),60,IF(skjermbilde!$D$2=2,2*C79)))) -> 0 | Z79: =IF(skjermbilde!$D$2=1,D79,IF(AND(skjermbilde!$D$2=2,2*D79>60),60,IF(skjermbilde!$D$2=2,2*D79))) -> 0 | AA79: =IF(skjermbilde!$D$2=1,E79,IF(AND(skjermbilde!$D$2=2,2*E79>60),60,IF(skjermbilde!$D$2=2,2*E79))) -> 0 | AB79: =IF(skjermbilde!$D$2=1,F79,IF(AND(skjermbilde!$D$2=2,2*F79>60),60,IF(skjermbilde!$D$2=2,2*F79))) -> 0 | AC79: =IF(skjermbilde!$D$2=1,G79,IF(AND(skjermbilde!$D$2=2,2*G79>60),60,IF(skjermbilde!$D$2=2,2*G79))) -> 0 | AD79: =IF(skjermbilde!$D$2=1,H79,IF(AND(skjermbilde!$D$2=2,2*H79>60),60,IF(skjermbilde!$D$2=2,2*H79))) -> 0 | AE79: =IF(skjermbilde!$D$2=1,I79,IF(AND(skjermbilde!$D$2=2,2*I79>60),60,IF(skjermbilde!$D$2=2,2*I79))) -> 0 | AF79: =IF(J79="","",IF(skjermbilde!$D$2=1,J79,IF(AND(skjermbilde!$D$2=2,2*J79>60),60,IF(skjermbilde!$D$2=2,2*J79)))) -> 0 | AI79: =+IF(ISNUMBER(skjermbilde!G$3-Y79-skjermbilde!G$6-4),skjermbilde!G$3-Y79-skjermbilde!G$6-4,0) -> -4 | AJ79: =+IF(ISNUMBER(skjermbilde!H$3-Z79-skjermbilde!H$6-4),skjermbilde!H$3-Z79-skjermbilde!H$6-4,0) -> -4 | AK79: =+IF(ISNUMBER(skjermbilde!I$3-AA79-skjermbilde!I$6-4),skjermbilde!I$3-AA79-skjermbilde!I$6-4,0) -> -4 | AL79: =+IF(ISNUMBER(skjermbilde!J$3-AB79-skjermbilde!J$6-4),skjermbilde!J$3-AB79-skjermbilde!J$6-4,0) -> -4 | AM79: =+IF(ISNUMBER(skjermbilde!K$3-AC79-skjermbilde!K$6-4),skjermbilde!K$3-AC79-skjermbilde!K$6-4,0) -> -4 | AN79: =+IF(ISNUMBER(skjermbilde!L$3-AD79-skjermbilde!L$6-4),skjermbilde!L$3-AD79-skjermbilde!L$6-4,0) -> -4 | AO79: =+IF(ISNUMBER(skjermbilde!M$3-AE79-skjermbilde!M$6-4),skjermbilde!M$3-AE79-skjermbilde!M$6-4,0) -> -4 | AP79: =+IF(ISNUMBER(skjermbilde!N$3-AF79-skjermbilde!N$6-4),skjermbilde!N$3-AF79-skjermbilde!N$6-4,0) -> -4 | AQ79: =IF(skjermbilde!$O$10=TRUE,10*LOG10(10^(0.1*(AI79+AI$12))+10^(0.1*(AJ79+AJ$12))+10^(0.1*(AK79+AK$12))+10^(0.1*(AL79+AL$12))+10^(0.1*(AM79+AM$12))+10^(0.1*(AN79+AN$12))+10^(0.1*(AO79+AO$12))+10^(0.1*(AP79+AP$12))),"") ->  | AR79: =+IF(AND(X79-1<T79,X79<201),1,0) -> 1 | AS79: 1 | AT79: 1 | AU79: 1 | AV79: 1 | AW79: 1 | AX79: 1 | AY79: 1 | AZ79: 1 | BA79: =+IF(U79=L79,1,0) -> 0 | BB79: =IF(skjermbilde!$D$4="",1,IF(P79=skjermbilde!$D$4,1,0)) -> 0 | BC79: =IF(skjermbilde!$D$4="",1,IF(U79="r",1,IF(P79=skjermbilde!$D$4,1,0))) -> 1 | BD79: =+IF(U79="r",1,IF(M79=skjermbilde!$D$3,1,0)) -> 1 | BE79: =+IF(U79="s",1,IF(N79=skjermbilde!$C$3,1,0)) -> 1 | BF79: =+IF(U79="s",1,IF(O79=skjermbilde!$C$4,1,0)) -> 1 | BG79: =+IF(OR(W79=Q79,W79=0),1,0) -> 1 | BH79: =+IF(SUM(AR79:BG79)=16,1,0) -> 0 | BL79: =+A79 -> 64 | CB79: =+IF($BH79=1,$X79+DI79,"") ->  | CC79: =+BL79 -> 64 | CR79: 64 | CY79: =IF(skjermbilde!$D$2=1,VLOOKUP($CS79,$CB$17:$CD$261,3,FALSE),CONCATENATE("2 x ",VLOOKUP($CS79,$CB$17:$CD$261,3,FALSE))) ->  | DI79: =0.00000001+DI78 -> 2.7e-07 | DJ79: =IF(ISNUMBER(DK79),DK79+DI79,"") -> 1.00000027 | DK79: =SEARCH($DL$14,B79,1) -> 1 | DL79: =IF(ISNUMBER(DK79),B79,"") -> 0 | DM79: 1.0000003 | DN79: LEV-250-1000 | DO79: 0
A80: 65 | B80: =+IF(skjermbilde!$N$10=1,datagrunnlag!H80,CONCATENATE(datagrunnlag!H80,"-V")) -> LKR-100-1200 | C80: =IF(skjermbilde!$N$10=1,datagrunnlag!I80,datagrunnlag!S80) -> 3 | D80: =IF(skjermbilde!$N$10=1,datagrunnlag!J80,datagrunnlag!T80) -> 10.01834612 | E80: =IF(skjermbilde!$N$10=1,datagrunnlag!K80,datagrunnlag!U80) -> 17.37736648 | F80: =IF(skjermbilde!$N$10=1,datagrunnlag!L80,datagrunnlag!V80) -> 29.75486272 | G80: =IF(skjermbilde!$N$10=1,datagrunnlag!M80,datagrunnlag!W80) -> 42.94230591 | H80: =IF(skjermbilde!$N$10=1,datagrunnlag!N80,datagrunnlag!X80) -> 50 | I80: =IF(skjermbilde!$N$10=1,datagrunnlag!O80,datagrunnlag!Y80) -> 50 | J80: =IF(skjermbilde!$N$10=1,datagrunnlag!P80,datagrunnlag!Z80) -> 35.80098663 | K80: =+datagrunnlag!A80 -> LKR | L80: =+datagrunnlag!B80 -> s | M80: =+datagrunnlag!C80 -> 100 | P80: =++IF(datagrunnlag!F80="s","c",datagrunnlag!F80) -> r | Q80: =+datagrunnlag!G80 -> 1200 | R80: =IF(skjermbilde!$N$10=1,datagrunnlag!Q80,datagrunnlag!AI80) -> 0.0095 | S80: 0 | T80: 201 | U80: r | V80: 0 | W80: 0 | X80: =IF(skjermbilde!$D$2=1,S80^2*R80,2*S80^2*R80) -> 0 | Y80: =IF(C80="","",IF(skjermbilde!$D$2=1,C80,IF(AND(skjermbilde!$D$2=2,2*C80>60),60,IF(skjermbilde!$D$2=2,2*C80)))) -> 3 | Z80: =IF(skjermbilde!$D$2=1,D80,IF(AND(skjermbilde!$D$2=2,2*D80>60),60,IF(skjermbilde!$D$2=2,2*D80))) -> 10.01834612 | AA80: =IF(skjermbilde!$D$2=1,E80,IF(AND(skjermbilde!$D$2=2,2*E80>60),60,IF(skjermbilde!$D$2=2,2*E80))) -> 17.37736648 | AB80: =IF(skjermbilde!$D$2=1,F80,IF(AND(skjermbilde!$D$2=2,2*F80>60),60,IF(skjermbilde!$D$2=2,2*F80))) -> 29.75486272 | AC80: =IF(skjermbilde!$D$2=1,G80,IF(AND(skjermbilde!$D$2=2,2*G80>60),60,IF(skjermbilde!$D$2=2,2*G80))) -> 42.94230591 | AD80: =IF(skjermbilde!$D$2=1,H80,IF(AND(skjermbilde!$D$2=2,2*H80>60),60,IF(skjermbilde!$D$2=2,2*H80))) -> 50 | AE80: =IF(skjermbilde!$D$2=1,I80,IF(AND(skjermbilde!$D$2=2,2*I80>60),60,IF(skjermbilde!$D$2=2,2*I80))) -> 50 | AF80: =IF(J80="","",IF(skjermbilde!$D$2=1,J80,IF(AND(skjermbilde!$D$2=2,2*J80>60),60,IF(skjermbilde!$D$2=2,2*J80)))) -> 35.80098663 | AI80: =+IF(ISNUMBER(skjermbilde!G$3-Y80-skjermbilde!G$6-4),skjermbilde!G$3-Y80-skjermbilde!G$6-4,0) -> -7 | AJ80: =+IF(ISNUMBER(skjermbilde!H$3-Z80-skjermbilde!H$6-4),skjermbilde!H$3-Z80-skjermbilde!H$6-4,0) -> -14.01834612 | AK80: =+IF(ISNUMBER(skjermbilde!I$3-AA80-skjermbilde!I$6-4),skjermbilde!I$3-AA80-skjermbilde!I$6-4,0) -> -21.37736648 | AL80: =+IF(ISNUMBER(skjermbilde!J$3-AB80-skjermbilde!J$6-4),skjermbilde!J$3-AB80-skjermbilde!J$6-4,0) -> -33.75486272 | AM80: =+IF(ISNUMBER(skjermbilde!K$3-AC80-skjermbilde!K$6-4),skjermbilde!K$3-AC80-skjermbilde!K$6-4,0) -> -46.94230591 | AN80: =+IF(ISNUMBER(skjermbilde!L$3-AD80-skjermbilde!L$6-4),skjermbilde!L$3-AD80-skjermbilde!L$6-4,0) -> -54 | AO80: =+IF(ISNUMBER(skjermbilde!M$3-AE80-skjermbilde!M$6-4),skjermbilde!M$3-AE80-skjermbilde!M$6-4,0) -> -54 | AP80: =+IF(ISNUMBER(skjermbilde!N$3-AF80-skjermbilde!N$6-4),skjermbilde!N$3-AF80-skjermbilde!N$6-4,0) -> -39.80098663 | AQ80: =IF(skjermbilde!$O$10=TRUE,10*LOG10(10^(0.1*(AI80+AI$12))+10^(0.1*(AJ80+AJ$12))+10^(0.1*(AK80+AK$12))+10^(0.1*(AL80+AL$12))+10^(0.1*(AM80+AM$12))+10^(0.1*(AN80+AN$12))+10^(0.1*(AO80+AO$12))+10^(0.1*(AP80+AP$12))),"") ->  | AR80: 1 | AS80: 1 | AT80: 1 | AU80: 1 | AV80: 1 | AW80: 1 | AX80: 1 | AY80: 1 | AZ80: 1 | BA80: 0 | BB80: =IF(skjermbilde!$D$4="",1,IF(P80=skjermbilde!$D$4,1,0)) -> 1 | BC80: =IF(skjermbilde!$D$4="",1,IF(U80="r",1,IF(P80=skjermbilde!$D$4,1,0))) -> 1 | BD80: =+IF(U80="r",1,IF(M80=skjermbilde!$D$3,1,0)) -> 1 | BE80: =+IF(U80="s",1,IF(N80=skjermbilde!$C$3,1,0)) -> 1 | BF80: =+IF(U80="s",1,IF(O80=skjermbilde!$C$4,1,0)) -> 1 | BG80: 1 | BH80: 0 | BL80: 65 | CC80: 65 | CR80: 65 | CS80: =IF(ISERROR(SMALL(CB$17:CB$261,BL77)),"",SMALL(CB$17:CB$261,BL77)) ->  | CY80: =IF(skjermbilde!$D$2=1,VLOOKUP($CS80,$CB$17:$CD$261,3,FALSE),CONCATENATE("2 x ",VLOOKUP($CS80,$CB$17:$CD$261,3,FALSE))) ->  | DI80: =0.00000001+DI77 -> 2.6e-07 | DJ80: 1.00000026 | DK80: 1 | DL80: LKR-100-1200 | DM80: =IF(ISERROR(SMALL(DJ$17:DJ$261,BL77)),"",SMALL(DJ$17:DJ$261,BL77)) -> 1.00000029 | DN80: LEV-200-1000 | DO80: 0
A81: 66 | B81: =+IF(skjermbilde!$N$10=1,datagrunnlag!H81,CONCATENATE(datagrunnlag!H81,"-V")) -> LKR-125-1200 | C81: =IF(skjermbilde!$N$10=1,datagrunnlag!I81,datagrunnlag!S81) -> 4 | D81: =IF(skjermbilde!$N$10=1,datagrunnlag!J81,datagrunnlag!T81) -> 12.57462039 | E81: =IF(skjermbilde!$N$10=1,datagrunnlag!K81,datagrunnlag!U81) -> 17.45283643 | F81: =IF(skjermbilde!$N$10=1,datagrunnlag!L81,datagrunnlag!V81) -> 32.05587115 | G81: =IF(skjermbilde!$N$10=1,datagrunnlag!M81,datagrunnlag!W81) -> 41.12894243 | H81: =IF(skjermbilde!$N$10=1,datagrunnlag!N81,datagrunnlag!X81) -> 50 | I81: =IF(skjermbilde!$N$10=1,datagrunnlag!O81,datagrunnlag!Y81) -> 50 | J81: =IF(skjermbilde!$N$10=1,datagrunnlag!P81,datagrunnlag!Z81) -> 29.36610643 | K81: =+datagrunnlag!A81 -> LKR | L81: =+datagrunnlag!B81 -> s | M81: =+datagrunnlag!C81 -> 125 | P81: =++IF(datagrunnlag!F81="s","c",datagrunnlag!F81) -> r | Q81: =+datagrunnlag!G81 -> 1200 | R81: =IF(skjermbilde!$N$10=1,datagrunnlag!Q81,datagrunnlag!AI81) -> 0.003997071027 | S81: 0 | T81: 201 | U81: r | V81: 0 | W81: 0 | X81: =IF(skjermbilde!$D$2=1,S81^2*R81,2*S81^2*R81) -> 0 | Y81: =IF(C81="","",IF(skjermbilde!$D$2=1,C81,IF(AND(skjermbilde!$D$2=2,2*C81>60),60,IF(skjermbilde!$D$2=2,2*C81)))) -> 4 | Z81: =IF(skjermbilde!$D$2=1,D81,IF(AND(skjermbilde!$D$2=2,2*D81>60),60,IF(skjermbilde!$D$2=2,2*D81))) -> 12.57462039 | AA81: =IF(skjermbilde!$D$2=1,E81,IF(AND(skjermbilde!$D$2=2,2*E81>60),60,IF(skjermbilde!$D$2=2,2*E81))) -> 17.45283643 | AB81: =IF(skjermbilde!$D$2=1,F81,IF(AND(skjermbilde!$D$2=2,2*F81>60),60,IF(skjermbilde!$D$2=2,2*F81))) -> 32.05587115 | AC81: =IF(skjermbilde!$D$2=1,G81,IF(AND(skjermbilde!$D$2=2,2*G81>60),60,IF(skjermbilde!$D$2=2,2*G81))) -> 41.12894243 | AD81: =IF(skjermbilde!$D$2=1,H81,IF(AND(skjermbilde!$D$2=2,2*H81>60),60,IF(skjermbilde!$D$2=2,2*H81))) -> 50 | AE81: =IF(skjermbilde!$D$2=1,I81,IF(AND(skjermbilde!$D$2=2,2*I81>60),60,IF(skjermbilde!$D$2=2,2*I81))) -> 50 | AF81: =IF(J81="","",IF(skjermbilde!$D$2=1,J81,IF(AND(skjermbilde!$D$2=2,2*J81>60),60,IF(skjermbilde!$D$2=2,2*J81)))) -> 29.36610643 | AI81: =+IF(ISNUMBER(skjermbilde!G$3-Y81-skjermbilde!G$6-4),skjermbilde!G$3-Y81-skjermbilde!G$6-4,0) -> -8 | AJ81: =+IF(ISNUMBER(skjermbilde!H$3-Z81-skjermbilde!H$6-4),skjermbilde!H$3-Z81-skjermbilde!H$6-4,0) -> -16.57462039 | AK81: =+IF(ISNUMBER(skjermbilde!I$3-AA81-skjermbilde!I$6-4),skjermbilde!I$3-AA81-skjermbilde!I$6-4,0) -> -21.45283643 | AL81: =+IF(ISNUMBER(skjermbilde!J$3-AB81-skjermbilde!J$6-4),skjermbilde!J$3-AB81-skjermbilde!J$6-4,0) -> -36.05587115 | AM81: =+IF(ISNUMBER(skjermbilde!K$3-AC81-skjermbilde!K$6-4),skjermbilde!K$3-AC81-skjermbilde!K$6-4,0) -> -45.12894243 | AN81: =+IF(ISNUMBER(skjermbilde!L$3-AD81-skjermbilde!L$6-4),skjermbilde!L$3-AD81-skjermbilde!L$6-4,0) -> -54 | AO81: =+IF(ISNUMBER(skjermbilde!M$3-AE81-skjermbilde!M$6-4),skjermbilde!M$3-AE81-skjermbilde!M$6-4,0) -> -54 | AP81: =+IF(ISNUMBER(skjermbilde!N$3-AF81-skjermbilde!N$6-4),skjermbilde!N$3-AF81-skjermbilde!N$6-4,0) -> -33.36610643 | AQ81: =IF(skjermbilde!$O$10=TRUE,10*LOG10(10^(0.1*(AI81+AI$12))+10^(0.1*(AJ81+AJ$12))+10^(0.1*(AK81+AK$12))+10^(0.1*(AL81+AL$12))+10^(0.1*(AM81+AM$12))+10^(0.1*(AN81+AN$12))+10^(0.1*(AO81+AO$12))+10^(0.1*(AP81+AP$12))),"") ->  | AR81: 1 | AS81: 1 | AT81: 1 | AU81: 1 | AV81: 1 | AW81: 1 | AX81: 1 | AY81: 1 | AZ81: 1 | BA81: 0 | BB81: =IF(skjermbilde!$D$4="",1,IF(P81=skjermbilde!$D$4,1,0)) -> 1 | BC81: =IF(skjermbilde!$D$4="",1,IF(U81="r",1,IF(P81=skjermbilde!$D$4,1,0))) -> 1 | BD81: =+IF(U81="r",1,IF(M81=skjermbilde!$D$3,1,0)) -> 1 | BE81: =+IF(U81="s",1,IF(N81=skjermbilde!$C$3,1,0)) -> 1 | BF81: =+IF(U81="s",1,IF(O81=skjermbilde!$C$4,1,0)) -> 1 | BG81: 1 | BH81: 0 | BL81: 66 | CC81: 66 | CR81: 66 | CS81: =IF(ISERROR(SMALL(CB$17:CB$261,BL80)),"",SMALL(CB$17:CB$261,BL80)) ->  | CY81: =IF(skjermbilde!$D$2=1,VLOOKUP($CS81,$CB$17:$CD$261,3,FALSE),CONCATENATE("2 x ",VLOOKUP($CS81,$CB$17:$CD$261,3,FALSE))) ->  | DI81: 2.7e-07 | DJ81: 1.00000027 | DK81: 1 | DL81: LKR-125-1200 | DM81: =IF(ISERROR(SMALL(DJ$17:DJ$261,BL80)),"",SMALL(DJ$17:DJ$261,BL80)) -> 1.00000031 | DN81: =VLOOKUP(DM81,DJ$17:DM$261,3,FALSE) -> LEV-315-1000 | DO81: =VLOOKUP(DN81,$B$17:$CQ$261,62,FALSE) -> 0
A82: 67 | B82: =+IF(skjermbilde!$N$10=1,datagrunnlag!H82,CONCATENATE(datagrunnlag!H82,"-V")) -> LKR-160-1200 | C82: =IF(skjermbilde!$N$10=1,datagrunnlag!I82,datagrunnlag!S82) -> 4 | D82: =IF(skjermbilde!$N$10=1,datagrunnlag!J82,datagrunnlag!T82) -> 14.03556319 | E82: =IF(skjermbilde!$N$10=1,datagrunnlag!K82,datagrunnlag!U82) -> 18.17243366 | F82: =IF(skjermbilde!$N$10=1,datagrunnlag!L82,datagrunnlag!V82) -> 26.87422405 | G82: =IF(skjermbilde!$N$10=1,datagrunnlag!M82,datagrunnlag!W82) -> 38.9454904 | H82: =IF(skjermbilde!$N$10=1,datagrunnlag!N82,datagrunnlag!X82) -> 50 | I82: =IF(skjermbilde!$N$10=1,datagrunnlag!O82,datagrunnlag!Y82) -> 40.10337087 | J82: =IF(skjermbilde!$N$10=1,datagrunnlag!P82,datagrunnlag!Z82) -> 24.56280311 | K82: =+datagrunnlag!A82 -> LKR | L82: =+datagrunnlag!B82 -> s | M82: =+datagrunnlag!C82 -> 160 | P82: =++IF(datagrunnlag!F82="s","c",datagrunnlag!F82) -> r | Q82: =+datagrunnlag!G82 -> 1200 | R82: =IF(skjermbilde!$N$10=1,datagrunnlag!Q82,datagrunnlag!AI82) -> 0.00103 | S82: 0 | T82: 201 | U82: r | V82: 0 | W82: 0 | X82: =IF(skjermbilde!$D$2=1,S82^2*R82,2*S82^2*R82) -> 0 | Y82: =IF(C82="","",IF(skjermbilde!$D$2=1,C82,IF(AND(skjermbilde!$D$2=2,2*C82>60),60,IF(skjermbilde!$D$2=2,2*C82)))) -> 4 | Z82: =IF(skjermbilde!$D$2=1,D82,IF(AND(skjermbilde!$D$2=2,2*D82>60),60,IF(skjermbilde!$D$2=2,2*D82))) -> 14.03556319 | AA82: =IF(skjermbilde!$D$2=1,E82,IF(AND(skjermbilde!$D$2=2,2*E82>60),60,IF(skjermbilde!$D$2=2,2*E82))) -> 18.17243366 | AB82: =IF(skjermbilde!$D$2=1,F82,IF(AND(skjermbilde!$D$2=2,2*F82>60),60,IF(skjermbilde!$D$2=2,2*F82))) -> 26.87422405 | AC82: =IF(skjermbilde!$D$2=1,G82,IF(AND(skjermbilde!$D$2=2,2*G82>60),60,IF(skjermbilde!$D$2=2,2*G82))) -> 38.9454904 | AD82: =IF(skjermbilde!$D$2=1,H82,IF(AND(skjermbilde!$D$2=2,2*H82>60),60,IF(skjermbilde!$D$2=2,2*H82))) -> 50 | AE82: =IF(skjermbilde!$D$2=1,I82,IF(AND(skjermbilde!$D$2=2,2*I82>60),60,IF(skjermbilde!$D$2=2,2*I82))) -> 40.10337087 | AF82: =IF(J82="","",IF(skjermbilde!$D$2=1,J82,IF(AND(skjermbilde!$D$2=2,2*J82>60),60,IF(skjermbilde!$D$2=2,2*J82)))) -> 24.56280311 | AI82: =+IF(ISNUMBER(skjermbilde!G$3-Y82-skjermbilde!G$6-4),skjermbilde!G$3-Y82-skjermbilde!G$6-4,0) -> -8 | AJ82: =+IF(ISNUMBER(skjermbilde!H$3-Z82-skjermbilde!H$6-4),skjermbilde!H$3-Z82-skjermbilde!H$6-4,0) -> -18.03556319 | AK82: =+IF(ISNUMBER(skjermbilde!I$3-AA82-skjermbilde!I$6-4),skjermbilde!I$3-AA82-skjermbilde!I$6-4,0) -> -22.17243366 | AL82: =+IF(ISNUMBER(skjermbilde!J$3-AB82-skjermbilde!J$6-4),skjermbilde!J$3-AB82-skjermbilde!J$6-4,0) -> -30.87422405 | AM82: =+IF(ISNUMBER(skjermbilde!K$3-AC82-skjermbilde!K$6-4),skjermbilde!K$3-AC82-skjermbilde!K$6-4,0) -> -42.9454904 | AN82: =+IF(ISNUMBER(skjermbilde!L$3-AD82-skjermbilde!L$6-4),skjermbilde!L$3-AD82-skjermbilde!L$6-4,0) -> -54 | AO82: =+IF(ISNUMBER(skjermbilde!M$3-AE82-skjermbilde!M$6-4),skjermbilde!M$3-AE82-skjermbilde!M$6-4,0) -> -44.10337087 | AP82: =+IF(ISNUMBER(skjermbilde!N$3-AF82-skjermbilde!N$6-4),skjermbilde!N$3-AF82-skjermbilde!N$6-4,0) -> -28.56280311 | AQ82: =IF(skjermbilde!$O$10=TRUE,10*LOG10(10^(0.1*(AI82+AI$12))+10^(0.1*(AJ82+AJ$12))+10^(0.1*(AK82+AK$12))+10^(0.1*(AL82+AL$12))+10^(0.1*(AM82+AM$12))+10^(0.1*(AN82+AN$12))+10^(0.1*(AO82+AO$12))+10^(0.1*(AP82+AP$12))),"") ->  | AR82: 1 | AS82: 1 | AT82: 1 | AU82: 1 | AV82: 1 | AW82: 1 | AX82: 1 | AY82: 1 | AZ82: 1 | BA82: 0 | BB82: =IF(skjermbilde!$D$4="",1,IF(P82=skjermbilde!$D$4,1,0)) -> 1 | BC82: =IF(skjermbilde!$D$4="",1,IF(U82="r",1,IF(P82=skjermbilde!$D$4,1,0))) -> 1 | BD82: =+IF(U82="r",1,IF(M82=skjermbilde!$D$3,1,0)) -> 1 | BE82: =+IF(U82="s",1,IF(N82=skjermbilde!$C$3,1,0)) -> 1 | BF82: =+IF(U82="s",1,IF(O82=skjermbilde!$C$4,1,0)) -> 1 | BG82: 1 | BH82: 0 | BL82: 67 | CC82: 67 | CR82: 67 | CX82: =+IF(VLOOKUP($CS82,$CB$17:$CD$261,2,FALSE)=2,"",VLOOKUP($CS82,$CB$17:$CD$261,2,FALSE)) ->  | CY82: =IF(skjermbilde!$D$2=1,VLOOKUP($CS82,$CB$17:$CD$261,3,FALSE),CONCATENATE("2 x ",VLOOKUP($CS82,$CB$17:$CD$261,3,FALSE))) ->  | DI82: 2.8e-07 | DJ82: 1.00000028 | DK82: 1 | DL82: LKR-160-1200 | DM82: 1.00000031 | DN82: LEV-315-1000 | DO82: 0
A83: 68 | B83: =+IF(skjermbilde!$N$10=1,datagrunnlag!H83,CONCATENATE(datagrunnlag!H83,"-V")) -> LKR-200-1200 | C83: =IF(skjermbilde!$N$10=1,datagrunnlag!I83,datagrunnlag!S83) -> 4 | D83: =IF(skjermbilde!$N$10=1,datagrunnlag!J83,datagrunnlag!T83) -> 8.600697703 | E83: =IF(skjermbilde!$N$10=1,datagrunnlag!K83,datagrunnlag!U83) -> 13.55908369 | F83: =IF(skjermbilde!$N$10=1,datagrunnlag!L83,datagrunnlag!V83) -> 20.86996149 | G83: =IF(skjermbilde!$N$10=1,datagrunnlag!M83,datagrunnlag!W83) -> 37.39333446 | H83: =IF(skjermbilde!$N$10=1,datagrunnlag!N83,datagrunnlag!X83) -> 50 | I83: =IF(skjermbilde!$N$10=1,datagrunnlag!O83,datagrunnlag!Y83) -> 27.17476734 | J83: =IF(skjermbilde!$N$10=1,datagrunnlag!P83,datagrunnlag!Z83) -> 18.95391538 | K83: =+datagrunnlag!A83 -> LKR | L83: =+datagrunnlag!B83 -> s | M83: =+datagrunnlag!C83 -> 200 | P83: =++IF(datagrunnlag!F83="s","c",datagrunnlag!F83) -> r | Q83: =+datagrunnlag!G83 -> 1200 | R83: =IF(skjermbilde!$N$10=1,datagrunnlag!Q83,datagrunnlag!AI83) -> 0.0002696770318 | S83: 0 | T83: 201 | U83: r | V83: 0 | W83: 0 | X83: =IF(skjermbilde!$D$2=1,S83^2*R83,2*S83^2*R83) -> 0 | Y83: =IF(C83="","",IF(skjermbilde!$D$2=1,C83,IF(AND(skjermbilde!$D$2=2,2*C83>60),60,IF(skjermbilde!$D$2=2,2*C83)))) -> 4 | Z83: =IF(skjermbilde!$D$2=1,D83,IF(AND(skjermbilde!$D$2=2,2*D83>60),60,IF(skjermbilde!$D$2=2,2*D83))) -> 8.600697703 | AA83: =IF(skjermbilde!$D$2=1,E83,IF(AND(skjermbilde!$D$2=2,2*E83>60),60,IF(skjermbilde!$D$2=2,2*E83))) -> 13.55908369 | AB83: =IF(skjermbilde!$D$2=1,F83,IF(AND(skjermbilde!$D$2=2,2*F83>60),60,IF(skjermbilde!$D$2=2,2*F83))) -> 20.86996149 | AC83: =IF(skjermbilde!$D$2=1,G83,IF(AND(skjermbilde!$D$2=2,2*G83>60),60,IF(skjermbilde!$D$2=2,2*G83))) -> 37.39333446 | AD83: =IF(skjermbilde!$D$2=1,H83,IF(AND(skjermbilde!$D$2=2,2*H83>60),60,IF(skjermbilde!$D$2=2,2*H83))) -> 50 | AE83: =IF(skjermbilde!$D$2=1,I83,IF(AND(skjermbilde!$D$2=2,2*I83>60),60,IF(skjermbilde!$D$2=2,2*I83))) -> 27.17476734 | AF83: =IF(J83="","",IF(skjermbilde!$D$2=1,J83,IF(AND(skjermbilde!$D$2=2,2*J83>60),60,IF(skjermbilde!$D$2=2,2*J83)))) -> 18.95391538 | AI83: =+IF(ISNUMBER(skjermbilde!G$3-Y83-skjermbilde!G$6-4),skjermbilde!G$3-Y83-skjermbilde!G$6-4,0) -> -8 | AJ83: =+IF(ISNUMBER(skjermbilde!H$3-Z83-skjermbilde!H$6-4),skjermbilde!H$3-Z83-skjermbilde!H$6-4,0) -> -12.6006977 | AK83: =+IF(ISNUMBER(skjermbilde!I$3-AA83-skjermbilde!I$6-4),skjermbilde!I$3-AA83-skjermbilde!I$6-4,0) -> -17.55908369 | AL83: =+IF(ISNUMBER(skjermbilde!J$3-AB83-skjermbilde!J$6-4),skjermbilde!J$3-AB83-skjermbilde!J$6-4,0) -> -24.86996149 | AM83: =+IF(ISNUMBER(skjermbilde!K$3-AC83-skjermbilde!K$6-4),skjermbilde!K$3-AC83-skjermbilde!K$6-4,0) -> -41.39333446 | AN83: =+IF(ISNUMBER(skjermbilde!L$3-AD83-skjermbilde!L$6-4),skjermbilde!L$3-AD83-skjermbilde!L$6-4,0) -> -54 | AO83: =+IF(ISNUMBER(skjermbilde!M$3-AE83-skjermbilde!M$6-4),skjermbilde!M$3-AE83-skjermbilde!M$6-4,0) -> -31.17476734 | AP83: =+IF(ISNUMBER(skjermbilde!N$3-AF83-skjermbilde!N$6-4),skjermbilde!N$3-AF83-skjermbilde!N$6-4,0) -> -22.95391538 | AQ83: =IF(skjermbilde!$O$10=TRUE,10*LOG10(10^(0.1*(AI83+AI$12))+10^(0.1*(AJ83+AJ$12))+10^(0.1*(AK83+AK$12))+10^(0.1*(AL83+AL$12))+10^(0.1*(AM83+AM$12))+10^(0.1*(AN83+AN$12))+10^(0.1*(AO83+AO$12))+10^(0.1*(AP83+AP$12))),"") ->  | AR83: 1 | AS83: 1 | AT83: 1 | AU83: 1 | AV83: 1 | AW83: 1 | AX83: 1 | AY83: 1 | AZ83: 1 | BA83: 0 | BB83: =IF(skjermbilde!$D$4="",1,IF(P83=skjermbilde!$D$4,1,0)) -> 1 | BC83: =IF(skjermbilde!$D$4="",1,IF(U83="r",1,IF(P83=skjermbilde!$D$4,1,0))) -> 1 | BD83: =+IF(U83="r",1,IF(M83=skjermbilde!$D$3,1,0)) -> 1 | BE83: =+IF(U83="s",1,IF(N83=skjermbilde!$C$3,1,0)) -> 1 | BF83: =+IF(U83="s",1,IF(O83=skjermbilde!$C$4,1,0)) -> 1 | BG83: 1 | BH83: 0 | BL83: 68 | CC83: 68 | CR83: 68 | CY83: =IF(skjermbilde!$D$2=1,VLOOKUP($CS83,$CB$17:$CD$261,3,FALSE),CONCATENATE("2 x ",VLOOKUP($CS83,$CB$17:$CD$261,3,FALSE))) ->  | DI83: 2.9e-07 | DJ83: 1.00000029 | DK83: 1 | DL83: LKR-200-1200 | DM83: 1.00000032 | DN83: LEV-400-1000 | DO83: 0
A84: 69 | B84: =+IF(skjermbilde!$N$10=1,datagrunnlag!H84,CONCATENATE(datagrunnlag!H84,"-V")) -> LKR-250-1200 | C84: =IF(skjermbilde!$N$10=1,datagrunnlag!I84,datagrunnlag!S84) -> 4 | D84: =IF(skjermbilde!$N$10=1,datagrunnlag!J84,datagrunnlag!T84) -> 10.21637488 | E84: =IF(skjermbilde!$N$10=1,datagrunnlag!K84,datagrunnlag!U84) -> 19.29446372 | F84: =IF(skjermbilde!$N$10=1,datagrunnlag!L84,datagrunnlag!V84) -> 27.14485414 | G84: =IF(skjermbilde!$N$10=1,datagrunnlag!M84,datagrunnlag!W84) -> 40.47479517 | H84: =IF(skjermbilde!$N$10=1,datagrunnlag!N84,datagrunnlag!X84) -> 45.98384369 | I84: =IF(skjermbilde!$N$10=1,datagrunnlag!O84,datagrunnlag!Y84) -> 27.39499152 | J84: =IF(skjermbilde!$N$10=1,datagrunnlag!P84,datagrunnlag!Z84) -> 17.75904245 | K84: =+datagrunnlag!A84 -> LKR | L84: =+datagrunnlag!B84 -> s | M84: =+datagrunnlag!C84 -> 250 | P84: =++IF(datagrunnlag!F84="s","c",datagrunnlag!F84) -> r | Q84: =+datagrunnlag!G84 -> 1200 | R84: =IF(skjermbilde!$N$10=1,datagrunnlag!Q84,datagrunnlag!AI84) -> 0.000212244898 | S84: 0 | T84: 201 | U84: r | V84: 0 | W84: 0 | X84: =IF(skjermbilde!$D$2=1,S84^2*R84,2*S84^2*R84) -> 0 | Y84: =IF(C84="","",IF(skjermbilde!$D$2=1,C84,IF(AND(skjermbilde!$D$2=2,2*C84>60),60,IF(skjermbilde!$D$2=2,2*C84)))) -> 4 | Z84: =IF(skjermbilde!$D$2=1,D84,IF(AND(skjermbilde!$D$2=2,2*D84>60),60,IF(skjermbilde!$D$2=2,2*D84))) -> 10.21637488 | AA84: =IF(skjermbilde!$D$2=1,E84,IF(AND(skjermbilde!$D$2=2,2*E84>60),60,IF(skjermbilde!$D$2=2,2*E84))) -> 19.29446372 | AB84: =IF(skjermbilde!$D$2=1,F84,IF(AND(skjermbilde!$D$2=2,2*F84>60),60,IF(skjermbilde!$D$2=2,2*F84))) -> 27.14485414 | AC84: =IF(skjermbilde!$D$2=1,G84,IF(AND(skjermbilde!$D$2=2,2*G84>60),60,IF(skjermbilde!$D$2=2,2*G84))) -> 40.47479517 | AD84: =IF(skjermbilde!$D$2=1,H84,IF(AND(skjermbilde!$D$2=2,2*H84>60),60,IF(skjermbilde!$D$2=2,2*H84))) -> 45.98384369 | AE84: =IF(skjermbilde!$D$2=1,I84,IF(AND(skjermbilde!$D$2=2,2*I84>60),60,IF(skjermbilde!$D$2=2,2*I84))) -> 27.39499152 | AF84: =IF(J84="","",IF(skjermbilde!$D$2=1,J84,IF(AND(skjermbilde!$D$2=2,2*J84>60),60,IF(skjermbilde!$D$2=2,2*J84)))) -> 17.75904245 | AI84: =+IF(ISNUMBER(skjermbilde!G$3-Y84-skjermbilde!G$6-4),skjermbilde!G$3-Y84-skjermbilde!G$6-4,0) -> -8 | AJ84: =+IF(ISNUMBER(skjermbilde!H$3-Z84-skjermbilde!H$6-4),skjermbilde!H$3-Z84-skjermbilde!H$6-4,0) -> -14.21637488 | AK84: =+IF(ISNUMBER(skjermbilde!I$3-AA84-skjermbilde!I$6-4),skjermbilde!I$3-AA84-skjermbilde!I$6-4,0) -> -23.29446372 | AL84: =+IF(ISNUMBER(skjermbilde!J$3-AB84-skjermbilde!J$6-4),skjermbilde!J$3-AB84-skjermbilde!J$6-4,0) -> -31.14485414 | AM84: =+IF(ISNUMBER(skjermbilde!K$3-AC84-skjermbilde!K$6-4),skjermbilde!K$3-AC84-skjermbilde!K$6-4,0) -> -44.47479517 | AN84: =+IF(ISNUMBER(skjermbilde!L$3-AD84-skjermbilde!L$6-4),skjermbilde!L$3-AD84-skjermbilde!L$6-4,0) -> -49.98384369 | AO84: =+IF(ISNUMBER(skjermbilde!M$3-AE84-skjermbilde!M$6-4),skjermbilde!M$3-AE84-skjermbilde!M$6-4,0) -> -31.39499152 | AP84: =+IF(ISNUMBER(skjermbilde!N$3-AF84-skjermbilde!N$6-4),skjermbilde!N$3-AF84-skjermbilde!N$6-4,0) -> -21.75904245 | AQ84: =IF(skjermbilde!$O$10=TRUE,10*LOG10(10^(0.1*(AI84+AI$12))+10^(0.1*(AJ84+AJ$12))+10^(0.1*(AK84+AK$12))+10^(0.1*(AL84+AL$12))+10^(0.1*(AM84+AM$12))+10^(0.1*(AN84+AN$12))+10^(0.1*(AO84+AO$12))+10^(0.1*(AP84+AP$12))),"") ->  | AR84: 1 | AS84: 1 | AT84: 1 | AU84: 1 | AV84: 1 | AW84: 1 | AX84: 1 | AY84: 1 | AZ84: 1 | BA84: 0 | BB84: =IF(skjermbilde!$D$4="",1,IF(P84=skjermbilde!$D$4,1,0)) -> 1 | BC84: =IF(skjermbilde!$D$4="",1,IF(U84="r",1,IF(P84=skjermbilde!$D$4,1,0))) -> 1 | BD84: =+IF(U84="r",1,IF(M84=skjermbilde!$D$3,1,0)) -> 1 | BE84: =+IF(U84="s",1,IF(N84=skjermbilde!$C$3,1,0)) -> 1 | BF84: =+IF(U84="s",1,IF(O84=skjermbilde!$C$4,1,0)) -> 1 | BG84: 1 | BH84: 0 | BL84: 69 | CC84: 69 | CR84: 69 | CY84: =IF(skjermbilde!$D$2=1,VLOOKUP($CS84,$CB$17:$CD$261,3,FALSE),CONCATENATE("2 x ",VLOOKUP($CS84,$CB$17:$CD$261,3,FALSE))) ->  | DI84: 3e-07 | DJ84: 1.0000003 | DK84: 1 | DL84: LKR-250-1200 | DM84: 1.00000032 | DN84: LEV-400-1000 | DO84: 0
A85: 70 | B85: =+IF(skjermbilde!$N$10=1,datagrunnlag!H85,CONCATENATE(datagrunnlag!H85,"-V")) -> LKR-315-1200 | C85: =IF(skjermbilde!$N$10=1,datagrunnlag!I85,datagrunnlag!S85) -> 4 | D85: =IF(skjermbilde!$N$10=1,datagrunnlag!J85,datagrunnlag!T85) -> 8 | E85: =IF(skjermbilde!$N$10=1,datagrunnlag!K85,datagrunnlag!U85) -> 16 | F85: =IF(skjermbilde!$N$10=1,datagrunnlag!L85,datagrunnlag!V85) -> 25 | G85: =IF(skjermbilde!$N$10=1,datagrunnlag!M85,datagrunnlag!W85) -> 41 | H85: =IF(skjermbilde!$N$10=1,datagrunnlag!N85,datagrunnlag!X85) -> 50 | I85: =IF(skjermbilde!$N$10=1,datagrunnlag!O85,datagrunnlag!Y85) -> 45 | J85: =IF(skjermbilde!$N$10=1,datagrunnlag!P85,datagrunnlag!Z85) -> 32 | K85: =+datagrunnlag!A85 -> LKR | L85: =+datagrunnlag!B85 -> s | M85: =+datagrunnlag!C85 -> 315 | P85: =++IF(datagrunnlag!F85="s","c",datagrunnlag!F85) -> r | Q85: =+datagrunnlag!G85 -> 1200 | R85: =IF(skjermbilde!$N$10=1,datagrunnlag!Q85,datagrunnlag!AI85) -> 0.0001002717269 | S85: 0 | T85: 201 | U85: r | V85: 0 | W85: 0 | X85: =IF(skjermbilde!$D$2=1,S85^2*R85,2*S85^2*R85) -> 0 | Y85: =IF(C85="","",IF(skjermbilde!$D$2=1,C85,IF(AND(skjermbilde!$D$2=2,2*C85>60),60,IF(skjermbilde!$D$2=2,2*C85)))) -> 4 | Z85: =IF(skjermbilde!$D$2=1,D85,IF(AND(skjermbilde!$D$2=2,2*D85>60),60,IF(skjermbilde!$D$2=2,2*D85))) -> 8 | AA85: =IF(skjermbilde!$D$2=1,E85,IF(AND(skjermbilde!$D$2=2,2*E85>60),60,IF(skjermbilde!$D$2=2,2*E85))) -> 16 | AB85: =IF(skjermbilde!$D$2=1,F85,IF(AND(skjermbilde!$D$2=2,2*F85>60),60,IF(skjermbilde!$D$2=2,2*F85))) -> 25 | AC85: =IF(skjermbilde!$D$2=1,G85,IF(AND(skjermbilde!$D$2=2,2*G85>60),60,IF(skjermbilde!$D$2=2,2*G85))) -> 41 | AD85: =IF(skjermbilde!$D$2=1,H85,IF(AND(skjermbilde!$D$2=2,2*H85>60),60,IF(skjermbilde!$D$2=2,2*H85))) -> 50 | AE85: =IF(skjermbilde!$D$2=1,I85,IF(AND(skjermbilde!$D$2=2,2*I85>60),60,IF(skjermbilde!$D$2=2,2*I85))) -> 45 | AF85: =IF(J85="","",IF(skjermbilde!$D$2=1,J85,IF(AND(skjermbilde!$D$2=2,2*J85>60),60,IF(skjermbilde!$D$2=2,2*J85)))) -> 32 | AI85: =+IF(ISNUMBER(skjermbilde!G$3-Y85-skjermbilde!G$6-4),skjermbilde!G$3-Y85-skjermbilde!G$6-4,0) -> -8 | AJ85: =+IF(ISNUMBER(skjermbilde!H$3-Z85-skjermbilde!H$6-4),skjermbilde!H$3-Z85-skjermbilde!H$6-4,0) -> -12 | AK85: =+IF(ISNUMBER(skjermbilde!I$3-AA85-skjermbilde!I$6-4),skjermbilde!I$3-AA85-skjermbilde!I$6-4,0) -> -20 | AL85: =+IF(ISNUMBER(skjermbilde!J$3-AB85-skjermbilde!J$6-4),skjermbilde!J$3-AB85-skjermbilde!J$6-4,0) -> -29 | AM85: =+IF(ISNUMBER(skjermbilde!K$3-AC85-skjermbilde!K$6-4),skjermbilde!K$3-AC85-skjermbilde!K$6-4,0) -> -45 | AN85: =+IF(ISNUMBER(skjermbilde!L$3-AD85-skjermbilde!L$6-4),skjermbilde!L$3-AD85-skjermbilde!L$6-4,0) -> -54 | AO85: =+IF(ISNUMBER(skjermbilde!M$3-AE85-skjermbilde!M$6-4),skjermbilde!M$3-AE85-skjermbilde!M$6-4,0) -> -49 | AP85: =+IF(ISNUMBER(skjermbilde!N$3-AF85-skjermbilde!N$6-4),skjermbilde!N$3-AF85-skjermbilde!N$6-4,0) -> -36 | AQ85: =IF(skjermbilde!$O$10=TRUE,10*LOG10(10^(0.1*(AI85+AI$12))+10^(0.1*(AJ85+AJ$12))+10^(0.1*(AK85+AK$12))+10^(0.1*(AL85+AL$12))+10^(0.1*(AM85+AM$12))+10^(0.1*(AN85+AN$12))+10^(0.1*(AO85+AO$12))+10^(0.1*(AP85+AP$12))),"") ->  | AR85: 1 | AS85: 1 | AT85: 1 | AU85: 1 | AV85: 1 | AW85: 1 | AX85: 1 | AY85: 1 | AZ85: 1 | BA85: 0 | BB85: =IF(skjermbilde!$D$4="",1,IF(P85=skjermbilde!$D$4,1,0)) -> 1 | BC85: =IF(skjermbilde!$D$4="",1,IF(U85="r",1,IF(P85=skjermbilde!$D$4,1,0))) -> 1 | BD85: =+IF(U85="r",1,IF(M85=skjermbilde!$D$3,1,0)) -> 1 | BE85: =+IF(U85="s",1,IF(N85=skjermbilde!$C$3,1,0)) -> 1 | BF85: =+IF(U85="s",1,IF(O85=skjermbilde!$C$4,1,0)) -> 1 | BG85: 1 | BH85: 0 | BL85: 70 | CC85: 70 | CR85: 70 | CY85: =IF(skjermbilde!$D$2=1,VLOOKUP($CS85,$CB$17:$CD$261,3,FALSE),CONCATENATE("2 x ",VLOOKUP($CS85,$CB$17:$CD$261,3,FALSE))) ->  | DI85: 3.1e-07 | DJ85: 1.00000031 | DK85: 1 | DL85: LKR-315-1200 | DM85: 1.00000033 | DN85: LEV-500-1000 | DO85: 0
A86: 71 | B86: =+IF(skjermbilde!$N$10=1,datagrunnlag!H86,CONCATENATE(datagrunnlag!H86,"-V")) -> LKR-400-1200 | C86: =IF(skjermbilde!$N$10=1,datagrunnlag!I86,datagrunnlag!S86) -> 4 | D86: =IF(skjermbilde!$N$10=1,datagrunnlag!J86,datagrunnlag!T86) -> 7.488271536 | E86: =IF(skjermbilde!$N$10=1,datagrunnlag!K86,datagrunnlag!U86) -> 13.2496139 | F86: =IF(skjermbilde!$N$10=1,datagrunnlag!L86,datagrunnlag!V86) -> 23.24359165 | G86: =IF(skjermbilde!$N$10=1,datagrunnlag!M86,datagrunnlag!W86) -> 35.36800603 | H86: =IF(skjermbilde!$N$10=1,datagrunnlag!N86,datagrunnlag!X86) -> 36.0506511 | I86: =IF(skjermbilde!$N$10=1,datagrunnlag!O86,datagrunnlag!Y86) -> 27.9651176 | J86: =IF(skjermbilde!$N$10=1,datagrunnlag!P86,datagrunnlag!Z86) -> 15.53432059 | K86: =+datagrunnlag!A86 -> LKR | L86: =+datagrunnlag!B86 -> s | M86: =+datagrunnlag!C86 -> 400 | P86: =++IF(datagrunnlag!F86="s","c",datagrunnlag!F86) -> r | Q86: =+datagrunnlag!G86 -> 1200 | R86: =IF(skjermbilde!$N$10=1,datagrunnlag!Q86,datagrunnlag!AI86) -> 4.232448659e-05 | S86: 0 | T86: 201 | U86: r | V86: 0 | W86: 0 | X86: =IF(skjermbilde!$D$2=1,S86^2*R86,2*S86^2*R86) -> 0 | Y86: =IF(C86="","",IF(skjermbilde!$D$2=1,C86,IF(AND(skjermbilde!$D$2=2,2*C86>60),60,IF(skjermbilde!$D$2=2,2*C86)))) -> 4 | Z86: =IF(skjermbilde!$D$2=1,D86,IF(AND(skjermbilde!$D$2=2,2*D86>60),60,IF(skjermbilde!$D$2=2,2*D86))) -> 7.488271536 | AA86: =IF(skjermbilde!$D$2=1,E86,IF(AND(skjermbilde!$D$2=2,2*E86>60),60,IF(skjermbilde!$D$2=2,2*E86))) -> 13.2496139 | AB86: =IF(skjermbilde!$D$2=1,F86,IF(AND(skjermbilde!$D$2=2,2*F86>60),60,IF(skjermbilde!$D$2=2,2*F86))) -> 23.24359165 | AC86: =IF(skjermbilde!$D$2=1,G86,IF(AND(skjermbilde!$D$2=2,2*G86>60),60,IF(skjermbilde!$D$2=2,2*G86))) -> 35.36800603 | AD86: =IF(skjermbilde!$D$2=1,H86,IF(AND(skjermbilde!$D$2=2,2*H86>60),60,IF(skjermbilde!$D$2=2,2*H86))) -> 36.0506511 | AE86: =IF(skjermbilde!$D$2=1,I86,IF(AND(skjermbilde!$D$2=2,2*I86>60),60,IF(skjermbilde!$D$2=2,2*I86))) -> 27.9651176 | AF86: =IF(J86="","",IF(skjermbilde!$D$2=1,J86,IF(AND(skjermbilde!$D$2=2,2*J86>60),60,IF(skjermbilde!$D$2=2,2*J86)))) -> 15.53432059 | AI86: =+IF(ISNUMBER(skjermbilde!G$3-Y86-skjermbilde!G$6-4),skjermbilde!G$3-Y86-skjermbilde!G$6-4,0) -> -8 | AJ86: =+IF(ISNUMBER(skjermbilde!H$3-Z86-skjermbilde!H$6-4),skjermbilde!H$3-Z86-skjermbilde!H$6-4,0) -> -11.48827154 | AK86: =+IF(ISNUMBER(skjermbilde!I$3-AA86-skjermbilde!I$6-4),skjermbilde!I$3-AA86-skjermbilde!I$6-4,0) -> -17.2496139 | AL86: =+IF(ISNUMBER(skjermbilde!J$3-AB86-skjermbilde!J$6-4),skjermbilde!J$3-AB86-skjermbilde!J$6-4,0) -> -27.24359165 | AM86: =+IF(ISNUMBER(skjermbilde!K$3-AC86-skjermbilde!K$6-4),skjermbilde!K$3-AC86-skjermbilde!K$6-4,0) -> -39.36800603 | AN86: =+IF(ISNUMBER(skjermbilde!L$3-AD86-skjermbilde!L$6-4),skjermbilde!L$3-AD86-skjermbilde!L$6-4,0) -> -40.0506511 | AO86: =+IF(ISNUMBER(skjermbilde!M$3-AE86-skjermbilde!M$6-4),skjermbilde!M$3-AE86-skjermbilde!M$6-4,0) -> -31.9651176 | AP86: =+IF(ISNUMBER(skjermbilde!N$3-AF86-skjermbilde!N$6-4),skjermbilde!N$3-AF86-skjermbilde!N$6-4,0) -> -19.53432059 | AQ86: =IF(skjermbilde!$O$10=TRUE,10*LOG10(10^(0.1*(AI86+AI$12))+10^(0.1*(AJ86+AJ$12))+10^(0.1*(AK86+AK$12))+10^(0.1*(AL86+AL$12))+10^(0.1*(AM86+AM$12))+10^(0.1*(AN86+AN$12))+10^(0.1*(AO86+AO$12))+10^(0.1*(AP86+AP$12))),"") ->  | AR86: 1 | AS86: 1 | AT86: 1 | AU86: 1 | AV86: 1 | AW86: 1 | AX86: 1 | AY86: 1 | AZ86: 1 | BA86: 0 | BB86: =IF(skjermbilde!$D$4="",1,IF(P86=skjermbilde!$D$4,1,0)) -> 1 | BC86: =IF(skjermbilde!$D$4="",1,IF(U86="r",1,IF(P86=skjermbilde!$D$4,1,0))) -> 1 | BD86: =+IF(U86="r",1,IF(M86=skjermbilde!$D$3,1,0)) -> 1 | BE86: =+IF(U86="s",1,IF(N86=skjermbilde!$C$3,1,0)) -> 1 | BF86: =+IF(U86="s",1,IF(O86=skjermbilde!$C$4,1,0)) -> 1 | BG86: 1 | BH86: 0 | BL86: 71 | CC86: 71 | CR86: 71 | CY86: =IF(skjermbilde!$D$2=1,VLOOKUP($CS86,$CB$17:$CD$261,3,FALSE),CONCATENATE("2 x ",VLOOKUP($CS86,$CB$17:$CD$261,3,FALSE))) ->  | DI86: 3.2e-07 | DJ86: 1.00000032 | DK86: 1 | DL86: LKR-400-1200 | DM86: 1.00000033 | DN86: LEV-500-1000 | DO86: 0
A87: 72 | B87: =+IF(skjermbilde!$N$10=1,datagrunnlag!H87,CONCATENATE(datagrunnlag!H87,"-V")) -> LKR-500-1200 | C87: =IF(skjermbilde!$N$10=1,datagrunnlag!I87,datagrunnlag!S87) -> 5 | D87: =IF(skjermbilde!$N$10=1,datagrunnlag!J87,datagrunnlag!T87) -> 8 | E87: =IF(skjermbilde!$N$10=1,datagrunnlag!K87,datagrunnlag!U87) -> 16 | F87: =IF(skjermbilde!$N$10=1,datagrunnlag!L87,datagrunnlag!V87) -> 30 | G87: =IF(skjermbilde!$N$10=1,datagrunnlag!M87,datagrunnlag!W87) -> 44 | H87: =IF(skjermbilde!$N$10=1,datagrunnlag!N87,datagrunnlag!X87) -> 46 | I87: =IF(skjermbilde!$N$10=1,datagrunnlag!O87,datagrunnlag!Y87) -> 29 | J87: =IF(skjermbilde!$N$10=1,datagrunnlag!P87,datagrunnlag!Z87) -> 18 | K87: =+datagrunnlag!A87 -> LKR | L87: =+datagrunnlag!B87 -> s | M87: =+datagrunnlag!C87 -> 500 | P87: =++IF(datagrunnlag!F87="s","c",datagrunnlag!F87) -> r | Q87: =+datagrunnlag!G87 -> 1200 | R87: =IF(skjermbilde!$N$10=1,datagrunnlag!Q87,datagrunnlag!AI87) -> 2.445435846e-05 | S87: =+$B$6 -> 0 | T87: 201 | U87: =+$B$7 -> r | V87: =+$B$3 -> 0 | W87: =+$B$4 -> 0 | X87: =IF(skjermbilde!$D$2=1,S87^2*R87,2*S87^2*R87) -> 0 | Y87: =IF(C87="","",IF(skjermbilde!$D$2=1,C87,IF(AND(skjermbilde!$D$2=2,2*C87>60),60,IF(skjermbilde!$D$2=2,2*C87)))) -> 5 | Z87: =IF(skjermbilde!$D$2=1,D87,IF(AND(skjermbilde!$D$2=2,2*D87>60),60,IF(skjermbilde!$D$2=2,2*D87))) -> 8 | AA87: =IF(skjermbilde!$D$2=1,E87,IF(AND(skjermbilde!$D$2=2,2*E87>60),60,IF(skjermbilde!$D$2=2,2*E87))) -> 16 | AB87: =IF(skjermbilde!$D$2=1,F87,IF(AND(skjermbilde!$D$2=2,2*F87>60),60,IF(skjermbilde!$D$2=2,2*F87))) -> 30 | AC87: =IF(skjermbilde!$D$2=1,G87,IF(AND(skjermbilde!$D$2=2,2*G87>60),60,IF(skjermbilde!$D$2=2,2*G87))) -> 44 | AD87: =IF(skjermbilde!$D$2=1,H87,IF(AND(skjermbilde!$D$2=2,2*H87>60),60,IF(skjermbilde!$D$2=2,2*H87))) -> 46 | AE87: =IF(skjermbilde!$D$2=1,I87,IF(AND(skjermbilde!$D$2=2,2*I87>60),60,IF(skjermbilde!$D$2=2,2*I87))) -> 29 | AF87: =IF(J87="","",IF(skjermbilde!$D$2=1,J87,IF(AND(skjermbilde!$D$2=2,2*J87>60),60,IF(skjermbilde!$D$2=2,2*J87)))) -> 18 | AI87: =+IF(ISNUMBER(skjermbilde!G$3-Y87-skjermbilde!G$6-4),skjermbilde!G$3-Y87-skjermbilde!G$6-4,0) -> -9 | AJ87: =+IF(ISNUMBER(skjermbilde!H$3-Z87-skjermbilde!H$6-4),skjermbilde!H$3-Z87-skjermbilde!H$6-4,0) -> -12 | AK87: =+IF(ISNUMBER(skjermbilde!I$3-AA87-skjermbilde!I$6-4),skjermbilde!I$3-AA87-skjermbilde!I$6-4,0) -> -20 | AL87: =+IF(ISNUMBER(skjermbilde!J$3-AB87-skjermbilde!J$6-4),skjermbilde!J$3-AB87-skjermbilde!J$6-4,0) -> -34 | AM87: =+IF(ISNUMBER(skjermbilde!K$3-AC87-skjermbilde!K$6-4),skjermbilde!K$3-AC87-skjermbilde!K$6-4,0) -> -48 | AN87: =+IF(ISNUMBER(skjermbilde!L$3-AD87-skjermbilde!L$6-4),skjermbilde!L$3-AD87-skjermbilde!L$6-4,0) -> -50 | AO87: =+IF(ISNUMBER(skjermbilde!M$3-AE87-skjermbilde!M$6-4),skjermbilde!M$3-AE87-skjermbilde!M$6-4,0) -> -33 | AP87: =+IF(ISNUMBER(skjermbilde!N$3-AF87-skjermbilde!N$6-4),skjermbilde!N$3-AF87-skjermbilde!N$6-4,0) -> -22 | AQ87: =IF(skjermbilde!$O$10=TRUE,10*LOG10(10^(0.1*(AI87+AI$12))+10^(0.1*(AJ87+AJ$12))+10^(0.1*(AK87+AK$12))+10^(0.1*(AL87+AL$12))+10^(0.1*(AM87+AM$12))+10^(0.1*(AN87+AN$12))+10^(0.1*(AO87+AO$12))+10^(0.1*(AP87+AP$12))),"") ->  | AR87: 1 | AS87: =+IF(Y87>Y$11,1,0) -> 1 | AT87: =+IF(Z87>Z$11,1,0) -> 1 | AU87: =+IF(AA87>AA$11,1,0) -> 1 | AV87: =+IF(AB87>AB$11,1,0) -> 1 | AW87: =+IF(AC87>AC$11,1,0) -> 1 | AX87: =+IF(AD87>AD$11,1,0) -> 1 | AY87: =+IF(AE87>AE$11,1,0) -> 1 | AZ87: =+IF(AF87>AF$11,1,0) -> 1 | BA87: =+IF(U87=L87,1,0) -> 0 | BB87: =IF(skjermbilde!$D$4="",1,IF(P87=skjermbilde!$D$4,1,0)) -> 1 | BC87: =IF(skjermbilde!$D$4="",1,IF(U87="r",1,IF(P87=skjermbilde!$D$4,1,0))) -> 1 | BD87: =+IF(U87="r",1,IF(M87=skjermbilde!$D$3,1,0)) -> 1 | BE87: =+IF(U87="s",1,IF(N87=skjermbilde!$C$3,1,0)) -> 1 | BF87: =+IF(U87="s",1,IF(O87=skjermbilde!$C$4,1,0)) -> 1 | BG87: 1 | BH87: 0 | BL87: 72 | BM87: =+IF($BH87=1,$B87,"") ->  | CB87: =+IF($BH87=1,$X87+DI87,"") ->  | CC87: 72 | CD87: =+IF($BH87=1,$B87,"") ->  | CR87: 72 | CY87: =IF(skjermbilde!$D$2=1,VLOOKUP($CS87,$CB$17:$CD$261,3,FALSE),CONCATENATE("2 x ",VLOOKUP($CS87,$CB$17:$CD$261,3,FALSE))) ->  | DI87: 3.3e-07 | DJ87: 1.00000033 | DK87: =SEARCH($DL$14,B87,1) -> 1 | DL87: =IF(ISNUMBER(DK87),B87,"") -> LKR-500-1200 | DM87: 1.00000034 | DN87: LEV-630-1000 | DO87: 0
